Workbook

Sheet myset (hidden)
A1: =CONCATENATE("https://en.24score.com/football/?date=",B17) -> https://en.24score.com/football/?date=2020-11-20 | E1: =G1-3 -> -3 | F1: =CONCATENATE("GMT"," ",G1) -> GMT 0 | G1: 0
A2: =A3-1 -> 2020-11-11 | B2: =fmt(A2,"YYYY-MM-DD") -> 2020-11-11 | E2: =G2-3 -> -4 | F2: =CONCATENATE("GMT"," ",G2) -> GMT -1 | G2: =G1-1 -> -1
A3: 2020-11-12 | B3: =fmt(A3,"YYYY-MM-DD") -> 2020-11-12 | E3: -5 | F3: GMT -2 | G3: =G2-1 -> -2
A4: 2020-11-13 | B4: 2020-11-13 | E4: -6 | F4: GMT -3 | G4: -3
A5: 2020-11-14 | B5: 2020-11-14 | E5: -7 | F5: GMT -4 | G5: -4
A6: 2020-11-15 | B6: 2020-11-15 | E6: -8 | F6: GMT -5 | G6: -5
A7: 2020-11-16 | B7: 2020-11-16 | E7: -9 | F7: GMT -6 | G7: -6
A8: 2020-11-17 | B8: 2020-11-17 | E8: -10 | F8: GMT -7 | G8: -7
A9: =A10-1 -> 2020-11-18 | B9: 2020-11-18 | E9: -11 | F9: GMT -8 | G9: -8
A10: =TODAY() -> 2020-11-19 | B10: 2020-11-19 | E10: -12 | F10: GMT -9 | G10: -9
A11: =A10+1 -> 2020-11-20 | B11: 2020-11-20 | E11: -13 | F11: GMT -10 | G11: -10
A12: =A11+1 -> 2020-11-21 | B12: 2020-11-21 | E12: -14 | F12: GMT -11 | G12: -11
A13: 2020-11-22 | B13: 2020-11-22 | E13: -15 | F13: GMT -12 | G13: =G12-1 -> -12
A14: 2020-11-23 | B14: 2020-11-23 | E14: =G14-3 -> -2 | F14: GMT 1 | G14: =G1+1 -> 1
A15: 2020-11-24 | B15: 2020-11-24 | E15: -1 | F15: GMT 2 | G15: =G14+1 -> 2
E16: 0 | F16: GMT 3 | G16: =G15+1 -> 3
A17: 10 | B17: =INDEX(B2:B15,A17) -> 2020-11-20 | E17: 1 | F17: GMT 4 | G17: 4
E18: 2 | F18: GMT 5 | G18: 5
E19: 3 | F19: GMT 6 | G19: 6
E20: 4 | F20: GMT 7 | G20: 7
E21: 5 | F21: GMT 8 | G21: 8
E22: 6 | F22: GMT 9 | G22: 9
E23: 7 | F23: GMT 10 | G23: 10
E24: 8 | F24: GMT 11 | G24: 11
E25: 9 | F25: GMT 12 | G25: 12
E27: 17 | F27: =INDEX(E1:E25,E27) -> 1

Sheet site (hidden)
A2: flagSpain Primera Division | E2: 1 | F2: X | G2: 2 | K2: =IFERROR(SEARCH("flag",A2),0) -> 1 | L2: =IF(K2=1,MID(A2,5,100),L1) -> Spain Primera Division | M2: =IF(B2="","",IFERROR(fmt(LEFT(A2,SEARCH(" ",A2)-1),"HH:MM"),fmt(A2,"HH:MM"))) ->  | N2: =IF(M2="","",L2) ->  | O2: =IF(N2="","",fmt(M2+myset!$F$27/24,"HH:MM")) ->  | P2: =IF(O2="","",B2) ->  | Q2: =IF(P2="","",C2) ->  | R2: =IF(Q2="","",GetURL(J2)) -> 
A3: 23:00 570997 | B3: Osasuna | C3: Huesca | D3: — — | E3: 2.39 | F3: 3.28 | G3: 3.28 | H3: 2 | K3: =IFERROR(SEARCH("flag",A3),0) -> 0 | L3: =IF(K3=1,MID(A3,5,100),L2) -> Spain Primera Division | M3: =IF(B3="","",IFERROR(fmt(LEFT(A3,SEARCH(" ",A3)-1),"HH:MM"),fmt(A3,"HH:MM"))) -> 23:00 | N3: =IF(M3="","",L3) -> Spain Primera Division | O3: =IF(N3="","",fmt(M3+myset!$F$27/24,"HH:MM")) -> 00:00 | P3: =IF(O3="","",B3) -> Osasuna | Q3: Huesca | R3: =IF(Q3="","",GetURL(J3)) -> https://en.24score.com/football/match/570997-osasuna-huesca
A4: X | K4: 0 | L4: Spain Primera Division | O4: =IF(N4="","",fmt(M4+myset!$F$27/24,"HH:MM")) ->  | P4: =IF(O4="","",B4) ->  | R4: =IF(Q4="","",GetURL(J4)) -> 
K5: 0 | L5: Spain Primera Division | O5: =IF(N5="","",fmt(M5+myset!$F$27/24,"HH:MM")) ->  | P5: =IF(O5="","",B5) ->  | R5: =IF(Q5="","",GetURL(J5)) -> 
A6: Huesca has lost 1st half in 4 last games | K6: 0 | L6: Spain Primera Division | O6: =IF(N6="","",fmt(M6+myset!$F$27/24,"HH:MM")) ->  | P6: =IF(O6="","",B6) ->  | R6: =IF(Q6="","",GetURL(J6)) -> 
K7: 0 | L7: Spain Primera Division | O7: =IF(N7="","",fmt(M7+myset!$F$27/24,"HH:MM")) ->  | P7: =IF(O7="","",B7) ->  | R7: =IF(Q7="","",GetURL(J7)) -> 
A8: Huesca has not tied 8 periods on end | K8: 0 | L8: Spain Primera Division | O8: =IF(N8="","",fmt(M8+myset!$F$27/24,"HH:MM")) ->  | P8: =IF(O8="","",B8) ->  | R8: =IF(Q8="","",GetURL(J8)) -> 
K9: 0 | L9: Spain Primera Division | O9: =IF(N9="","",fmt(M9+myset!$F$27/24,"HH:MM")) ->  | P9: =IF(O9="","",B9) ->  | R9: =IF(Q9="","",GetURL(J9)) -> 
A10: flagFrance Ligue 1 | E10: 1 | F10: X | G10: 2 | K10: 1 | L10: France Ligue 1 | O10: =IF(N10="","",fmt(M10+myset!$F$27/24,"HH:MM")) ->  | P10: =IF(O10="","",B10) ->  | R10: =IF(Q10="","",GetURL(J10)) -> 
A11: 21:00 553206 | B11: Rennes | C11: Bordeaux | D11: — — | E11: 1.95 | F11: 3.56 | G11: 4.28 | H11: 2 | K11: 0 | L11: France Ligue 1 | M11: 21:00 | N11: France Ligue 1 | O11: =IF(N11="","",fmt(M11+myset!$F$27/24,"HH:MM")) -> 22:00 | P11: =IF(O11="","",B11) -> Rennes | Q11: Bordeaux | R11: =IF(Q11="","",GetURL(J11)) -> https://en.24score.com/football/match/553206-rennes-bordeaux
A12: X | K12: 0 | L12: France Ligue 1 | O12: =IF(N12="","",fmt(M12+myset!$F$27/24,"HH:MM")) ->  | P12: =IF(O12="","",B12) ->  | R12: =IF(Q12="","",GetURL(J12)) -> 
K13: 0 | L13: France Ligue 1 | O13: =IF(N13="","",fmt(M13+myset!$F$27/24,"HH:MM")) ->  | P13: =IF(O13="","",B13) ->  | R13: =IF(Q13="","",GetURL(J13)) -> 
A14: Rennes have had over 2.5 goals in their last 7 home matches | K14: 0 | L14: France Ligue 1 | O14: =IF(N14="","",fmt(M14+myset!$F$27/24,"HH:MM")) ->  | P14: =IF(O14="","",B14) ->  | R14: =IF(Q14="","",GetURL(J14)) -> 
K15: 0 | L15: France Ligue 1 | O15: =IF(N15="","",fmt(M15+myset!$F$27/24,"HH:MM")) ->  | P15: =IF(O15="","",B15) ->  | R15: =IF(Q15="","",GetURL(J15)) -> 
A16: Bordeaux has lost 5 halves on end in away games | K16: 0 | L16: France Ligue 1 | O16: =IF(N16="","",fmt(M16+myset!$F$27/24,"HH:MM")) ->  | P16: =IF(O16="","",B16) ->  | R16: =IF(Q16="","",GetURL(J16)) -> 
A17: 23:00 553214 | B17: Monaco | C17: PSG | D17: — — | E17: 5.3 | F17: 5.2 | G17: 1.55 | H17: 4 | K17: 0 | L17: France Ligue 1 | M17: 23:00 | N17: France Ligue 1 | O17: =IF(N17="","",fmt(M17+myset!$F$27/24,"HH:MM")) -> 00:00 | P17: =IF(O17="","",B17) -> Monaco | Q17: PSG | R17: =IF(Q17="","",GetURL(J17)) -> https://en.24score.com/football/match/553214-monaco-psg
A18: X | K18: 0 | L18: France Ligue 1 | O18: =IF(N18="","",fmt(M18+myset!$F$27/24,"HH:MM")) ->  | P18: =IF(O18="","",B18) ->  | R18: =IF(Q18="","",GetURL(J18)) -> 
K19: 0 | L19: France Ligue 1 | O19: =IF(N19="","",fmt(M19+myset!$F$27/24,"HH:MM")) ->  | P19: =IF(O19="","",B19) ->  | R19: =IF(Q19="","",GetURL(J19)) -> 
A20: PSG has won 8 last games | K20: 0 | L20: France Ligue 1 | O20: =IF(N20="","",fmt(M20+myset!$F$27/24,"HH:MM")) ->  | P20: =IF(O20="","",B20) ->  | R20: =IF(Q20="","",GetURL(J20)) -> 
K21: 0 | L21: France Ligue 1 | O21: =IF(N21="","",fmt(M21+myset!$F$27/24,"HH:MM")) ->  | P21: =IF(O21="","",B21) ->  | R21: =IF(Q21="","",GetURL(J21)) -> 
A22: PSG has won 4 last away games | K22: 0 | L22: France Ligue 1 | O22: =IF(N22="","",fmt(M22+myset!$F$27/24,"HH:MM")) ->  | P22: =IF(O22="","",B22) ->  | R22: =IF(Q22="","",GetURL(J22)) -> 
K23: 0 | L23: France Ligue 1 | O23: =IF(N23="","",fmt(M23+myset!$F$27/24,"HH:MM")) ->  | P23: =IF(O23="","",B23) ->  | R23: =IF(Q23="","",GetURL(J23)) -> 
A24: PSG has won 2nd period in 8 last games | K24: 0 | L24: France Ligue 1 | O24: =IF(N24="","",fmt(M24+myset!$F$27/24,"HH:MM")) ->  | P24: =IF(O24="","",B24) ->  | R24: =IF(Q24="","",GetURL(J24)) -> 
K25: 0 | L25: France Ligue 1 | O25: =IF(N25="","",fmt(M25+myset!$F$27/24,"HH:MM")) ->  | P25: =IF(O25="","",B25) ->  | R25: =IF(Q25="","",GetURL(J25)) -> 
A26: PSG has won 2nd period in 4 last away games | K26: 0 | L26: France Ligue 1 | O26: =IF(N26="","",fmt(M26+myset!$F$27/24,"HH:MM")) ->  | P26: =IF(O26="","",B26) ->  | R26: =IF(Q26="","",GetURL(J26)) -> 
K27: 0 | L27: France Ligue 1 | O27: =IF(N27="","",fmt(M27+myset!$F$27/24,"HH:MM")) ->  | P27: =IF(O27="","",B27) ->  | R27: =IF(Q27="","",GetURL(J27)) -> 
A28: flagUkraine - Premier League | E28: 1 | F28: X | G28: 2 | K28: 1 | L28: Ukraine - Premier League | O28: =IF(N28="","",fmt(M28+myset!$F$27/24,"HH:MM")) ->  | P28: =IF(O28="","",B28) ->  | R28: =IF(Q28="","",GetURL(J28)) -> 
A29: 20:00 572756 | B29: Rukh Lviv | C29: FC Mariupol | D29: — — | E29: 2.82 | F29: 3.32 | G29: 2.48 | H29: 1 | K29: 0 | L29: Ukraine - Premier League | M29: 20:00 | N29: Ukraine - Premier League | O29: =IF(N29="","",fmt(M29+myset!$F$27/24,"HH:MM")) -> 21:00 | P29: =IF(O29="","",B29) -> Rukh Lviv | Q29: FC Mariupol | R29: =IF(Q29="","",GetURL(J29)) -> https://en.24score.com/football/match/572756-rukh-lviv-fc-mariupol
A30: X | K30: 0 | L30: Ukraine - Premier League | O30: =IF(N30="","",fmt(M30+myset!$F$27/24,"HH:MM")) ->  | P30: =IF(O30="","",B30) ->  | R30: =IF(Q30="","",GetURL(J30)) -> 
K31: 0 | L31: Ukraine - Premier League | O31: =IF(N31="","",fmt(M31+myset!$F$27/24,"HH:MM")) ->  | P31: =IF(O31="","",B31) ->  | R31: =IF(Q31="","",GetURL(J31)) -> 
A32: FC Mariupol have had over 1.5 goals 4 last halves in a row in away matches | K32: 0 | L32: Ukraine - Premier League | O32: =IF(N32="","",fmt(M32+myset!$F$27/24,"HH:MM")) ->  | P32: =IF(O32="","",B32) ->  | R32: =IF(Q32="","",GetURL(J32)) -> 
K33: 0 | L33: Ukraine - Premier League | O33: =IF(N33="","",fmt(M33+myset!$F$27/24,"HH:MM")) ->  | P33: =IF(O33="","",B33) ->  | R33: =IF(Q33="","",GetURL(J33)) -> 
A34: flagCzech Republic Gambrinus League | E34: 1 | F34: X | G34: 2 | K34: 1 | L34: Czech Republic Gambrinus League | O34: =IF(N34="","",fmt(M34+myset!$F$27/24,"HH:MM")) ->  | P34: =IF(O34="","",B34) ->  | R34: =IF(Q34="","",GetURL(J34)) -> 
A35: 20:45 560799 | B35: Slovan Liberec | C35: Jablonec | D35: — — | E35: 2.16 | F35: 3.44 | G35: 3.3 | H35: 0 | K35: 0 | L35: Czech Republic Gambrinus League | M35: 20:45 | N35: Czech Republic Gambrinus League | O35: =IF(N35="","",fmt(M35+myset!$F$27/24,"HH:MM")) -> 21:45 | P35: =IF(O35="","",B35) -> Slovan Liberec | Q35: Jablonec | R35: =IF(Q35="","",GetURL(J35)) -> https://en.24score.com/football/match/560799-slovan-liberec-jablonec
K36: 0 | L36: Czech Republic Gambrinus League | O36: =IF(N36="","",fmt(M36+myset!$F$27/24,"HH:MM")) ->  | P36: =IF(O36="","",B36) ->  | R36: =IF(Q36="","",GetURL(J36)) -> 
A37: flagDenmark - Superligaen | E37: 1 | F37: X | G37: 2 | K37: 1 | L37: Denmark - Superligaen | O37: =IF(N37="","",fmt(M37+myset!$F$27/24,"HH:MM")) ->  | P37: =IF(O37="","",B37) ->  | R37: =IF(Q37="","",GetURL(J37)) -> 
A38: 21:00 575143 | B38: Lyngby | C38: Horsens | D38: — — | E38: 2.43 | F38: 3.5 | G38: 2.85 | H38: 2 | K38: 0 | L38: Denmark - Superligaen | M38: 21:00 | N38: Denmark - Superligaen | O38: =IF(N38="","",fmt(M38+myset!$F$27/24,"HH:MM")) -> 22:00 | P38: =IF(O38="","",B38) -> Lyngby | Q38: Horsens | R38: =IF(Q38="","",GetURL(J38)) -> https://en.24score.com/football/match/575143-lyngby-horsens
A39: X | K39: 0 | L39: Denmark - Superligaen | O39: =IF(N39="","",fmt(M39+myset!$F$27/24,"HH:MM")) ->  | P39: =IF(O39="","",B39) ->  | R39: =IF(Q39="","",GetURL(J39)) -> 
K40: 0 | L40: Denmark - Superligaen | O40: =IF(N40="","",fmt(M40+myset!$F$27/24,"HH:MM")) ->  | P40: =IF(O40="","",B40) ->  | R40: =IF(Q40="","",GetURL(J40)) -> 
A41: Lyngby has not won 9 last home games | K41: 0 | L41: Denmark - Superligaen | O41: =IF(N41="","",fmt(M41+myset!$F$27/24,"HH:MM")) ->  | P41: =IF(O41="","",B41) ->  | R41: =IF(Q41="","",GetURL(J41)) -> 
K42: 0 | L42: Denmark - Superligaen | O42: =IF(N42="","",fmt(M42+myset!$F$27/24,"HH:MM")) ->  | P42: =IF(O42="","",B42) ->  | R42: =IF(Q42="","",GetURL(J42)) -> 
A43: Lyngby have had over 2.5 goals in their last 6 matches | K43: 0 | L43: Denmark - Superligaen | O43: =IF(N43="","",fmt(M43+myset!$F$27/24,"HH:MM")) ->  | P43: =IF(O43="","",B43) ->  | R43: =IF(Q43="","",GetURL(J43)) -> 
K44: 0 | L44: Denmark - Superligaen | O44: =IF(N44="","",fmt(M44+myset!$F$27/24,"HH:MM")) ->  | P44: =IF(O44="","",B44) ->  | R44: =IF(Q44="","",GetURL(J44)) -> 
A45: flagPoland Ekstraklasa | E45: 1 | F45: X | G45: 2 | K45: 1 | L45: Poland Ekstraklasa | O45: =IF(N45="","",fmt(M45+myset!$F$27/24,"HH:MM")) ->  | P45: =IF(O45="","",B45) ->  | R45: =IF(Q45="","",GetURL(J45)) -> 
A46: 20:00 569329 | B46: KS Lechia | C46: Slask Wroclaw | D46: — — | E46: 2.392 | F46: 3.58 | G46: 2.86 | H46: 0 | K46: 0 | L46: Poland Ekstraklasa | M46: 20:00 | N46: Poland Ekstraklasa | O46: =IF(N46="","",fmt(M46+myset!$F$27/24,"HH:MM")) -> 21:00 | P46: =IF(O46="","",B46) -> KS Lechia | Q46: Slask Wroclaw | R46: =IF(Q46="","",GetURL(J46)) -> https://en.24score.com/football/match/569329-ks-lechia-slask-wroclaw
A47: 22:30 569328 | B47: Gornik Zabrze | C47: Piast Gliwice | D47: — — | E47: 2.41 | F47: 3.34 | G47: 3 | H47: 2 | K47: 0 | L47: Poland Ekstraklasa | M47: 22:30 | N47: Poland Ekstraklasa | O47: =IF(N47="","",fmt(M47+myset!$F$27/24,"HH:MM")) -> 23:30 | P47: =IF(O47="","",B47) -> Gornik Zabrze | Q47: Piast Gliwice | R47: =IF(Q47="","",GetURL(J47)) -> https://en.24score.com/football/match/569328-gornik-zabrze-piast-gliwice
A48: X | K48: 0 | L48: Poland Ekstraklasa | O48: =IF(N48="","",fmt(M48+myset!$F$27/24,"HH:MM")) ->  | P48: =IF(O48="","",B48) ->  | R48: =IF(Q48="","",GetURL(J48)) -> 
K49: 0 | L49: Poland Ekstraklasa | O49: =IF(N49="","",fmt(M49+myset!$F$27/24,"HH:MM")) ->  | P49: =IF(O49="","",B49) ->  | R49: =IF(Q49="","",GetURL(J49)) -> 
A50: Piast Gliwice has not won 16 halves on end | K50: 0 | L50: Poland Ekstraklasa | O50: =IF(N50="","",fmt(M50+myset!$F$27/24,"HH:MM")) ->  | P50: =IF(O50="","",B50) ->  | R50: =IF(Q50="","",GetURL(J50)) -> 
K51: 0 | L51: Poland Ekstraklasa | O51: =IF(N51="","",fmt(M51+myset!$F$27/24,"HH:MM")) ->  | P51: =IF(O51="","",B51) ->  | R51: =IF(Q51="","",GetURL(J51)) -> 
A52: Piast Gliwice has not won 14 halves on end in away games | K52: 0 | L52: Poland Ekstraklasa | O52: =IF(N52="","",fmt(M52+myset!$F$27/24,"HH:MM")) ->  | P52: =IF(O52="","",B52) ->  | R52: =IF(Q52="","",GetURL(J52)) -> 
K53: 0 | L53: Poland Ekstraklasa | O53: =IF(N53="","",fmt(M53+myset!$F$27/24,"HH:MM")) ->  | P53: =IF(O53="","",B53) ->  | R53: =IF(Q53="","",GetURL(J53)) -> 
A54: flagBrazil - Serie A | E54: 1 | F54: X | G54: 2 | K54: 1 | L54: Brazil - Serie A | O54: =IF(N54="","",fmt(M54+myset!$F$27/24,"HH:MM")) ->  | P54: =IF(O54="","",B54) ->  | R54: =IF(Q54="","",GetURL(J54)) -> 
A55: 01:00 555712 | B55: Vasco da Gama | C55: Fortaleza | D55: — — | E55: 2.45 | F55: 3.1 | G55: 3.168 | H55: 0 | K55: 0 | L55: Brazil - Serie A | M55: 01:00 | N55: Brazil - Serie A | O55: =IF(N55="","",fmt(M55+myset!$F$27/24,"HH:MM")) -> 02:00 | P55: =IF(O55="","",B55) -> Vasco da Gama | Q55: Fortaleza | R55: =IF(Q55="","",GetURL(J55)) -> https://en.24score.com/football/match/555712-vasco-da-gama-fortaleza
K56: 0 | L56: Brazil - Serie A | O56: =IF(N56="","",fmt(M56+myset!$F$27/24,"HH:MM")) ->  | P56: =IF(O56="","",B56) ->  | R56: =IF(Q56="","",GetURL(J56)) -> 
A57: flagRussia - 1. Division | E57: 1 | F57: X | G57: 2 | K57: 1 | L57: Russia - 1. Division | O57: =IF(N57="","",fmt(M57+myset!$F$27/24,"HH:MM")) ->  | P57: =IF(O57="","",B57) ->  | R57: =IF(Q57="","",GetURL(J57)) -> 
A58: 14:00 559845 | B58: Krasnodar-2 | C58: Shinnik Yaroslavl | D58: — — | E58: 2.11 | F58: 3.56 | G58: 3.3 | H58: 3 | K58: 0 | L58: Russia - 1. Division | M58: 14:00 | N58: Russia - 1. Division | O58: =IF(N58="","",fmt(M58+myset!$F$27/24,"HH:MM")) -> 15:00 | P58: =IF(O58="","",B58) -> Krasnodar-2 | Q58: Shinnik Yaroslavl | R58: =IF(Q58="","",GetURL(J58)) -> https://en.24score.com/football/match/559845-krasnodar-2-shinnik-yaroslavl
A59: X | K59: 0 | L59: Russia - 1. Division | O59: =IF(N59="","",fmt(M59+myset!$F$27/24,"HH:MM")) ->  | P59: =IF(O59="","",B59) ->  | R59: =IF(Q59="","",GetURL(J59)) -> 
K60: 0 | L60: Russia - 1. Division | O60: =IF(N60="","",fmt(M60+myset!$F$27/24,"HH:MM")) ->  | P60: =IF(O60="","",B60) ->  | R60: =IF(Q60="","",GetURL(J60)) -> 
A61: Krasnodar-2 has not won 15 halves on end | K61: 0 | L61: Russia - 1. Division | O61: =IF(N61="","",fmt(M61+myset!$F$27/24,"HH:MM")) ->  | P61: =IF(O61="","",B61) ->  | R61: =IF(Q61="","",GetURL(J61)) -> 
K62: 0 | L62: Russia - 1. Division | O62: =IF(N62="","",fmt(M62+myset!$F$27/24,"HH:MM")) ->  | P62: =IF(O62="","",B62) ->  | R62: =IF(Q62="","",GetURL(J62)) -> 
A63: Shinnik Yaroslavl has lost 5 halves on end in away games | K63: 0 | L63: Russia - 1. Division | O63: =IF(N63="","",fmt(M63+myset!$F$27/24,"HH:MM")) ->  | P63: =IF(O63="","",B63) ->  | R63: =IF(Q63="","",GetURL(J63)) -> 
K64: 0 | L64: Russia - 1. Division | O64: =IF(N64="","",fmt(M64+myset!$F$27/24,"HH:MM")) ->  | P64: =IF(O64="","",B64) ->  | R64: =IF(Q64="","",GetURL(J64)) -> 
A65: Shinnik Yaroslavl has lost 2nd half in 6 last away games | K65: 0 | L65: Russia - 1. Division | O65: =IF(N65="","",fmt(M65+myset!$F$27/24,"HH:MM")) ->  | P65: =IF(O65="","",B65) ->  | R65: =IF(Q65="","",GetURL(J65)) -> 
K66: 0 | L66: Russia - 1. Division | O66: =IF(N66="","",fmt(M66+myset!$F$27/24,"HH:MM")) ->  | P66: =IF(O66="","",B66) ->  | R66: =IF(Q66="","",GetURL(J66)) -> 
A67: flagRomania Liga I | E67: 1 | F67: X | G67: 2 | K67: =IFERROR(SEARCH("flag",A67),0) -> 1 | L67: =IF(K67=1,MID(A67,5,100),L66) -> Romania Liga I | M67: =IF(B67="","",IFERROR(fmt(LEFT(A67,SEARCH(" ",A67)-1),"HH:MM"),fmt(A67,"HH:MM"))) ->  | N67: =IF(M67="","",L67) ->  | O67: =IF(N67="","",fmt(M67+myset!$F$27/24,"HH:MM")) ->  | P67: =IF(O67="","",B67) ->  | R67: =IF(Q67="","",GetURL(J67)) -> 
A68: 18:30 564726 | B68: CSMS Iasi | C68: Arges | D68: — — | E68: 2.44 | F68: 3.24 | G68: 2.96 | H68: 1 | K68: 0 | L68: Romania Liga I | M68: 18:30 | N68: Romania Liga I | O68: =IF(N68="","",fmt(M68+myset!$F$27/24,"HH:MM")) -> 19:30 | P68: =IF(O68="","",B68) -> CSMS Iasi | Q68: Arges | R68: =IF(Q68="","",GetURL(J68)) -> https://en.24score.com/football/match/564726-csms-iasi-arges
A69: X | K69: 0 | L69: Romania Liga I | O69: =IF(N69="","",fmt(M69+myset!$F$27/24,"HH:MM")) ->  | P69: =IF(O69="","",B69) ->  | R69: =IF(Q69="","",GetURL(J69)) -> 
K70: 0 | L70: Romania Liga I | O70: =IF(N70="","",fmt(M70+myset!$F$27/24,"HH:MM")) ->  | P70: =IF(O70="","",B70) ->  | R70: =IF(Q70="","",GetURL(J70)) -> 
A71: CSMS Iasi have had over 1.5 goals 6 last halves in a row in home matches | K71: 0 | L71: Romania Liga I | O71: =IF(N71="","",fmt(M71+myset!$F$27/24,"HH:MM")) ->  | P71: =IF(O71="","",B71) ->  | R71: =IF(Q71="","",GetURL(J71)) -> 
A72: 21:30 564727 | B72: Dinamo B. | C72: Voluntari | D72: — — | E72: 2.07 | F72: 3.34 | G72: 3.66 | H72: 3 | K72: 0 | L72: Romania Liga I | M72: 21:30 | N72: Romania Liga I | O72: =IF(N72="","",fmt(M72+myset!$F$27/24,"HH:MM")) -> 22:30 | P72: =IF(O72="","",B72) -> Dinamo B. | Q72: Voluntari | R72: =IF(Q72="","",GetURL(J72)) -> https://en.24score.com/football/match/564727-dinamo-b--voluntari
A73: X | K73: 0 | L73: Romania Liga I | O73: =IF(N73="","",fmt(M73+myset!$F$27/24,"HH:MM")) ->  | P73: =IF(O73="","",B73) ->  | R73: =IF(Q73="","",GetURL(J73)) -> 
K74: 0 | L74: Romania Liga I | O74: =IF(N74="","",fmt(M74+myset!$F$27/24,"HH:MM")) ->  | P74: =IF(O74="","",B74) ->  | R74: =IF(Q74="","",GetURL(J74)) -> 
A75: Dinamo B. has not won 10 last home games | K75: 0 | L75: Romania Liga I | O75: =IF(N75="","",fmt(M75+myset!$F$27/24,"HH:MM")) ->  | P75: =IF(O75="","",B75) ->  | R75: =IF(Q75="","",GetURL(J75)) -> 
K76: 0 | L76: Romania Liga I | O76: =IF(N76="","",fmt(M76+myset!$F$27/24,"HH:MM")) ->  | P76: =IF(O76="","",B76) ->  | R76: =IF(Q76="","",GetURL(J76)) -> 
A77: Dinamo B. have had under 2.5 goals in their last 8 home matches | K77: 0 | L77: Romania Liga I | O77: =IF(N77="","",fmt(M77+myset!$F$27/24,"HH:MM")) ->  | P77: =IF(O77="","",B77) ->  | R77: =IF(Q77="","",GetURL(J77)) -> 
K78: 0 | L78: Romania Liga I | O78: =IF(N78="","",fmt(M78+myset!$F$27/24,"HH:MM")) ->  | P78: =IF(O78="","",B78) ->  | R78: =IF(Q78="","",GetURL(J78)) -> 
A79: Voluntari has tied 2nd period in 5 last away games | K79: 0 | L79: Romania Liga I | O79: =IF(N79="","",fmt(M79+myset!$F$27/24,"HH:MM")) ->  | P79: =IF(O79="","",B79) ->  | R79: =IF(Q79="","",GetURL(J79)) -> 
K80: 0 | L80: Romania Liga I | O80: =IF(N80="","",fmt(M80+myset!$F$27/24,"HH:MM")) ->  | P80: =IF(O80="","",B80) ->  | R80: =IF(Q80="","",GetURL(J80)) -> 
A81: flagRussia PFL South | E81: 1 | F81: X | G81: 2 | K81: 1 | L81: Russia PFL South | O81: =IF(N81="","",fmt(M81+myset!$F$27/24,"HH:MM")) ->  | P81: =IF(O81="","",B81) ->  | R81: =IF(Q81="","",GetURL(J81)) -> 
A82: 14:00 561573 | B82: Inter Cherkessk | C82: Makhachkala | D82: — — | H82: 2 | K82: 0 | L82: Russia PFL South | M82: 14:00 | N82: Russia PFL South | O82: =IF(N82="","",fmt(M82+myset!$F$27/24,"HH:MM")) -> 15:00 | P82: =IF(O82="","",B82) -> Inter Cherkessk | Q82: Makhachkala | R82: =IF(Q82="","",GetURL(J82)) -> https://en.24score.com/football/match/561573-inter-cherkessk-makhachkala
A83: X | K83: 0 | L83: Russia PFL South | O83: =IF(N83="","",fmt(M83+myset!$F$27/24,"HH:MM")) ->  | P83: =IF(O83="","",B83) ->  | R83: =IF(Q83="","",GetURL(J83)) -> 
K84: 0 | L84: Russia PFL South | O84: =IF(N84="","",fmt(M84+myset!$F$27/24,"HH:MM")) ->  | P84: =IF(O84="","",B84) ->  | R84: =IF(Q84="","",GetURL(J84)) -> 
A85: Inter Cherkessk has lost 4 halves on end in home games | K85: 0 | L85: Russia PFL South | O85: =IF(N85="","",fmt(M85+myset!$F$27/24,"HH:MM")) ->  | P85: =IF(O85="","",B85) ->  | R85: =IF(Q85="","",GetURL(J85)) -> 
K86: 0 | L86: Russia PFL South | O86: =IF(N86="","",fmt(M86+myset!$F$27/24,"HH:MM")) ->  | P86: =IF(O86="","",B86) ->  | R86: =IF(Q86="","",GetURL(J86)) -> 
A87: Makhachkala has not tied 1st period in 11 last away games | K87: 0 | L87: Russia PFL South | O87: =IF(N87="","",fmt(M87+myset!$F$27/24,"HH:MM")) ->  | P87: =IF(O87="","",B87) ->  | R87: =IF(Q87="","",GetURL(J87)) -> 
K88: 0 | L88: Russia PFL South | O88: =IF(N88="","",fmt(M88+myset!$F$27/24,"HH:MM")) ->  | P88: =IF(O88="","",B88) ->  | R88: =IF(Q88="","",GetURL(J88)) -> 
A89: flagRussia Youth teams | E89: 1 | F89: X | G89: 2 | K89: 1 | L89: Russia Youth teams | O89: =IF(N89="","",fmt(M89+myset!$F$27/24,"HH:MM")) ->  | P89: =IF(O89="","",B89) ->  | R89: =IF(Q89="","",GetURL(J89)) -> 
A90: 14:00 581084 | B90: Arsenal Youth | C90: Dinamo Moscow Youth | D90: — — | H90: 1 | K90: 0 | L90: Russia Youth teams | M90: 14:00 | N90: Russia Youth teams | O90: =IF(N90="","",fmt(M90+myset!$F$27/24,"HH:MM")) -> 15:00 | P90: =IF(O90="","",B90) -> Arsenal Youth | Q90: Dinamo Moscow Youth | R90: =IF(Q90="","",GetURL(J90)) -> https://en.24score.com/football/match/581084-arsenal-youth-dinamo-moscow-youth
A91: X | K91: 0 | L91: Russia Youth teams | O91: =IF(N91="","",fmt(M91+myset!$F$27/24,"HH:MM")) ->  | P91: =IF(O91="","",B91) ->  | R91: =IF(Q91="","",GetURL(J91)) -> 
K92: 0 | L92: Russia Youth teams | O92: =IF(N92="","",fmt(M92+myset!$F$27/24,"HH:MM")) ->  | P92: =IF(O92="","",B92) ->  | R92: =IF(Q92="","",GetURL(J92)) -> 
A93: Dinamo Moscow Youth has not tied 9 periods on end in away games | K93: 0 | L93: Russia Youth teams | O93: =IF(N93="","",fmt(M93+myset!$F$27/24,"HH:MM")) ->  | P93: =IF(O93="","",B93) ->  | R93: =IF(Q93="","",GetURL(J93)) -> 
A94: 16:00 581083 | B94: PFC Sochi Youth | C94: Akhmat Youth | D94: — — | H94: 2 | K94: 0 | L94: Russia Youth teams | M94: 16:00 | N94: Russia Youth teams | O94: =IF(N94="","",fmt(M94+myset!$F$27/24,"HH:MM")) -> 17:00 | P94: =IF(O94="","",B94) -> PFC Sochi Youth | Q94: Akhmat Youth | R94: =IF(Q94="","",GetURL(J94)) -> https://en.24score.com/football/match/581083-pfc-sochi-youth-akhmat-youth
A95: X | K95: 0 | L95: Russia Youth teams | O95: =IF(N95="","",fmt(M95+myset!$F$27/24,"HH:MM")) ->  | P95: =IF(O95="","",B95) ->  | R95: =IF(Q95="","",GetURL(J95)) -> 
K96: 0 | L96: Russia Youth teams | O96: =IF(N96="","",fmt(M96+myset!$F$27/24,"HH:MM")) ->  | P96: =IF(O96="","",B96) ->  | R96: =IF(Q96="","",GetURL(J96)) -> 
A97: PFC Sochi Youth has won 4 periods on end in home games | K97: 0 | L97: Russia Youth teams | O97: =IF(N97="","",fmt(M97+myset!$F$27/24,"HH:MM")) ->  | P97: =IF(O97="","",B97) ->  | R97: =IF(Q97="","",GetURL(J97)) -> 
K98: 0 | L98: Russia Youth teams | O98: =IF(N98="","",fmt(M98+myset!$F$27/24,"HH:MM")) ->  | P98: =IF(O98="","",B98) ->  | R98: =IF(Q98="","",GetURL(J98)) -> 
A99: Akhmat Youth has not lost 2nd period in 14 last games | K99: 0 | L99: Russia Youth teams | O99: =IF(N99="","",fmt(M99+myset!$F$27/24,"HH:MM")) ->  | P99: =IF(O99="","",B99) ->  | R99: =IF(Q99="","",GetURL(J99)) -> 
K100: 0 | L100: Russia Youth teams | O100: =IF(N100="","",fmt(M100+myset!$F$27/24,"HH:MM")) ->  | P100: =IF(O100="","",B100) ->  | R100: =IF(Q100="","",GetURL(J100)) -> 
A101: flagEngland Championship | E101: 1 | F101: X | G101: 2 | K101: 1 | L101: England Championship | O101: =IF(N101="","",fmt(M101+myset!$F$27/24,"HH:MM")) ->  | P101: =IF(O101="","",B101) ->  | R101: =IF(Q101="","",GetURL(J101)) -> 
A102: 22:45 566134 | B102: Coventry | C102: Birmingham | D102: — — | E102: 2.89 | F102: 3.18 | G102: 2.65 | H102: 1 | K102: 0 | L102: England Championship | M102: 22:45 | N102: England Championship | O102: =IF(N102="","",fmt(M102+myset!$F$27/24,"HH:MM")) -> 23:45 | P102: =IF(O102="","",B102) -> Coventry | Q102: Birmingham | R102: =IF(Q102="","",GetURL(J102)) -> https://en.24score.com/football/match/566134-coventry-birmingham
A103: X | K103: 0 | L103: England Championship | O103: =IF(N103="","",fmt(M103+myset!$F$27/24,"HH:MM")) ->  | P103: =IF(O103="","",B103) ->  | R103: =IF(Q103="","",GetURL(J103)) -> 
K104: 0 | L104: England Championship | O104: =IF(N104="","",fmt(M104+myset!$F$27/24,"HH:MM")) ->  | P104: =IF(O104="","",B104) ->  | R104: =IF(Q104="","",GetURL(J104)) -> 
A105: Coventry have had over 1.5 2nd half goals in 5 last matches | K105: 0 | L105: England Championship | O105: =IF(N105="","",fmt(M105+myset!$F$27/24,"HH:MM")) ->  | P105: =IF(O105="","",B105) ->  | R105: =IF(Q105="","",GetURL(J105)) -> 
K106: 0 | L106: England Championship | O106: =IF(N106="","",fmt(M106+myset!$F$27/24,"HH:MM")) ->  | P106: =IF(O106="","",B106) ->  | R106: =IF(Q106="","",GetURL(J106)) -> 
A107: flagEngland League Two | E107: 1 | F107: X | G107: 2 | K107: 1 | L107: England League Two | O107: =IF(N107="","",fmt(M107+myset!$F$27/24,"HH:MM")) ->  | P107: =IF(O107="","",B107) ->  | R107: =IF(Q107="","",GetURL(J107)) -> 
A108: 22:00 567248 | B108: Mansfield | C108: Colchester | D108: — — | E108: 2.415 | F108: 3.52 | G108: 3.05 | H108: 1 | K108: 0 | L108: England League Two | M108: 22:00 | N108: England League Two | O108: =IF(N108="","",fmt(M108+myset!$F$27/24,"HH:MM")) -> 23:00 | P108: =IF(O108="","",B108) -> Mansfield | Q108: Colchester | R108: =IF(Q108="","",GetURL(J108)) -> https://en.24score.com/football/match/567248-mansfield-colchester
A109: X | K109: 0 | L109: England League Two | O109: =IF(N109="","",fmt(M109+myset!$F$27/24,"HH:MM")) ->  | P109: =IF(O109="","",B109) ->  | R109: =IF(Q109="","",GetURL(J109)) -> 
K110: 0 | L110: England League Two | O110: =IF(N110="","",fmt(M110+myset!$F$27/24,"HH:MM")) ->  | P110: =IF(O110="","",B110) ->  | R110: =IF(Q110="","",GetURL(J110)) -> 
A111: Mansfield has not won 2nd half in 19 last games | K111: 0 | L111: England League Two | O111: =IF(N111="","",fmt(M111+myset!$F$27/24,"HH:MM")) ->  | P111: =IF(O111="","",B111) ->  | R111: =IF(Q111="","",GetURL(J111)) -> 
K112: 0 | L112: England League Two | O112: =IF(N112="","",fmt(M112+myset!$F$27/24,"HH:MM")) ->  | P112: =IF(O112="","",B112) ->  | R112: =IF(Q112="","",GetURL(J112)) -> 
A113: flagSpain Segunda Division | E113: 1 | F113: X | G113: 2 | K113: 1 | L113: Spain Segunda Division | O113: =IF(N113="","",fmt(M113+myset!$F$27/24,"HH:MM")) ->  | P113: =IF(O113="","",B113) ->  | R113: =IF(Q113="","",GetURL(J113)) -> 
A114: 21:00 571423 | B114: Alcorcon | C114: Lugo | D114: — — | E114: 2.85 | F114: 2.94 | G114: 2.79 | H114: 3 | K114: 0 | L114: Spain Segunda Division | M114: 21:00 | N114: Spain Segunda Division | O114: =IF(N114="","",fmt(M114+myset!$F$27/24,"HH:MM")) -> 22:00 | P114: =IF(O114="","",B114) -> Alcorcon | Q114: Lugo | R114: =IF(Q114="","",GetURL(J114)) -> https://en.24score.com/football/match/571423-alcorcon-lugo
A115: X | K115: 0 | L115: Spain Segunda Division | O115: =IF(N115="","",fmt(M115+myset!$F$27/24,"HH:MM")) ->  | P115: =IF(O115="","",B115) ->  | R115: =IF(Q115="","",GetURL(J115)) -> 
K116: 0 | L116: Spain Segunda Division | O116: =IF(N116="","",fmt(M116+myset!$F$27/24,"HH:MM")) ->  | P116: =IF(O116="","",B116) ->  | R116: =IF(Q116="","",GetURL(J116)) -> 
A117: Alcorcon has lost 8 last games | K117: 0 | L117: Spain Segunda Division | O117: =IF(N117="","",fmt(M117+myset!$F$27/24,"HH:MM")) ->  | P117: =IF(O117="","",B117) ->  | R117: =IF(Q117="","",GetURL(J117)) -> 
K118: 0 | L118: Spain Segunda Division | O118: =IF(N118="","",fmt(M118+myset!$F$27/24,"HH:MM")) ->  | P118: =IF(O118="","",B118) ->  | R118: =IF(Q118="","",GetURL(J118)) -> 
A119: Alcorcon has not won 16 halves on end | K119: 0 | L119: Spain Segunda Division | O119: =IF(N119="","",fmt(M119+myset!$F$27/24,"HH:MM")) ->  | P119: =IF(O119="","",B119) ->  | R119: =IF(Q119="","",GetURL(J119)) -> 
K120: 0 | L120: Spain Segunda Division | O120: =IF(N120="","",fmt(M120+myset!$F$27/24,"HH:MM")) ->  | P120: =IF(O120="","",B120) ->  | R120: =IF(Q120="","",GetURL(J120)) -> 
A121: Alcorcon has not won 1st half in 14 last games | K121: 0 | L121: Spain Segunda Division | O121: =IF(N121="","",fmt(M121+myset!$F$27/24,"HH:MM")) ->  | P121: =IF(O121="","",B121) ->  | R121: =IF(Q121="","",GetURL(J121)) -> 
A122: 23:00 571422 | B122: Espanyol | C122: Girona | D122: — — | E122: 1.52 | F122: 3.88 | G122: 7.4 | H122: 1 | K122: 0 | L122: Spain Segunda Division | M122: 23:00 | N122: Spain Segunda Division | O122: =IF(N122="","",fmt(M122+myset!$F$27/24,"HH:MM")) -> 00:00 | P122: =IF(O122="","",B122) -> Espanyol | Q122: Girona | R122: =IF(Q122="","",GetURL(J122)) -> https://en.24score.com/football/match/571422-espanyol-girona
A123: X | K123: 0 | L123: Spain Segunda Division | O123: =IF(N123="","",fmt(M123+myset!$F$27/24,"HH:MM")) ->  | P123: =IF(O123="","",B123) ->  | R123: =IF(Q123="","",GetURL(J123)) -> 
K124: 0 | L124: Spain Segunda Division | O124: =IF(N124="","",fmt(M124+myset!$F$27/24,"HH:MM")) ->  | P124: =IF(O124="","",B124) ->  | R124: =IF(Q124="","",GetURL(J124)) -> 
A125: Girona has not lost 1st period in 11 last away games | K125: 0 | L125: Spain Segunda Division | O125: =IF(N125="","",fmt(M125+myset!$F$27/24,"HH:MM")) ->  | P125: =IF(O125="","",B125) ->  | R125: =IF(Q125="","",GetURL(J125)) -> 
K126: 0 | L126: Spain Segunda Division | O126: =IF(N126="","",fmt(M126+myset!$F$27/24,"HH:MM")) ->  | P126: =IF(O126="","",B126) ->  | R126: =IF(Q126="","",GetURL(J126)) -> 
A127: flagItaly Serie B | E127: 1 | F127: X | G127: 2 | K127: 1 | L127: Italy Serie B | O127: =IF(N127="","",fmt(M127+myset!$F$27/24,"HH:MM")) ->  | P127: =IF(O127="","",B127) ->  | R127: =IF(Q127="","",GetURL(J127)) -> 
A128: 23:00 576333 | B128: Frosinone | C128: Cosenza | D128: — — | E128: 1.81 | F128: 3.18 | G128: 5.55 | H128: 3 | K128: 0 | L128: Italy Serie B | M128: 23:00 | N128: Italy Serie B | O128: =IF(N128="","",fmt(M128+myset!$F$27/24,"HH:MM")) -> 00:00 | P128: =IF(O128="","",B128) -> Frosinone | Q128: Cosenza | R128: =IF(Q128="","",GetURL(J128)) -> https://en.24score.com/football/match/576333-frosinone-cosenza
A129: X | K129: 0 | L129: Italy Serie B | O129: =IF(N129="","",fmt(M129+myset!$F$27/24,"HH:MM")) ->  | P129: =IF(O129="","",B129) ->  | R129: =IF(Q129="","",GetURL(J129)) -> 
K130: 0 | L130: Italy Serie B | O130: =IF(N130="","",fmt(M130+myset!$F$27/24,"HH:MM")) ->  | P130: =IF(O130="","",B130) ->  | R130: =IF(Q130="","",GetURL(J130)) -> 
A131: Frosinone have had under 1.5 goals 12 last halves in a row in home matches | K131: =IFERROR(SEARCH("flag",A131),0) -> 0 | L131: =IF(K131=1,MID(A131,5,100),L130) -> Italy Serie B | M131: =IF(B131="","",IFERROR(fmt(LEFT(A131,SEARCH(" ",A131)-1),"HH:MM"),fmt(A131,"HH:MM"))) ->  | N131: =IF(M131="","",L131) ->  | O131: =IF(N131="","",fmt(M131+myset!$F$27/24,"HH:MM")) ->  | P131: =IF(O131="","",B131) ->  | R131: =IF(Q131="","",GetURL(J131)) -> 
K132: 0 | L132: Italy Serie B | O132: =IF(N132="","",fmt(M132+myset!$F$27/24,"HH:MM")) ->  | P132: =IF(O132="","",B132) ->  | R132: =IF(Q132="","",GetURL(J132)) -> 
A133: Frosinone have had under 2.5 goals in their last 11 matches | K133: 0 | L133: Italy Serie B | O133: =IF(N133="","",fmt(M133+myset!$F$27/24,"HH:MM")) ->  | P133: =IF(O133="","",B133) ->  | R133: =IF(Q133="","",GetURL(J133)) -> 
K134: 0 | L134: Italy Serie B | O134: =IF(N134="","",fmt(M134+myset!$F$27/24,"HH:MM")) ->  | P134: =IF(O134="","",B134) ->  | R134: =IF(Q134="","",GetURL(J134)) -> 
A135: Frosinone have had under 2.5 goals in their last 7 home matches | K135: 0 | L135: Italy Serie B | O135: =IF(N135="","",fmt(M135+myset!$F$27/24,"HH:MM")) ->  | P135: =IF(O135="","",B135) ->  | R135: =IF(Q135="","",GetURL(J135)) -> 
K136: 0 | L136: Italy Serie B | O136: =IF(N136="","",fmt(M136+myset!$F$27/24,"HH:MM")) ->  | P136: =IF(O136="","",B136) ->  | R136: =IF(Q136="","",GetURL(J136)) -> 
A137: flagGermany - 3. Liga | E137: 1 | F137: X | G137: 2 | K137: 1 | L137: Germany - 3. Liga | O137: =IF(N137="","",fmt(M137+myset!$F$27/24,"HH:MM")) ->  | P137: =IF(O137="","",B137) ->  | R137: =IF(Q137="","",GetURL(J137)) -> 
A138: 21:00 573330 | B138: Duisburg | C138: Verl | D138: — — | E138: 2.5 | F138: 3.32 | G138: 2.795 | H138: 2 | K138: 0 | L138: Germany - 3. Liga | M138: 21:00 | N138: Germany - 3. Liga | O138: =IF(N138="","",fmt(M138+myset!$F$27/24,"HH:MM")) -> 22:00 | P138: =IF(O138="","",B138) -> Duisburg | Q138: Verl | R138: =IF(Q138="","",GetURL(J138)) -> https://en.24score.com/football/match/573330-duisburg-verl
A139: X | K139: 0 | L139: Germany - 3. Liga | O139: =IF(N139="","",fmt(M139+myset!$F$27/24,"HH:MM")) ->  | P139: =IF(O139="","",B139) ->  | R139: =IF(Q139="","",GetURL(J139)) -> 
K140: 0 | L140: Germany - 3. Liga | O140: =IF(N140="","",fmt(M140+myset!$F$27/24,"HH:MM")) ->  | P140: =IF(O140="","",B140) ->  | R140: =IF(Q140="","",GetURL(J140)) -> 
A141: Duisburg has not won 10 halves on end in home games | K141: 0 | L141: Germany - 3. Liga | O141: =IF(N141="","",fmt(M141+myset!$F$27/24,"HH:MM")) ->  | P141: =IF(O141="","",B141) ->  | R141: =IF(Q141="","",GetURL(J141)) -> 
K142: 0 | L142: Germany - 3. Liga | O142: =IF(N142="","",fmt(M142+myset!$F$27/24,"HH:MM")) ->  | P142: =IF(O142="","",B142) ->  | R142: =IF(Q142="","",GetURL(J142)) -> 
A143: Verl have had over 2.5 goals in their last 7 matches | K143: 0 | L143: Germany - 3. Liga | O143: =IF(N143="","",fmt(M143+myset!$F$27/24,"HH:MM")) ->  | P143: =IF(O143="","",B143) ->  | R143: =IF(Q143="","",GetURL(J143)) -> 
K144: 0 | L144: Germany - 3. Liga | O144: =IF(N144="","",fmt(M144+myset!$F$27/24,"HH:MM")) ->  | P144: =IF(O144="","",B144) ->  | R144: =IF(Q144="","",GetURL(J144)) -> 
A145: flagFrance National | E145: 1 | F145: X | G145: 2 | K145: 1 | L145: France National | O145: =IF(N145="","",fmt(M145+myset!$F$27/24,"HH:MM")) ->  | P145: =IF(O145="","",B145) ->  | R145: =IF(Q145="","",GetURL(J145)) -> 
A146: 20:00 568973 | B146: Lyon-Duchere | C146: Cholet | D146: — — | E146: 2.72 | F146: 3.18 | G146: 2.54 | H146: 7 | K146: 0 | L146: France National | M146: 20:00 | N146: France National | O146: =IF(N146="","",fmt(M146+myset!$F$27/24,"HH:MM")) -> 21:00 | P146: =IF(O146="","",B146) -> Lyon-Duchere | Q146: Cholet | R146: =IF(Q146="","",GetURL(J146)) -> https://en.24score.com/football/match/568973-lyon-duchere-cholet
A147: X | K147: 0 | L147: France National | O147: =IF(N147="","",fmt(M147+myset!$F$27/24,"HH:MM")) ->  | P147: =IF(O147="","",B147) ->  | R147: =IF(Q147="","",GetURL(J147)) -> 
K148: 0 | L148: France National | O148: =IF(N148="","",fmt(M148+myset!$F$27/24,"HH:MM")) ->  | P148: =IF(O148="","",B148) ->  | R148: =IF(Q148="","",GetURL(J148)) -> 
A149: Lyon-Duchere has tied 2nd period in 6 last games | K149: 0 | L149: France National | O149: =IF(N149="","",fmt(M149+myset!$F$27/24,"HH:MM")) ->  | P149: =IF(O149="","",B149) ->  | R149: =IF(Q149="","",GetURL(J149)) -> 
K150: 0 | L150: France National | O150: =IF(N150="","",fmt(M150+myset!$F$27/24,"HH:MM")) ->  | P150: =IF(O150="","",B150) ->  | R150: =IF(Q150="","",GetURL(J150)) -> 
A151: Lyon-Duchere has tied 2nd period in 6 last home games | K151: 0 | L151: France National | O151: =IF(N151="","",fmt(M151+myset!$F$27/24,"HH:MM")) ->  | P151: =IF(O151="","",B151) ->  | R151: =IF(Q151="","",GetURL(J151)) -> 
K152: 0 | L152: France National | O152: =IF(N152="","",fmt(M152+myset!$F$27/24,"HH:MM")) ->  | P152: =IF(O152="","",B152) ->  | R152: =IF(Q152="","",GetURL(J152)) -> 
A153: Lyon-Duchere has not won 11 last games | K153: 0 | L153: France National | O153: =IF(N153="","",fmt(M153+myset!$F$27/24,"HH:MM")) ->  | P153: =IF(O153="","",B153) ->  | R153: =IF(Q153="","",GetURL(J153)) -> 
K154: 0 | L154: France National | O154: =IF(N154="","",fmt(M154+myset!$F$27/24,"HH:MM")) ->  | P154: =IF(O154="","",B154) ->  | R154: =IF(Q154="","",GetURL(J154)) -> 
A155: Lyon-Duchere has not won 17 halves on end | K155: 0 | L155: France National | O155: =IF(N155="","",fmt(M155+myset!$F$27/24,"HH:MM")) ->  | P155: =IF(O155="","",B155) ->  | R155: =IF(Q155="","",GetURL(J155)) -> 
K156: 0 | L156: France National | O156: =IF(N156="","",fmt(M156+myset!$F$27/24,"HH:MM")) ->  | P156: =IF(O156="","",B156) ->  | R156: =IF(Q156="","",GetURL(J156)) -> 
A157: Lyon-Duchere has not won 15 halves on end in home games | K157: 0 | L157: France National | O157: =IF(N157="","",fmt(M157+myset!$F$27/24,"HH:MM")) ->  | P157: =IF(O157="","",B157) ->  | R157: =IF(Q157="","",GetURL(J157)) -> 
K158: 0 | L158: France National | O158: =IF(N158="","",fmt(M158+myset!$F$27/24,"HH:MM")) ->  | P158: =IF(O158="","",B158) ->  | R158: =IF(Q158="","",GetURL(J158)) -> 
A159: Lyon-Duchere has not won 2nd half in 17 last games | K159: 0 | L159: France National | O159: =IF(N159="","",fmt(M159+myset!$F$27/24,"HH:MM")) ->  | P159: =IF(O159="","",B159) ->  | R159: =IF(Q159="","",GetURL(J159)) -> 
K160: 0 | L160: France National | O160: =IF(N160="","",fmt(M160+myset!$F$27/24,"HH:MM")) ->  | P160: =IF(O160="","",B160) ->  | R160: =IF(Q160="","",GetURL(J160)) -> 
A161: Lyon-Duchere has not won 2nd half in 9 last home games | K161: 0 | L161: France National | O161: =IF(N161="","",fmt(M161+myset!$F$27/24,"HH:MM")) ->  | P161: =IF(O161="","",B161) ->  | R161: =IF(Q161="","",GetURL(J161)) -> 
A162: 20:00 568978 | B162: Laval | C162: Boulogne | D162: — — | E162: 2.22 | F162: 3 | G162: 3.08 | H162: 2 | K162: 0 | L162: France National | M162: 20:00 | N162: France National | O162: =IF(N162="","",fmt(M162+myset!$F$27/24,"HH:MM")) -> 21:00 | P162: =IF(O162="","",B162) -> Laval | Q162: Boulogne | R162: =IF(Q162="","",GetURL(J162)) -> https://en.24score.com/football/match/568978-laval-boulogne
A163: X | K163: 0 | L163: France National | O163: =IF(N163="","",fmt(M163+myset!$F$27/24,"HH:MM")) ->  | P163: =IF(O163="","",B163) ->  | R163: =IF(Q163="","",GetURL(J163)) -> 
K164: 0 | L164: France National | O164: =IF(N164="","",fmt(M164+myset!$F$27/24,"HH:MM")) ->  | P164: =IF(O164="","",B164) ->  | R164: =IF(Q164="","",GetURL(J164)) -> 
A165: Laval has not tied 1st period in 10 last home games | K165: 0 | L165: France National | O165: =IF(N165="","",fmt(M165+myset!$F$27/24,"HH:MM")) ->  | P165: =IF(O165="","",B165) ->  | R165: =IF(Q165="","",GetURL(J165)) -> 
K166: 0 | L166: France National | O166: =IF(N166="","",fmt(M166+myset!$F$27/24,"HH:MM")) ->  | P166: =IF(O166="","",B166) ->  | R166: =IF(Q166="","",GetURL(J166)) -> 
A167: Laval has not won 13 halves on end | K167: 0 | L167: France National | O167: =IF(N167="","",fmt(M167+myset!$F$27/24,"HH:MM")) ->  | P167: =IF(O167="","",B167) ->  | R167: =IF(Q167="","",GetURL(J167)) -> 
A168: 20:00 568940 | B168: Sete | C168: Red Star | D168: — — | E168: 2.68 | F168: 3.2 | G168: 2.56 | H168: 0 | K168: 0 | L168: France National | M168: 20:00 | N168: France National | O168: =IF(N168="","",fmt(M168+myset!$F$27/24,"HH:MM")) -> 21:00 | P168: =IF(O168="","",B168) -> Sete | Q168: Red Star | R168: =IF(Q168="","",GetURL(J168)) -> https://en.24score.com/football/match/568940-sete-red-star
A169: 20:00 568910 | B169: Annecy | C169: Villefranche | D169: — — | E169: 2.42 | F169: 3.15 | G169: 2.92 | H169: 1 | K169: 0 | L169: France National | M169: 20:00 | N169: France National | O169: =IF(N169="","",fmt(M169+myset!$F$27/24,"HH:MM")) -> 21:00 | P169: =IF(O169="","",B169) -> Annecy | Q169: Villefranche | R169: =IF(Q169="","",GetURL(J169)) -> https://en.24score.com/football/match/568910-annecy-villefranche
A170: X | K170: 0 | L170: France National | O170: =IF(N170="","",fmt(M170+myset!$F$27/24,"HH:MM")) ->  | P170: =IF(O170="","",B170) ->  | R170: =IF(Q170="","",GetURL(J170)) -> 
K171: 0 | L171: France National | O171: =IF(N171="","",fmt(M171+myset!$F$27/24,"HH:MM")) ->  | P171: =IF(O171="","",B171) ->  | R171: =IF(Q171="","",GetURL(J171)) -> 
A172: Villefranche have had under 1.5 goals 13 last halves in a row | K172: 0 | L172: France National | O172: =IF(N172="","",fmt(M172+myset!$F$27/24,"HH:MM")) ->  | P172: =IF(O172="","",B172) ->  | R172: =IF(Q172="","",GetURL(J172)) -> 
A173: 20:00 568912 | B173: Quevilly Rouen | C173: Bourg Peronnas | D173: — — | E173: 2.41 | F173: 3.15 | G173: 2.93 | H173: 1 | K173: 0 | L173: France National | M173: 20:00 | N173: France National | O173: =IF(N173="","",fmt(M173+myset!$F$27/24,"HH:MM")) -> 21:00 | P173: =IF(O173="","",B173) -> Quevilly Rouen | Q173: Bourg Peronnas | R173: =IF(Q173="","",GetURL(J173)) -> https://en.24score.com/football/match/568912-quevilly-rouen-bourg-peronnas
A174: X | K174: 0 | L174: France National | O174: =IF(N174="","",fmt(M174+myset!$F$27/24,"HH:MM")) ->  | P174: =IF(O174="","",B174) ->  | R174: =IF(Q174="","",GetURL(J174)) -> 
K175: 0 | L175: France National | O175: =IF(N175="","",fmt(M175+myset!$F$27/24,"HH:MM")) ->  | P175: =IF(O175="","",B175) ->  | R175: =IF(Q175="","",GetURL(J175)) -> 
A176: Quevilly Rouen have had over 1.5 1st half goals in 4 last matches | K176: 0 | L176: France National | O176: =IF(N176="","",fmt(M176+myset!$F$27/24,"HH:MM")) ->  | P176: =IF(O176="","",B176) ->  | R176: =IF(Q176="","",GetURL(J176)) -> 
K177: 0 | L177: France National | O177: =IF(N177="","",fmt(M177+myset!$F$27/24,"HH:MM")) ->  | P177: =IF(O177="","",B177) ->  | R177: =IF(Q177="","",GetURL(J177)) -> 
A178: flagArgentina Copa Liga | E178: 1 | F178: X | G178: 2 | K178: 1 | L178: Argentina Copa Liga | O178: =IF(N178="","",fmt(M178+myset!$F$27/24,"HH:MM")) ->  | P178: =IF(O178="","",B178) ->  | R178: =IF(Q178="","",GetURL(J178)) -> 
A179: 03:15 584244 | B179: Atletico Tucuman | C179: Racing | D179: — — | E179: 1.58 | F179: 4.2 | G179: 5.65 | H179: 0 | K179: 0 | L179: Argentina Copa Liga | M179: 03:15 | N179: Argentina Copa Liga | O179: =IF(N179="","",fmt(M179+myset!$F$27/24,"HH:MM")) -> 04:15 | P179: =IF(O179="","",B179) -> Atletico Tucuman | Q179: Racing | R179: =IF(Q179="","",GetURL(J179)) -> https://en.24score.com/football/match/584244-atletico-tucuman-racing
A180: 23:10 584245 | B180: Arsenal S | C180: Santa Fe | D180: — — | E180: 2.44 | F180: 3.24 | G180: 3.04 | H180: 0 | K180: 0 | L180: Argentina Copa Liga | M180: 23:10 | N180: Argentina Copa Liga | O180: =IF(N180="","",fmt(M180+myset!$F$27/24,"HH:MM")) -> 00:10 | P180: =IF(O180="","",B180) -> Arsenal S | Q180: Santa Fe | R180: =IF(Q180="","",GetURL(J180)) -> https://en.24score.com/football/match/584245-arsenal-s-santa-fe
K181: 0 | L181: Argentina Copa Liga | O181: =IF(N181="","",fmt(M181+myset!$F$27/24,"HH:MM")) ->  | P181: =IF(O181="","",B181) ->  | R181: =IF(Q181="","",GetURL(J181)) -> 
A182: flagAustria - ADEG Erste Liga | E182: 1 | F182: X | G182: 2 | K182: 1 | L182: Austria - ADEG Erste Liga | O182: =IF(N182="","",fmt(M182+myset!$F$27/24,"HH:MM")) ->  | P182: =IF(O182="","",B182) ->  | R182: =IF(Q182="","",GetURL(J182)) -> 
A183: 20:00 567854 | B183: BW Linz | C183: Horn | D183: — — | E183: 1.72 | F183: 4.14 | G183: 4.28 | H183: 1 | K183: 0 | L183: Austria - ADEG Erste Liga | M183: 20:00 | N183: Austria - ADEG Erste Liga | O183: =IF(N183="","",fmt(M183+myset!$F$27/24,"HH:MM")) -> 21:00 | P183: =IF(O183="","",B183) -> BW Linz | Q183: Horn | R183: =IF(Q183="","",GetURL(J183)) -> https://en.24score.com/football/match/567854-bw-linz-horn
A184: X | K184: 0 | L184: Austria - ADEG Erste Liga | O184: =IF(N184="","",fmt(M184+myset!$F$27/24,"HH:MM")) ->  | P184: =IF(O184="","",B184) ->  | R184: =IF(Q184="","",GetURL(J184)) -> 
K185: 0 | L185: Austria - ADEG Erste Liga | O185: =IF(N185="","",fmt(M185+myset!$F$27/24,"HH:MM")) ->  | P185: =IF(O185="","",B185) ->  | R185: =IF(Q185="","",GetURL(J185)) -> 
A186: BW Linz have had over 1.5 2nd half goals in 10 last home matches | K186: 0 | L186: Austria - ADEG Erste Liga | O186: =IF(N186="","",fmt(M186+myset!$F$27/24,"HH:MM")) ->  | P186: =IF(O186="","",B186) ->  | R186: =IF(Q186="","",GetURL(J186)) -> 
A187: 20:30 567859 | B187: Amstetten | C187: Austria Wien II | D187: — — | E187: 1.93 | F187: 3.96 | G187: 3.5 | H187: 1 | K187: 0 | L187: Austria - ADEG Erste Liga | M187: 20:30 | N187: Austria - ADEG Erste Liga | O187: =IF(N187="","",fmt(M187+myset!$F$27/24,"HH:MM")) -> 21:30 | P187: =IF(O187="","",B187) -> Amstetten | Q187: Austria Wien II | R187: =IF(Q187="","",GetURL(J187)) -> https://en.24score.com/football/match/567859-amstetten-austria-wien-ii
A188: X | K188: 0 | L188: Austria - ADEG Erste Liga | O188: =IF(N188="","",fmt(M188+myset!$F$27/24,"HH:MM")) ->  | P188: =IF(O188="","",B188) ->  | R188: =IF(Q188="","",GetURL(J188)) -> 
K189: 0 | L189: Austria - ADEG Erste Liga | O189: =IF(N189="","",fmt(M189+myset!$F$27/24,"HH:MM")) ->  | P189: =IF(O189="","",B189) ->  | R189: =IF(Q189="","",GetURL(J189)) -> 
A190: Amstetten has tied 4 last home games | K190: 0 | L190: Austria - ADEG Erste Liga | O190: =IF(N190="","",fmt(M190+myset!$F$27/24,"HH:MM")) ->  | P190: =IF(O190="","",B190) ->  | R190: =IF(Q190="","",GetURL(J190)) -> 
A191: 20:30 567856 | B191: Austria Lustenau | C191: Floridsdorf | D191: — — | E191: 2.15 | F191: 3.72 | G191: 3.11 | H191: 2 | K191: 0 | L191: Austria - ADEG Erste Liga | M191: 20:30 | N191: Austria - ADEG Erste Liga | O191: =IF(N191="","",fmt(M191+myset!$F$27/24,"HH:MM")) -> 21:30 | P191: =IF(O191="","",B191) -> Austria Lustenau | Q191: Floridsdorf | R191: =IF(Q191="","",GetURL(J191)) -> https://en.24score.com/football/match/567856-austria-lustenau-floridsdorf
A192: X | K192: 0 | L192: Austria - ADEG Erste Liga | O192: =IF(N192="","",fmt(M192+myset!$F$27/24,"HH:MM")) ->  | P192: =IF(O192="","",B192) ->  | R192: =IF(Q192="","",GetURL(J192)) -> 
K193: 0 | L193: Austria - ADEG Erste Liga | O193: =IF(N193="","",fmt(M193+myset!$F$27/24,"HH:MM")) ->  | P193: =IF(O193="","",B193) ->  | R193: =IF(Q193="","",GetURL(J193)) -> 
A194: Floridsdorf have had over 1.5 2nd half goals in 5 last matches | K194: 0 | L194: Austria - ADEG Erste Liga | O194: =IF(N194="","",fmt(M194+myset!$F$27/24,"HH:MM")) ->  | P194: =IF(O194="","",B194) ->  | R194: =IF(Q194="","",GetURL(J194)) -> 
K195: =IFERROR(SEARCH("flag",A195),0) -> 0 | L195: =IF(K195=1,MID(A195,5,100),L194) -> Austria - ADEG Erste Liga | M195: =IF(B195="","",IFERROR(fmt(LEFT(A195,SEARCH(" ",A195)-1),"HH:MM"),fmt(A195,"HH:MM"))) ->  | N195: =IF(M195="","",L195) ->  | O195: =IF(N195="","",fmt(M195+myset!$F$27/24,"HH:MM")) ->  | P195: =IF(O195="","",B195) ->  | R195: =IF(Q195="","",GetURL(J195)) -> 
A196: Floridsdorf have had over 2.5 goals in their last 7 matches | K196: 0 | L196: Austria - ADEG Erste Liga | O196: =IF(N196="","",fmt(M196+myset!$F$27/24,"HH:MM")) ->  | P196: =IF(O196="","",B196) ->  | R196: =IF(Q196="","",GetURL(J196)) -> 
A197: 20:30 567860 | B197: Liefering | C197: Kapfenberg | D197: — — | E197: 1.31 | F197: 5.8 | G197: 8.3 | H197: 1 | K197: 0 | L197: Austria - ADEG Erste Liga | M197: 20:30 | N197: Austria - ADEG Erste Liga | O197: =IF(N197="","",fmt(M197+myset!$F$27/24,"HH:MM")) -> 21:30 | P197: =IF(O197="","",B197) -> Liefering | Q197: Kapfenberg | R197: =IF(Q197="","",GetURL(J197)) -> https://en.24score.com/football/match/567860-liefering-kapfenberg
A198: X | K198: 0 | L198: Austria - ADEG Erste Liga | O198: =IF(N198="","",fmt(M198+myset!$F$27/24,"HH:MM")) ->  | P198: =IF(O198="","",B198) ->  | R198: =IF(Q198="","",GetURL(J198)) -> 
K199: 0 | L199: Austria - ADEG Erste Liga | O199: =IF(N199="","",fmt(M199+myset!$F$27/24,"HH:MM")) ->  | P199: =IF(O199="","",B199) ->  | R199: =IF(Q199="","",GetURL(J199)) -> 
A200: Kapfenberg has played 18 away games without draws | K200: 0 | L200: Austria - ADEG Erste Liga | O200: =IF(N200="","",fmt(M200+myset!$F$27/24,"HH:MM")) ->  | P200: =IF(O200="","",B200) ->  | R200: =IF(Q200="","",GetURL(J200)) -> 
A201: 20:30 567857 | B201: Lafnitz | C201: Vorwarts Steyr | D201: — — | E201: 1.685 | F201: 4.1 | G201: 4.56 | H201: 1 | K201: 0 | L201: Austria - ADEG Erste Liga | M201: 20:30 | N201: Austria - ADEG Erste Liga | O201: =IF(N201="","",fmt(M201+myset!$F$27/24,"HH:MM")) -> 21:30 | P201: =IF(O201="","",B201) -> Lafnitz | Q201: Vorwarts Steyr | R201: =IF(Q201="","",GetURL(J201)) -> https://en.24score.com/football/match/567857-lafnitz-vorwarts-steyr
... 1005 more rows

Sheet listing (hidden)
A1: Spain Primera Division | B1: 00:00 | C1: Osasuna | D1: Huesca | E1: https://en.24score.com/football/match/570997-osasuna-huesca
A2: France Ligue 1 | B2: 00:00 | C2: Monaco | D2: PSG | E2: https://en.24score.com/football/match/553214-monaco-psg
A3: Spain Segunda Division | B3: 00:00 | C3: Espanyol | D3: Girona | E3: https://en.24score.com/football/match/571422-espanyol-girona
A4: Italy Serie B | B4: 00:00 | C4: Frosinone | D4: Cosenza | E4: https://en.24score.com/football/match/576333-frosinone-cosenza
A5: France Division 1 Women | B5: 00:00 | C5: PSG W | D5: Lyon W | E5: https://en.24score.com/football/match/572088-psg-w-lyon-w
A6: Netherlands Eerste Divisie | B6: 00:00 | C6: Den Bosch | D6: Jong Ajax | E6: https://en.24score.com/football/match/558979-den-bosch-jong-ajax
A7: Netherlands Eerste Divisie | B7: 00:00 | C7: Jong Utrecht | D7: Helmond | E7: https://en.24score.com/football/match/558977-jong-utrecht-helmond
A8: Netherlands Eerste Divisie | B8: 00:00 | C8: Maastricht | D8: Jong PSV | E8: https://en.24score.com/football/match/558983-maastricht-jong-psv
A9: Argentina Copa Liga | B9: 00:10 | C9: Arsenal S | D9: Santa Fe | E9: https://en.24score.com/football/match/584245-arsenal-s-santa-fe
A10: Costa Rica Primera Division | B10: 01:00 | C10: Limon | D10: Herediano | E10: https://en.24score.com/football/match/583754-limon-herediano
A11: Venezuela Primera Division | B11: 01:00 | C11: Aragua | D11: Metropolitanos | E11: https://en.24score.com/football/match/583176-aragua-metropolitanos
A12: Chile Primera Division | B12: 01:30 | C12: Colo-Colo | D12: Audax | E12: https://en.24score.com/football/match/584295-colo-colo-audax
A13: Ecuador Primera Division | B13: 01:45 | C13: Portoviejo | D13: Orense | E13: https://en.24score.com/football/match/584399-portoviejo-orense
A14: Brazil - Serie A | B14: 02:00 | C14: Vasco da Gama | D14: Fortaleza | E14: https://en.24score.com/football/match/555712-vasco-da-gama-fortaleza
A15: Uruguay Primera Division | B15: 02:00 | C15: Cerro | D15: Rentistas | E15: https://en.24score.com/football/match/584427-cerro-rentistas
A16: Panama LPF | B16: 03:00 | C16: Costa Del Este FC | D16: Alianza | E16: https://en.24score.com/football/match/583543-costa-del-este-fc-alianza
A17: Ecuador Primera Division | B17: 04:00 | C17: Barcelona Guayaquil | D17: Cuenca | E17: https://en.24score.com/football/match/584400-barcelona-guayaquil-cuenca
A18: Venezuela Primera Division | B18: 04:00 | C18: Tachira | D18: Monagas | E18: https://en.24score.com/football/match/583177-tachira-monagas
A19: Argentina Copa Liga | B19: 04:15 | C19: Atletico Tucuman | D19: Racing | E19: https://en.24score.com/football/match/584244-atletico-tucuman-racing
A20: Chile Primera Division | B20: 04:30 | C20: S. Wanderers | D20: Union Espanola | E20: https://en.24score.com/football/match/584296-s-wanderers-union-espanola
A21: Nicaragua Primera | B21: 05:00 | C21: Esteli | D21: Managua FC | E21: https://en.24score.com/football/match/584323-esteli-managua-fc
A22: Nicaragua Primera | B22: 05:00 | C22: Walter Ferretti | D22: Chinandega FC | E22: https://en.24score.com/football/match/584326-walter-ferretti-chinandega-fc
A23: Nicaragua Primera | B23: 05:00 | C23: Art Municipal Jalapa | D23: Real Madriz | E23: https://en.24score.com/football/match/584327-art-municipal-jalapa-real-madriz
A24: Nicaragua Primera | B24: 05:00 | C24: Diriangen FC | D24: Ocotal | E24: https://en.24score.com/football/match/584324-diriangen-fc-ocotal
A25: Nicaragua Primera | B25: 05:00 | C25: CD Junior | D25: Juventus Managua | E25: https://en.24score.com/football/match/584325-cd-junior-juventus-managua
A26: Ukraine U-21 League | B26: 14:00 | C26: Shakhtar-D | D26: Oleksandriya-D | E26: https://en.24score.com/football/match/584418-shakhtar-d-oleksandriya-d
A27: Ukraine U-21 League | B27: 14:00 | C27: Olimpik Donetsk-D | D27: Zorya-D | E27: https://en.24score.com/football/match/584417-olimpik-donetsk-d-zorya-d
A28: Uzbekistan Superleague | B28: 14:00 | C28: Metallurg B | D28: Bunyodkor | E28: https://en.24score.com/football/match/584413-metallurg-b-bunyodkor
A29: Uzbekistan Superleague | B29: 14:00 | C29: Sogdiana | D29: FC Nasaf | E29: https://en.24score.com/football/match/584414-sogdiana-fc-nasaf
A30: Russia - 1. Division | B30: 15:00 | C30: Krasnodar-2 | D30: Shinnik Yaroslavl | E30: https://en.24score.com/football/match/559845-krasnodar-2-shinnik-yaroslavl
A31: Russia PFL South | B31: 15:00 | C31: Inter Cherkessk | D31: Makhachkala | E31: https://en.24score.com/football/match/561573-inter-cherkessk-makhachkala
A32: Russia Youth teams | B32: 15:00 | C32: Arsenal Youth | D32: Dinamo Moscow Youth | E32: https://en.24score.com/football/match/581084-arsenal-youth-dinamo-moscow-youth
A33: Latvia - Virsliga | B33: 15:00 | C33: Jelgava | D33: Valmiera | E33: https://en.24score.com/football/match/583943-jelgava-valmiera
A34: Moldova - Divizia Nationala | B34: 15:00 | C34: Dinamo Auto | D34: Floresti | E34: https://en.24score.com/football/match/555086-dinamo-auto-floresti
A35: Ukraine - Persha Liga | B35: 15:00 | C35: Girnik | D35: Obolon-Brovar | E35: https://en.24score.com/football/match/572276-girnik-obolon-brovar
A36: Ukraine - Persha Liga | B36: 15:00 | C36: Agrobiznes | D36: Nyva Ternopil | E36: https://en.24score.com/football/match/572281-agrobiznes-nyva-ternopil
A37: Ukraine - Persha Liga | B37: 15:00 | C37: A. Kramatorsk | D37: Veres Rivne | E37: https://en.24score.com/football/match/572274-a-kramatorsk-veres-rivne
A38: Ukraine - Persha Liga | B38: 15:00 | C38: Polissya | D38: Mykolaiv | E38: https://en.24score.com/football/match/572275-polissya-mykolaiv
A39: Ukraine - Persha Liga | B39: 15:00 | C39: Krystal | D39: VPK-Agro | E39: https://en.24score.com/football/match/572280-krystal-vpk-agro
A40: Ukraine U-21 League | B40: 15:00 | C40: Ingulets-D | D40: Dinamo-D | E40: https://en.24score.com/football/match/584419-ingulets-d-dinamo-d
A41: Germany Regionalliga West | B41: 16:00 | C41: Schalke II | D41: Dortmund II | E41: https://en.24score.com/football/match/575407-schalke-ii-dortmund-ii
A42: Ukraine - Persha Liga | B42: 16:00 | C42: Volyn | D42: Prykarpattya | E42: https://en.24score.com/football/match/572278-volyn-prykarpattya
A43: Ukraine - Persha Liga | B43: 16:00 | C43: Lypova Dolyna | D43: Chernomorets Odessa | E43: https://en.24score.com/football/match/572277-lypova-dolyna-chernomorets-odessa
A44: Uzbekistan Superleague | B44: 16:00 | C44: Navbahor | D44: Surkhon Termez | E44: https://en.24score.com/football/match/584415-navbahor-surkhon-termez
A45: Uzbekistan Superleague | B45: 16:00 | C45: Pakhtakor | D45: FK Kokand | E45: https://en.24score.com/football/match/584416-pakhtakor-fk-kokand
A46: Czech Republic 1. Division | B46: 16:30 | C46: Jihlava | D46: Blansko | E46: https://en.24score.com/football/match/561094-jihlava-blansko
A47: Iran Pro League | B47: 16:40 | C47: Mes Rafsanjan | D47: Gohar Sirjan | E47: https://en.24score.com/football/match/584404-mes-rafsanjan-gohar-sirjan
A48: Russia Youth teams | B48: 17:00 | C48: PFC Sochi Youth | D48: Akhmat Youth | E48: https://en.24score.com/football/match/581083-pfc-sochi-youth-akhmat-youth
A49: Israel Liga Leumit | B49: 17:00 | C49: Hapoel Kfar Shelem | D49: H. Petah Tikva | E49: https://en.24score.com/football/match/570355-hapoel-kfar-shelem-h-petah-tikva
A50: Israel Liga Leumit | B50: 17:00 | C50: Sektzia Nes Tziona | D50: Hapoel Um El Fahem | E50: https://en.24score.com/football/match/570352-sektzia-nes-tziona-hapoel-um-el-fahem
A51: Israel Liga Leumit | B51: 17:00 | C51: Hapoel Acre | D51: Nir Ramat Hasharon | E51: https://en.24score.com/football/match/570348-hapoel-acre-nir-ramat-hasharon
A52: Israel Liga Leumit | B52: 17:00 | C52: Hapoel Iksal | D52: Hapoel Raanana | E52: https://en.24score.com/football/match/570353-hapoel-iksal-hapoel-raanana
A53: Israel Liga Leumit | B53: 17:00 | C53: Ramat Gan Givatayim | D53: Beitar Tel Aviv | E53: https://en.24score.com/football/match/570351-ramat-gan-givatayim-beitar-tel-aviv
A54: Ukraine - Persha Liga | B54: 17:00 | C54: Metalist | D54: Kremin | E54: https://en.24score.com/football/match/572279-metalist-kremin
A55: Iran Pro League | B55: 17:05 | C55: Machine Tabriz | D55: Zob Ahan | E55: https://en.24score.com/football/match/584405-machine-tabriz-zob-ahan
A56: Iran Pro League | B56: 17:10 | C56: Foolad | D56: Esteghlal | E56: https://en.24score.com/football/match/584406-foolad-esteghlal
A57: Moldova - Divizia Nationala | B57: 18:00 | C57: Zimbru | D57: Dacia Buiucani | E57: https://en.24score.com/football/match/555084-zimbru-dacia-buiucani
A58: U.A.E. Etisalat National League | B58: 18:00 | C58: Al-Wasl | D58: AL Ain | E58: https://en.24score.com/football/match/582660-al-wasl-al-ain
A59: U.A.E. Etisalat National League | B59: 18:00 | C59: Baniyas | D59: Kalba | E59: https://en.24score.com/football/match/582656-baniyas-kalba
A60: Romania Liga I | B60: 19:30 | C60: CSMS Iasi | D60: Arges | E60: https://en.24score.com/football/match/564726-csms-iasi-arges
A61: Croatia 1. Division | B61: 20:00 | C61: Lok Zagreb | D61: Varazdin | E61: https://en.24score.com/football/match/564397-lok-zagreb-varazdin
A62: Moldova - Divizia Nationala | B62: 20:00 | C62: Dinamo Auto | D62: Dacia Buiucani | E62: https://en.24score.com/football/match/555092-dinamo-auto-dacia-buiucani
A63: Moldova - Divizia Nationala | B63: 20:00 | C63: Zimbru | D63: Sfintul G | E63: https://en.24score.com/football/match/555096-zimbru-sfintul-g
A64: Moldova - Divizia Nationala | B64: 20:00 | C64: Floresti | D64: Petrocub | E64: https://en.24score.com/football/match/555093-floresti-petrocub
A65: Moldova - Divizia Nationala | B65: 20:00 | C65: Milsami | D65: Speranta | E65: https://en.24score.com/football/match/555094-milsami-speranta
A66: Serbia - Superliga | B66: 20:00 | C66: Javor | D66: Spartak Subotica | E66: https://en.24score.com/football/match/558441-javor-spartak-subotica
A67: Serbia - Superliga | B67: 20:00 | C67: Mladost L | D67: Cukaricki | E67: https://en.24score.com/football/match/558443-mladost-l-cukaricki
A68: Serbia - Superliga | B68: 20:00 | C68: Radnik | D68: Macva | E68: https://en.24score.com/football/match/558436-radnik-macva
A69: Poland I Liga | B69: 20:40 | C69: Nieciecza | D69: Widzew Lodz | E69: https://en.24score.com/football/match/568340-nieciecza-widzew-lodz
A70: Ukraine - Premier League | B70: 21:00 | C70: Rukh Lviv | D70: FC Mariupol | E70: https://en.24score.com/football/match/572756-rukh-lviv-fc-mariupol
A71: Poland Ekstraklasa | B71: 21:00 | C71: KS Lechia | D71: Slask Wroclaw | E71: https://en.24score.com/football/match/569329-ks-lechia-slask-wroclaw
A72: France National | B72: 21:00 | C72: Lyon-Duchere | D72: Cholet | E72: https://en.24score.com/football/match/568973-lyon-duchere-cholet
A73: France National | B73: 21:00 | C73: Laval | D73: Boulogne | E73: https://en.24score.com/football/match/568978-laval-boulogne
A74: France National | B74: 21:00 | C74: Sete | D74: Red Star | E74: https://en.24score.com/football/match/568940-sete-red-star
A75: France National | B75: 21:00 | C75: Annecy | D75: Villefranche | E75: https://en.24score.com/football/match/568910-annecy-villefranche
A76: France National | B76: 21:00 | C76: Quevilly Rouen | D76: Bourg Peronnas | E76: https://en.24score.com/football/match/568912-quevilly-rouen-bourg-peronnas
A77: Austria - ADEG Erste Liga | B77: 21:00 | C77: BW Linz | D77: Horn | E77: https://en.24score.com/football/match/567854-bw-linz-horn
A78: Denmark 1. Division | B78: 21:00 | C78: Viborg | D78: Hobro | E78: https://en.24score.com/football/match/573102-viborg-hobro
A79: Germany Regionalliga North | B79: 21:00 | C79: Weiche | D79: St. Pauli II | E79: https://en.24score.com/football/match/571827-weiche-st-pauli-ii
A80: U.A.E. Etisalat National League | B80: 21:00 | C80: Sharjah | D80: Al-Nasr Dubai | E80: https://en.24score.com/football/match/582661-sharjah-al-nasr-dubai
A81: U.A.E. Etisalat National League | B81: 21:00 | C81: Fujairah | D81: Hatta | E81: https://en.24score.com/football/match/582657-fujairah-hatta
A82: Austria - ADEG Erste Liga | B82: 21:30 | C82: Amstetten | D82: Austria Wien II | E82: https://en.24score.com/football/match/567859-amstetten-austria-wien-ii
A83: Austria - ADEG Erste Liga | B83: 21:30 | C83: Austria Lustenau | D83: Floridsdorf | E83: https://en.24score.com/football/match/567856-austria-lustenau-floridsdorf
A84: Austria - ADEG Erste Liga | B84: 21:30 | C84: Liefering | D84: Kapfenberg | E84: https://en.24score.com/football/match/567860-liefering-kapfenberg
A85: Austria - ADEG Erste Liga | B85: 21:30 | C85: Lafnitz | D85: Vorwarts Steyr | E85: https://en.24score.com/football/match/567857-lafnitz-vorwarts-steyr
A86: Czech Republic Gambrinus League | B86: 21:45 | C86: Slovan Liberec | D86: Jablonec | E86: https://en.24score.com/football/match/560799-slovan-liberec-jablonec
A87: Netherlands Eerste Divisie | B87: 21:45 | C87: Volendam | D87: Oss | E87: https://en.24score.com/football/match/558975-volendam-oss
A88: Netherlands Eerste Divisie | B88: 21:45 | C88: NEC Nijmegen | D88: Roda | E88: https://en.24score.com/football/match/558984-nec-nijmegen-roda
A89: Netherlands Eerste Divisie | B89: 21:45 | C89: Excelsior | D89: Jong AZ | E89: https://en.24score.com/football/match/558981-excelsior-jong-az
A90: France Ligue 1 | B90: 22:00 | C90: Rennes | D90: Bordeaux | E90: https://en.24score.com/football/match/553206-rennes-bordeaux
A91: Denmark - Superligaen | B91: 22:00 | C91: Lyngby | D91: Horsens | E91: https://en.24score.com/football/match/575143-lyngby-horsens
A92: Spain Segunda Division | B92: 22:00 | C92: Alcorcon | D92: Lugo | E92: https://en.24score.com/football/match/571423-alcorcon-lugo
A93: Germany - 3. Liga | B93: 22:00 | C93: Duisburg | D93: Verl | E93: https://en.24score.com/football/match/573330-duisburg-verl
A94: Denmark 1. Division | B94: 22:00 | C94: Kolding IF | D94: Fredericia | E94: https://en.24score.com/football/match/573105-kolding-if-fredericia
A95: Denmark 2nd Division | B95: 22:00 | C95: Hellerup | D95: Nykoebing | E95: https://en.24score.com/football/match/565152-hellerup-nykoebing
A96: Denmark 2nd Division | B96: 22:00 | C96: Roskilde | D96: Gladsaxe | E96: https://en.24score.com/football/match/565153-roskilde-gladsaxe
A97: Sweden Div 1 | B97: 22:00 | C97: Motala | D97: Linkoping | E97: https://en.24score.com/football/match/549163-motala-linkoping
A98: Switzerland - Challenge League | B98: 22:00 | C98: Stade Ouchy | D98: Schaffhausen | E98: https://en.24score.com/football/match/577028-stade-ouchy-schaffhausen
A99: Switzerland - Challenge League | B99: 22:00 | C99: Chiasso | D99: Aarau | E99: https://en.24score.com/football/match/577026-chiasso-aarau
A100: Croatia 1. Division | B100: 22:05 | C100: Sibenik | D100: Gorica | E100: https://en.24score.com/football/match/564398-sibenik-gorica
A101: Germany Women Bundesliga | B101: 22:15 | C101: Wolfsburg W | D101: Frankfurt W | E101: https://en.24score.com/football/match/569741-wolfsburg-w-frankfurt-w
A102: Romania Liga I | B102: 22:30 | C102: Dinamo B. | D102: Voluntari | E102: https://en.24score.com/football/match/564727-dinamo-b--voluntari
A103: England League Two | B103: 23:00 | C103: Mansfield | D103: Colchester | E103: https://en.24score.com/football/match/567248-mansfield-colchester
A104: Belgium Tweede Klasse | B104: 23:00 | C104: Brugge U23 | D104: Lierse | E104: https://en.24score.com/football/match/563669-brugge-u23-lierse
A105: Hungary - NBI Liga | B105: 23:00 | C105: Kisvarda | D105: Paksi | E105: https://en.24score.com/football/match/568077-kisvarda-paksi
A106: Switzerland - Challenge League | B106: 23:00 | C106: Winterthur | D106: Kriens | E106: https://en.24score.com/football/match/577027-winterthur-kriens
A107: Switzerland - Challenge League | B107: 23:00 | C107: Grasshopper | D107: Neuchatel Xamax | E107: https://en.24score.com/football/match/577025-grasshopper-neuchatel-xamax
A108: Austria - ADEG Erste Liga | B108: 23:25 | C108: Austria Kl | D108: Wacker Innsbruck | E108: https://en.24score.com/football/match/567861-austria-kl-wacker-innsbruck
A109: Poland Ekstraklasa | B109: 23:30 | C109: Gornik Zabrze | D109: Piast Gliwice | E109: https://en.24score.com/football/match/569328-gornik-zabrze-piast-gliwice
A110: Brazil - Serie B | B110: 23:30 | C110: Vitoria | D110: Ponte Preta | E110: https://en.24score.com/football/match/558222-vitoria-ponte-preta
A111: Brazil - Serie B | B111: 23:30 | C111: Avai | D111: Confianca | E111: https://en.24score.com/football/match/558227-avai-confianca
A112: N. Ireland Premiership | B112: 23:30 | C112: Portadown | D112: Glentoran | E112: https://en.24score.com/football/match/582354-portadown-glentoran
A113: England Championship | B113: 23:45 | C113: Coventry | D113: Birmingham | E113: https://en.24score.com/football/match/566134-coventry-birmingham
A114: Scotland Championship | B114: 23:45 | C114: Dunfermline | D114: Hearts | E114: https://en.24score.com/football/match/581717-dunfermline-hearts
A115: Wales Premier League | B115: 23:45 | C115: Connahs Quay | D115: Cefn Druids | E115: https://en.24score.com/football/match/575829-connahs-quay-cefn-druids
A116: Wales Premier League | B116: 23:45 | C116: Aberystwyth | D116: Bala Town | E116: https://en.24score.com/football/match/575830-aberystwyth-bala-town

Sheet settodownload (hidden)
B2: 0 | C2: 2 | D2: 1 | E2: 3 | F2: 4 | G2: 5
A3: 116 | B3: =fmt(INDEX(myset!A2:A15,myset!A17),"DD-MM-YYYY") -> 20-11-2020 | C3: =INDEX(listing!$A:$E,$A$3,C$2) -> 23:45 | D3: =INDEX(listing!$A:$E,$A$3,D$2) -> Wales Premier League | E3: =SUBSTITUTE(SUBSTITUTE(INDEX(listing!$A:$E,$A$3,E$2),1,""),2,"") -> Aberystwyth | F3: =SUBSTITUTE(SUBSTITUTE(INDEX(listing!$A:$E,$A$3,F$2),1,""),2,"") -> Bala Town | G3: =INDEX(listing!$A:$E,$A$3,G$2) -> https://en.24score.com/football/match/575830-aberystwyth-bala-town
B5: =fmt(B3,"YYYY") -> 2020 | C5: =B5-1 -> 2019 | D5: =C5-1 -> 2018 | E5: 2017 | F5: =E5-1 -> 2016

Sheet downloadmatch (hidden)
A1: 24score
A3: Top Streaks
A4: Contact Us
A5: Useful links
A7: Football
A8: Basketball
A9: Ice Hockey
A10: Tennis
A11: Volleyball
A12: Handball
A14: Popular
A15: Club Domestic
A16: International
A18: UEFA Champions League
A19: UEFA Europa League
A20: Premier League
A21: Premier League
A22: Primera Division
A23: Serie A
A24: 1. Bundesliga
A25: Ligue 1
A26: Pro League
A27: Liga Sagres
A28: Superlig
A29: Premier League
A30: Premier League
A31: Gambrinus League
A32: Ekstraklasa
A33: Superligaen
A34: UEFA Nations League
A36: ABCDEFGHIJKLMNPRSTUVWAll
A38: Albania - Superleague
A39: Algeria - Ligue 1
A40: Argentina - Copa Liga
A41: Argentina - Primera Division
A42: Armenia - Premier League
A43: Australia - A-League
A44: Australia - NPL Queensland
A45: Australia - NPL Victoria
A46: Australia - NPL Northern New S
A47: Australia - NPL Capital Footba
A48: Australia - NPL Tasmania
A49: Australia - NPL Western Austra
A50: Australia - NPL South Australi
A51: Austria - tipp3-Bundesliga
A52: Austria - ADEG Erste Liga
A53: Azerbaijan - Premier League
A54: Belarus - Premier League
A55: Belarus - Pervaya Liga
A56: Belarus - Vysshaya Liga Women
A57: Belarus - Belarus Cup
A58: Belarus - Reserve League
A59: Belgium - Pro League
A60: Belgium - Beker van Belgie
A61: Belgium - Tweede Klasse
A62: Bolivia - Primera Division
A63: Bosnia-Herzegovina - Premier L
A64: Brazil - Serie A
A65: Brazil - Copa do Brasil
A66: Brazil - Serie B
A67: Brazil - Paulista
A68: Brazil - Carioca
A69: Bulgaria - A Grupa
A70: Chile - Chile Primera Division
A71: China - Super League
A72: Colombia - Primera Division
A73: Costa Rica - Primera Division
A74: Croatia - 1. Division
A75: Cyprus - 1st Division
A76: Czech Republic - 1. Division
A77: Czech Republic - Gambrinus Lea
A78: Denmark - 2nd Division
A79: Denmark - Ekstra Bladet Cup
A80: Denmark - 1. Division
A81: Denmark - Superligaen
A82: Ecuador - Primera Division
A83: Egypt - Premier League
A84: England - Premier League
A85: England - FA Cup
A86: England - Capital One Cup
A87: England - Championship
A88: England - League One
A89: England - League Two
A90: England - National League
A91: England - Premier League 2
A92: England - National League Sout
A93: England - National League Nort
A94: England - The FA Women's Super
A95: England - Community Shield
A96: Estonia - Meistriliiga
A97: Faroe Islands - Premier League
A98: Finland - Ykkonen
A99: Finland - Veikkausliga
A100: France - Ligue 1
A101: France - Coupe de France
A102: France - Coupe de la Ligue
A103: France - Ligue 2
A104: France - National
A105: France - Division 1 Women
A106: Georgia - Umaglesi Liga
A107: Germany - 1. Bundesliga
A108: Germany - DFB Pokal
A109: Germany - 2. Bundesliga
A110: Germany - 3. Liga
A111: Germany - Regionalliga Southwe
A112: Germany - Regionalliga North
A113: Germany - Regionalliga Bayern
A114: Germany - Regionalliga West
A115: Germany - Super Cup
A116: Germany - Women Bundesliga
A117: Germany - Regionalliga Northea
A118: Greece - Super League
A119: Greece - Greece Cup
A120: Guatemala - Liga Nacional
A121: Hungary - Hungary Cup
A122: Hungary - NBI Liga
A123: Iceland - Pepsi-deild karla
A124: Iceland - 1st deild
A125: India - I-League
A126: Indonesia - Championship A
A127: Iran - Pro League
A128: Ireland Republic - 1. Division
A129: Ireland Republic - Eircom Leag
A130: Israel - Ligat-Al
A131: Israel - Liga Leumit
A132: Italy - Serie A
A133: Italy - Coppa Italia
A134: Italy - Serie B
A135: Italy - Super Cup
A136: Jamaica - Premier League
A137: Japan - J. League 3
A138: Japan - J. League
A139: Japan - J. League 2
A140: Kazakhstan - Premier League
A141: Latvia - Virsliga
A142: Lithuania - A Lyga
A143: Malaysia - Super League
A144: Mexico - Primera Division
A145: Moldova - Divizia Nationala
A146: Montenegro - CFL
A147: Morocco - Botola
A148: Myanmar - National League
A149: Netherlands - Eredivisie
A150: Netherlands - KNVB beker
A151: Netherlands - Eerste Divisie
A152: Nicaragua - Primera
A153: Nigeria - Premier League
A154: Northern Ireland - Premiership
A155: Norway - Norway Cup
A156: Norway - Adeccoligaen
A157: Norway - Tippeligaen
A158: Panama - LPF
A159: Paraguay - Primera Division
A160: Peru - Primera division
A161: Poland - II Liga
A162: Poland - Puchar Polski
A163: Poland - I Liga
A164: Poland - Ekstraklasa
A165: Portugal - Liga Sagres
A166: Portugal - Taca de Portugal
A167: Portugal - Liga Vitalis
A168: Portugal - League Cup
A169: Romania - Liga I
A170: Romania - Romania Cup
A171: Russia - Premier League
A172: Russia - Russia Cup
A173: Russia - 1. Division
A174: Russia - PFL East
A175: Russia - PFL West
A176: Russia - PFL Ural
A177: Russia - PFL Center
A178: Russia - PFL South
A179: Russia - Youth teams
A180: Russia - Premier Women
A181: Russia - Super Cup
A182: Saudi Arabia - Professional Le
A183: Scotland - Premier League
A184: Scotland - Scottish Cup
A185: Scotland - League Two
A186: Scotland - League One
A187: Scotland - League Cup
A188: Scotland - Championship
A189: Serbia - Superliga
A190: Singapore - S.League
A191: Slovakia - Corgon Liga
A192: Slovenia - 1. Division
A193: South Africa - Premier Soccer
A194: South Korea - Women WK-League
A195: South Korea - K-League Challen
A196: South Korea - K-League
A197: Spain - Primera Division
A198: Spain - Copa del Rey
A199: Spain - Segunda Division
A200: Spain - Primera Division Women
A201: Spain - Super Cup
A202: Sweden - Superettan
A203: Sweden - Div 1
A204: Sweden - Allsvenskan
A205: Sweden - Damallsvenskan
A206: Switzerland - Challenge League
... 429 more rows

Sheet HOME (hidden)
A1: =CONCATENATE(settodownload!E3,"- Last matches") -> Aberystwyth - Last matches | Q1: HT | S1: ST | U1: FT | W1: =Q1 -> HT | Y1: =S1 -> ST | AA1: =U1 -> FT | AC1: + | AD1: - | AE1: + | AF1: - | AG1: + | AH1: - | AM1: HT | AO1: ST | AQ1: FT | AT1: WINNER
A2: =MATCH(A1,downloadmatch!$A:$A,0) -> 549 | B2: 1 | C2: =B2+1 -> 2 | E2: DATE | F2: TEAMS | G2: REST | H2: FT - HT | I2: FT | J2: HT | O2: =IF(COUNTIF(O3:P17,O3)>COUNTIF(O3:P17,P3),O3,P3) -> Aberystwyth | Q2: NOSORT | AC2: =COUNTIF(AC3:AC99,"ok")/$AI$99 -> 0.5 | AD2: =COUNTIF(AD3:AD99,"ok")/$AI$99 -> 0.5 | AE2: 0.75 | AF2: 0.625 | AG2: 0.875 | AH2: 0.875 | AM2: =COUNTIF(AM3:AM99,"OK")/$AI$99 -> 0.75 | AN2: =COUNTIF(AN3:AN99,"OK")/$AI$99 -> 0.5 | AO2: =COUNTIF(AO3:AO99,"OK")/$AI$99 -> 0.875 | AP2: 0.75 | AQ2: =COUNTIF(AQ3:AQ99,"OK")/$AI$99 -> 1 | AR2: =COUNTIF(AR3:AR99,"OK")/$AI$99 -> 0.625 | AS2: =COUNTIF(AS3:AS99,"OK")/$AI$99 -> 0.5 | AT2: =COUNTIF(AT3:AT99,"OK")/$AI$99 -> 0.125 | AU2: =COUNTIF(AU3:AU99,"OK")/$AI$99 -> 0.125 | AV2: 0.125 | AW2: W | AX2: D | AY2: L
A3: =A2+1 -> 550 | B3: =IF(C3="","",INDEX(downloadmatch!$A:$B,$A3,B$2)) -> 13.11.20 Cardiff Met - Aberystwyth | C3: =IF(INDEX(downloadmatch!$A:$B,$A3,C$2)=0,"",INDEX(downloadmatch!$A:$B,$A3,C$2)) -> D 1:1 (0:0) | E3: =IF(B3="","",LEFT(B3,SEARCH(" ",B3)-1)) -> 13.11.20 | F3: =IF(E3="","",MID(B3,SEARCH(" ",B3)+1,100)) -> Cardiff Met - Aberystwyth | G3: =IF(F3="","",LEFT(C3,SEARCH(" ",C3)-1)) -> D | H3: =IF(G3="","",MID(C3,SEARCH(" ",C3)+1,100)) -> 1:1 (0:0) | I3: =IF(H3="","",IF(K3="",LEFT(H3,SEARCH(" ",H3)-1),K3)) -> 1:1 | J3: =IF(F3="","",SUBSTITUTE(SUBSTITUTE(MID(C3,SEARCH(" ",H3)+3,100),"(",""),")","")) -> 0:0 | K3: =IFERROR(MID(J3,SEARCH("AET",J3)+4,100),"") ->  | L3: =IFERROR(LEFT(J3,SEARCH("AET",J3)-2),"") ->  | M3: =IF(F3="","",fmt(E3,"YYYY")*1) -> 2020 | N3: =IF(M3="","",IF(M3>=settodownload!$C$5,"OK","")) -> OK | O3: =IF(N3="","",LEFT(F3,SEARCH(" - ",F3)-1)) -> Cardiff Met | P3: =IF(O3="","",MID(F3,SEARCH(" - ",F3)+3,100)) -> Aberystwyth | Q3: =IFERROR(IF(P3="","",LEFT(J3,SEARCH(":",J3)-1)*1),IF(L3="","",LEFT(L3,SEARCH(":",L3)-1)*1)) -> 0 | R3: =IFERROR(IF(Q3="","",MID(J3,SEARCH(":",J3)+1,100)*1),IF(L3="","",MID(L3,SEARCH(":",L3)+1,100)*1)) -> 0 | S3: =IF(R3="","",U3-Q3) -> 1 | T3: =IF(S3="","",V3-R3) -> 1 | U3: =IF(N3="","",LEFT(I3,SEARCH(":",I3)-1)*1) -> 1 | V3: =IF(U3="","",MID(I3,SEARCH(":",I3)+1,100)*1) -> 1 | W3: =IF($O$2=O3,Q3,R3) -> 0 | X3: =IF($O$2=P3,Q3,R3) -> 0 | Y3: =IF($O$2=O3,S3,T3) -> 1 | Z3: =IF($O$2=P3,S3,T3) -> 1 | AA3: =IF($O$2=O3,U3,V3) -> 1 | AB3: =IF($O$2=P3,U3,V3) -> 1 | AC3: =IF(W3="","",IF(W3>0,"ok","")) ->  | AD3: =IF(X3="","",IF(X3>0,"ok","")) ->  | AE3: ok | AF3: ok | AG3: ok | AH3: ok | AI3: =IF(W3="",AI2,AI2+1) -> 1 | AJ3: =IF(W3="","",IF(W3>X3,"W",IF(W3=X3,"D",IF(W3<X3,"l","")))) -> D | AK3: =IF(Y3="","",IF(Y3>Z3,"W",IF(Y3=Z3,"D",IF(Y3<Z3,"l","")))) -> D | AL3: =IF(AA3="","",IF(AA3>AB3,"W",IF(AA3=AB3,"D",IF(AA3<AB3,"l","")))) -> D | AM3: =IF(AL3="","",IF((W3+X3)>0.5,"OK","")) ->  | AN3: =IF(AM3="","",IF((W3+X3)>1,"OK","")) ->  | AO3: =IF(AL3="","",IF((Y3+Z3)>0.5,"OK","")) -> OK | AP3: =IF(AL3="","",IF((Y3+Z3)>1,"OK","")) -> OK | AQ3: =IF(AL3="","",IF((AA3+AB3)>1,"OK","")) -> OK | AR3: =IF(AL3="","",IF((AA3+AB3)>2,"OK","")) ->  | AS3: =IF(AL3="","",IF((AA3+AB3)>3,"OK","")) ->  | AT3: =IF(AL3="","",IF(AND(AJ3="W",AK3="W"),"OK","")) ->  | AU3: =IF(AL3="","",IF(AND(AJ3="D",AK3="D"),"OK","")) -> OK | AV3: =IF(AL3="","",IF(AND(AJ3="L",AK3="L"),"OK","")) ->  | AW3: =COUNTIF($AJ:$AJ,AW2) -> 2 | AX3: =COUNTIF($AJ:$AJ,AX2) -> 3 | AY3: 3
A4: =A3+1 -> 551 | B4: =IF(C4="","",INDEX(downloadmatch!$A:$B,$A4,B$2)) -> 16.10.20 Aberystwyth - New Saints | C4: =IF(C3="","",IF(INDEX(downloadmatch!$A:$B,$A4,C$2)=0,"",INDEX(downloadmatch!$A:$B,$A4,C$2))) -> D 2:2 (0:1) | E4: =IF(B4="","",LEFT(B4,SEARCH(" ",B4)-1)) -> 16.10.20 | F4: =IF(E4="","",MID(B4,SEARCH(" ",B4)+1,100)) -> Aberystwyth - New Saints | G4: =IF(F4="","",LEFT(C4,SEARCH(" ",C4)-1)) -> D | H4: =IF(G4="","",MID(C4,SEARCH(" ",C4)+1,100)) -> 2:2 (0:1) | I4: =IF(H4="","",IF(K4="",LEFT(H4,SEARCH(" ",H4)-1),K4)) -> 2:2 | J4: =IF(F4="","",SUBSTITUTE(SUBSTITUTE(MID(C4,SEARCH(" ",H4)+3,100),"(",""),")","")) -> 0:1 | M4: 2020 | N4: =IF(M4="","",IF(M4>=settodownload!$C$5,"OK","")) -> OK | O4: =IF(N4="","",LEFT(F4,SEARCH(" - ",F4)-1)) -> Aberystwyth | P4: =IF(O4="","",MID(F4,SEARCH(" - ",F4)+3,100)) -> New Saints | Q4: 0 | R4: 1 | S4: =IF(R4="","",U4-Q4) -> 2 | T4: 1 | U4: =IF(N4="","",LEFT(I4,SEARCH(":",I4)-1)*1) -> 2 | V4: =IF(U4="","",MID(I4,SEARCH(":",I4)+1,100)*1) -> 2 | W4: =IF($O$2=O4,Q4,R4) -> 0 | X4: =IF($O$2=P4,Q4,R4) -> 1 | Y4: =IF($O$2=O4,S4,T4) -> 2 | Z4: =IF($O$2=P4,S4,T4) -> 1 | AA4: =IF($O$2=O4,U4,V4) -> 2 | AB4: =IF($O$2=P4,U4,V4) -> 2 | AC4: =IF(W4="","",IF(W4>0,"ok","")) ->  | AD4: =IF(X4="","",IF(X4>0,"ok","")) -> ok | AE4: =IF(Y4="","",IF(Y4>0,"ok","")) -> ok | AF4: =IF(Z4="","",IF(Z4>0,"ok","")) -> ok | AG4: =IF(AA4="","",IF(AA4>0,"ok","")) -> ok | AH4: =IF(AB4="","",IF(AB4>0,"ok","")) -> ok | AI4: =IF(W4="",AI3,AI3+1) -> 2 | AJ4: =IF(W4="","",IF(W4>X4,"W",IF(W4=X4,"D",IF(W4<X4,"l","")))) -> l | AK4: =IF(Y4="","",IF(Y4>Z4,"W",IF(Y4=Z4,"D",IF(Y4<Z4,"l","")))) -> W | AL4: =IF(AA4="","",IF(AA4>AB4,"W",IF(AA4=AB4,"D",IF(AA4<AB4,"l","")))) -> D | AM4: =IF(AL4="","",IF((W4+X4)>0.5,"OK","")) -> OK | AN4: =IF(AM4="","",IF((W4+X4)>1,"OK","")) ->  | AO4: =IF(AL4="","",IF((Y4+Z4)>0.5,"OK","")) -> OK | AP4: =IF(AL4="","",IF((Y4+Z4)>1,"OK","")) -> OK | AQ4: =IF(AL4="","",IF((AA4+AB4)>1,"OK","")) -> OK | AR4: =IF(AL4="","",IF((AA4+AB4)>2,"OK","")) -> OK | AS4: =IF(AL4="","",IF((AA4+AB4)>3,"OK","")) -> OK | AT4: =IF(AL4="","",IF(AND(AJ4="W",AK4="W"),"OK","")) ->  | AU4: =IF(AL4="","",IF(AND(AJ4="D",AK4="D"),"OK","")) ->  | AV4: =IF(AL4="","",IF(AND(AJ4="L",AK4="L"),"OK","")) ->  | AW4: =AW3/$AI$99 -> 0.25 | AX4: =AX3/$AI$99 -> 0.375 | AY4: 0.375
A5: =A4+1 -> 552 | B5: =IF(C5="","",INDEX(downloadmatch!$A:$B,$A5,B$2)) -> 10.10.20 Bala Town - Aberystwyth | C5: =IF(C4="","",IF(INDEX(downloadmatch!$A:$B,$A5,C$2)=0,"",INDEX(downloadmatch!$A:$B,$A5,C$2))) -> L 5:2 (2:1) | E5: 10.10.20 | F5: Bala Town - Aberystwyth | G5: L | H5: 5:2 (2:1) | I5: 5:2 | J5: 2:1 | M5: 2020 | N5: =IF(M5="","",IF(M5>=settodownload!$C$5,"OK","")) -> OK | O5: Bala Town | P5: Aberystwyth | Q5: 2 | R5: 1 | S5: 3 | T5: 1 | U5: 5 | V5: 2 | W5: 1 | X5: 2 | Y5: 1 | Z5: 3 | AA5: 2 | AB5: 5 | AC5: ok | AD5: ok | AE5: ok | AF5: ok | AG5: ok | AH5: ok | AI5: 3 | AJ5: l | AK5: l | AL5: l | AM5: OK | AN5: OK | AO5: OK | AP5: OK | AQ5: OK | AR5: OK | AS5: OK | AV5: OK
A6: 553 | B6: =IF(C6="","",INDEX(downloadmatch!$A:$B,$A6,B$2)) -> 06.10.20 Cefn Druids - Aberystwyth | C6: =IF(C5="","",IF(INDEX(downloadmatch!$A:$B,$A6,C$2)=0,"",INDEX(downloadmatch!$A:$B,$A6,C$2))) -> W 0:4 (0:2) | E6: 06.10.20 | F6: Cefn Druids - Aberystwyth | G6: W | H6: 0:4 (0:2) | I6: 0:4 | J6: 0:2 | M6: 2020 | N6: =IF(M6="","",IF(M6>=settodownload!$C$5,"OK","")) -> OK | O6: Cefn Druids | P6: Aberystwyth | Q6: 0 | R6: 2 | S6: 0 | T6: 2 | U6: 0 | V6: 4 | W6: 2 | X6: 0 | Y6: 2 | Z6: 0 | AA6: 4 | AB6: 0 | AC6: ok | AE6: ok | AG6: ok | AI6: 4 | AJ6: W | AK6: W | AL6: W | AM6: OK | AN6: OK | AO6: OK | AP6: OK | AQ6: OK | AR6: OK | AS6: OK | AT6: OK
A7: 554 | B7: =IF(C7="","",INDEX(downloadmatch!$A:$B,$A7,B$2)) -> 03.10.20 Aberystwyth - Barry Town | C7: =IF(C6="","",IF(INDEX(downloadmatch!$A:$B,$A7,C$2)=0,"",INDEX(downloadmatch!$A:$B,$A7,C$2))) -> L 1:2 (0:0) | E7: 03.10.20 | F7: Aberystwyth - Barry Town | G7: L | H7: 1:2 (0:0) | I7: 1:2 | J7: 0:0 | M7: 2020 | N7: =IF(M7="","",IF(M7>=settodownload!$C$5,"OK","")) -> OK | O7: Aberystwyth | P7: Barry Town | Q7: 0 | R7: 0 | S7: 1 | T7: 2 | U7: 1 | V7: 2 | W7: 0 | X7: 0 | Y7: 1 | Z7: 2 | AA7: 1 | AB7: 2 | AE7: ok | AF7: ok | AG7: ok | AH7: ok | AI7: 5 | AJ7: D | AK7: l | AL7: l | AO7: OK | AP7: OK | AQ7: OK | AR7: OK | AW7: =COUNTIF($AK:$AK,AW2) -> 3 | AX7: =COUNTIF($AK:$AK,AX2) -> 2 | AY7: 3
A8: 555 | B8: =IF(C8="","",INDEX(downloadmatch!$A:$B,$A8,B$2)) -> 30.09.20 Connahs Quay - Aberystwyth | C8: =IF(C7="","",IF(INDEX(downloadmatch!$A:$B,$A8,C$2)=0,"",INDEX(downloadmatch!$A:$B,$A8,C$2))) -> L 2:0 (2:0) | E8: 30.09.20 | F8: Connahs Quay - Aberystwyth | G8: L | H8: 2:0 (2:0) | I8: 2:0 | J8: 2:0 | M8: 2020 | N8: =IF(M8="","",IF(M8>=settodownload!$C$5,"OK","")) -> OK | O8: Connahs Quay | P8: Aberystwyth | Q8: 2 | R8: 0 | S8: 0 | T8: 0 | U8: 2 | V8: 0 | W8: 0 | X8: 2 | Y8: 0 | Z8: 0 | AA8: 0 | AB8: 2 | AD8: ok | AH8: ok | AI8: 6 | AJ8: l | AK8: D | AL8: l | AM8: OK | AN8: OK | AQ8: OK | AW8: =AW7/$AI$99 -> 0.375 | AX8: =AX7/$AI$99 -> 0.25 | AY8: =AY7/$AI$99 -> 0.375
A9: 556 | B9: =IF(C9="","",INDEX(downloadmatch!$A:$B,$A9,B$2)) -> 25.09.20 Newtown - Aberystwyth | C9: =IF(C8="","",IF(INDEX(downloadmatch!$A:$B,$A9,C$2)=0,"",INDEX(downloadmatch!$A:$B,$A9,C$2))) -> D 1:1 (0:1) | E9: 25.09.20 | F9: Newtown - Aberystwyth | G9: D | H9: 1:1 (0:1) | I9: 1:1 | J9: 0:1 | M9: 2020 | N9: =IF(M9="","",IF(M9>=settodownload!$C$5,"OK","")) -> OK | O9: Newtown | P9: Aberystwyth | Q9: 0 | R9: 1 | S9: 1 | T9: 0 | U9: 1 | V9: 1 | W9: 1 | X9: 0 | Y9: 0 | Z9: 1 | AA9: 1 | AB9: 1 | AC9: ok | AF9: ok | AG9: ok | AH9: ok | AI9: 7 | AJ9: W | AK9: l | AL9: D | AM9: OK | AO9: OK | AQ9: OK
A10: 557 | B10: =IF(C10="","",INDEX(downloadmatch!$A:$B,$A10,B$2)) -> 18.09.20 Aberystwyth - Flint Town Utd | C10: =IF(C9="","",IF(INDEX(downloadmatch!$A:$B,$A10,C$2)=0,"",INDEX(downloadmatch!$A:$B,$A10,C$2))) -> W 3:1 (1:1) | E10: 18.09.20 | F10: Aberystwyth - Flint Town Utd | G10: W | H10: 3:1 (1:1) | I10: 3:1 | J10: 1:1 | M10: 2020 | N10: =IF(M10="","",IF(M10>=settodownload!$C$5,"OK","")) -> OK | O10: Aberystwyth | P10: Flint Town Utd | Q10: 1 | R10: 1 | S10: 2 | T10: 0 | U10: 3 | V10: 1 | W10: 1 | X10: 1 | Y10: 2 | Z10: 0 | AA10: 3 | AB10: 1 | AC10: ok | AD10: ok | AE10: ok | AG10: ok | AH10: ok | AI10: 8 | AJ10: D | AK10: W | AL10: W | AM10: OK | AN10: OK | AO10: OK | AP10: OK | AQ10: OK | AR10: OK | AS10: OK
A11: 558 | B11: =IF(C11="","",INDEX(downloadmatch!$A:$B,$A11,B$2)) -> 10.07.14 Aberystwyth - Derry City | C11: =IF(C10="","",IF(INDEX(downloadmatch!$A:$B,$A11,C$2)=0,"",INDEX(downloadmatch!$A:$B,$A11,C$2))) -> L 0:5 (0:2) | E11: 10.07.14 | F11: Aberystwyth - Derry City | G11: L | H11: 0:5 (0:2) | I11: 0:5 | J11: 0:2 | M11: 2014 | N11: =IF(M11="","",IF(M11>=settodownload!$C$5,"OK","")) ->  | AI11: 8 | AW11: =COUNTIF($AL:$AL,AW2) -> 2 | AX11: =COUNTIF($AL:$AL,AX2) -> 3 | AY11: 3
A12: 559 | B12: =IF(C12="","",INDEX(downloadmatch!$A:$B,$A12,B$2)) -> 03.07.14 Derry City - Aberystwyth | C12: =IF(C11="","",IF(INDEX(downloadmatch!$A:$B,$A12,C$2)=0,"",INDEX(downloadmatch!$A:$B,$A12,C$2))) -> L 4:0 (2:0) | E12: 03.07.14 | F12: Derry City - Aberystwyth | G12: L | H12: 4:0 (2:0) | I12: 4:0 | J12: 2:0 | M12: 2014 | N12: =IF(M12="","",IF(M12>=settodownload!$C$5,"OK","")) ->  | AI12: 8 | AW12: =AW11/$AI$99 -> 0.25 | AX12: =AX11/$AI$99 -> 0.375 | AY12: =AY11/$AI$99 -> 0.375
A13: 560 | B13: =IF(C13="","",INDEX(downloadmatch!$A:$B,$A13,B$2)) ->  | C13: =IF(C12="","",IF(INDEX(downloadmatch!$A:$B,$A13,C$2)=0,"",INDEX(downloadmatch!$A:$B,$A13,C$2))) ->  | N13: =IF(M13="","",IF(M13>=settodownload!$C$5,"OK","")) ->  | AI13: 8
A14: 561 | B14: =IF(C14="","",INDEX(downloadmatch!$A:$B,$A14,B$2)) ->  | C14: =IF(C13="","",IF(INDEX(downloadmatch!$A:$B,$A14,C$2)=0,"",INDEX(downloadmatch!$A:$B,$A14,C$2))) ->  | N14: =IF(M14="","",IF(M14>=settodownload!$C$5,"OK","")) ->  | AI14: 8
A15: 562 | B15: =IF(C15="","",INDEX(downloadmatch!$A:$B,$A15,B$2)) ->  | C15: =IF(C14="","",IF(INDEX(downloadmatch!$A:$B,$A15,C$2)=0,"",INDEX(downloadmatch!$A:$B,$A15,C$2))) ->  | N15: =IF(M15="","",IF(M15>=settodownload!$C$5,"OK","")) ->  | AI15: 8
A16: 563 | B16: =IF(C16="","",INDEX(downloadmatch!$A:$B,$A16,B$2)) ->  | C16: =IF(C15="","",IF(INDEX(downloadmatch!$A:$B,$A16,C$2)=0,"",INDEX(downloadmatch!$A:$B,$A16,C$2))) ->  | N16: =IF(M16="","",IF(M16>=settodownload!$C$5,"OK","")) ->  | AI16: 8
A17: 564 | B17: =IF(C17="","",INDEX(downloadmatch!$A:$B,$A17,B$2)) ->  | C17: =IF(C16="","",IF(INDEX(downloadmatch!$A:$B,$A17,C$2)=0,"",INDEX(downloadmatch!$A:$B,$A17,C$2))) ->  | N17: =IF(M17="","",IF(M17>=settodownload!$C$5,"OK","")) ->  | AI17: 8
A18: =A17+1 -> 565 | B18: =IF(C18="","",INDEX(downloadmatch!$A:$B,$A18,B$2)) ->  | C18: =IF(C17="","",IF(INDEX(downloadmatch!$A:$B,$A18,C$2)=0,"",INDEX(downloadmatch!$A:$B,$A18,C$2))) ->  | N18: =IF(M18="","",IF(M18>=settodownload!$C$5,"OK","")) ->  | AI18: 8 | AJ18: =IF(W18="","",IF(W18>X18,"W",IF(W18=X18,"D",IF(W18<X18,"l","")))) ->  | AK18: =IF(Y18="","",IF(Y18>Z18,"W",IF(Y18=Z18,"D",IF(Y18<Z18,"l","")))) ->  | AL18: =IF(AA18="","",IF(AA18>AB18,"W",IF(AA18=AB18,"D",IF(AA18<AB18,"l","")))) -> 
A19: 566 | B19: =IF(C19="","",INDEX(downloadmatch!$A:$B,$A19,B$2)) ->  | C19: =IF(C18="","",IF(INDEX(downloadmatch!$A:$B,$A19,C$2)=0,"",INDEX(downloadmatch!$A:$B,$A19,C$2))) ->  | N19: =IF(M19="","",IF(M19>=settodownload!$C$5,"OK","")) ->  | AI19: 8
A20: 567 | B20: =IF(C20="","",INDEX(downloadmatch!$A:$B,$A20,B$2)) ->  | C20: =IF(C19="","",IF(INDEX(downloadmatch!$A:$B,$A20,C$2)=0,"",INDEX(downloadmatch!$A:$B,$A20,C$2))) ->  | N20: =IF(M20="","",IF(M20>=settodownload!$C$5,"OK","")) ->  | S20: =IF(R20="","",U20-Q20) ->  | AI20: 8
A21: 568 | B21: =IF(C21="","",INDEX(downloadmatch!$A:$B,$A21,B$2)) ->  | C21: =IF(C20="","",IF(INDEX(downloadmatch!$A:$B,$A21,C$2)=0,"",INDEX(downloadmatch!$A:$B,$A21,C$2))) ->  | N21: =IF(M21="","",IF(M21>=settodownload!$C$5,"OK","")) ->  | AI21: 8
A22: 569 | B22: =IF(C22="","",INDEX(downloadmatch!$A:$B,$A22,B$2)) ->  | C22: =IF(C21="","",IF(INDEX(downloadmatch!$A:$B,$A22,C$2)=0,"",INDEX(downloadmatch!$A:$B,$A22,C$2))) ->  | N22: =IF(M22="","",IF(M22>=settodownload!$C$5,"OK","")) ->  | AI22: 8
A23: 570 | B23: =IF(C23="","",INDEX(downloadmatch!$A:$B,$A23,B$2)) ->  | C23: =IF(C22="","",IF(INDEX(downloadmatch!$A:$B,$A23,C$2)=0,"",INDEX(downloadmatch!$A:$B,$A23,C$2))) ->  | N23: =IF(M23="","",IF(M23>=settodownload!$C$5,"OK","")) ->  | AI23: 8
A24: 571 | B24: =IF(C24="","",INDEX(downloadmatch!$A:$B,$A24,B$2)) ->  | C24: =IF(C23="","",IF(INDEX(downloadmatch!$A:$B,$A24,C$2)=0,"",INDEX(downloadmatch!$A:$B,$A24,C$2))) ->  | N24: =IF(M24="","",IF(M24>=settodownload!$C$5,"OK","")) ->  | AI24: 8
A25: 572 | B25: =IF(C25="","",INDEX(downloadmatch!$A:$B,$A25,B$2)) ->  | C25: =IF(C24="","",IF(INDEX(downloadmatch!$A:$B,$A25,C$2)=0,"",INDEX(downloadmatch!$A:$B,$A25,C$2))) ->  | J25: =IF(F25="","",SUBSTITUTE(SUBSTITUTE(MID(C25,SEARCH(" ",H25)+3,100),"(",""),")","")) ->  | K25: =IFERROR(MID(J25,SEARCH("AET",J25)+4,100),"") ->  | L25: =IFERROR(LEFT(J25,SEARCH("AET",J25)-2),"") ->  | N25: =IF(M25="","",IF(M25>=settodownload!$C$5,"OK","")) ->  | AI25: 8
A26: 573 | B26: =IF(C26="","",INDEX(downloadmatch!$A:$B,$A26,B$2)) ->  | C26: =IF(C25="","",IF(INDEX(downloadmatch!$A:$B,$A26,C$2)=0,"",INDEX(downloadmatch!$A:$B,$A26,C$2))) ->  | K26: =IFERROR(MID(J26,SEARCH("AET",J26)+4,100),"") ->  | L26: =IFERROR(LEFT(J26,SEARCH("AET",J26)-2),"") ->  | N26: =IF(M26="","",IF(M26>=settodownload!$C$5,"OK","")) ->  | AI26: 8
A27: 574 | B27: =IF(C27="","",INDEX(downloadmatch!$A:$B,$A27,B$2)) ->  | C27: =IF(C26="","",IF(INDEX(downloadmatch!$A:$B,$A27,C$2)=0,"",INDEX(downloadmatch!$A:$B,$A27,C$2))) ->  | N27: =IF(M27="","",IF(M27>=settodownload!$C$5,"OK","")) ->  | AI27: 8
A28: =A27+1 -> 575 | B28: =IF(C28="","",INDEX(downloadmatch!$A:$B,$A28,B$2)) ->  | C28: =IF(C27="","",IF(INDEX(downloadmatch!$A:$B,$A28,C$2)=0,"",INDEX(downloadmatch!$A:$B,$A28,C$2))) ->  | N28: =IF(M28="","",IF(M28>=settodownload!$C$5,"OK","")) ->  | AI28: 8
A29: 576 | B29: =IF(C29="","",INDEX(downloadmatch!$A:$B,$A29,B$2)) ->  | C29: =IF(C28="","",IF(INDEX(downloadmatch!$A:$B,$A29,C$2)=0,"",INDEX(downloadmatch!$A:$B,$A29,C$2))) ->  | N29: =IF(M29="","",IF(M29>=settodownload!$C$5,"OK","")) ->  | AI29: 8
A30: 577 | B30: =IF(C30="","",INDEX(downloadmatch!$A:$B,$A30,B$2)) ->  | C30: =IF(C29="","",IF(INDEX(downloadmatch!$A:$B,$A30,C$2)=0,"",INDEX(downloadmatch!$A:$B,$A30,C$2))) ->  | N30: =IF(M30="","",IF(M30>=settodownload!$C$5,"OK","")) ->  | AI30: 8
A31: 578 | B31: =IF(C31="","",INDEX(downloadmatch!$A:$B,$A31,B$2)) ->  | C31: =IF(C30="","",IF(INDEX(downloadmatch!$A:$B,$A31,C$2)=0,"",INDEX(downloadmatch!$A:$B,$A31,C$2))) ->  | N31: =IF(M31="","",IF(M31>=settodownload!$C$5,"OK","")) ->  | AI31: 8
A32: 579 | B32: =IF(C32="","",INDEX(downloadmatch!$A:$B,$A32,B$2)) ->  | C32: =IF(C31="","",IF(INDEX(downloadmatch!$A:$B,$A32,C$2)=0,"",INDEX(downloadmatch!$A:$B,$A32,C$2))) ->  | N32: =IF(M32="","",IF(M32>=settodownload!$C$5,"OK","")) ->  | AI32: 8
A33: 580 | B33: =IF(C33="","",INDEX(downloadmatch!$A:$B,$A33,B$2)) ->  | C33: =IF(C32="","",IF(INDEX(downloadmatch!$A:$B,$A33,C$2)=0,"",INDEX(downloadmatch!$A:$B,$A33,C$2))) ->  | N33: =IF(M33="","",IF(M33>=settodownload!$C$5,"OK","")) ->  | AI33: 8
A34: 581 | B34: =IF(C34="","",INDEX(downloadmatch!$A:$B,$A34,B$2)) ->  | C34: =IF(C33="","",IF(INDEX(downloadmatch!$A:$B,$A34,C$2)=0,"",INDEX(downloadmatch!$A:$B,$A34,C$2))) ->  | N34: =IF(M34="","",IF(M34>=settodownload!$C$5,"OK","")) ->  | AI34: 8
A35: 582 | B35: =IF(C35="","",INDEX(downloadmatch!$A:$B,$A35,B$2)) ->  | C35: =IF(C34="","",IF(INDEX(downloadmatch!$A:$B,$A35,C$2)=0,"",INDEX(downloadmatch!$A:$B,$A35,C$2))) ->  | N35: =IF(M35="","",IF(M35>=settodownload!$C$5,"OK","")) ->  | AI35: 8
A36: 583 | B36: =IF(C36="","",INDEX(downloadmatch!$A:$B,$A36,B$2)) ->  | C36: =IF(C35="","",IF(INDEX(downloadmatch!$A:$B,$A36,C$2)=0,"",INDEX(downloadmatch!$A:$B,$A36,C$2))) ->  | N36: =IF(M36="","",IF(M36>=settodownload!$C$5,"OK","")) ->  | S36: =IF(R36="","",U36-Q36) ->  | AI36: 8
A37: 584 | B37: =IF(C37="","",INDEX(downloadmatch!$A:$B,$A37,B$2)) ->  | C37: =IF(C36="","",IF(INDEX(downloadmatch!$A:$B,$A37,C$2)=0,"",INDEX(downloadmatch!$A:$B,$A37,C$2))) ->  | N37: =IF(M37="","",IF(M37>=settodownload!$C$5,"OK","")) ->  | AI37: 8
A38: 585 | B38: =IF(C38="","",INDEX(downloadmatch!$A:$B,$A38,B$2)) ->  | C38: =IF(C37="","",IF(INDEX(downloadmatch!$A:$B,$A38,C$2)=0,"",INDEX(downloadmatch!$A:$B,$A38,C$2))) ->  | N38: =IF(M38="","",IF(M38>=settodownload!$C$5,"OK","")) ->  | AI38: 8
A39: 586 | B39: =IF(C39="","",INDEX(downloadmatch!$A:$B,$A39,B$2)) ->  | C39: =IF(C38="","",IF(INDEX(downloadmatch!$A:$B,$A39,C$2)=0,"",INDEX(downloadmatch!$A:$B,$A39,C$2))) ->  | N39: =IF(M39="","",IF(M39>=settodownload!$C$5,"OK","")) ->  | AI39: 8
A40: =A39+1 -> 587 | B40: =IF(C40="","",INDEX(downloadmatch!$A:$B,$A40,B$2)) ->  | C40: =IF(C39="","",IF(INDEX(downloadmatch!$A:$B,$A40,C$2)=0,"",INDEX(downloadmatch!$A:$B,$A40,C$2))) ->  | N40: =IF(M40="","",IF(M40>=settodownload!$C$5,"OK","")) ->  | AI40: 8
A41: 588 | B41: =IF(C41="","",INDEX(downloadmatch!$A:$B,$A41,B$2)) ->  | C41: =IF(C40="","",IF(INDEX(downloadmatch!$A:$B,$A41,C$2)=0,"",INDEX(downloadmatch!$A:$B,$A41,C$2))) ->  | N41: =IF(M41="","",IF(M41>=settodownload!$C$5,"OK","")) ->  | AI41: 8
A42: 589 | B42: =IF(C42="","",INDEX(downloadmatch!$A:$B,$A42,B$2)) ->  | C42: =IF(C41="","",IF(INDEX(downloadmatch!$A:$B,$A42,C$2)=0,"",INDEX(downloadmatch!$A:$B,$A42,C$2))) ->  | N42: =IF(M42="","",IF(M42>=settodownload!$C$5,"OK","")) ->  | AI42: 8
A43: 590 | B43: =IF(C43="","",INDEX(downloadmatch!$A:$B,$A43,B$2)) ->  | C43: =IF(C42="","",IF(INDEX(downloadmatch!$A:$B,$A43,C$2)=0,"",INDEX(downloadmatch!$A:$B,$A43,C$2))) ->  | N43: =IF(M43="","",IF(M43>=settodownload!$C$5,"OK","")) ->  | AI43: 8
A44: 591 | B44: =IF(C44="","",INDEX(downloadmatch!$A:$B,$A44,B$2)) ->  | C44: =IF(C43="","",IF(INDEX(downloadmatch!$A:$B,$A44,C$2)=0,"",INDEX(downloadmatch!$A:$B,$A44,C$2))) ->  | N44: =IF(M44="","",IF(M44>=settodownload!$C$5,"OK","")) ->  | AI44: 8
A45: 592 | B45: =IF(C45="","",INDEX(downloadmatch!$A:$B,$A45,B$2)) ->  | C45: =IF(C44="","",IF(INDEX(downloadmatch!$A:$B,$A45,C$2)=0,"",INDEX(downloadmatch!$A:$B,$A45,C$2))) ->  | N45: =IF(M45="","",IF(M45>=settodownload!$C$5,"OK","")) ->  | AI45: 8
A46: 593 | B46: =IF(C46="","",INDEX(downloadmatch!$A:$B,$A46,B$2)) ->  | C46: =IF(C45="","",IF(INDEX(downloadmatch!$A:$B,$A46,C$2)=0,"",INDEX(downloadmatch!$A:$B,$A46,C$2))) ->  | N46: =IF(M46="","",IF(M46>=settodownload!$C$5,"OK","")) ->  | AI46: 8
A47: 594 | B47: =IF(C47="","",INDEX(downloadmatch!$A:$B,$A47,B$2)) ->  | C47: =IF(C46="","",IF(INDEX(downloadmatch!$A:$B,$A47,C$2)=0,"",INDEX(downloadmatch!$A:$B,$A47,C$2))) ->  | N47: =IF(M47="","",IF(M47>=settodownload!$C$5,"OK","")) ->  | AI47: 8
A48: 595 | B48: =IF(C48="","",INDEX(downloadmatch!$A:$B,$A48,B$2)) ->  | C48: =IF(C47="","",IF(INDEX(downloadmatch!$A:$B,$A48,C$2)=0,"",INDEX(downloadmatch!$A:$B,$A48,C$2))) ->  | N48: =IF(M48="","",IF(M48>=settodownload!$C$5,"OK","")) ->  | AI48: 8
A49: 596 | B49: =IF(C49="","",INDEX(downloadmatch!$A:$B,$A49,B$2)) ->  | C49: =IF(C48="","",IF(INDEX(downloadmatch!$A:$B,$A49,C$2)=0,"",INDEX(downloadmatch!$A:$B,$A49,C$2))) ->  | N49: =IF(M49="","",IF(M49>=settodownload!$C$5,"OK","")) ->  | AI49: 8
A50: 597 | B50: =IF(C50="","",INDEX(downloadmatch!$A:$B,$A50,B$2)) ->  | C50: =IF(C49="","",IF(INDEX(downloadmatch!$A:$B,$A50,C$2)=0,"",INDEX(downloadmatch!$A:$B,$A50,C$2))) ->  | N50: =IF(M50="","",IF(M50>=settodownload!$C$5,"OK","")) ->  | AI50: 8
A51: 598 | B51: =IF(C51="","",INDEX(downloadmatch!$A:$B,$A51,B$2)) ->  | C51: =IF(C50="","",IF(INDEX(downloadmatch!$A:$B,$A51,C$2)=0,"",INDEX(downloadmatch!$A:$B,$A51,C$2))) ->  | N51: =IF(M51="","",IF(M51>=settodownload!$C$5,"OK","")) ->  | AI51: 8
A52: 599 | B52: =IF(C52="","",INDEX(downloadmatch!$A:$B,$A52,B$2)) ->  | C52: =IF(C51="","",IF(INDEX(downloadmatch!$A:$B,$A52,C$2)=0,"",INDEX(downloadmatch!$A:$B,$A52,C$2))) ->  | N52: =IF(M52="","",IF(M52>=settodownload!$C$5,"OK","")) ->  | S52: =IF(R52="","",U52-Q52) ->  | AI52: 8
A53: 600 | B53: =IF(C53="","",INDEX(downloadmatch!$A:$B,$A53,B$2)) ->  | C53: =IF(C52="","",IF(INDEX(downloadmatch!$A:$B,$A53,C$2)=0,"",INDEX(downloadmatch!$A:$B,$A53,C$2))) ->  | N53: =IF(M53="","",IF(M53>=settodownload!$C$5,"OK","")) ->  | AI53: 8
A54: 601 | B54: =IF(C54="","",INDEX(downloadmatch!$A:$B,$A54,B$2)) ->  | C54: =IF(C53="","",IF(INDEX(downloadmatch!$A:$B,$A54,C$2)=0,"",INDEX(downloadmatch!$A:$B,$A54,C$2))) ->  | N54: =IF(M54="","",IF(M54>=settodownload!$C$5,"OK","")) ->  | AI54: 8
A55: 602 | B55: =IF(C55="","",INDEX(downloadmatch!$A:$B,$A55,B$2)) ->  | C55: =IF(C54="","",IF(INDEX(downloadmatch!$A:$B,$A55,C$2)=0,"",INDEX(downloadmatch!$A:$B,$A55,C$2))) ->  | N55: =IF(M55="","",IF(M55>=settodownload!$C$5,"OK","")) ->  | AI55: 8
A56: 603 | B56: =IF(C56="","",INDEX(downloadmatch!$A:$B,$A56,B$2)) ->  | C56: =IF(C55="","",IF(INDEX(downloadmatch!$A:$B,$A56,C$2)=0,"",INDEX(downloadmatch!$A:$B,$A56,C$2))) ->  | N56: =IF(M56="","",IF(M56>=settodownload!$C$5,"OK","")) ->  | AI56: 8
A57: 604 | B57: =IF(C57="","",INDEX(downloadmatch!$A:$B,$A57,B$2)) ->  | C57: =IF(C56="","",IF(INDEX(downloadmatch!$A:$B,$A57,C$2)=0,"",INDEX(downloadmatch!$A:$B,$A57,C$2))) ->  | N57: =IF(M57="","",IF(M57>=settodownload!$C$5,"OK","")) ->  | AI57: 8
A58: 605 | B58: =IF(C58="","",INDEX(downloadmatch!$A:$B,$A58,B$2)) ->  | C58: =IF(C57="","",IF(INDEX(downloadmatch!$A:$B,$A58,C$2)=0,"",INDEX(downloadmatch!$A:$B,$A58,C$2))) ->  | N58: =IF(M58="","",IF(M58>=settodownload!$C$5,"OK","")) ->  | AI58: 8
A59: 606 | B59: =IF(C59="","",INDEX(downloadmatch!$A:$B,$A59,B$2)) ->  | C59: =IF(C58="","",IF(INDEX(downloadmatch!$A:$B,$A59,C$2)=0,"",INDEX(downloadmatch!$A:$B,$A59,C$2))) ->  | N59: =IF(M59="","",IF(M59>=settodownload!$C$5,"OK","")) ->  | AI59: 8
A60: 607 | B60: =IF(C60="","",INDEX(downloadmatch!$A:$B,$A60,B$2)) ->  | C60: =IF(C59="","",IF(INDEX(downloadmatch!$A:$B,$A60,C$2)=0,"",INDEX(downloadmatch!$A:$B,$A60,C$2))) ->  | N60: =IF(M60="","",IF(M60>=settodownload!$C$5,"OK","")) ->  | AI60: 8
A61: 608 | B61: =IF(C61="","",INDEX(downloadmatch!$A:$B,$A61,B$2)) ->  | C61: =IF(C60="","",IF(INDEX(downloadmatch!$A:$B,$A61,C$2)=0,"",INDEX(downloadmatch!$A:$B,$A61,C$2))) ->  | N61: =IF(M61="","",IF(M61>=settodownload!$C$5,"OK","")) ->  | AI61: 8
A62: 609 | B62: =IF(C62="","",INDEX(downloadmatch!$A:$B,$A62,B$2)) ->  | C62: =IF(C61="","",IF(INDEX(downloadmatch!$A:$B,$A62,C$2)=0,"",INDEX(downloadmatch!$A:$B,$A62,C$2))) ->  | N62: =IF(M62="","",IF(M62>=settodownload!$C$5,"OK","")) ->  | AI62: 8
A63: 610 | B63: =IF(C63="","",INDEX(downloadmatch!$A:$B,$A63,B$2)) ->  | C63: =IF(C62="","",IF(INDEX(downloadmatch!$A:$B,$A63,C$2)=0,"",INDEX(downloadmatch!$A:$B,$A63,C$2))) ->  | N63: =IF(M63="","",IF(M63>=settodownload!$C$5,"OK","")) ->  | AI63: 8
A64: 611 | B64: =IF(C64="","",INDEX(downloadmatch!$A:$B,$A64,B$2)) ->  | C64: =IF(C63="","",IF(INDEX(downloadmatch!$A:$B,$A64,C$2)=0,"",INDEX(downloadmatch!$A:$B,$A64,C$2))) ->  | N64: =IF(M64="","",IF(M64>=settodownload!$C$5,"OK","")) ->  | AI64: 8
A65: 612 | B65: =IF(C65="","",INDEX(downloadmatch!$A:$B,$A65,B$2)) ->  | C65: =IF(C64="","",IF(INDEX(downloadmatch!$A:$B,$A65,C$2)=0,"",INDEX(downloadmatch!$A:$B,$A65,C$2))) ->  | N65: =IF(M65="","",IF(M65>=settodownload!$C$5,"OK","")) ->  | AI65: 8
A66: 613 | B66: =IF(C66="","",INDEX(downloadmatch!$A:$B,$A66,B$2)) ->  | C66: =IF(C65="","",IF(INDEX(downloadmatch!$A:$B,$A66,C$2)=0,"",INDEX(downloadmatch!$A:$B,$A66,C$2))) ->  | N66: =IF(M66="","",IF(M66>=settodownload!$C$5,"OK","")) ->  | AI66: 8
A67: 614 | B67: =IF(C67="","",INDEX(downloadmatch!$A:$B,$A67,B$2)) ->  | C67: =IF(C66="","",IF(INDEX(downloadmatch!$A:$B,$A67,C$2)=0,"",INDEX(downloadmatch!$A:$B,$A67,C$2))) ->  | M67: =IF(F67="","",fmt(E67,"YYYY")*1) ->  | N67: =IF(M67="","",IF(M67>=settodownload!$C$5,"OK","")) ->  | Q67: =IFERROR(IF(P67="","",LEFT(J67,SEARCH(":",J67)-1)*1),IF(L67="","",LEFT(L67,SEARCH(":",L67)-1)*1)) ->  | R67: =IFERROR(IF(Q67="","",MID(J67,SEARCH(":",J67)+1,100)*1),IF(L67="","",MID(L67,SEARCH(":",L67)+1,100)*1)) ->  | AI67: 8
A68: 615 | B68: =IF(C68="","",INDEX(downloadmatch!$A:$B,$A68,B$2)) ->  | C68: =IF(C67="","",IF(INDEX(downloadmatch!$A:$B,$A68,C$2)=0,"",INDEX(downloadmatch!$A:$B,$A68,C$2))) ->  | I68: =IF(H68="","",IF(K68="",LEFT(H68,SEARCH(" ",H68)-1),K68)) ->  | J68: =IF(F68="","",SUBSTITUTE(SUBSTITUTE(MID(C68,SEARCH(" ",H68)+3,100),"(",""),")","")) ->  | N68: =IF(M68="","",IF(M68>=settodownload!$C$5,"OK","")) ->  | O68: =IF(N68="","",LEFT(F68,SEARCH(" - ",F68)-1)) ->  | P68: =IF(O68="","",MID(F68,SEARCH(" - ",F68)+3,100)) ->  | S68: =IF(R68="","",U68-Q68) ->  | U68: =IF(N68="","",LEFT(I68,SEARCH(":",I68)-1)*1) ->  | V68: =IF(U68="","",MID(I68,SEARCH(":",I68)+1,100)*1) ->  | W68: =IF($O$2=O68,Q68,R68) ->  | X68: =IF($O$2=P68,Q68,R68) ->  | Y68: =IF($O$2=O68,S68,T68) ->  | Z68: =IF($O$2=P68,S68,T68) ->  | AA68: =IF($O$2=O68,U68,V68) ->  | AB68: =IF($O$2=P68,U68,V68) ->  | AC68: =IF(W68="","",IF(W68>0,"ok","")) ->  | AD68: =IF(X68="","",IF(X68>0,"ok","")) ->  | AE68: =IF(Y68="","",IF(Y68>0,"ok","")) ->  | AF68: =IF(Z68="","",IF(Z68>0,"ok","")) ->  | AG68: =IF(AA68="","",IF(AA68>0,"ok","")) ->  | AH68: =IF(AB68="","",IF(AB68>0,"ok","")) ->  | AI68: =IF(W68="",AI67,AI67+1) -> 8 | AM68: =IF(AL68="","",IF((W68+X68)>0.5,"OK","")) ->  | AN68: =IF(AM68="","",IF((W68+X68)>1,"OK","")) ->  | AO68: =IF(AL68="","",IF((Y68+Z68)>0.5,"OK","")) ->  | AP68: =IF(AL68="","",IF((Y68+Z68)>1,"OK","")) ->  | AQ68: =IF(AL68="","",IF((AA68+AB68)>1,"OK","")) ->  | AR68: =IF(AL68="","",IF((AA68+AB68)>2,"OK","")) ->  | AS68: =IF(AL68="","",IF((AA68+AB68)>3,"OK","")) ->  | AT68: =IF(AL68="","",IF(AND(AJ68="W",AK68="W"),"OK","")) ->  | AU68: =IF(AL68="","",IF(AND(AJ68="D",AK68="D"),"OK","")) ->  | AV68: =IF(AL68="","",IF(AND(AJ68="L",AK68="L"),"OK","")) -> 
A69: 616 | B69: =IF(C69="","",INDEX(downloadmatch!$A:$B,$A69,B$2)) ->  | C69: =IF(C68="","",IF(INDEX(downloadmatch!$A:$B,$A69,C$2)=0,"",INDEX(downloadmatch!$A:$B,$A69,C$2))) ->  | N69: =IF(M69="","",IF(M69>=settodownload!$C$5,"OK","")) ->  | AI69: 8
A70: 617 | B70: =IF(C70="","",INDEX(downloadmatch!$A:$B,$A70,B$2)) ->  | C70: =IF(C69="","",IF(INDEX(downloadmatch!$A:$B,$A70,C$2)=0,"",INDEX(downloadmatch!$A:$B,$A70,C$2))) ->  | N70: =IF(M70="","",IF(M70>=settodownload!$C$5,"OK","")) ->  | AI70: 8
A71: 618 | B71: =IF(C71="","",INDEX(downloadmatch!$A:$B,$A71,B$2)) ->  | C71: =IF(C70="","",IF(INDEX(downloadmatch!$A:$B,$A71,C$2)=0,"",INDEX(downloadmatch!$A:$B,$A71,C$2))) ->  | N71: =IF(M71="","",IF(M71>=settodownload!$C$5,"OK","")) ->  | AI71: 8
A72: 619 | B72: =IF(C72="","",INDEX(downloadmatch!$A:$B,$A72,B$2)) ->  | C72: =IF(C71="","",IF(INDEX(downloadmatch!$A:$B,$A72,C$2)=0,"",INDEX(downloadmatch!$A:$B,$A72,C$2))) ->  | N72: =IF(M72="","",IF(M72>=settodownload!$C$5,"OK","")) ->  | AI72: 8
A73: 620 | B73: =IF(C73="","",INDEX(downloadmatch!$A:$B,$A73,B$2)) ->  | C73: =IF(C72="","",IF(INDEX(downloadmatch!$A:$B,$A73,C$2)=0,"",INDEX(downloadmatch!$A:$B,$A73,C$2))) ->  | N73: =IF(M73="","",IF(M73>=settodownload!$C$5,"OK","")) ->  | AI73: 8
A74: 621 | B74: =IF(C74="","",INDEX(downloadmatch!$A:$B,$A74,B$2)) ->  | C74: =IF(C73="","",IF(INDEX(downloadmatch!$A:$B,$A74,C$2)=0,"",INDEX(downloadmatch!$A:$B,$A74,C$2))) ->  | N74: =IF(M74="","",IF(M74>=settodownload!$C$5,"OK","")) ->  | AI74: 8
A75: 622 | B75: =IF(C75="","",INDEX(downloadmatch!$A:$B,$A75,B$2)) ->  | C75: =IF(C74="","",IF(INDEX(downloadmatch!$A:$B,$A75,C$2)=0,"",INDEX(downloadmatch!$A:$B,$A75,C$2))) ->  | N75: =IF(M75="","",IF(M75>=settodownload!$C$5,"OK","")) ->  | AI75: 8
A76: 623 | B76: =IF(C76="","",INDEX(downloadmatch!$A:$B,$A76,B$2)) ->  | C76: =IF(C75="","",IF(INDEX(downloadmatch!$A:$B,$A76,C$2)=0,"",INDEX(downloadmatch!$A:$B,$A76,C$2))) ->  | N76: =IF(M76="","",IF(M76>=settodownload!$C$5,"OK","")) ->  | AI76: 8
A77: 624 | B77: =IF(C77="","",INDEX(downloadmatch!$A:$B,$A77,B$2)) ->  | C77: =IF(C76="","",IF(INDEX(downloadmatch!$A:$B,$A77,C$2)=0,"",INDEX(downloadmatch!$A:$B,$A77,C$2))) ->  | N77: =IF(M77="","",IF(M77>=settodownload!$C$5,"OK","")) ->  | AI77: 8
A78: 625 | B78: =IF(C78="","",INDEX(downloadmatch!$A:$B,$A78,B$2)) ->  | C78: =IF(C77="","",IF(INDEX(downloadmatch!$A:$B,$A78,C$2)=0,"",INDEX(downloadmatch!$A:$B,$A78,C$2))) ->  | N78: =IF(M78="","",IF(M78>=settodownload!$C$5,"OK","")) ->  | AI78: 8
A79: 626 | B79: =IF(C79="","",INDEX(downloadmatch!$A:$B,$A79,B$2)) ->  | C79: =IF(C78="","",IF(INDEX(downloadmatch!$A:$B,$A79,C$2)=0,"",INDEX(downloadmatch!$A:$B,$A79,C$2))) ->  | N79: =IF(M79="","",IF(M79>=settodownload!$C$5,"OK","")) ->  | AI79: 8
A80: 627 | B80: =IF(C80="","",INDEX(downloadmatch!$A:$B,$A80,B$2)) ->  | C80: =IF(C79="","",IF(INDEX(downloadmatch!$A:$B,$A80,C$2)=0,"",INDEX(downloadmatch!$A:$B,$A80,C$2))) ->  | N80: =IF(M80="","",IF(M80>=settodownload!$C$5,"OK","")) ->  | AI80: 8
A81: 628 | B81: =IF(C81="","",INDEX(downloadmatch!$A:$B,$A81,B$2)) ->  | C81: =IF(C80="","",IF(INDEX(downloadmatch!$A:$B,$A81,C$2)=0,"",INDEX(downloadmatch!$A:$B,$A81,C$2))) ->  | N81: =IF(M81="","",IF(M81>=settodownload!$C$5,"OK","")) ->  | AI81: 8
A82: 629 | B82: =IF(C82="","",INDEX(downloadmatch!$A:$B,$A82,B$2)) ->  | C82: =IF(C81="","",IF(INDEX(downloadmatch!$A:$B,$A82,C$2)=0,"",INDEX(downloadmatch!$A:$B,$A82,C$2))) ->  | N82: =IF(M82="","",IF(M82>=settodownload!$C$5,"OK","")) ->  | AI82: 8 | AJ82: =IF(W82="","",IF(W82>X82,"W",IF(W82=X82,"D",IF(W82<X82,"l","")))) ->  | AK82: =IF(Y82="","",IF(Y82>Z82,"W",IF(Y82=Z82,"D",IF(Y82<Z82,"l","")))) ->  | AL82: =IF(AA82="","",IF(AA82>AB82,"W",IF(AA82=AB82,"D",IF(AA82<AB82,"l","")))) -> 
A83: =A82+1 -> 630 | B83: =IF(C83="","",INDEX(downloadmatch!$A:$B,$A83,B$2)) ->  | C83: =IF(C82="","",IF(INDEX(downloadmatch!$A:$B,$A83,C$2)=0,"",INDEX(downloadmatch!$A:$B,$A83,C$2))) ->  | N83: =IF(M83="","",IF(M83>=settodownload!$C$5,"OK","")) ->  | AI83: 8
A84: 631 | B84: =IF(C84="","",INDEX(downloadmatch!$A:$B,$A84,B$2)) ->  | C84: =IF(C83="","",IF(INDEX(downloadmatch!$A:$B,$A84,C$2)=0,"",INDEX(downloadmatch!$A:$B,$A84,C$2))) ->  | N84: =IF(M84="","",IF(M84>=settodownload!$C$5,"OK","")) ->  | S84: =IF(R84="","",U84-Q84) ->  | AI84: 8
A85: 632 | B85: =IF(C85="","",INDEX(downloadmatch!$A:$B,$A85,B$2)) ->  | C85: =IF(C84="","",IF(INDEX(downloadmatch!$A:$B,$A85,C$2)=0,"",INDEX(downloadmatch!$A:$B,$A85,C$2))) ->  | N85: =IF(M85="","",IF(M85>=settodownload!$C$5,"OK","")) ->  | AI85: 8
A86: 633 | B86: =IF(C86="","",INDEX(downloadmatch!$A:$B,$A86,B$2)) ->  | C86: =IF(C85="","",IF(INDEX(downloadmatch!$A:$B,$A86,C$2)=0,"",INDEX(downloadmatch!$A:$B,$A86,C$2))) ->  | N86: =IF(M86="","",IF(M86>=settodownload!$C$5,"OK","")) ->  | AI86: 8
A87: 634 | B87: =IF(C87="","",INDEX(downloadmatch!$A:$B,$A87,B$2)) ->  | C87: =IF(C86="","",IF(INDEX(downloadmatch!$A:$B,$A87,C$2)=0,"",INDEX(downloadmatch!$A:$B,$A87,C$2))) ->  | N87: =IF(M87="","",IF(M87>=settodownload!$C$5,"OK","")) ->  | AI87: 8
A88: 635 | B88: =IF(C88="","",INDEX(downloadmatch!$A:$B,$A88,B$2)) ->  | C88: =IF(C87="","",IF(INDEX(downloadmatch!$A:$B,$A88,C$2)=0,"",INDEX(downloadmatch!$A:$B,$A88,C$2))) ->  | N88: =IF(M88="","",IF(M88>=settodownload!$C$5,"OK","")) ->  | AI88: 8
A89: 636 | B89: =IF(C89="","",INDEX(downloadmatch!$A:$B,$A89,B$2)) ->  | C89: =IF(C88="","",IF(INDEX(downloadmatch!$A:$B,$A89,C$2)=0,"",INDEX(downloadmatch!$A:$B,$A89,C$2))) ->  | N89: =IF(M89="","",IF(M89>=settodownload!$C$5,"OK","")) ->  | AI89: 8
A90: 637 | B90: =IF(C90="","",INDEX(downloadmatch!$A:$B,$A90,B$2)) ->  | C90: =IF(C89="","",IF(INDEX(downloadmatch!$A:$B,$A90,C$2)=0,"",INDEX(downloadmatch!$A:$B,$A90,C$2))) ->  | K90: =IFERROR(MID(J90,SEARCH("AET",J90)+4,100),"") ->  | L90: =IFERROR(LEFT(J90,SEARCH("AET",J90)-2),"") ->  | N90: =IF(M90="","",IF(M90>=settodownload!$C$5,"OK","")) ->  | AI90: 8
A91: 638 | B91: =IF(C91="","",INDEX(downloadmatch!$A:$B,$A91,B$2)) ->  | C91: =IF(C90="","",IF(INDEX(downloadmatch!$A:$B,$A91,C$2)=0,"",INDEX(downloadmatch!$A:$B,$A91,C$2))) ->  | N91: =IF(M91="","",IF(M91>=settodownload!$C$5,"OK","")) ->  | AI91: 8
A92: 639 | B92: =IF(C92="","",INDEX(downloadmatch!$A:$B,$A92,B$2)) ->  | C92: =IF(C91="","",IF(INDEX(downloadmatch!$A:$B,$A92,C$2)=0,"",INDEX(downloadmatch!$A:$B,$A92,C$2))) ->  | N92: =IF(M92="","",IF(M92>=settodownload!$C$5,"OK","")) ->  | AI92: 8
A93: 640 | B93: =IF(C93="","",INDEX(downloadmatch!$A:$B,$A93,B$2)) ->  | C93: =IF(C92="","",IF(INDEX(downloadmatch!$A:$B,$A93,C$2)=0,"",INDEX(downloadmatch!$A:$B,$A93,C$2))) ->  | N93: =IF(M93="","",IF(M93>=settodownload!$C$5,"OK","")) ->  | AI93: 8
A94: 641 | B94: =IF(C94="","",INDEX(downloadmatch!$A:$B,$A94,B$2)) ->  | C94: =IF(C93="","",IF(INDEX(downloadmatch!$A:$B,$A94,C$2)=0,"",INDEX(downloadmatch!$A:$B,$A94,C$2))) ->  | N94: =IF(M94="","",IF(M94>=settodownload!$C$5,"OK","")) ->  | AI94: 8
A95: 642 | B95: =IF(C95="","",INDEX(downloadmatch!$A:$B,$A95,B$2)) ->  | C95: =IF(C94="","",IF(INDEX(downloadmatch!$A:$B,$A95,C$2)=0,"",INDEX(downloadmatch!$A:$B,$A95,C$2))) ->  | N95: =IF(M95="","",IF(M95>=settodownload!$C$5,"OK","")) ->  | AI95: 8
A96: 643 | B96: =IF(C96="","",INDEX(downloadmatch!$A:$B,$A96,B$2)) ->  | C96: =IF(C95="","",IF(INDEX(downloadmatch!$A:$B,$A96,C$2)=0,"",INDEX(downloadmatch!$A:$B,$A96,C$2))) ->  | N96: =IF(M96="","",IF(M96>=settodownload!$C$5,"OK","")) ->  | AI96: 8
A97: 644 | B97: =IF(C97="","",INDEX(downloadmatch!$A:$B,$A97,B$2)) ->  | C97: =IF(C96="","",IF(INDEX(downloadmatch!$A:$B,$A97,C$2)=0,"",INDEX(downloadmatch!$A:$B,$A97,C$2))) ->  | N97: =IF(M97="","",IF(M97>=settodownload!$C$5,"OK","")) ->  | AI97: 8
A98: 645 | B98: =IF(C98="","",INDEX(downloadmatch!$A:$B,$A98,B$2)) ->  | C98: =IF(C97="","",IF(INDEX(downloadmatch!$A:$B,$A98,C$2)=0,"",INDEX(downloadmatch!$A:$B,$A98,C$2))) ->  | N98: =IF(M98="","",IF(M98>=settodownload!$C$5,"OK","")) ->  | AI98: 8
A99: 646 | B99: =IF(C99="","",INDEX(downloadmatch!$A:$B,$A99,B$2)) ->  | C99: =IF(C98="","",IF(INDEX(downloadmatch!$A:$B,$A99,C$2)=0,"",INDEX(downloadmatch!$A:$B,$A99,C$2))) ->  | N99: =IF(M99="","",IF(M99>=settodownload!$C$5,"OK","")) ->  | AI99: =IF(W99="",AI98,AI98+1) -> 8
A100: 647 | B100: =IF(C100="","",INDEX(downloadmatch!$A:$B,$A100,B$2)) ->  | C100: =IF(C99="","",IF(INDEX(downloadmatch!$A:$B,$A100,C$2)=0,"",INDEX(downloadmatch!$A:$B,$A100,C$2))) ->  | N100: =IF(M100="","",IF(M100>=settodownload!$C$5,"OK","")) -> 

Sheet AWAY (hidden)
A1: =CONCATENATE(settodownload!F3,"- Last matches") -> Bala Town - Last matches | Q1: HT | S1: ST | U1: FT | W1: =Q1 -> HT | Y1: =S1 -> ST | AA1: =U1 -> FT | AC1: + | AD1: - | AE1: + | AF1: - | AG1: + | AH1: - | AM1: HT | AO1: ST | AQ1: FT | AT1: WINNER
A2: =MATCH(A1,downloadmatch!$A:$A,0) -> 560 | B2: 1 | C2: =B2+1 -> 2 | E2: DATE | F2: TEAMS | G2: REST | H2: FT - HT | I2: FT | J2: HT | O2: =IF(COUNTIF(O3:P17,O3)>COUNTIF(O3:P17,P3),O3,P3) -> Bala Town | Q2: NOSORT | AC2: =COUNTIF(AC3:AC99,"ok")/$AI$99 -> 0.7 | AD2: =COUNTIF(AD3:AD99,"ok")/$AI$99 -> 0.5 | AE2: 0.7 | AF2: 0.4 | AG2: 0.9 | AH2: 0.7 | AM2: =COUNTIF(AM3:AM99,"OK")/$AI$99 -> 0.8 | AN2: =COUNTIF(AN3:AN99,"OK")/$AI$99 -> 0.6 | AO2: =COUNTIF(AO3:AO99,"OK")/$AI$99 -> 0.8 | AP2: 0.3 | AQ2: =COUNTIF(AQ3:AQ99,"OK")/$AI$99 -> 0.9 | AR2: =COUNTIF(AR3:AR99,"OK")/$AI$99 -> 0.5 | AS2: =COUNTIF(AS3:AS99,"OK")/$AI$99 -> 0.3 | AT2: =COUNTIF(AT3:AT99,"OK")/$AI$99 -> 0.4 | AU2: =COUNTIF(AU3:AU99,"OK")/$AI$99 -> 0.2 | AV2: 0 | AW2: W | AX2: D | AY2: L
A3: =A2+1 -> 561 | B3: =IF(C3="","",INDEX(downloadmatch!$A:$B,$A3,B$2)) -> 14.11.20 Bala Town - Penybont | C3: =IF(C2="","",IF(INDEX(downloadmatch!$A:$B,$A3,C$2)=0,"",INDEX(downloadmatch!$A:$B,$A3,C$2))) -> W 4:1 (3:1) | E3: =IF(B3="","",LEFT(B3,SEARCH(" ",B3)-1)) -> 14.11.20 | F3: =IF(E3="","",MID(B3,SEARCH(" ",B3)+1,100)) -> Bala Town - Penybont | G3: =IF(F3="","",LEFT(C3,SEARCH(" ",C3)-1)) -> W | H3: =IF(G3="","",MID(C3,SEARCH(" ",C3)+1,100)) -> 4:1 (3:1) | I3: =IF(H3="","",IF(K3="",LEFT(H3,SEARCH(" ",H3)-1),K3)) -> 4:1 | J3: =IF(F3="","",SUBSTITUTE(SUBSTITUTE(MID(C3,SEARCH(" ",H3)+3,100),"(",""),")","")) -> 3:1 | K3: =IFERROR(MID(J3,SEARCH("AET",J3)+4,100),"") ->  | L3: =IFERROR(LEFT(J3,SEARCH("AET",J3)-2),"") ->  | M3: =IF(F3="","",fmt(E3,"YYYY")*1) -> 2020 | N3: =IF(M3="","",IF(M3>=settodownload!$C$5,"OK","")) -> OK | O3: =IF(N3="","",LEFT(F3,SEARCH(" - ",F3)-1)) -> Bala Town | P3: =IF(O3="","",MID(F3,SEARCH(" - ",F3)+3,100)) -> Penybont | Q3: =IFERROR(IF(P3="","",LEFT(J3,SEARCH(":",J3)-1)*1),IF(L3="","",LEFT(L3,SEARCH(":",L3)-1)*1)) -> 3 | R3: =IFERROR(IF(Q3="","",MID(J3,SEARCH(":",J3)+1,100)*1),IF(L3="","",MID(L3,SEARCH(":",L3)+1,100)*1)) -> 1 | S3: =IF(R3="","",U3-Q3) -> 1 | T3: =IF(S3="","",V3-R3) -> 0 | U3: =IF(N3="","",LEFT(I3,SEARCH(":",I3)-1)*1) -> 4 | V3: =IF(U3="","",MID(I3,SEARCH(":",I3)+1,100)*1) -> 1 | W3: =IF($O$2=O3,Q3,R3) -> 3 | X3: =IF($O$2=P3,Q3,R3) -> 1 | Y3: =IF($O$2=O3,S3,T3) -> 1 | Z3: =IF($O$2=P3,S3,T3) -> 0 | AA3: =IF($O$2=O3,U3,V3) -> 4 | AB3: =IF($O$2=P3,U3,V3) -> 1 | AC3: =IF(W3="","",IF(W3>0,"ok","")) -> ok | AD3: =IF(X3="","",IF(X3>0,"ok","")) -> ok | AE3: ok | AG3: ok | AH3: ok | AI3: =IF(W3="",AI2,AI2+1) -> 1 | AJ3: =IF(W3="","",IF(W3>X3,"W",IF(W3=X3,"D",IF(W3<X3,"l","")))) -> W | AK3: =IF(Y3="","",IF(Y3>Z3,"W",IF(Y3=Z3,"D",IF(Y3<Z3,"l","")))) -> W | AL3: =IF(AA3="","",IF(AA3>AB3,"W",IF(AA3=AB3,"D",IF(AA3<AB3,"l","")))) -> W | AM3: =IF(AL3="","",IF((W3+X3)>0.5,"OK","")) -> OK | AN3: =IF(AM3="","",IF((W3+X3)>1,"OK","")) -> OK | AO3: =IF(AL3="","",IF((Y3+Z3)>0.5,"OK","")) -> OK | AP3: =IF(AL3="","",IF((Y3+Z3)>1,"OK","")) ->  | AQ3: =IF(AL3="","",IF((AA3+AB3)>1,"OK","")) -> OK | AR3: =IF(AL3="","",IF((AA3+AB3)>2,"OK","")) -> OK | AS3: =IF(AL3="","",IF((AA3+AB3)>3,"OK","")) -> OK | AT3: =IF(AL3="","",IF(AND(AJ3="W",AK3="W"),"OK","")) -> OK | AU3: =IF(AL3="","",IF(AND(AJ3="D",AK3="D"),"OK","")) ->  | AV3: =IF(AL3="","",IF(AND(AJ3="L",AK3="L"),"OK","")) ->  | AW3: =COUNTIF($AJ:$AJ,AW2) -> 5 | AX3: =COUNTIF($AJ:$AJ,AX2) -> 4 | AY3: 1
A4: =A3+1 -> 562 | B4: =IF(C4="","",INDEX(downloadmatch!$A:$B,$A4,B$2)) -> 07.11.20 Bala Town - New Saints | C4: =IF(C3="","",IF(INDEX(downloadmatch!$A:$B,$A4,C$2)=0,"",INDEX(downloadmatch!$A:$B,$A4,C$2))) -> D 1:1 (0:0) | E4: =IF(B4="","",LEFT(B4,SEARCH(" ",B4)-1)) -> 07.11.20 | F4: =IF(E4="","",MID(B4,SEARCH(" ",B4)+1,100)) -> Bala Town - New Saints | G4: =IF(F4="","",LEFT(C4,SEARCH(" ",C4)-1)) -> D | H4: =IF(G4="","",MID(C4,SEARCH(" ",C4)+1,100)) -> 1:1 (0:0) | I4: =IF(H4="","",IF(K4="",LEFT(H4,SEARCH(" ",H4)-1),K4)) -> 1:1 | J4: =IF(F4="","",SUBSTITUTE(SUBSTITUTE(MID(C4,SEARCH(" ",H4)+3,100),"(",""),")","")) -> 0:0 | M4: 2020 | N4: =IF(M4="","",IF(M4>=settodownload!$C$5,"OK","")) -> OK | O4: =IF(N4="","",LEFT(F4,SEARCH(" - ",F4)-1)) -> Bala Town | P4: =IF(O4="","",MID(F4,SEARCH(" - ",F4)+3,100)) -> New Saints | Q4: 0 | R4: 0 | S4: =IF(R4="","",U4-Q4) -> 1 | T4: 1 | U4: =IF(N4="","",LEFT(I4,SEARCH(":",I4)-1)*1) -> 1 | V4: =IF(U4="","",MID(I4,SEARCH(":",I4)+1,100)*1) -> 1 | W4: =IF($O$2=O4,Q4,R4) -> 0 | X4: =IF($O$2=P4,Q4,R4) -> 0 | Y4: =IF($O$2=O4,S4,T4) -> 1 | Z4: =IF($O$2=P4,S4,T4) -> 1 | AA4: =IF($O$2=O4,U4,V4) -> 1 | AB4: =IF($O$2=P4,U4,V4) -> 1 | AC4: =IF(W4="","",IF(W4>0,"ok","")) ->  | AE4: ok | AF4: ok | AG4: ok | AH4: ok | AI4: =IF(W4="",AI3,AI3+1) -> 2 | AJ4: =IF(W4="","",IF(W4>X4,"W",IF(W4=X4,"D",IF(W4<X4,"l","")))) -> D | AK4: =IF(Y4="","",IF(Y4>Z4,"W",IF(Y4=Z4,"D",IF(Y4<Z4,"l","")))) -> D | AL4: =IF(AA4="","",IF(AA4>AB4,"W",IF(AA4=AB4,"D",IF(AA4<AB4,"l","")))) -> D | AM4: =IF(AL4="","",IF((W4+X4)>0.5,"OK","")) ->  | AN4: =IF(AM4="","",IF((W4+X4)>1,"OK","")) ->  | AO4: =IF(AL4="","",IF((Y4+Z4)>0.5,"OK","")) -> OK | AP4: =IF(AL4="","",IF((Y4+Z4)>1,"OK","")) -> OK | AQ4: =IF(AL4="","",IF((AA4+AB4)>1,"OK","")) -> OK | AR4: =IF(AL4="","",IF((AA4+AB4)>2,"OK","")) ->  | AS4: =IF(AL4="","",IF((AA4+AB4)>3,"OK","")) ->  | AT4: =IF(AL4="","",IF(AND(AJ4="W",AK4="W"),"OK","")) ->  | AU4: =IF(AL4="","",IF(AND(AJ4="D",AK4="D"),"OK","")) -> OK | AV4: =IF(AL4="","",IF(AND(AJ4="L",AK4="L"),"OK","")) ->  | AW4: =AW3/$AI$99 -> 0.5 | AX4: =AX3/$AI$99 -> 0.4 | AY4: 0.1
A5: =A4+1 -> 563 | B5: =IF(C5="","",INDEX(downloadmatch!$A:$B,$A5,B$2)) -> 31.10.20 Haverfordwest - Bala Town | C5: =IF(C4="","",IF(INDEX(downloadmatch!$A:$B,$A5,C$2)=0,"",INDEX(downloadmatch!$A:$B,$A5,C$2))) -> D 1:1 (0:0) | E5: 31.10.20 | F5: Haverfordwest - Bala Town | G5: D | H5: 1:1 (0:0) | I5: 1:1 | J5: 0:0 | M5: 2020 | N5: =IF(M5="","",IF(M5>=settodownload!$C$5,"OK","")) -> OK | O5: Haverfordwest | P5: Bala Town | Q5: 0 | R5: 0 | S5: 1 | T5: 1 | U5: 1 | V5: 1 | W5: 0 | X5: 0 | Y5: 1 | Z5: 1 | AA5: 1 | AB5: 1 | AE5: ok | AF5: ok | AG5: ok | AH5: ok | AI5: 3 | AJ5: D | AK5: D | AL5: D | AO5: OK | AP5: OK | AQ5: OK | AU5: OK
A6: 564 | B6: =IF(C6="","",INDEX(downloadmatch!$A:$B,$A6,B$2)) -> 20.10.20 Flint Town Utd - Bala Town | C6: =IF(C5="","",IF(INDEX(downloadmatch!$A:$B,$A6,C$2)=0,"",INDEX(downloadmatch!$A:$B,$A6,C$2))) -> W 1:2 (1:1) | E6: 20.10.20 | F6: Flint Town Utd - Bala Town | G6: W | H6: 1:2 (1:1) | I6: 1:2 | J6: 1:1 | M6: 2020 | N6: =IF(M6="","",IF(M6>=settodownload!$C$5,"OK","")) -> OK | O6: Flint Town Utd | P6: Bala Town | Q6: 1 | R6: 1 | S6: 0 | T6: 1 | U6: 1 | V6: 2 | W6: 1 | X6: 1 | Y6: 1 | Z6: 0 | AA6: 2 | AB6: 1 | AC6: ok | AD6: ok | AE6: ok | AG6: ok | AH6: ok | AI6: 4 | AJ6: D | AK6: W | AL6: W | AM6: OK | AN6: OK | AO6: OK | AQ6: OK | AR6: OK
A7: 565 | B7: =IF(C7="","",INDEX(downloadmatch!$A:$B,$A7,B$2)) -> 17.10.20 Newtown - Bala Town | C7: =IF(C6="","",IF(INDEX(downloadmatch!$A:$B,$A7,C$2)=0,"",INDEX(downloadmatch!$A:$B,$A7,C$2))) -> W 0:2 (0:1) | E7: 17.10.20 | F7: Newtown - Bala Town | G7: W | H7: 0:2 (0:1) | I7: 0:2 | J7: 0:1 | M7: 2020 | N7: =IF(M7="","",IF(M7>=settodownload!$C$5,"OK","")) -> OK | O7: Newtown | P7: Bala Town | Q7: 0 | R7: 1 | S7: 0 | T7: 1 | U7: 0 | V7: 2 | W7: 1 | X7: 0 | Y7: 1 | Z7: 0 | AA7: 2 | AB7: 0 | AC7: ok | AE7: ok | AG7: ok | AI7: 5 | AJ7: W | AK7: W | AL7: W | AM7: OK | AO7: OK | AQ7: OK | AT7: OK | AW7: =COUNTIF($AK:$AK,AW2) -> 5 | AX7: =COUNTIF($AK:$AK,AX2) -> 4 | AY7: 1
A8: 566 | B8: =IF(C8="","",INDEX(downloadmatch!$A:$B,$A8,B$2)) -> 14.10.20 Bala Town - Barry Town | C8: =IF(C7="","",IF(INDEX(downloadmatch!$A:$B,$A8,C$2)=0,"",INDEX(downloadmatch!$A:$B,$A8,C$2))) -> W 4:0 (3:0) | E8: 14.10.20 | F8: Bala Town - Barry Town | G8: W | H8: 4:0 (3:0) | I8: 4:0 | J8: 3:0 | M8: 2020 | N8: =IF(M8="","",IF(M8>=settodownload!$C$5,"OK","")) -> OK | O8: Bala Town | P8: Barry Town | Q8: 3 | R8: 0 | S8: 1 | T8: 0 | U8: 4 | V8: 0 | W8: 3 | X8: 0 | Y8: 1 | Z8: 0 | AA8: 4 | AB8: 0 | AC8: ok | AE8: ok | AG8: ok | AI8: 6 | AJ8: W | AK8: W | AL8: W | AM8: OK | AN8: OK | AO8: OK | AQ8: OK | AR8: OK | AS8: OK | AT8: OK | AW8: =AW7/$AI$99 -> 0.5 | AX8: =AX7/$AI$99 -> 0.4 | AY8: 0.1
A9: 567 | B9: =IF(C9="","",INDEX(downloadmatch!$A:$B,$A9,B$2)) -> 10.10.20 Bala Town - Aberystwyth | C9: =IF(C8="","",IF(INDEX(downloadmatch!$A:$B,$A9,C$2)=0,"",INDEX(downloadmatch!$A:$B,$A9,C$2))) -> W 5:2 (2:1) | E9: 10.10.20 | F9: Bala Town - Aberystwyth | G9: W | H9: 5:2 (2:1) | I9: 5:2 | J9: 2:1 | M9: 2020 | N9: =IF(M9="","",IF(M9>=settodownload!$C$5,"OK","")) -> OK | O9: Bala Town | P9: Aberystwyth | Q9: 2 | R9: 1 | S9: 3 | T9: 1 | U9: 5 | V9: 2 | W9: 2 | X9: 1 | Y9: 3 | Z9: 1 | AA9: 5 | AB9: 2 | AC9: ok | AD9: ok | AE9: ok | AF9: ok | AG9: ok | AH9: ok | AI9: 7 | AJ9: W | AK9: W | AL9: W | AM9: OK | AN9: OK | AO9: OK | AP9: OK | AQ9: OK | AR9: OK | AS9: OK | AT9: OK
A10: 568 | B10: =IF(C10="","",INDEX(downloadmatch!$A:$B,$A10,B$2)) -> 03.10.20 Bala Town - Haverfordwest | C10: =IF(C9="","",IF(INDEX(downloadmatch!$A:$B,$A10,C$2)=0,"",INDEX(downloadmatch!$A:$B,$A10,C$2))) -> L 1:2 (1:1) | E10: 03.10.20 | F10: Bala Town - Haverfordwest | G10: L | H10: 1:2 (1:1) | I10: 1:2 | J10: 1:1 | M10: 2020 | N10: =IF(M10="","",IF(M10>=settodownload!$C$5,"OK","")) -> OK | O10: Bala Town | P10: Haverfordwest | Q10: 1 | R10: 1 | S10: 0 | T10: 1 | U10: 1 | V10: 2 | W10: 1 | X10: 1 | Y10: 0 | Z10: 1 | AA10: 1 | AB10: 2 | AC10: ok | AD10: ok | AF10: ok | AG10: ok | AH10: ok | AI10: 8 | AJ10: D | AK10: l | AL10: l | AM10: OK | AN10: OK | AO10: OK | AQ10: OK | AR10: OK
A11: 569 | B11: =IF(C11="","",INDEX(downloadmatch!$A:$B,$A11,B$2)) -> 17.09.20 Standard - Bala Town | C11: =IF(C10="","",IF(INDEX(downloadmatch!$A:$B,$A11,C$2)=0,"",INDEX(downloadmatch!$A:$B,$A11,C$2))) -> L 2:0 (2:0) | E11: 17.09.20 | F11: Standard - Bala Town | G11: L | H11: 2:0 (2:0) | I11: 2:0 | J11: 2:0 | M11: 2020 | N11: =IF(M11="","",IF(M11>=settodownload!$C$5,"OK","")) -> OK | O11: Standard | P11: Bala Town | Q11: 2 | R11: 0 | S11: 0 | T11: 0 | U11: 2 | V11: 0 | W11: 0 | X11: 2 | Y11: 0 | Z11: 0 | AA11: 0 | AB11: 2 | AD11: ok | AH11: ok | AI11: 9 | AJ11: l | AK11: D | AL11: l | AM11: OK | AN11: OK | AQ11: OK | AW11: =COUNTIF($AL:$AL,AW2) -> 6 | AX11: =COUNTIF($AL:$AL,AX2) -> 2 | AY11: 2
A12: 570 | B12: =IF(C12="","",INDEX(downloadmatch!$A:$B,$A12,B$2)) -> 27.08.20 Valletta - Bala Town | C12: =IF(C11="","",IF(INDEX(downloadmatch!$A:$B,$A12,C$2)=0,"",INDEX(downloadmatch!$A:$B,$A12,C$2))) -> W 0:1 (0:1) | E12: 27.08.20 | F12: Valletta - Bala Town | G12: W | H12: 0:1 (0:1) | I12: 0:1 | J12: 0:1 | M12: 2020 | N12: =IF(M12="","",IF(M12>=settodownload!$C$5,"OK","")) -> OK | O12: Valletta | P12: Bala Town | Q12: 0 | R12: 1 | S12: 0 | T12: 0 | U12: 0 | V12: 1 | W12: 1 | X12: 0 | Y12: 0 | Z12: 0 | AA12: 1 | AB12: 0 | AC12: ok | AG12: ok | AI12: 10 | AJ12: W | AK12: D | AL12: W | AM12: OK | AW12: =AW11/$AI$99 -> 0.6 | AX12: =AX11/$AI$99 -> 0.2 | AY12: 0.2
A13: 571 | B13: =IF(C13="","",INDEX(downloadmatch!$A:$B,$A13,B$2)) -> 05.07.18 Bala Town - Tre Fiori | C13: =IF(C12="","",IF(INDEX(downloadmatch!$A:$B,$A13,C$2)=0,"",INDEX(downloadmatch!$A:$B,$A13,C$2))) -> W 1:0 (0:0) | E13: 05.07.18 | F13: Bala Town - Tre Fiori | G13: W | H13: 1:0 (0:0) | I13: 1:0 | J13: 0:0 | M13: 2018 | N13: =IF(M13="","",IF(M13>=settodownload!$C$5,"OK","")) ->  | AI13: 10
A14: 572 | B14: =IF(C14="","",INDEX(downloadmatch!$A:$B,$A14,B$2)) -> 28.06.18 Tre Fiori - Bala Town | C14: =IF(C13="","",IF(INDEX(downloadmatch!$A:$B,$A14,C$2)=0,"",INDEX(downloadmatch!$A:$B,$A14,C$2))) -> L 3:0 (3:0) | E14: 28.06.18 | F14: Tre Fiori - Bala Town | G14: L | H14: 3:0 (3:0) | I14: 3:0 | J14: 3:0 | M14: 2018 | N14: =IF(M14="","",IF(M14>=settodownload!$C$5,"OK","")) ->  | AI14: 10
A15: 573 | B15: =IF(C15="","",INDEX(downloadmatch!$A:$B,$A15,B$2)) -> 06.07.17 Vaduz - Bala Town | C15: =IF(C14="","",IF(INDEX(downloadmatch!$A:$B,$A15,C$2)=0,"",INDEX(downloadmatch!$A:$B,$A15,C$2))) -> L 3:0 (3:0) | E15: 06.07.17 | F15: Vaduz - Bala Town | G15: L | H15: 3:0 (3:0) | I15: 3:0 | J15: 3:0 | M15: 2017 | N15: =IF(M15="","",IF(M15>=settodownload!$C$5,"OK","")) ->  | AI15: 10
A16: 574 | B16: =IF(C16="","",INDEX(downloadmatch!$A:$B,$A16,B$2)) -> 29.06.17 Bala Town - Vaduz | C16: =IF(C15="","",IF(INDEX(downloadmatch!$A:$B,$A16,C$2)=0,"",INDEX(downloadmatch!$A:$B,$A16,C$2))) -> L 1:2 (0:2) | E16: 29.06.17 | F16: Bala Town - Vaduz | G16: L | H16: 1:2 (0:2) | I16: 1:2 | J16: 0:2 | M16: 2017 | N16: =IF(M16="","",IF(M16>=settodownload!$C$5,"OK","")) ->  | AI16: 10
A17: 575 | B17: =IF(C17="","",INDEX(downloadmatch!$A:$B,$A17,B$2)) -> 07.07.16 Bala Town - AIK | C17: =IF(C16="","",IF(INDEX(downloadmatch!$A:$B,$A17,C$2)=0,"",INDEX(downloadmatch!$A:$B,$A17,C$2))) -> L 0:2 (0:2) | E17: 07.07.16 | F17: Bala Town - AIK | G17: L | H17: 0:2 (0:2) | I17: 0:2 | J17: 0:2 | M17: 2016 | N17: =IF(M17="","",IF(M17>=settodownload!$C$5,"OK","")) ->  | AI17: 10
A18: 576 | B18: =IF(C18="","",INDEX(downloadmatch!$A:$B,$A18,B$2)) -> 30.06.16 AIK - Bala Town | C18: =IF(C17="","",IF(INDEX(downloadmatch!$A:$B,$A18,C$2)=0,"",INDEX(downloadmatch!$A:$B,$A18,C$2))) -> L 2:0 (1:0) | E18: 30.06.16 | F18: AIK - Bala Town | G18: L | H18: 2:0 (1:0) | I18: 2:0 | J18: 1:0 | M18: 2016 | N18: =IF(M18="","",IF(M18>=settodownload!$C$5,"OK","")) ->  | AI18: 10
A19: 577 | B19: =IF(C19="","",INDEX(downloadmatch!$A:$B,$A19,B$2)) ->  | C19: =IF(C18="","",IF(INDEX(downloadmatch!$A:$B,$A19,C$2)=0,"",INDEX(downloadmatch!$A:$B,$A19,C$2))) ->  | N19: =IF(M19="","",IF(M19>=settodownload!$C$5,"OK","")) ->  | AI19: 10
A20: 578 | B20: =IF(C20="","",INDEX(downloadmatch!$A:$B,$A20,B$2)) ->  | C20: =IF(C19="","",IF(INDEX(downloadmatch!$A:$B,$A20,C$2)=0,"",INDEX(downloadmatch!$A:$B,$A20,C$2))) ->  | N20: =IF(M20="","",IF(M20>=settodownload!$C$5,"OK","")) ->  | S20: =IF(R20="","",U20-Q20) ->  | AI20: 10
A21: 579 | B21: =IF(C21="","",INDEX(downloadmatch!$A:$B,$A21,B$2)) ->  | C21: =IF(C20="","",IF(INDEX(downloadmatch!$A:$B,$A21,C$2)=0,"",INDEX(downloadmatch!$A:$B,$A21,C$2))) ->  | N21: =IF(M21="","",IF(M21>=settodownload!$C$5,"OK","")) ->  | AI21: 10
A22: 580 | B22: =IF(C22="","",INDEX(downloadmatch!$A:$B,$A22,B$2)) ->  | C22: =IF(C21="","",IF(INDEX(downloadmatch!$A:$B,$A22,C$2)=0,"",INDEX(downloadmatch!$A:$B,$A22,C$2))) ->  | N22: =IF(M22="","",IF(M22>=settodownload!$C$5,"OK","")) ->  | AI22: 10
A23: 581 | B23: =IF(C23="","",INDEX(downloadmatch!$A:$B,$A23,B$2)) ->  | C23: =IF(C22="","",IF(INDEX(downloadmatch!$A:$B,$A23,C$2)=0,"",INDEX(downloadmatch!$A:$B,$A23,C$2))) ->  | N23: =IF(M23="","",IF(M23>=settodownload!$C$5,"OK","")) ->  | AI23: 10
A24: 582 | B24: =IF(C24="","",INDEX(downloadmatch!$A:$B,$A24,B$2)) ->  | C24: =IF(C23="","",IF(INDEX(downloadmatch!$A:$B,$A24,C$2)=0,"",INDEX(downloadmatch!$A:$B,$A24,C$2))) ->  | N24: =IF(M24="","",IF(M24>=settodownload!$C$5,"OK","")) ->  | AI24: 10
A25: 583 | B25: =IF(C25="","",INDEX(downloadmatch!$A:$B,$A25,B$2)) ->  | C25: =IF(C24="","",IF(INDEX(downloadmatch!$A:$B,$A25,C$2)=0,"",INDEX(downloadmatch!$A:$B,$A25,C$2))) ->  | J25: =IF(F25="","",SUBSTITUTE(SUBSTITUTE(MID(C25,SEARCH(" ",H25)+3,100),"(",""),")","")) ->  | K25: =IFERROR(MID(J25,SEARCH("AET",J25)+4,100),"") ->  | L25: =IFERROR(LEFT(J25,SEARCH("AET",J25)-2),"") ->  | N25: =IF(M25="","",IF(M25>=settodownload!$C$5,"OK","")) ->  | AI25: 10
A26: 584 | B26: =IF(C26="","",INDEX(downloadmatch!$A:$B,$A26,B$2)) ->  | C26: =IF(C25="","",IF(INDEX(downloadmatch!$A:$B,$A26,C$2)=0,"",INDEX(downloadmatch!$A:$B,$A26,C$2))) ->  | K26: =IFERROR(MID(J26,SEARCH("AET",J26)+4,100),"") ->  | L26: =IFERROR(LEFT(J26,SEARCH("AET",J26)-2),"") ->  | N26: =IF(M26="","",IF(M26>=settodownload!$C$5,"OK","")) ->  | AI26: 10
A27: =A26+1 -> 585 | B27: =IF(C27="","",INDEX(downloadmatch!$A:$B,$A27,B$2)) ->  | C27: =IF(C26="","",IF(INDEX(downloadmatch!$A:$B,$A27,C$2)=0,"",INDEX(downloadmatch!$A:$B,$A27,C$2))) ->  | E27: =IF(B27="","",LEFT(B27,SEARCH(" ",B27)-1)) ->  | F27: =IF(E27="","",MID(B27,SEARCH(" ",B27)+1,100)) ->  | G27: =IF(F27="","",LEFT(C27,SEARCH(" ",C27)-1)) ->  | H27: =IF(G27="","",MID(C27,SEARCH(" ",C27)+1,100)) ->  | I27: =IF(H27="","",IF(K27="",LEFT(H27,SEARCH(" ",H27)-1),K27)) ->  | J27: =IF(F27="","",SUBSTITUTE(SUBSTITUTE(MID(C27,SEARCH(" ",H27)+3,100),"(",""),")","")) ->  | L27: =IFERROR(LEFT(J27,SEARCH("AET",J27)-2),"") ->  | M27: =IF(F27="","",fmt(E27,"YYYY")*1) ->  | N27: =IF(M27="","",IF(M27>=settodownload!$C$5,"OK","")) ->  | O27: =IF(N27="","",LEFT(F27,SEARCH(" - ",F27)-1)) ->  | P27: =IF(O27="","",MID(F27,SEARCH(" - ",F27)+3,100)) ->  | Q27: =IFERROR(IF(P27="","",LEFT(J27,SEARCH(":",J27)-1)*1),IF(L27="","",LEFT(L27,SEARCH(":",L27)-1)*1)) ->  | R27: =IFERROR(IF(Q27="","",MID(J27,SEARCH(":",J27)+1,100)*1),IF(L27="","",MID(L27,SEARCH(":",L27)+1,100)*1)) ->  | S27: =IF(R27="","",U27-Q27) ->  | T27: =IF(S27="","",V27-R27) ->  | U27: =IF(N27="","",LEFT(I27,SEARCH(":",I27)-1)*1) ->  | V27: =IF(U27="","",MID(I27,SEARCH(":",I27)+1,100)*1) ->  | W27: =IF($O$2=O27,Q27,R27) ->  | X27: =IF($O$2=P27,Q27,R27) ->  | Y27: =IF($O$2=O27,S27,T27) ->  | Z27: =IF($O$2=P27,S27,T27) ->  | AA27: =IF($O$2=O27,U27,V27) ->  | AB27: =IF($O$2=P27,U27,V27) ->  | AI27: 10
A28: 586 | B28: =IF(C28="","",INDEX(downloadmatch!$A:$B,$A28,B$2)) ->  | C28: =IF(C27="","",IF(INDEX(downloadmatch!$A:$B,$A28,C$2)=0,"",INDEX(downloadmatch!$A:$B,$A28,C$2))) ->  | N28: =IF(M28="","",IF(M28>=settodownload!$C$5,"OK","")) ->  | AI28: 10
A29: 587 | B29: =IF(C29="","",INDEX(downloadmatch!$A:$B,$A29,B$2)) ->  | C29: =IF(C28="","",IF(INDEX(downloadmatch!$A:$B,$A29,C$2)=0,"",INDEX(downloadmatch!$A:$B,$A29,C$2))) ->  | N29: =IF(M29="","",IF(M29>=settodownload!$C$5,"OK","")) ->  | AI29: 10
A30: 588 | B30: =IF(C30="","",INDEX(downloadmatch!$A:$B,$A30,B$2)) ->  | C30: =IF(C29="","",IF(INDEX(downloadmatch!$A:$B,$A30,C$2)=0,"",INDEX(downloadmatch!$A:$B,$A30,C$2))) ->  | N30: =IF(M30="","",IF(M30>=settodownload!$C$5,"OK","")) ->  | AI30: 10
A31: 589 | B31: =IF(C31="","",INDEX(downloadmatch!$A:$B,$A31,B$2)) ->  | C31: =IF(C30="","",IF(INDEX(downloadmatch!$A:$B,$A31,C$2)=0,"",INDEX(downloadmatch!$A:$B,$A31,C$2))) ->  | N31: =IF(M31="","",IF(M31>=settodownload!$C$5,"OK","")) ->  | AI31: 10
A32: 590 | B32: =IF(C32="","",INDEX(downloadmatch!$A:$B,$A32,B$2)) ->  | C32: =IF(C31="","",IF(INDEX(downloadmatch!$A:$B,$A32,C$2)=0,"",INDEX(downloadmatch!$A:$B,$A32,C$2))) ->  | N32: =IF(M32="","",IF(M32>=settodownload!$C$5,"OK","")) ->  | AI32: 10
A33: 591 | B33: =IF(C33="","",INDEX(downloadmatch!$A:$B,$A33,B$2)) ->  | C33: =IF(C32="","",IF(INDEX(downloadmatch!$A:$B,$A33,C$2)=0,"",INDEX(downloadmatch!$A:$B,$A33,C$2))) ->  | N33: =IF(M33="","",IF(M33>=settodownload!$C$5,"OK","")) ->  | AI33: 10
A34: 592 | B34: =IF(C34="","",INDEX(downloadmatch!$A:$B,$A34,B$2)) ->  | C34: =IF(C33="","",IF(INDEX(downloadmatch!$A:$B,$A34,C$2)=0,"",INDEX(downloadmatch!$A:$B,$A34,C$2))) ->  | N34: =IF(M34="","",IF(M34>=settodownload!$C$5,"OK","")) ->  | AI34: 10
A35: 593 | B35: =IF(C35="","",INDEX(downloadmatch!$A:$B,$A35,B$2)) ->  | C35: =IF(C34="","",IF(INDEX(downloadmatch!$A:$B,$A35,C$2)=0,"",INDEX(downloadmatch!$A:$B,$A35,C$2))) ->  | N35: =IF(M35="","",IF(M35>=settodownload!$C$5,"OK","")) ->  | AI35: 10
A36: 594 | B36: =IF(C36="","",INDEX(downloadmatch!$A:$B,$A36,B$2)) ->  | C36: =IF(C35="","",IF(INDEX(downloadmatch!$A:$B,$A36,C$2)=0,"",INDEX(downloadmatch!$A:$B,$A36,C$2))) ->  | N36: =IF(M36="","",IF(M36>=settodownload!$C$5,"OK","")) ->  | AI36: 10
A37: 595 | B37: =IF(C37="","",INDEX(downloadmatch!$A:$B,$A37,B$2)) ->  | C37: =IF(C36="","",IF(INDEX(downloadmatch!$A:$B,$A37,C$2)=0,"",INDEX(downloadmatch!$A:$B,$A37,C$2))) ->  | N37: =IF(M37="","",IF(M37>=settodownload!$C$5,"OK","")) ->  | AI37: 10
A38: 596 | B38: =IF(C38="","",INDEX(downloadmatch!$A:$B,$A38,B$2)) ->  | C38: =IF(C37="","",IF(INDEX(downloadmatch!$A:$B,$A38,C$2)=0,"",INDEX(downloadmatch!$A:$B,$A38,C$2))) ->  | N38: =IF(M38="","",IF(M38>=settodownload!$C$5,"OK","")) ->  | AI38: 10
A39: 597 | B39: =IF(C39="","",INDEX(downloadmatch!$A:$B,$A39,B$2)) ->  | C39: =IF(C38="","",IF(INDEX(downloadmatch!$A:$B,$A39,C$2)=0,"",INDEX(downloadmatch!$A:$B,$A39,C$2))) ->  | N39: =IF(M39="","",IF(M39>=settodownload!$C$5,"OK","")) ->  | AI39: 10
A40: 598 | B40: =IF(C40="","",INDEX(downloadmatch!$A:$B,$A40,B$2)) ->  | C40: =IF(C39="","",IF(INDEX(downloadmatch!$A:$B,$A40,C$2)=0,"",INDEX(downloadmatch!$A:$B,$A40,C$2))) ->  | N40: =IF(M40="","",IF(M40>=settodownload!$C$5,"OK","")) ->  | AI40: 10
A41: 599 | B41: =IF(C41="","",INDEX(downloadmatch!$A:$B,$A41,B$2)) ->  | C41: =IF(C40="","",IF(INDEX(downloadmatch!$A:$B,$A41,C$2)=0,"",INDEX(downloadmatch!$A:$B,$A41,C$2))) ->  | N41: =IF(M41="","",IF(M41>=settodownload!$C$5,"OK","")) ->  | AI41: 10
A42: 600 | B42: =IF(C42="","",INDEX(downloadmatch!$A:$B,$A42,B$2)) ->  | C42: =IF(C41="","",IF(INDEX(downloadmatch!$A:$B,$A42,C$2)=0,"",INDEX(downloadmatch!$A:$B,$A42,C$2))) ->  | N42: =IF(M42="","",IF(M42>=settodownload!$C$5,"OK","")) ->  | AI42: 10
A43: 601 | B43: =IF(C43="","",INDEX(downloadmatch!$A:$B,$A43,B$2)) ->  | C43: =IF(C42="","",IF(INDEX(downloadmatch!$A:$B,$A43,C$2)=0,"",INDEX(downloadmatch!$A:$B,$A43,C$2))) ->  | N43: =IF(M43="","",IF(M43>=settodownload!$C$5,"OK","")) ->  | AI43: 10
A44: 602 | B44: =IF(C44="","",INDEX(downloadmatch!$A:$B,$A44,B$2)) ->  | C44: =IF(C43="","",IF(INDEX(downloadmatch!$A:$B,$A44,C$2)=0,"",INDEX(downloadmatch!$A:$B,$A44,C$2))) ->  | N44: =IF(M44="","",IF(M44>=settodownload!$C$5,"OK","")) ->  | AI44: 10
A45: 603 | B45: =IF(C45="","",INDEX(downloadmatch!$A:$B,$A45,B$2)) ->  | C45: =IF(C44="","",IF(INDEX(downloadmatch!$A:$B,$A45,C$2)=0,"",INDEX(downloadmatch!$A:$B,$A45,C$2))) ->  | N45: =IF(M45="","",IF(M45>=settodownload!$C$5,"OK","")) ->  | AI45: 10
A46: 604 | B46: =IF(C46="","",INDEX(downloadmatch!$A:$B,$A46,B$2)) ->  | C46: =IF(C45="","",IF(INDEX(downloadmatch!$A:$B,$A46,C$2)=0,"",INDEX(downloadmatch!$A:$B,$A46,C$2))) ->  | N46: =IF(M46="","",IF(M46>=settodownload!$C$5,"OK","")) ->  | AI46: 10
A47: 605 | B47: =IF(C47="","",INDEX(downloadmatch!$A:$B,$A47,B$2)) ->  | C47: =IF(C46="","",IF(INDEX(downloadmatch!$A:$B,$A47,C$2)=0,"",INDEX(downloadmatch!$A:$B,$A47,C$2))) ->  | N47: =IF(M47="","",IF(M47>=settodownload!$C$5,"OK","")) ->  | AI47: 10
A48: 606 | B48: =IF(C48="","",INDEX(downloadmatch!$A:$B,$A48,B$2)) ->  | C48: =IF(C47="","",IF(INDEX(downloadmatch!$A:$B,$A48,C$2)=0,"",INDEX(downloadmatch!$A:$B,$A48,C$2))) ->  | N48: =IF(M48="","",IF(M48>=settodownload!$C$5,"OK","")) ->  | AI48: 10
A49: 607 | B49: =IF(C49="","",INDEX(downloadmatch!$A:$B,$A49,B$2)) ->  | C49: =IF(C48="","",IF(INDEX(downloadmatch!$A:$B,$A49,C$2)=0,"",INDEX(downloadmatch!$A:$B,$A49,C$2))) ->  | N49: =IF(M49="","",IF(M49>=settodownload!$C$5,"OK","")) ->  | AI49: 10
A50: 608 | B50: =IF(C50="","",INDEX(downloadmatch!$A:$B,$A50,B$2)) ->  | C50: =IF(C49="","",IF(INDEX(downloadmatch!$A:$B,$A50,C$2)=0,"",INDEX(downloadmatch!$A:$B,$A50,C$2))) ->  | N50: =IF(M50="","",IF(M50>=settodownload!$C$5,"OK","")) ->  | AI50: 10
A51: 609 | B51: =IF(C51="","",INDEX(downloadmatch!$A:$B,$A51,B$2)) ->  | C51: =IF(C50="","",IF(INDEX(downloadmatch!$A:$B,$A51,C$2)=0,"",INDEX(downloadmatch!$A:$B,$A51,C$2))) ->  | N51: =IF(M51="","",IF(M51>=settodownload!$C$5,"OK","")) ->  | AI51: 10
A52: 610 | B52: =IF(C52="","",INDEX(downloadmatch!$A:$B,$A52,B$2)) ->  | C52: =IF(C51="","",IF(INDEX(downloadmatch!$A:$B,$A52,C$2)=0,"",INDEX(downloadmatch!$A:$B,$A52,C$2))) ->  | N52: =IF(M52="","",IF(M52>=settodownload!$C$5,"OK","")) ->  | AI52: 10
A53: 611 | B53: =IF(C53="","",INDEX(downloadmatch!$A:$B,$A53,B$2)) ->  | C53: =IF(C52="","",IF(INDEX(downloadmatch!$A:$B,$A53,C$2)=0,"",INDEX(downloadmatch!$A:$B,$A53,C$2))) ->  | N53: =IF(M53="","",IF(M53>=settodownload!$C$5,"OK","")) ->  | AI53: 10
A54: 612 | B54: =IF(C54="","",INDEX(downloadmatch!$A:$B,$A54,B$2)) ->  | C54: =IF(C53="","",IF(INDEX(downloadmatch!$A:$B,$A54,C$2)=0,"",INDEX(downloadmatch!$A:$B,$A54,C$2))) ->  | N54: =IF(M54="","",IF(M54>=settodownload!$C$5,"OK","")) ->  | AI54: 10
A55: 613 | B55: =IF(C55="","",INDEX(downloadmatch!$A:$B,$A55,B$2)) ->  | C55: =IF(C54="","",IF(INDEX(downloadmatch!$A:$B,$A55,C$2)=0,"",INDEX(downloadmatch!$A:$B,$A55,C$2))) ->  | N55: =IF(M55="","",IF(M55>=settodownload!$C$5,"OK","")) ->  | AI55: 10
A56: 614 | B56: =IF(C56="","",INDEX(downloadmatch!$A:$B,$A56,B$2)) ->  | C56: =IF(C55="","",IF(INDEX(downloadmatch!$A:$B,$A56,C$2)=0,"",INDEX(downloadmatch!$A:$B,$A56,C$2))) ->  | N56: =IF(M56="","",IF(M56>=settodownload!$C$5,"OK","")) ->  | AI56: 10
A57: 615 | B57: =IF(C57="","",INDEX(downloadmatch!$A:$B,$A57,B$2)) ->  | C57: =IF(C56="","",IF(INDEX(downloadmatch!$A:$B,$A57,C$2)=0,"",INDEX(downloadmatch!$A:$B,$A57,C$2))) ->  | N57: =IF(M57="","",IF(M57>=settodownload!$C$5,"OK","")) ->  | AI57: 10
A58: 616 | B58: =IF(C58="","",INDEX(downloadmatch!$A:$B,$A58,B$2)) ->  | C58: =IF(C57="","",IF(INDEX(downloadmatch!$A:$B,$A58,C$2)=0,"",INDEX(downloadmatch!$A:$B,$A58,C$2))) ->  | N58: =IF(M58="","",IF(M58>=settodownload!$C$5,"OK","")) ->  | AI58: 10
A59: 617 | B59: =IF(C59="","",INDEX(downloadmatch!$A:$B,$A59,B$2)) ->  | C59: =IF(C58="","",IF(INDEX(downloadmatch!$A:$B,$A59,C$2)=0,"",INDEX(downloadmatch!$A:$B,$A59,C$2))) ->  | N59: =IF(M59="","",IF(M59>=settodownload!$C$5,"OK","")) ->  | AC59: =IF(W59="","",IF(W59>0,"ok","")) ->  | AI59: 10
A60: 618 | B60: =IF(C60="","",INDEX(downloadmatch!$A:$B,$A60,B$2)) ->  | C60: =IF(C59="","",IF(INDEX(downloadmatch!$A:$B,$A60,C$2)=0,"",INDEX(downloadmatch!$A:$B,$A60,C$2))) ->  | N60: =IF(M60="","",IF(M60>=settodownload!$C$5,"OK","")) ->  | AI60: 10
A61: 619 | B61: =IF(C61="","",INDEX(downloadmatch!$A:$B,$A61,B$2)) ->  | C61: =IF(C60="","",IF(INDEX(downloadmatch!$A:$B,$A61,C$2)=0,"",INDEX(downloadmatch!$A:$B,$A61,C$2))) ->  | N61: =IF(M61="","",IF(M61>=settodownload!$C$5,"OK","")) ->  | AI61: 10
A62: 620 | B62: =IF(C62="","",INDEX(downloadmatch!$A:$B,$A62,B$2)) ->  | C62: =IF(C61="","",IF(INDEX(downloadmatch!$A:$B,$A62,C$2)=0,"",INDEX(downloadmatch!$A:$B,$A62,C$2))) ->  | N62: =IF(M62="","",IF(M62>=settodownload!$C$5,"OK","")) ->  | AI62: 10
A63: 621 | B63: =IF(C63="","",INDEX(downloadmatch!$A:$B,$A63,B$2)) ->  | C63: =IF(C62="","",IF(INDEX(downloadmatch!$A:$B,$A63,C$2)=0,"",INDEX(downloadmatch!$A:$B,$A63,C$2))) ->  | N63: =IF(M63="","",IF(M63>=settodownload!$C$5,"OK","")) ->  | AI63: 10
A64: 622 | B64: =IF(C64="","",INDEX(downloadmatch!$A:$B,$A64,B$2)) ->  | C64: =IF(C63="","",IF(INDEX(downloadmatch!$A:$B,$A64,C$2)=0,"",INDEX(downloadmatch!$A:$B,$A64,C$2))) ->  | N64: =IF(M64="","",IF(M64>=settodownload!$C$5,"OK","")) ->  | AI64: 10
A65: 623 | B65: =IF(C65="","",INDEX(downloadmatch!$A:$B,$A65,B$2)) ->  | C65: =IF(C64="","",IF(INDEX(downloadmatch!$A:$B,$A65,C$2)=0,"",INDEX(downloadmatch!$A:$B,$A65,C$2))) ->  | N65: =IF(M65="","",IF(M65>=settodownload!$C$5,"OK","")) ->  | AI65: 10
A66: 624 | B66: =IF(C66="","",INDEX(downloadmatch!$A:$B,$A66,B$2)) ->  | C66: =IF(C65="","",IF(INDEX(downloadmatch!$A:$B,$A66,C$2)=0,"",INDEX(downloadmatch!$A:$B,$A66,C$2))) ->  | N66: =IF(M66="","",IF(M66>=settodownload!$C$5,"OK","")) ->  | AI66: 10
A67: 625 | B67: =IF(C67="","",INDEX(downloadmatch!$A:$B,$A67,B$2)) ->  | C67: =IF(C66="","",IF(INDEX(downloadmatch!$A:$B,$A67,C$2)=0,"",INDEX(downloadmatch!$A:$B,$A67,C$2))) ->  | N67: =IF(M67="","",IF(M67>=settodownload!$C$5,"OK","")) ->  | AI67: 10
A68: 626 | B68: =IF(C68="","",INDEX(downloadmatch!$A:$B,$A68,B$2)) ->  | C68: =IF(C67="","",IF(INDEX(downloadmatch!$A:$B,$A68,C$2)=0,"",INDEX(downloadmatch!$A:$B,$A68,C$2))) ->  | N68: =IF(M68="","",IF(M68>=settodownload!$C$5,"OK","")) ->  | AI68: =IF(W68="",AI67,AI67+1) -> 10 | AJ68: =IF(W68="","",IF(W68>X68,"W",IF(W68=X68,"D",IF(W68<X68,"l","")))) ->  | AK68: =IF(Y68="","",IF(Y68>Z68,"W",IF(Y68=Z68,"D",IF(Y68<Z68,"l","")))) ->  | AL68: =IF(AA68="","",IF(AA68>AB68,"W",IF(AA68=AB68,"D",IF(AA68<AB68,"l","")))) ->  | AM68: =IF(AL68="","",IF((W68+X68)>0.5,"OK","")) ->  | AN68: =IF(AM68="","",IF((W68+X68)>1,"OK","")) ->  | AO68: =IF(AL68="","",IF((Y68+Z68)>0.5,"OK","")) ->  | AP68: =IF(AL68="","",IF((Y68+Z68)>1,"OK","")) ->  | AQ68: =IF(AL68="","",IF((AA68+AB68)>1,"OK","")) ->  | AR68: =IF(AL68="","",IF((AA68+AB68)>2,"OK","")) ->  | AS68: =IF(AL68="","",IF((AA68+AB68)>3,"OK","")) ->  | AT68: =IF(AL68="","",IF(AND(AJ68="W",AK68="W"),"OK","")) ->  | AU68: =IF(AL68="","",IF(AND(AJ68="D",AK68="D"),"OK","")) ->  | AV68: =IF(AL68="","",IF(AND(AJ68="L",AK68="L"),"OK","")) -> 
A69: 627 | B69: =IF(C69="","",INDEX(downloadmatch!$A:$B,$A69,B$2)) ->  | C69: =IF(C68="","",IF(INDEX(downloadmatch!$A:$B,$A69,C$2)=0,"",INDEX(downloadmatch!$A:$B,$A69,C$2))) ->  | N69: =IF(M69="","",IF(M69>=settodownload!$C$5,"OK","")) ->  | AI69: 10
A70: 628 | B70: =IF(C70="","",INDEX(downloadmatch!$A:$B,$A70,B$2)) ->  | C70: =IF(C69="","",IF(INDEX(downloadmatch!$A:$B,$A70,C$2)=0,"",INDEX(downloadmatch!$A:$B,$A70,C$2))) ->  | N70: =IF(M70="","",IF(M70>=settodownload!$C$5,"OK","")) ->  | AI70: 10
A71: 629 | B71: =IF(C71="","",INDEX(downloadmatch!$A:$B,$A71,B$2)) ->  | C71: =IF(C70="","",IF(INDEX(downloadmatch!$A:$B,$A71,C$2)=0,"",INDEX(downloadmatch!$A:$B,$A71,C$2))) ->  | N71: =IF(M71="","",IF(M71>=settodownload!$C$5,"OK","")) ->  | AI71: 10
A72: 630 | B72: =IF(C72="","",INDEX(downloadmatch!$A:$B,$A72,B$2)) ->  | C72: =IF(C71="","",IF(INDEX(downloadmatch!$A:$B,$A72,C$2)=0,"",INDEX(downloadmatch!$A:$B,$A72,C$2))) ->  | N72: =IF(M72="","",IF(M72>=settodownload!$C$5,"OK","")) ->  | AI72: 10
A73: 631 | B73: =IF(C73="","",INDEX(downloadmatch!$A:$B,$A73,B$2)) ->  | C73: =IF(C72="","",IF(INDEX(downloadmatch!$A:$B,$A73,C$2)=0,"",INDEX(downloadmatch!$A:$B,$A73,C$2))) ->  | N73: =IF(M73="","",IF(M73>=settodownload!$C$5,"OK","")) ->  | AI73: 10
A74: 632 | B74: =IF(C74="","",INDEX(downloadmatch!$A:$B,$A74,B$2)) ->  | C74: =IF(C73="","",IF(INDEX(downloadmatch!$A:$B,$A74,C$2)=0,"",INDEX(downloadmatch!$A:$B,$A74,C$2))) ->  | N74: =IF(M74="","",IF(M74>=settodownload!$C$5,"OK","")) ->  | AI74: 10
A75: 633 | B75: =IF(C75="","",INDEX(downloadmatch!$A:$B,$A75,B$2)) ->  | C75: =IF(C74="","",IF(INDEX(downloadmatch!$A:$B,$A75,C$2)=0,"",INDEX(downloadmatch!$A:$B,$A75,C$2))) ->  | N75: =IF(M75="","",IF(M75>=settodownload!$C$5,"OK","")) ->  | AI75: 10
A76: 634 | B76: =IF(C76="","",INDEX(downloadmatch!$A:$B,$A76,B$2)) ->  | C76: =IF(C75="","",IF(INDEX(downloadmatch!$A:$B,$A76,C$2)=0,"",INDEX(downloadmatch!$A:$B,$A76,C$2))) ->  | N76: =IF(M76="","",IF(M76>=settodownload!$C$5,"OK","")) ->  | AI76: 10
A77: 635 | B77: =IF(C77="","",INDEX(downloadmatch!$A:$B,$A77,B$2)) ->  | C77: =IF(C76="","",IF(INDEX(downloadmatch!$A:$B,$A77,C$2)=0,"",INDEX(downloadmatch!$A:$B,$A77,C$2))) ->  | N77: =IF(M77="","",IF(M77>=settodownload!$C$5,"OK","")) ->  | AI77: 10
A78: 636 | B78: =IF(C78="","",INDEX(downloadmatch!$A:$B,$A78,B$2)) ->  | C78: =IF(C77="","",IF(INDEX(downloadmatch!$A:$B,$A78,C$2)=0,"",INDEX(downloadmatch!$A:$B,$A78,C$2))) ->  | N78: =IF(M78="","",IF(M78>=settodownload!$C$5,"OK","")) ->  | AI78: 10
A79: 637 | B79: =IF(C79="","",INDEX(downloadmatch!$A:$B,$A79,B$2)) ->  | C79: =IF(C78="","",IF(INDEX(downloadmatch!$A:$B,$A79,C$2)=0,"",INDEX(downloadmatch!$A:$B,$A79,C$2))) ->  | N79: =IF(M79="","",IF(M79>=settodownload!$C$5,"OK","")) ->  | AI79: 10
A80: 638 | B80: =IF(C80="","",INDEX(downloadmatch!$A:$B,$A80,B$2)) ->  | C80: =IF(C79="","",IF(INDEX(downloadmatch!$A:$B,$A80,C$2)=0,"",INDEX(downloadmatch!$A:$B,$A80,C$2))) ->  | N80: =IF(M80="","",IF(M80>=settodownload!$C$5,"OK","")) ->  | AI80: 10
A81: 639 | B81: =IF(C81="","",INDEX(downloadmatch!$A:$B,$A81,B$2)) ->  | C81: =IF(C80="","",IF(INDEX(downloadmatch!$A:$B,$A81,C$2)=0,"",INDEX(downloadmatch!$A:$B,$A81,C$2))) ->  | N81: =IF(M81="","",IF(M81>=settodownload!$C$5,"OK","")) ->  | AI81: 10
A82: 640 | B82: =IF(C82="","",INDEX(downloadmatch!$A:$B,$A82,B$2)) ->  | C82: =IF(C81="","",IF(INDEX(downloadmatch!$A:$B,$A82,C$2)=0,"",INDEX(downloadmatch!$A:$B,$A82,C$2))) ->  | N82: =IF(M82="","",IF(M82>=settodownload!$C$5,"OK","")) ->  | AI82: 10
A83: 641 | B83: =IF(C83="","",INDEX(downloadmatch!$A:$B,$A83,B$2)) ->  | C83: =IF(C82="","",IF(INDEX(downloadmatch!$A:$B,$A83,C$2)=0,"",INDEX(downloadmatch!$A:$B,$A83,C$2))) ->  | N83: =IF(M83="","",IF(M83>=settodownload!$C$5,"OK","")) ->  | AI83: 10
A84: 642 | B84: =IF(C84="","",INDEX(downloadmatch!$A:$B,$A84,B$2)) ->  | C84: =IF(C83="","",IF(INDEX(downloadmatch!$A:$B,$A84,C$2)=0,"",INDEX(downloadmatch!$A:$B,$A84,C$2))) ->  | N84: =IF(M84="","",IF(M84>=settodownload!$C$5,"OK","")) ->  | AI84: 10
A85: 643 | B85: =IF(C85="","",INDEX(downloadmatch!$A:$B,$A85,B$2)) ->  | C85: =IF(C84="","",IF(INDEX(downloadmatch!$A:$B,$A85,C$2)=0,"",INDEX(downloadmatch!$A:$B,$A85,C$2))) ->  | N85: =IF(M85="","",IF(M85>=settodownload!$C$5,"OK","")) ->  | AI85: 10
A86: 644 | B86: =IF(C86="","",INDEX(downloadmatch!$A:$B,$A86,B$2)) ->  | C86: =IF(C85="","",IF(INDEX(downloadmatch!$A:$B,$A86,C$2)=0,"",INDEX(downloadmatch!$A:$B,$A86,C$2))) ->  | N86: =IF(M86="","",IF(M86>=settodownload!$C$5,"OK","")) ->  | AI86: 10
A87: 645 | B87: =IF(C87="","",INDEX(downloadmatch!$A:$B,$A87,B$2)) ->  | C87: =IF(C86="","",IF(INDEX(downloadmatch!$A:$B,$A87,C$2)=0,"",INDEX(downloadmatch!$A:$B,$A87,C$2))) ->  | N87: =IF(M87="","",IF(M87>=settodownload!$C$5,"OK","")) ->  | AI87: 10
A88: 646 | B88: =IF(C88="","",INDEX(downloadmatch!$A:$B,$A88,B$2)) ->  | C88: =IF(C87="","",IF(INDEX(downloadmatch!$A:$B,$A88,C$2)=0,"",INDEX(downloadmatch!$A:$B,$A88,C$2))) ->  | N88: =IF(M88="","",IF(M88>=settodownload!$C$5,"OK","")) ->  | AI88: 10
A89: 647 | B89: =IF(C89="","",INDEX(downloadmatch!$A:$B,$A89,B$2)) ->  | C89: =IF(C88="","",IF(INDEX(downloadmatch!$A:$B,$A89,C$2)=0,"",INDEX(downloadmatch!$A:$B,$A89,C$2))) ->  | N89: =IF(M89="","",IF(M89>=settodownload!$C$5,"OK","")) ->  | AI89: 10
A90: 648 | B90: =IF(C90="","",INDEX(downloadmatch!$A:$B,$A90,B$2)) ->  | C90: =IF(C89="","",IF(INDEX(downloadmatch!$A:$B,$A90,C$2)=0,"",INDEX(downloadmatch!$A:$B,$A90,C$2))) ->  | K90: =IFERROR(MID(J90,SEARCH("AET",J90)+4,100),"") ->  | N90: =IF(M90="","",IF(M90>=settodownload!$C$5,"OK","")) ->  | AI90: 10
A91: =A90+1 -> 649 | B91: =IF(C91="","",INDEX(downloadmatch!$A:$B,$A91,B$2)) ->  | C91: =IF(C90="","",IF(INDEX(downloadmatch!$A:$B,$A91,C$2)=0,"",INDEX(downloadmatch!$A:$B,$A91,C$2))) ->  | E91: =IF(B91="","",LEFT(B91,SEARCH(" ",B91)-1)) ->  | F91: =IF(E91="","",MID(B91,SEARCH(" ",B91)+1,100)) ->  | G91: =IF(F91="","",LEFT(C91,SEARCH(" ",C91)-1)) ->  | H91: =IF(G91="","",MID(C91,SEARCH(" ",C91)+1,100)) ->  | I91: =IF(H91="","",IF(K91="",LEFT(H91,SEARCH(" ",H91)-1),K91)) ->  | J91: =IF(F91="","",SUBSTITUTE(SUBSTITUTE(MID(C91,SEARCH(" ",H91)+3,100),"(",""),")","")) ->  | L91: =IFERROR(LEFT(J91,SEARCH("AET",J91)-2),"") ->  | M91: =IF(F91="","",fmt(E91,"YYYY")*1) ->  | N91: =IF(M91="","",IF(M91>=settodownload!$C$5,"OK","")) ->  | O91: =IF(N91="","",LEFT(F91,SEARCH(" - ",F91)-1)) ->  | P91: =IF(O91="","",MID(F91,SEARCH(" - ",F91)+3,100)) ->  | Q91: =IFERROR(IF(P91="","",LEFT(J91,SEARCH(":",J91)-1)*1),IF(L91="","",LEFT(L91,SEARCH(":",L91)-1)*1)) ->  | R91: =IFERROR(IF(Q91="","",MID(J91,SEARCH(":",J91)+1,100)*1),IF(L91="","",MID(L91,SEARCH(":",L91)+1,100)*1)) ->  | S91: =IF(R91="","",U91-Q91) ->  | T91: =IF(S91="","",V91-R91) ->  | U91: =IF(N91="","",LEFT(I91,SEARCH(":",I91)-1)*1) ->  | V91: =IF(U91="","",MID(I91,SEARCH(":",I91)+1,100)*1) ->  | W91: =IF($O$2=O91,Q91,R91) ->  | X91: =IF($O$2=P91,Q91,R91) ->  | Y91: =IF($O$2=O91,S91,T91) ->  | Z91: =IF($O$2=P91,S91,T91) ->  | AA91: =IF($O$2=O91,U91,V91) ->  | AB91: =IF($O$2=P91,U91,V91) ->  | AI91: 10
A92: 650 | B92: =IF(C92="","",INDEX(downloadmatch!$A:$B,$A92,B$2)) ->  | C92: =IF(C91="","",IF(INDEX(downloadmatch!$A:$B,$A92,C$2)=0,"",INDEX(downloadmatch!$A:$B,$A92,C$2))) ->  | N92: =IF(M92="","",IF(M92>=settodownload!$C$5,"OK","")) ->  | AI92: 10
A93: 651 | B93: =IF(C93="","",INDEX(downloadmatch!$A:$B,$A93,B$2)) ->  | C93: =IF(C92="","",IF(INDEX(downloadmatch!$A:$B,$A93,C$2)=0,"",INDEX(downloadmatch!$A:$B,$A93,C$2))) ->  | N93: =IF(M93="","",IF(M93>=settodownload!$C$5,"OK","")) ->  | AI93: 10
A94: 652 | B94: =IF(C94="","",INDEX(downloadmatch!$A:$B,$A94,B$2)) ->  | C94: =IF(C93="","",IF(INDEX(downloadmatch!$A:$B,$A94,C$2)=0,"",INDEX(downloadmatch!$A:$B,$A94,C$2))) ->  | N94: =IF(M94="","",IF(M94>=settodownload!$C$5,"OK","")) ->  | AI94: 10
A95: 653 | B95: =IF(C95="","",INDEX(downloadmatch!$A:$B,$A95,B$2)) ->  | C95: =IF(C94="","",IF(INDEX(downloadmatch!$A:$B,$A95,C$2)=0,"",INDEX(downloadmatch!$A:$B,$A95,C$2))) ->  | N95: =IF(M95="","",IF(M95>=settodownload!$C$5,"OK","")) ->  | AI95: 10
A96: 654 | B96: =IF(C96="","",INDEX(downloadmatch!$A:$B,$A96,B$2)) ->  | C96: =IF(C95="","",IF(INDEX(downloadmatch!$A:$B,$A96,C$2)=0,"",INDEX(downloadmatch!$A:$B,$A96,C$2))) ->  | N96: =IF(M96="","",IF(M96>=settodownload!$C$5,"OK","")) ->  | AI96: 10
A97: 655 | B97: =IF(C97="","",INDEX(downloadmatch!$A:$B,$A97,B$2)) ->  | C97: =IF(C96="","",IF(INDEX(downloadmatch!$A:$B,$A97,C$2)=0,"",INDEX(downloadmatch!$A:$B,$A97,C$2))) ->  | N97: =IF(M97="","",IF(M97>=settodownload!$C$5,"OK","")) ->  | AI97: 10
A98: 656 | B98: =IF(C98="","",INDEX(downloadmatch!$A:$B,$A98,B$2)) ->  | C98: =IF(C97="","",IF(INDEX(downloadmatch!$A:$B,$A98,C$2)=0,"",INDEX(downloadmatch!$A:$B,$A98,C$2))) ->  | N98: =IF(M98="","",IF(M98>=settodownload!$C$5,"OK","")) ->  | AI98: 10
A99: 657 | B99: =IF(C99="","",INDEX(downloadmatch!$A:$B,$A99,B$2)) ->  | C99: =IF(C98="","",IF(INDEX(downloadmatch!$A:$B,$A99,C$2)=0,"",INDEX(downloadmatch!$A:$B,$A99,C$2))) ->  | N99: =IF(M99="","",IF(M99>=settodownload!$C$5,"OK","")) ->  | AI99: =IF(W99="",AI98,AI98+1) -> 10
A100: =A99+1 -> 658 | B100: =IF(C100="","",INDEX(downloadmatch!#REF!,$A100,B$2)) ->  | C100: =IF(C99="","",IF(INDEX(downloadmatch!#REF!,$A100,C$2)=0,"",INDEX(downloadmatch!#REF!,$A100,C$2))) ->  | J100: =IF(F100="","",SUBSTITUTE(SUBSTITUTE(MID(C100,SEARCH(" ",H100)+3,100),"(",""),")","")) ->  | M100: =IF(F100="","",fmt(E100,"YYYY")*1) ->  | N100: =IF(M100="","",IF(M100>=settodownload!$C$5,"OK","")) -> 

Sheet HEAD1 (hidden)
A1: =CONCATENATE(settodownload!E3,"- ",settodownload!F3,"- Head to heads") -> Aberystwyth - Bala Town - Head to heads | Q1: HT | S1: ST | U1: FT | W1: =Q1 -> HT | Y1: =S1 -> ST | AA1: =U1 -> FT | AC1: + | AD1: - | AE1: + | AF1: - | AG1: + | AH1: - | AM1: HT | AO1: ST | AQ1: FT | AT1: WINNER
A2: =MATCH(A1,downloadmatch!$A:$A,0) -> 577 | B2: 1 | C2: =B2+1 -> 2 | E2: DATE | F2: TEAMS | G2: REST | H2: FT - HT | I2: FT | J2: HT | O2: =HOME!O2 -> Aberystwyth | Q2: NOSORT | AC2: =COUNTIF(AC3:AC99,"ok")/$AI$99 -> 0.25 | AD2: =COUNTIF(AD3:AD99,"ok")/$AI$99 -> 0.5 | AE2: 0.75 | AF2: 1 | AG2: 0.75 | AH2: 1 | AM2: =COUNTIF(AM3:AM99,"OK")/$AI$99 -> 0.75 | AN2: =COUNTIF(AN3:AN99,"OK")/$AI$99 -> 0.5 | AO2: =COUNTIF(AO3:AO99,"OK")/$AI$99 -> 1 | AP2: 1 | AQ2: =COUNTIF(AQ3:AQ99,"OK")/$AI$99 -> 1 | AR2: =COUNTIF(AR3:AR99,"OK")/$AI$99 -> 1 | AS2: =COUNTIF(AS3:AS99,"OK")/$AI$99 -> 0.75 | AT2: =COUNTIF(AT3:AT99,"OK")/$AI$99 -> 0 | AU2: =COUNTIF(AU3:AU99,"OK")/$AI$99 -> 0 | AV2: 0.25 | AW2: W | AX2: D | AY2: L
A3: =A2+1 -> 578 | B3: =IF(C3="","",INDEX(downloadmatch!$A:$B,$A3,B$2)) -> 08.11.19 Aberystwyth - Bala Town | C3: =IF(C2="","",IF(INDEX(downloadmatch!$A:$B,$A3,C$2)=0,"",INDEX(downloadmatch!$A:$B,$A3,C$2))) -> L 0:5 (0:2) | E3: =IF(B3="","",LEFT(B3,SEARCH(" ",B3)-1)) -> 08.11.19 | F3: =IF(E3="","",MID(B3,SEARCH(" ",B3)+1,100)) -> Aberystwyth - Bala Town | G3: =IF(F3="","",LEFT(C3,SEARCH(" ",C3)-1)) -> L | H3: =IF(G3="","",MID(C3,SEARCH(" ",C3)+1,100)) -> 0:5 (0:2) | I3: =IF(H3="","",IF(K3="",LEFT(H3,SEARCH(" ",H3)-1),K3)) -> 0:5 | J3: =IF(F3="","",SUBSTITUTE(SUBSTITUTE(MID(C3,SEARCH(" ",H3)+3,100),"(",""),")","")) -> 0:2 | K3: =IFERROR(MID(J3,SEARCH("AET",J3)+4,100),"") ->  | L3: =IFERROR(LEFT(J3,SEARCH("AET",J3)-2),"") ->  | M3: =IF(F3="","",fmt(E3,"YYYY")*1) -> 2019 | N3: =IF(M3="","",IF(M3>=settodownload!$F$5,"OK","")) -> OK | O3: =IF(N3="","",LEFT(F3,SEARCH(" - ",F3)-1)) -> Aberystwyth | P3: =IF(O3="","",MID(F3,SEARCH(" - ",F3)+3,100)) -> Bala Town | Q3: =IFERROR(IF(P3="","",LEFT(J3,SEARCH(":",J3)-1)*1),IF(L3="","",LEFT(L3,SEARCH(":",L3)-1)*1)) -> 0 | R3: =IFERROR(IF(Q3="","",MID(J3,SEARCH(":",J3)+1,100)*1),IF(L3="","",MID(L3,SEARCH(":",L3)+1,100)*1)) -> 2 | S3: =IF(R3="","",U3-Q3) -> 0 | T3: =IF(S3="","",V3-R3) -> 3 | U3: =IF(N3="","",LEFT(I3,SEARCH(":",I3)-1)*1) -> 0 | V3: =IF(U3="","",MID(I3,SEARCH(":",I3)+1,100)*1) -> 5 | W3: =IF($O$2=O3,Q3,R3) -> 0 | X3: =IF($O$2=P3,Q3,R3) -> 2 | Y3: =IF($O$2=O3,S3,T3) -> 0 | Z3: =IF($O$2=P3,S3,T3) -> 3 | AA3: =IF($O$2=O3,U3,V3) -> 0 | AB3: =IF($O$2=P3,U3,V3) -> 5 | AC3: =IF(W3="","",IF(W3>0,"ok","")) ->  | AD3: =IF(X3="","",IF(X3>0,"ok","")) -> ok | AF3: ok | AH3: ok | AI3: =IF(W3="",AI2,AI2+1) -> 1 | AJ3: =IF(W3="","",IF(W3>X3,"W",IF(W3=X3,"D",IF(W3<X3,"l","")))) -> l | AK3: =IF(Y3="","",IF(Y3>Z3,"W",IF(Y3=Z3,"D",IF(Y3<Z3,"l","")))) -> l | AL3: =IF(AA3="","",IF(AA3>AB3,"W",IF(AA3=AB3,"D",IF(AA3<AB3,"l","")))) -> l | AM3: =IF(AL3="","",IF((W3+X3)>0.5,"OK","")) -> OK | AN3: =IF(AM3="","",IF((W3+X3)>1,"OK","")) -> OK | AO3: =IF(AL3="","",IF((Y3+Z3)>0.5,"OK","")) -> OK | AP3: =IF(AL3="","",IF((Y3+Z3)>1,"OK","")) -> OK | AQ3: =IF(AL3="","",IF((AA3+AB3)>1,"OK","")) -> OK | AR3: =IF(AL3="","",IF((AA3+AB3)>2,"OK","")) -> OK | AS3: =IF(AL3="","",IF((AA3+AB3)>3,"OK","")) -> OK | AT3: =IF(AL3="","",IF(AND(AJ3="W",AK3="W"),"OK","")) ->  | AU3: =IF(AL3="","",IF(AND(AJ3="D",AK3="D"),"OK","")) ->  | AV3: =IF(AL3="","",IF(AND(AJ3="L",AK3="L"),"OK","")) -> OK | AW3: =COUNTIF($AJ:$AJ,AW2) -> 1 | AX3: =COUNTIF($AJ:$AJ,AX2) -> 1 | AY3: 2
A4: =A3+1 -> 579 | B4: =IF(C4="","",INDEX(downloadmatch!$A:$B,$A4,B$2)) -> 15.09.18 Aberystwyth - Bala Town | C4: =IF(C3="","",IF(INDEX(downloadmatch!$A:$B,$A4,C$2)=0,"",INDEX(downloadmatch!$A:$B,$A4,C$2))) -> W 3:2 (1:0) | E4: =IF(B4="","",LEFT(B4,SEARCH(" ",B4)-1)) -> 15.09.18 | F4: =IF(E4="","",MID(B4,SEARCH(" ",B4)+1,100)) -> Aberystwyth - Bala Town | G4: =IF(F4="","",LEFT(C4,SEARCH(" ",C4)-1)) -> W | H4: =IF(G4="","",MID(C4,SEARCH(" ",C4)+1,100)) -> 3:2 (1:0) | I4: =IF(H4="","",IF(K4="",LEFT(H4,SEARCH(" ",H4)-1),K4)) -> 3:2 | J4: =IF(F4="","",SUBSTITUTE(SUBSTITUTE(MID(C4,SEARCH(" ",H4)+3,100),"(",""),")","")) -> 1:0 | M4: 2018 | N4: =IF(M4="","",IF(M4>=settodownload!$F$5,"OK","")) -> OK | O4: =IF(N4="","",LEFT(F4,SEARCH(" - ",F4)-1)) -> Aberystwyth | P4: =IF(O4="","",MID(F4,SEARCH(" - ",F4)+3,100)) -> Bala Town | Q4: 1 | R4: 0 | S4: =IF(R4="","",U4-Q4) -> 2 | T4: 2 | U4: =IF(N4="","",LEFT(I4,SEARCH(":",I4)-1)*1) -> 3 | V4: =IF(U4="","",MID(I4,SEARCH(":",I4)+1,100)*1) -> 2 | W4: =IF($O$2=O4,Q4,R4) -> 1 | X4: =IF($O$2=P4,Q4,R4) -> 0 | Y4: =IF($O$2=O4,S4,T4) -> 2 | Z4: =IF($O$2=P4,S4,T4) -> 2 | AA4: =IF($O$2=O4,U4,V4) -> 3 | AB4: =IF($O$2=P4,U4,V4) -> 2 | AC4: =IF(W4="","",IF(W4>0,"ok","")) -> ok | AE4: ok | AF4: ok | AG4: ok | AH4: ok | AI4: =IF(W4="",AI3,AI3+1) -> 2 | AJ4: =IF(W4="","",IF(W4>X4,"W",IF(W4=X4,"D",IF(W4<X4,"l","")))) -> W | AK4: =IF(Y4="","",IF(Y4>Z4,"W",IF(Y4=Z4,"D",IF(Y4<Z4,"l","")))) -> D | AL4: =IF(AA4="","",IF(AA4>AB4,"W",IF(AA4=AB4,"D",IF(AA4<AB4,"l","")))) -> W | AM4: =IF(AL4="","",IF((W4+X4)>0.5,"OK","")) -> OK | AN4: =IF(AM4="","",IF((W4+X4)>1,"OK","")) ->  | AO4: =IF(AL4="","",IF((Y4+Z4)>0.5,"OK","")) -> OK | AP4: =IF(AL4="","",IF((Y4+Z4)>1,"OK","")) -> OK | AQ4: =IF(AL4="","",IF((AA4+AB4)>1,"OK","")) -> OK | AR4: =IF(AL4="","",IF((AA4+AB4)>2,"OK","")) -> OK | AS4: =IF(AL4="","",IF((AA4+AB4)>3,"OK","")) -> OK | AT4: =IF(AL4="","",IF(AND(AJ4="W",AK4="W"),"OK","")) ->  | AU4: =IF(AL4="","",IF(AND(AJ4="D",AK4="D"),"OK","")) ->  | AV4: =IF(AL4="","",IF(AND(AJ4="L",AK4="L"),"OK","")) ->  | AW4: =AW3/$AI$99 -> 0.25 | AX4: =AX3/$AI$99 -> 0.25 | AY4: 0.5
A5: =A4+1 -> 580 | B5: =IF(C5="","",INDEX(downloadmatch!$A:$B,$A5,B$2)) -> 17.11.17 Aberystwyth - Bala Town | C5: =IF(C4="","",IF(INDEX(downloadmatch!$A:$B,$A5,C$2)=0,"",INDEX(downloadmatch!$A:$B,$A5,C$2))) -> L 1:2 (0:0) | E5: 17.11.17 | F5: Aberystwyth - Bala Town | G5: L | H5: 1:2 (0:0) | I5: 1:2 | J5: 0:0 | M5: 2017 | N5: =IF(M5="","",IF(M5>=settodownload!$F$5,"OK","")) -> OK | O5: Aberystwyth | P5: Bala Town | Q5: 0 | R5: 0 | S5: 1 | T5: 2 | U5: 1 | V5: 2 | W5: 0 | X5: 0 | Y5: 1 | Z5: 2 | AA5: 1 | AB5: 2 | AE5: ok | AF5: ok | AG5: ok | AH5: ok | AI5: 3 | AJ5: D | AK5: l | AL5: l | AO5: OK | AP5: OK | AQ5: OK | AR5: OK
A6: 581 | B6: =IF(C6="","",INDEX(downloadmatch!$A:$B,$A6,B$2)) -> 25.11.16 Aberystwyth - Bala Town | C6: =IF(C5="","",IF(INDEX(downloadmatch!$A:$B,$A6,C$2)=0,"",INDEX(downloadmatch!$A:$B,$A6,C$2))) -> L 1:3 (0:2) | E6: 25.11.16 | F6: Aberystwyth - Bala Town | G6: L | H6: 1:3 (0:2) | I6: 1:3 | J6: 0:2 | M6: 2016 | N6: =IF(M6="","",IF(M6>=settodownload!$F$5,"OK","")) -> OK | O6: Aberystwyth | P6: Bala Town | Q6: 0 | R6: 2 | S6: 1 | T6: 1 | U6: 1 | V6: 3 | W6: 0 | X6: 2 | Y6: 1 | Z6: 1 | AA6: 1 | AB6: 3 | AD6: ok | AE6: ok | AF6: ok | AG6: ok | AH6: ok | AI6: 4 | AJ6: l | AK6: D | AL6: l | AM6: OK | AN6: OK | AO6: OK | AP6: OK | AQ6: OK | AR6: OK | AS6: OK
A7: 582 | B7: =IF(C7="","",INDEX(downloadmatch!$A:$B,$A7,B$2)) -> 22.09.15 Aberystwyth - Bala Town | C7: =IF(C6="","",IF(INDEX(downloadmatch!$A:$B,$A7,C$2)=0,"",INDEX(downloadmatch!$A:$B,$A7,C$2))) -> D 1:1 (0:1) | E7: 22.09.15 | F7: Aberystwyth - Bala Town | G7: D | H7: 1:1 (0:1) | I7: 1:1 | J7: 0:1 | M7: 2015 | N7: =IF(M7="","",IF(M7>=settodownload!$F$5,"OK","")) ->  | AI7: 4 | AW7: =COUNTIF($AK:$AK,AW2) -> 0 | AX7: =COUNTIF($AK:$AK,AX2) -> 2 | AY7: 2
A8: 583 | B8: =IF(C8="","",INDEX(downloadmatch!$A:$B,$A8,B$2)) -> 17.04.15 Aberystwyth - Bala Town | C8: =IF(C7="","",IF(INDEX(downloadmatch!$A:$B,$A8,C$2)=0,"",INDEX(downloadmatch!$A:$B,$A8,C$2))) -> L 1:2 (1:0) | E8: 17.04.15 | F8: Aberystwyth - Bala Town | G8: L | H8: 1:2 (1:0) | I8: 1:2 | J8: 1:0 | M8: 2015 | N8: =IF(M8="","",IF(M8>=settodownload!$F$5,"OK","")) ->  | AI8: 4 | AW8: =AW7/$AI$99 -> 0 | AX8: =AX7/$AI$99 -> 0.5 | AY8: 0.5
A9: 584 | B9: =IF(C9="","",INDEX(downloadmatch!$A:$B,$A9,B$2)) -> 26.09.14 Aberystwyth - Bala Town | C9: =IF(C8="","",IF(INDEX(downloadmatch!$A:$B,$A9,C$2)=0,"",INDEX(downloadmatch!$A:$B,$A9,C$2))) -> W 4:0 (2:0) | E9: 26.09.14 | F9: Aberystwyth - Bala Town | G9: W | H9: 4:0 (2:0) | I9: 4:0 | J9: 2:0 | M9: 2014 | N9: =IF(M9="","",IF(M9>=settodownload!$F$5,"OK","")) ->  | AI9: 4
A10: 585 | B10: =IF(C10="","",INDEX(downloadmatch!$A:$B,$A10,B$2)) -> 11.04.14 Aberystwyth - Bala Town | C10: =IF(C9="","",IF(INDEX(downloadmatch!$A:$B,$A10,C$2)=0,"",INDEX(downloadmatch!$A:$B,$A10,C$2))) -> L 2:3 (1:1) | E10: 11.04.14 | F10: Aberystwyth - Bala Town | G10: L | H10: 2:3 (1:1) | I10: 2:3 | J10: 1:1 | M10: 2014 | N10: =IF(M10="","",IF(M10>=settodownload!$F$5,"OK","")) ->  | AI10: 4
A11: 586 | B11: =IF(C11="","",INDEX(downloadmatch!$A:$B,$A11,B$2)) ->  | C11: =IF(C10="","",IF(INDEX(downloadmatch!$A:$B,$A11,C$2)=0,"",INDEX(downloadmatch!$A:$B,$A11,C$2))) ->  | N11: =IF(M11="","",IF(M11>=settodownload!$F$5,"OK","")) ->  | AI11: 4 | AW11: =COUNTIF($AL:$AL,AW2) -> 1 | AX11: =COUNTIF($AL:$AL,AX2) -> 0 | AY11: 3
A12: 587 | B12: =IF(C12="","",INDEX(downloadmatch!$A:$B,$A12,B$2)) ->  | C12: =IF(C11="","",IF(INDEX(downloadmatch!$A:$B,$A12,C$2)=0,"",INDEX(downloadmatch!$A:$B,$A12,C$2))) ->  | N12: =IF(M12="","",IF(M12>=settodownload!$F$5,"OK","")) ->  | AI12: 4 | AW12: =AW11/$AI$99 -> 0.25 | AX12: =AX11/$AI$99 -> 0 | AY12: 0.75
A13: 588 | B13: =IF(C13="","",INDEX(downloadmatch!$A:$B,$A13,B$2)) ->  | C13: =IF(C12="","",IF(INDEX(downloadmatch!$A:$B,$A13,C$2)=0,"",INDEX(downloadmatch!$A:$B,$A13,C$2))) ->  | N13: =IF(M13="","",IF(M13>=settodownload!$F$5,"OK","")) ->  | AI13: 4
A14: 589 | B14: =IF(C14="","",INDEX(downloadmatch!$A:$B,$A14,B$2)) ->  | C14: =IF(C13="","",IF(INDEX(downloadmatch!$A:$B,$A14,C$2)=0,"",INDEX(downloadmatch!$A:$B,$A14,C$2))) ->  | N14: =IF(M14="","",IF(M14>=settodownload!$F$5,"OK","")) ->  | AI14: 4
A15: 590 | B15: =IF(C15="","",INDEX(downloadmatch!$A:$B,$A15,B$2)) ->  | C15: =IF(C14="","",IF(INDEX(downloadmatch!$A:$B,$A15,C$2)=0,"",INDEX(downloadmatch!$A:$B,$A15,C$2))) ->  | N15: =IF(M15="","",IF(M15>=settodownload!$F$5,"OK","")) ->  | AI15: 4
A16: 591 | B16: =IF(C16="","",INDEX(downloadmatch!$A:$B,$A16,B$2)) ->  | C16: =IF(C15="","",IF(INDEX(downloadmatch!$A:$B,$A16,C$2)=0,"",INDEX(downloadmatch!$A:$B,$A16,C$2))) ->  | N16: =IF(M16="","",IF(M16>=settodownload!$F$5,"OK","")) ->  | AI16: 4
A17: 592 | B17: =IF(C17="","",INDEX(downloadmatch!$A:$B,$A17,B$2)) ->  | C17: =IF(C16="","",IF(INDEX(downloadmatch!$A:$B,$A17,C$2)=0,"",INDEX(downloadmatch!$A:$B,$A17,C$2))) ->  | N17: =IF(M17="","",IF(M17>=settodownload!$F$5,"OK","")) ->  | AI17: 4
A18: 593 | B18: =IF(C18="","",INDEX(downloadmatch!$A:$B,$A18,B$2)) ->  | C18: =IF(C17="","",IF(INDEX(downloadmatch!$A:$B,$A18,C$2)=0,"",INDEX(downloadmatch!$A:$B,$A18,C$2))) ->  | N18: =IF(M18="","",IF(M18>=settodownload!$F$5,"OK","")) ->  | AI18: 4
A19: 594 | B19: =IF(C19="","",INDEX(downloadmatch!$A:$B,$A19,B$2)) ->  | C19: =IF(C18="","",IF(INDEX(downloadmatch!$A:$B,$A19,C$2)=0,"",INDEX(downloadmatch!$A:$B,$A19,C$2))) ->  | N19: =IF(M19="","",IF(M19>=settodownload!$F$5,"OK","")) ->  | AI19: 4
A20: 595 | B20: =IF(C20="","",INDEX(downloadmatch!$A:$B,$A20,B$2)) ->  | C20: =IF(C19="","",IF(INDEX(downloadmatch!$A:$B,$A20,C$2)=0,"",INDEX(downloadmatch!$A:$B,$A20,C$2))) ->  | N20: =IF(M20="","",IF(M20>=settodownload!$F$5,"OK","")) ->  | S20: =IF(R20="","",U20-Q20) ->  | AI20: 4
A21: 596 | B21: =IF(C21="","",INDEX(downloadmatch!$A:$B,$A21,B$2)) ->  | C21: =IF(C20="","",IF(INDEX(downloadmatch!$A:$B,$A21,C$2)=0,"",INDEX(downloadmatch!$A:$B,$A21,C$2))) ->  | N21: =IF(M21="","",IF(M21>=settodownload!$F$5,"OK","")) ->  | AI21: 4
A22: 597 | B22: =IF(C22="","",INDEX(downloadmatch!$A:$B,$A22,B$2)) ->  | C22: =IF(C21="","",IF(INDEX(downloadmatch!$A:$B,$A22,C$2)=0,"",INDEX(downloadmatch!$A:$B,$A22,C$2))) ->  | N22: =IF(M22="","",IF(M22>=settodownload!$F$5,"OK","")) ->  | AI22: 4
A23: 598 | B23: =IF(C23="","",INDEX(downloadmatch!$A:$B,$A23,B$2)) ->  | C23: =IF(C22="","",IF(INDEX(downloadmatch!$A:$B,$A23,C$2)=0,"",INDEX(downloadmatch!$A:$B,$A23,C$2))) ->  | N23: =IF(M23="","",IF(M23>=settodownload!$F$5,"OK","")) ->  | AI23: 4
A24: 599 | B24: =IF(C24="","",INDEX(downloadmatch!$A:$B,$A24,B$2)) ->  | C24: =IF(C23="","",IF(INDEX(downloadmatch!$A:$B,$A24,C$2)=0,"",INDEX(downloadmatch!$A:$B,$A24,C$2))) ->  | N24: =IF(M24="","",IF(M24>=settodownload!$F$5,"OK","")) ->  | AI24: 4
A25: 600 | B25: =IF(C25="","",INDEX(downloadmatch!$A:$B,$A25,B$2)) ->  | C25: =IF(C24="","",IF(INDEX(downloadmatch!$A:$B,$A25,C$2)=0,"",INDEX(downloadmatch!$A:$B,$A25,C$2))) ->  | J25: =IF(F25="","",SUBSTITUTE(SUBSTITUTE(MID(C25,SEARCH(" ",H25)+3,100),"(",""),")","")) ->  | K25: =IFERROR(MID(J25,SEARCH("AET",J25)+4,100),"") ->  | L25: =IFERROR(LEFT(J25,SEARCH("AET",J25)-2),"") ->  | N25: =IF(M25="","",IF(M25>=settodownload!$F$5,"OK","")) ->  | AI25: 4
A26: 601 | B26: =IF(C26="","",INDEX(downloadmatch!$A:$B,$A26,B$2)) ->  | C26: =IF(C25="","",IF(INDEX(downloadmatch!$A:$B,$A26,C$2)=0,"",INDEX(downloadmatch!$A:$B,$A26,C$2))) ->  | K26: =IFERROR(MID(J26,SEARCH("AET",J26)+4,100),"") ->  | L26: =IFERROR(LEFT(J26,SEARCH("AET",J26)-2),"") ->  | N26: =IF(M26="","",IF(M26>=settodownload!$F$5,"OK","")) ->  | AI26: 4
A27: 602 | B27: =IF(C27="","",INDEX(downloadmatch!$A:$B,$A27,B$2)) ->  | C27: =IF(C26="","",IF(INDEX(downloadmatch!$A:$B,$A27,C$2)=0,"",INDEX(downloadmatch!$A:$B,$A27,C$2))) ->  | N27: =IF(M27="","",IF(M27>=settodownload!$F$5,"OK","")) ->  | AI27: 4
A28: 603 | B28: =IF(C28="","",INDEX(downloadmatch!$A:$B,$A28,B$2)) ->  | C28: =IF(C27="","",IF(INDEX(downloadmatch!$A:$B,$A28,C$2)=0,"",INDEX(downloadmatch!$A:$B,$A28,C$2))) ->  | N28: =IF(M28="","",IF(M28>=settodownload!$F$5,"OK","")) ->  | AI28: 4
A29: 604 | B29: =IF(C29="","",INDEX(downloadmatch!$A:$B,$A29,B$2)) ->  | C29: =IF(C28="","",IF(INDEX(downloadmatch!$A:$B,$A29,C$2)=0,"",INDEX(downloadmatch!$A:$B,$A29,C$2))) ->  | N29: =IF(M29="","",IF(M29>=settodownload!$F$5,"OK","")) ->  | AI29: 4
A30: 605 | B30: =IF(C30="","",INDEX(downloadmatch!$A:$B,$A30,B$2)) ->  | C30: =IF(C29="","",IF(INDEX(downloadmatch!$A:$B,$A30,C$2)=0,"",INDEX(downloadmatch!$A:$B,$A30,C$2))) ->  | N30: =IF(M30="","",IF(M30>=settodownload!$F$5,"OK","")) ->  | AI30: 4
A31: 606 | B31: =IF(C31="","",INDEX(downloadmatch!$A:$B,$A31,B$2)) ->  | C31: =IF(C30="","",IF(INDEX(downloadmatch!$A:$B,$A31,C$2)=0,"",INDEX(downloadmatch!$A:$B,$A31,C$2))) ->  | N31: =IF(M31="","",IF(M31>=settodownload!$F$5,"OK","")) ->  | AI31: 4
A32: 607 | B32: =IF(C32="","",INDEX(downloadmatch!$A:$B,$A32,B$2)) ->  | C32: =IF(C31="","",IF(INDEX(downloadmatch!$A:$B,$A32,C$2)=0,"",INDEX(downloadmatch!$A:$B,$A32,C$2))) ->  | N32: =IF(M32="","",IF(M32>=settodownload!$F$5,"OK","")) ->  | AI32: 4
A33: 608 | B33: =IF(C33="","",INDEX(downloadmatch!$A:$B,$A33,B$2)) ->  | C33: =IF(C32="","",IF(INDEX(downloadmatch!$A:$B,$A33,C$2)=0,"",INDEX(downloadmatch!$A:$B,$A33,C$2))) ->  | N33: =IF(M33="","",IF(M33>=settodownload!$F$5,"OK","")) ->  | AI33: 4
A34: 609 | B34: =IF(C34="","",INDEX(downloadmatch!$A:$B,$A34,B$2)) ->  | C34: =IF(C33="","",IF(INDEX(downloadmatch!$A:$B,$A34,C$2)=0,"",INDEX(downloadmatch!$A:$B,$A34,C$2))) ->  | N34: =IF(M34="","",IF(M34>=settodownload!$F$5,"OK","")) ->  | AI34: 4
A35: 610 | B35: =IF(C35="","",INDEX(downloadmatch!$A:$B,$A35,B$2)) ->  | C35: =IF(C34="","",IF(INDEX(downloadmatch!$A:$B,$A35,C$2)=0,"",INDEX(downloadmatch!$A:$B,$A35,C$2))) ->  | N35: =IF(M35="","",IF(M35>=settodownload!$F$5,"OK","")) ->  | AI35: 4
A36: 611 | B36: =IF(C36="","",INDEX(downloadmatch!$A:$B,$A36,B$2)) ->  | C36: =IF(C35="","",IF(INDEX(downloadmatch!$A:$B,$A36,C$2)=0,"",INDEX(downloadmatch!$A:$B,$A36,C$2))) ->  | N36: =IF(M36="","",IF(M36>=settodownload!$F$5,"OK","")) ->  | S36: =IF(R36="","",U36-Q36) ->  | AI36: 4
A37: 612 | B37: =IF(C37="","",INDEX(downloadmatch!$A:$B,$A37,B$2)) ->  | C37: =IF(C36="","",IF(INDEX(downloadmatch!$A:$B,$A37,C$2)=0,"",INDEX(downloadmatch!$A:$B,$A37,C$2))) ->  | N37: =IF(M37="","",IF(M37>=settodownload!$F$5,"OK","")) ->  | AI37: 4
A38: 613 | B38: =IF(C38="","",INDEX(downloadmatch!$A:$B,$A38,B$2)) ->  | C38: =IF(C37="","",IF(INDEX(downloadmatch!$A:$B,$A38,C$2)=0,"",INDEX(downloadmatch!$A:$B,$A38,C$2))) ->  | N38: =IF(M38="","",IF(M38>=settodownload!$F$5,"OK","")) ->  | AI38: 4
A39: 614 | B39: =IF(C39="","",INDEX(downloadmatch!$A:$B,$A39,B$2)) ->  | C39: =IF(C38="","",IF(INDEX(downloadmatch!$A:$B,$A39,C$2)=0,"",INDEX(downloadmatch!$A:$B,$A39,C$2))) ->  | N39: =IF(M39="","",IF(M39>=settodownload!$F$5,"OK","")) ->  | AI39: 4
A40: 615 | B40: =IF(C40="","",INDEX(downloadmatch!$A:$B,$A40,B$2)) ->  | C40: =IF(C39="","",IF(INDEX(downloadmatch!$A:$B,$A40,C$2)=0,"",INDEX(downloadmatch!$A:$B,$A40,C$2))) ->  | N40: =IF(M40="","",IF(M40>=settodownload!$F$5,"OK","")) ->  | AI40: 4
A41: 616 | B41: =IF(C41="","",INDEX(downloadmatch!$A:$B,$A41,B$2)) ->  | C41: =IF(C40="","",IF(INDEX(downloadmatch!$A:$B,$A41,C$2)=0,"",INDEX(downloadmatch!$A:$B,$A41,C$2))) ->  | N41: =IF(M41="","",IF(M41>=settodownload!$F$5,"OK","")) ->  | AI41: 4
A42: 617 | B42: =IF(C42="","",INDEX(downloadmatch!$A:$B,$A42,B$2)) ->  | C42: =IF(C41="","",IF(INDEX(downloadmatch!$A:$B,$A42,C$2)=0,"",INDEX(downloadmatch!$A:$B,$A42,C$2))) ->  | N42: =IF(M42="","",IF(M42>=settodownload!$F$5,"OK","")) ->  | AI42: 4
A43: 618 | B43: =IF(C43="","",INDEX(downloadmatch!$A:$B,$A43,B$2)) ->  | C43: =IF(C42="","",IF(INDEX(downloadmatch!$A:$B,$A43,C$2)=0,"",INDEX(downloadmatch!$A:$B,$A43,C$2))) ->  | N43: =IF(M43="","",IF(M43>=settodownload!$F$5,"OK","")) ->  | AI43: 4
A44: 619 | B44: =IF(C44="","",INDEX(downloadmatch!$A:$B,$A44,B$2)) ->  | C44: =IF(C43="","",IF(INDEX(downloadmatch!$A:$B,$A44,C$2)=0,"",INDEX(downloadmatch!$A:$B,$A44,C$2))) ->  | N44: =IF(M44="","",IF(M44>=settodownload!$F$5,"OK","")) ->  | AI44: 4
A45: 620 | B45: =IF(C45="","",INDEX(downloadmatch!$A:$B,$A45,B$2)) ->  | C45: =IF(C44="","",IF(INDEX(downloadmatch!$A:$B,$A45,C$2)=0,"",INDEX(downloadmatch!$A:$B,$A45,C$2))) ->  | N45: =IF(M45="","",IF(M45>=settodownload!$F$5,"OK","")) ->  | AI45: 4
A46: 621 | B46: =IF(C46="","",INDEX(downloadmatch!$A:$B,$A46,B$2)) ->  | C46: =IF(C45="","",IF(INDEX(downloadmatch!$A:$B,$A46,C$2)=0,"",INDEX(downloadmatch!$A:$B,$A46,C$2))) ->  | N46: =IF(M46="","",IF(M46>=settodownload!$F$5,"OK","")) ->  | AI46: 4
A47: 622 | B47: =IF(C47="","",INDEX(downloadmatch!$A:$B,$A47,B$2)) ->  | C47: =IF(C46="","",IF(INDEX(downloadmatch!$A:$B,$A47,C$2)=0,"",INDEX(downloadmatch!$A:$B,$A47,C$2))) ->  | N47: =IF(M47="","",IF(M47>=settodownload!$F$5,"OK","")) ->  | AI47: 4
A48: 623 | B48: =IF(C48="","",INDEX(downloadmatch!$A:$B,$A48,B$2)) ->  | C48: =IF(C47="","",IF(INDEX(downloadmatch!$A:$B,$A48,C$2)=0,"",INDEX(downloadmatch!$A:$B,$A48,C$2))) ->  | N48: =IF(M48="","",IF(M48>=settodownload!$F$5,"OK","")) ->  | AI48: 4
A49: 624 | B49: =IF(C49="","",INDEX(downloadmatch!$A:$B,$A49,B$2)) ->  | C49: =IF(C48="","",IF(INDEX(downloadmatch!$A:$B,$A49,C$2)=0,"",INDEX(downloadmatch!$A:$B,$A49,C$2))) ->  | N49: =IF(M49="","",IF(M49>=settodownload!$F$5,"OK","")) ->  | AI49: 4
A50: 625 | B50: =IF(C50="","",INDEX(downloadmatch!$A:$B,$A50,B$2)) ->  | C50: =IF(C49="","",IF(INDEX(downloadmatch!$A:$B,$A50,C$2)=0,"",INDEX(downloadmatch!$A:$B,$A50,C$2))) ->  | N50: =IF(M50="","",IF(M50>=settodownload!$F$5,"OK","")) ->  | AI50: 4
A51: 626 | B51: =IF(C51="","",INDEX(downloadmatch!$A:$B,$A51,B$2)) ->  | C51: =IF(C50="","",IF(INDEX(downloadmatch!$A:$B,$A51,C$2)=0,"",INDEX(downloadmatch!$A:$B,$A51,C$2))) ->  | N51: =IF(M51="","",IF(M51>=settodownload!$F$5,"OK","")) ->  | AI51: 4
A52: 627 | B52: =IF(C52="","",INDEX(downloadmatch!$A:$B,$A52,B$2)) ->  | C52: =IF(C51="","",IF(INDEX(downloadmatch!$A:$B,$A52,C$2)=0,"",INDEX(downloadmatch!$A:$B,$A52,C$2))) ->  | N52: =IF(M52="","",IF(M52>=settodownload!$F$5,"OK","")) ->  | S52: =IF(R52="","",U52-Q52) ->  | AI52: 4
A53: 628 | B53: =IF(C53="","",INDEX(downloadmatch!$A:$B,$A53,B$2)) ->  | C53: =IF(C52="","",IF(INDEX(downloadmatch!$A:$B,$A53,C$2)=0,"",INDEX(downloadmatch!$A:$B,$A53,C$2))) ->  | N53: =IF(M53="","",IF(M53>=settodownload!$F$5,"OK","")) ->  | AI53: 4
A54: 629 | B54: =IF(C54="","",INDEX(downloadmatch!$A:$B,$A54,B$2)) ->  | C54: =IF(C53="","",IF(INDEX(downloadmatch!$A:$B,$A54,C$2)=0,"",INDEX(downloadmatch!$A:$B,$A54,C$2))) ->  | N54: =IF(M54="","",IF(M54>=settodownload!$F$5,"OK","")) ->  | AI54: 4
A55: 630 | B55: =IF(C55="","",INDEX(downloadmatch!$A:$B,$A55,B$2)) ->  | C55: =IF(C54="","",IF(INDEX(downloadmatch!$A:$B,$A55,C$2)=0,"",INDEX(downloadmatch!$A:$B,$A55,C$2))) ->  | N55: =IF(M55="","",IF(M55>=settodownload!$F$5,"OK","")) ->  | AI55: 4
A56: 631 | B56: =IF(C56="","",INDEX(downloadmatch!$A:$B,$A56,B$2)) ->  | C56: =IF(C55="","",IF(INDEX(downloadmatch!$A:$B,$A56,C$2)=0,"",INDEX(downloadmatch!$A:$B,$A56,C$2))) ->  | N56: =IF(M56="","",IF(M56>=settodownload!$F$5,"OK","")) ->  | AI56: 4
A57: 632 | B57: =IF(C57="","",INDEX(downloadmatch!$A:$B,$A57,B$2)) ->  | C57: =IF(C56="","",IF(INDEX(downloadmatch!$A:$B,$A57,C$2)=0,"",INDEX(downloadmatch!$A:$B,$A57,C$2))) ->  | N57: =IF(M57="","",IF(M57>=settodownload!$F$5,"OK","")) ->  | AI57: 4
A58: 633 | B58: =IF(C58="","",INDEX(downloadmatch!$A:$B,$A58,B$2)) ->  | C58: =IF(C57="","",IF(INDEX(downloadmatch!$A:$B,$A58,C$2)=0,"",INDEX(downloadmatch!$A:$B,$A58,C$2))) ->  | N58: =IF(M58="","",IF(M58>=settodownload!$F$5,"OK","")) ->  | AI58: 4
A59: 634 | B59: =IF(C59="","",INDEX(downloadmatch!$A:$B,$A59,B$2)) ->  | C59: =IF(C58="","",IF(INDEX(downloadmatch!$A:$B,$A59,C$2)=0,"",INDEX(downloadmatch!$A:$B,$A59,C$2))) ->  | N59: =IF(M59="","",IF(M59>=settodownload!$F$5,"OK","")) ->  | AC59: =IF(W59="","",IF(W59>0,"ok","")) ->  | AI59: 4
A60: 635 | B60: =IF(C60="","",INDEX(downloadmatch!$A:$B,$A60,B$2)) ->  | C60: =IF(C59="","",IF(INDEX(downloadmatch!$A:$B,$A60,C$2)=0,"",INDEX(downloadmatch!$A:$B,$A60,C$2))) ->  | N60: =IF(M60="","",IF(M60>=settodownload!$F$5,"OK","")) ->  | AI60: 4
A61: 636 | B61: =IF(C61="","",INDEX(downloadmatch!$A:$B,$A61,B$2)) ->  | C61: =IF(C60="","",IF(INDEX(downloadmatch!$A:$B,$A61,C$2)=0,"",INDEX(downloadmatch!$A:$B,$A61,C$2))) ->  | N61: =IF(M61="","",IF(M61>=settodownload!$F$5,"OK","")) ->  | AI61: 4
A62: 637 | B62: =IF(C62="","",INDEX(downloadmatch!$A:$B,$A62,B$2)) ->  | C62: =IF(C61="","",IF(INDEX(downloadmatch!$A:$B,$A62,C$2)=0,"",INDEX(downloadmatch!$A:$B,$A62,C$2))) ->  | N62: =IF(M62="","",IF(M62>=settodownload!$F$5,"OK","")) ->  | AI62: 4
A63: 638 | B63: =IF(C63="","",INDEX(downloadmatch!$A:$B,$A63,B$2)) ->  | C63: =IF(C62="","",IF(INDEX(downloadmatch!$A:$B,$A63,C$2)=0,"",INDEX(downloadmatch!$A:$B,$A63,C$2))) ->  | N63: =IF(M63="","",IF(M63>=settodownload!$F$5,"OK","")) ->  | AI63: 4
A64: 639 | B64: =IF(C64="","",INDEX(downloadmatch!$A:$B,$A64,B$2)) ->  | C64: =IF(C63="","",IF(INDEX(downloadmatch!$A:$B,$A64,C$2)=0,"",INDEX(downloadmatch!$A:$B,$A64,C$2))) ->  | N64: =IF(M64="","",IF(M64>=settodownload!$F$5,"OK","")) ->  | AI64: 4
A65: 640 | B65: =IF(C65="","",INDEX(downloadmatch!$A:$B,$A65,B$2)) ->  | C65: =IF(C64="","",IF(INDEX(downloadmatch!$A:$B,$A65,C$2)=0,"",INDEX(downloadmatch!$A:$B,$A65,C$2))) ->  | N65: =IF(M65="","",IF(M65>=settodownload!$F$5,"OK","")) ->  | AI65: 4
A66: 641 | B66: =IF(C66="","",INDEX(downloadmatch!$A:$B,$A66,B$2)) ->  | C66: =IF(C65="","",IF(INDEX(downloadmatch!$A:$B,$A66,C$2)=0,"",INDEX(downloadmatch!$A:$B,$A66,C$2))) ->  | N66: =IF(M66="","",IF(M66>=settodownload!$F$5,"OK","")) ->  | AI66: 4
A67: 642 | B67: =IF(C67="","",INDEX(downloadmatch!$A:$B,$A67,B$2)) ->  | C67: =IF(C66="","",IF(INDEX(downloadmatch!$A:$B,$A67,C$2)=0,"",INDEX(downloadmatch!$A:$B,$A67,C$2))) ->  | M67: =IF(F67="","",fmt(E67,"YYYY")*1) ->  | N67: =IF(M67="","",IF(M67>=settodownload!$F$5,"OK","")) ->  | Q67: =IFERROR(IF(P67="","",LEFT(J67,SEARCH(":",J67)-1)*1),IF(L67="","",LEFT(L67,SEARCH(":",L67)-1)*1)) ->  | R67: =IFERROR(IF(Q67="","",MID(J67,SEARCH(":",J67)+1,100)*1),IF(L67="","",MID(L67,SEARCH(":",L67)+1,100)*1)) ->  | AI67: 4
A68: 643 | B68: =IF(C68="","",INDEX(downloadmatch!$A:$B,$A68,B$2)) ->  | C68: =IF(C67="","",IF(INDEX(downloadmatch!$A:$B,$A68,C$2)=0,"",INDEX(downloadmatch!$A:$B,$A68,C$2))) ->  | I68: =IF(H68="","",IF(K68="",LEFT(H68,SEARCH(" ",H68)-1),K68)) ->  | J68: =IF(F68="","",SUBSTITUTE(SUBSTITUTE(MID(C68,SEARCH(" ",H68)+3,100),"(",""),")","")) ->  | N68: =IF(M68="","",IF(M68>=settodownload!$F$5,"OK","")) ->  | O68: =IF(N68="","",LEFT(F68,SEARCH(" - ",F68)-1)) ->  | P68: =IF(O68="","",MID(F68,SEARCH(" - ",F68)+3,100)) ->  | S68: =IF(R68="","",U68-Q68) ->  | U68: =IF(N68="","",LEFT(I68,SEARCH(":",I68)-1)*1) ->  | V68: =IF(U68="","",MID(I68,SEARCH(":",I68)+1,100)*1) ->  | W68: =IF($O$2=O68,Q68,R68) ->  | X68: =IF($O$2=P68,Q68,R68) ->  | Y68: =IF($O$2=O68,S68,T68) ->  | Z68: =IF($O$2=P68,S68,T68) ->  | AA68: =IF($O$2=O68,U68,V68) ->  | AB68: =IF($O$2=P68,U68,V68) ->  | AI68: =IF(W68="",AI67,AI67+1) -> 4 | AJ68: =IF(W68="","",IF(W68>X68,"W",IF(W68=X68,"D",IF(W68<X68,"l","")))) ->  | AK68: =IF(Y68="","",IF(Y68>Z68,"W",IF(Y68=Z68,"D",IF(Y68<Z68,"l","")))) ->  | AL68: =IF(AA68="","",IF(AA68>AB68,"W",IF(AA68=AB68,"D",IF(AA68<AB68,"l","")))) ->  | AM68: =IF(AL68="","",IF((W68+X68)>0.5,"OK","")) ->  | AN68: =IF(AM68="","",IF((W68+X68)>1,"OK","")) ->  | AO68: =IF(AL68="","",IF((Y68+Z68)>0.5,"OK","")) ->  | AP68: =IF(AL68="","",IF((Y68+Z68)>1,"OK","")) ->  | AQ68: =IF(AL68="","",IF((AA68+AB68)>1,"OK","")) ->  | AR68: =IF(AL68="","",IF((AA68+AB68)>2,"OK","")) ->  | AS68: =IF(AL68="","",IF((AA68+AB68)>3,"OK","")) ->  | AT68: =IF(AL68="","",IF(AND(AJ68="W",AK68="W"),"OK","")) ->  | AU68: =IF(AL68="","",IF(AND(AJ68="D",AK68="D"),"OK","")) ->  | AV68: =IF(AL68="","",IF(AND(AJ68="L",AK68="L"),"OK","")) -> 
A69: =A68+1 -> 644 | B69: =IF(C69="","",INDEX(downloadmatch!$A:$B,$A69,B$2)) ->  | C69: =IF(C68="","",IF(INDEX(downloadmatch!$A:$B,$A69,C$2)=0,"",INDEX(downloadmatch!$A:$B,$A69,C$2))) ->  | N69: =IF(M69="","",IF(M69>=settodownload!$F$5,"OK","")) ->  | AI69: 4
A70: 645 | B70: =IF(C70="","",INDEX(downloadmatch!$A:$B,$A70,B$2)) ->  | C70: =IF(C69="","",IF(INDEX(downloadmatch!$A:$B,$A70,C$2)=0,"",INDEX(downloadmatch!$A:$B,$A70,C$2))) ->  | N70: =IF(M70="","",IF(M70>=settodownload!$F$5,"OK","")) ->  | AI70: 4
A71: 646 | B71: =IF(C71="","",INDEX(downloadmatch!$A:$B,$A71,B$2)) ->  | C71: =IF(C70="","",IF(INDEX(downloadmatch!$A:$B,$A71,C$2)=0,"",INDEX(downloadmatch!$A:$B,$A71,C$2))) ->  | N71: =IF(M71="","",IF(M71>=settodownload!$F$5,"OK","")) ->  | AI71: 4
A72: 647 | B72: =IF(C72="","",INDEX(downloadmatch!$A:$B,$A72,B$2)) ->  | C72: =IF(C71="","",IF(INDEX(downloadmatch!$A:$B,$A72,C$2)=0,"",INDEX(downloadmatch!$A:$B,$A72,C$2))) ->  | N72: =IF(M72="","",IF(M72>=settodownload!$F$5,"OK","")) ->  | AI72: 4
A73: 648 | B73: =IF(C73="","",INDEX(downloadmatch!$A:$B,$A73,B$2)) ->  | C73: =IF(C72="","",IF(INDEX(downloadmatch!$A:$B,$A73,C$2)=0,"",INDEX(downloadmatch!$A:$B,$A73,C$2))) ->  | N73: =IF(M73="","",IF(M73>=settodownload!$F$5,"OK","")) ->  | AI73: 4
A74: 649 | B74: =IF(C74="","",INDEX(downloadmatch!$A:$B,$A74,B$2)) ->  | C74: =IF(C73="","",IF(INDEX(downloadmatch!$A:$B,$A74,C$2)=0,"",INDEX(downloadmatch!$A:$B,$A74,C$2))) ->  | N74: =IF(M74="","",IF(M74>=settodownload!$F$5,"OK","")) ->  | AI74: 4
A75: 650 | B75: =IF(C75="","",INDEX(downloadmatch!$A:$B,$A75,B$2)) ->  | C75: =IF(C74="","",IF(INDEX(downloadmatch!$A:$B,$A75,C$2)=0,"",INDEX(downloadmatch!$A:$B,$A75,C$2))) ->  | N75: =IF(M75="","",IF(M75>=settodownload!$F$5,"OK","")) ->  | AI75: 4
A76: 651 | B76: =IF(C76="","",INDEX(downloadmatch!$A:$B,$A76,B$2)) ->  | C76: =IF(C75="","",IF(INDEX(downloadmatch!$A:$B,$A76,C$2)=0,"",INDEX(downloadmatch!$A:$B,$A76,C$2))) ->  | N76: =IF(M76="","",IF(M76>=settodownload!$F$5,"OK","")) ->  | AI76: 4
A77: 652 | B77: =IF(C77="","",INDEX(downloadmatch!$A:$B,$A77,B$2)) ->  | C77: =IF(C76="","",IF(INDEX(downloadmatch!$A:$B,$A77,C$2)=0,"",INDEX(downloadmatch!$A:$B,$A77,C$2))) ->  | N77: =IF(M77="","",IF(M77>=settodownload!$F$5,"OK","")) ->  | AI77: 4
A78: 653 | B78: =IF(C78="","",INDEX(downloadmatch!$A:$B,$A78,B$2)) ->  | C78: =IF(C77="","",IF(INDEX(downloadmatch!$A:$B,$A78,C$2)=0,"",INDEX(downloadmatch!$A:$B,$A78,C$2))) ->  | N78: =IF(M78="","",IF(M78>=settodownload!$F$5,"OK","")) ->  | AI78: 4
A79: 654 | B79: =IF(C79="","",INDEX(downloadmatch!$A:$B,$A79,B$2)) ->  | C79: =IF(C78="","",IF(INDEX(downloadmatch!$A:$B,$A79,C$2)=0,"",INDEX(downloadmatch!$A:$B,$A79,C$2))) ->  | N79: =IF(M79="","",IF(M79>=settodownload!$F$5,"OK","")) ->  | AI79: 4
A80: 655 | B80: =IF(C80="","",INDEX(downloadmatch!$A:$B,$A80,B$2)) ->  | C80: =IF(C79="","",IF(INDEX(downloadmatch!$A:$B,$A80,C$2)=0,"",INDEX(downloadmatch!$A:$B,$A80,C$2))) ->  | N80: =IF(M80="","",IF(M80>=settodownload!$F$5,"OK","")) ->  | AI80: 4
A81: 656 | B81: =IF(C81="","",INDEX(downloadmatch!$A:$B,$A81,B$2)) ->  | C81: =IF(C80="","",IF(INDEX(downloadmatch!$A:$B,$A81,C$2)=0,"",INDEX(downloadmatch!$A:$B,$A81,C$2))) ->  | N81: =IF(M81="","",IF(M81>=settodownload!$F$5,"OK","")) ->  | AI81: 4
A82: 657 | B82: =IF(C82="","",INDEX(downloadmatch!$A:$B,$A82,B$2)) ->  | C82: =IF(C81="","",IF(INDEX(downloadmatch!$A:$B,$A82,C$2)=0,"",INDEX(downloadmatch!$A:$B,$A82,C$2))) ->  | N82: =IF(M82="","",IF(M82>=settodownload!$F$5,"OK","")) ->  | AI82: 4
A83: 658 | B83: =IF(C83="","",INDEX(downloadmatch!$A:$B,$A83,B$2)) ->  | C83: =IF(C82="","",IF(INDEX(downloadmatch!$A:$B,$A83,C$2)=0,"",INDEX(downloadmatch!$A:$B,$A83,C$2))) ->  | N83: =IF(M83="","",IF(M83>=settodownload!$F$5,"OK","")) ->  | AI83: 4
A84: 659 | B84: =IF(C84="","",INDEX(downloadmatch!$A:$B,$A84,B$2)) ->  | C84: =IF(C83="","",IF(INDEX(downloadmatch!$A:$B,$A84,C$2)=0,"",INDEX(downloadmatch!$A:$B,$A84,C$2))) ->  | N84: =IF(M84="","",IF(M84>=settodownload!$F$5,"OK","")) ->  | S84: =IF(R84="","",U84-Q84) ->  | AI84: 4
A85: 660 | B85: =IF(C85="","",INDEX(downloadmatch!$A:$B,$A85,B$2)) ->  | C85: =IF(C84="","",IF(INDEX(downloadmatch!$A:$B,$A85,C$2)=0,"",INDEX(downloadmatch!$A:$B,$A85,C$2))) ->  | N85: =IF(M85="","",IF(M85>=settodownload!$F$5,"OK","")) ->  | AI85: 4
A86: 661 | B86: =IF(C86="","",INDEX(downloadmatch!$A:$B,$A86,B$2)) ->  | C86: =IF(C85="","",IF(INDEX(downloadmatch!$A:$B,$A86,C$2)=0,"",INDEX(downloadmatch!$A:$B,$A86,C$2))) ->  | N86: =IF(M86="","",IF(M86>=settodownload!$F$5,"OK","")) ->  | AI86: 4
A87: 662 | B87: =IF(C87="","",INDEX(downloadmatch!$A:$B,$A87,B$2)) ->  | C87: =IF(C86="","",IF(INDEX(downloadmatch!$A:$B,$A87,C$2)=0,"",INDEX(downloadmatch!$A:$B,$A87,C$2))) ->  | N87: =IF(M87="","",IF(M87>=settodownload!$F$5,"OK","")) ->  | AI87: 4
A88: 663 | B88: =IF(C88="","",INDEX(downloadmatch!$A:$B,$A88,B$2)) ->  | C88: =IF(C87="","",IF(INDEX(downloadmatch!$A:$B,$A88,C$2)=0,"",INDEX(downloadmatch!$A:$B,$A88,C$2))) ->  | N88: =IF(M88="","",IF(M88>=settodownload!$F$5,"OK","")) ->  | AI88: 4
A89: 664 | B89: =IF(C89="","",INDEX(downloadmatch!$A:$B,$A89,B$2)) ->  | C89: =IF(C88="","",IF(INDEX(downloadmatch!$A:$B,$A89,C$2)=0,"",INDEX(downloadmatch!$A:$B,$A89,C$2))) ->  | N89: =IF(M89="","",IF(M89>=settodownload!$F$5,"OK","")) ->  | AI89: 4
A90: 665 | B90: =IF(C90="","",INDEX(downloadmatch!$A:$B,$A90,B$2)) ->  | C90: =IF(C89="","",IF(INDEX(downloadmatch!$A:$B,$A90,C$2)=0,"",INDEX(downloadmatch!$A:$B,$A90,C$2))) ->  | K90: =IFERROR(MID(J90,SEARCH("AET",J90)+4,100),"") ->  | L90: =IFERROR(LEFT(J90,SEARCH("AET",J90)-2),"") ->  | N90: =IF(M90="","",IF(M90>=settodownload!$F$5,"OK","")) ->  | AI90: 4
A91: 666 | B91: =IF(C91="","",INDEX(downloadmatch!$A:$B,$A91,B$2)) ->  | C91: =IF(C90="","",IF(INDEX(downloadmatch!$A:$B,$A91,C$2)=0,"",INDEX(downloadmatch!$A:$B,$A91,C$2))) ->  | N91: =IF(M91="","",IF(M91>=settodownload!$F$5,"OK","")) ->  | AI91: 4
A92: 667 | B92: =IF(C92="","",INDEX(downloadmatch!$A:$B,$A92,B$2)) ->  | C92: =IF(C91="","",IF(INDEX(downloadmatch!$A:$B,$A92,C$2)=0,"",INDEX(downloadmatch!$A:$B,$A92,C$2))) ->  | N92: =IF(M92="","",IF(M92>=settodownload!$F$5,"OK","")) ->  | AI92: 4
A93: 668 | B93: =IF(C93="","",INDEX(downloadmatch!$A:$B,$A93,B$2)) ->  | C93: =IF(C92="","",IF(INDEX(downloadmatch!$A:$B,$A93,C$2)=0,"",INDEX(downloadmatch!$A:$B,$A93,C$2))) ->  | N93: =IF(M93="","",IF(M93>=settodownload!$F$5,"OK","")) ->  | AI93: 4
A94: 669 | B94: =IF(C94="","",INDEX(downloadmatch!$A:$B,$A94,B$2)) ->  | C94: =IF(C93="","",IF(INDEX(downloadmatch!$A:$B,$A94,C$2)=0,"",INDEX(downloadmatch!$A:$B,$A94,C$2))) ->  | N94: =IF(M94="","",IF(M94>=settodownload!$F$5,"OK","")) ->  | AI94: 4
A95: 670 | B95: =IF(C95="","",INDEX(downloadmatch!$A:$B,$A95,B$2)) ->  | C95: =IF(C94="","",IF(INDEX(downloadmatch!$A:$B,$A95,C$2)=0,"",INDEX(downloadmatch!$A:$B,$A95,C$2))) ->  | N95: =IF(M95="","",IF(M95>=settodownload!$F$5,"OK","")) ->  | AI95: 4
A96: 671 | B96: =IF(C96="","",INDEX(downloadmatch!$A:$B,$A96,B$2)) ->  | C96: =IF(C95="","",IF(INDEX(downloadmatch!$A:$B,$A96,C$2)=0,"",INDEX(downloadmatch!$A:$B,$A96,C$2))) ->  | N96: =IF(M96="","",IF(M96>=settodownload!$F$5,"OK","")) ->  | AI96: 4
A97: 672 | B97: =IF(C97="","",INDEX(downloadmatch!$A:$B,$A97,B$2)) ->  | C97: =IF(C96="","",IF(INDEX(downloadmatch!$A:$B,$A97,C$2)=0,"",INDEX(downloadmatch!$A:$B,$A97,C$2))) ->  | N97: =IF(M97="","",IF(M97>=settodownload!$F$5,"OK","")) ->  | AI97: 4
A98: 673 | B98: =IF(C98="","",INDEX(downloadmatch!$A:$B,$A98,B$2)) ->  | C98: =IF(C97="","",IF(INDEX(downloadmatch!$A:$B,$A98,C$2)=0,"",INDEX(downloadmatch!$A:$B,$A98,C$2))) ->  | N98: =IF(M98="","",IF(M98>=settodownload!$F$5,"OK","")) ->  | AI98: 4
A99: 674 | B99: =IF(C99="","",INDEX(downloadmatch!$A:$B,$A99,B$2)) ->  | C99: =IF(C98="","",IF(INDEX(downloadmatch!$A:$B,$A99,C$2)=0,"",INDEX(downloadmatch!$A:$B,$A99,C$2))) ->  | N99: =IF(M99="","",IF(M99>=settodownload!$F$5,"OK","")) ->  | AI99: =IF(W99="",AI98,AI98+1) -> 4
A100: 675 | B100: =IF(C100="","",INDEX(downloadmatch!#REF!,$A100,B$2)) ->  | C100: =IF(C99="","",IF(INDEX(downloadmatch!#REF!,$A100,C$2)=0,"",INDEX(downloadmatch!#REF!,$A100,C$2))) ->  | N100: =IF(M100="","",IF(M100>=settodownload!$C$5,"OK","")) -> 

Sheet HEAD2 (hidden)
A1: =CONCATENATE(settodownload!F3,"- ",settodownload!E3,"- Head to heads") -> Bala Town - Aberystwyth - Head to heads | Q1: HT | S1: ST | U1: FT | W1: =Q1 -> HT | Y1: =S1 -> ST | AA1: =U1 -> FT | AC1: + | AD1: - | AE1: + | AF1: - | AG1: + | AH1: - | AM1: HT | AO1: ST | AQ1: FT | AT1: WINNER
A2: =MATCH(A1,downloadmatch!$A:$A,0) -> 586 | B2: 1 | C2: =B2+1 -> 2 | E2: DATE | F2: TEAMS | G2: REST | H2: FT - HT | I2: FT | J2: HT | O2: =AWAY!O2 -> Bala Town | Q2: NOSORT | AC2: =COUNTIF(AC3:AC99,"ok")/$AI$99 ->  | AD2: =COUNTIF(AD3:AD99,"ok")/$AI$99 ->  | AM2: =COUNTIF(AM3:AM99,"OK")/$AI$99 ->  | AN2: =COUNTIF(AN3:AN99,"OK")/$AI$99 ->  | AO2: =COUNTIF(AO3:AO99,"OK")/$AI$99 ->  | AQ2: =COUNTIF(AQ3:AQ99,"OK")/$AI$99 ->  | AR2: =COUNTIF(AR3:AR99,"OK")/$AI$99 ->  | AS2: =COUNTIF(AS3:AS99,"OK")/$AI$99 ->  | AT2: =COUNTIF(AT3:AT99,"OK")/$AI$99 ->  | AU2: =COUNTIF(AU3:AU99,"OK")/$AI$99 ->  | AW2: W | AX2: D | AY2: L
A3: =A2+1 -> 587 | B3: =IF(C3="","",INDEX(downloadmatch!$A:$B,$A3,B$2)) -> 10.10.20 Bala Town - Aberystwyth | C3: =IF(INDEX(downloadmatch!$A:$B,$A3,C$2)=0,"",INDEX(downloadmatch!$A:$B,$A3,C$2)) -> W 5:2 (2:1) | E3: =IFERROR(IF(B3="","",LEFT(B3,SEARCH(" ",B3)-1)),"") -> 10.10.20 | F3: =IF(E3="","",MID(B3,SEARCH(" ",B3)+1,100)) -> Bala Town - Aberystwyth | G3: =IF(F3="","",LEFT(C3,SEARCH(" ",C3)-1)) -> W | H3: =IF(G3="","",MID(C3,SEARCH(" ",C3)+1,100)) -> 5:2 (2:1) | I3: =IF(H3="","",IF(K3="",LEFT(H3,SEARCH(" ",H3)-1),K3)) -> 5:2 | J3: =IF(F3="","",SUBSTITUTE(SUBSTITUTE(MID(C3,SEARCH(" ",H3)+3,100),"(",""),")","")) -> 2:1 | K3: =IFERROR(MID(J3,SEARCH("AET",J3)+4,100),"") ->  | L3: =IFERROR(LEFT(J3,SEARCH("AET",J3)-2),"") ->  | M3: =IF(F3="","",fmt(E3,"YYYY")*1) -> 2020 | N3: =IF(M3="","",IF(M3>=settodownload!$F$5,"OK","")) -> OK | O3: =IF(N3="","",LEFT(F3,SEARCH(" - ",F3)-1)) -> Bala Town | P3: =IF(O3="","",MID(F3,SEARCH(" - ",F3)+3,100)) -> Aberystwyth | Q3: =IFERROR(IF(P3="","",LEFT(J3,SEARCH(":",J3)-1)*1),IF(L3="","",LEFT(L3,SEARCH(":",L3)-1)*1)) -> 2 | R3: =IFERROR(IF(Q3="","",MID(J3,SEARCH(":",J3)+1,100)*1),IF(L3="","",MID(L3,SEARCH(":",L3)+1,100)*1)) -> 1 | S3: =IF(R3="","",U3-Q3) -> 3 | T3: =IF(S3="","",V3-R3) -> 1 | U3: =IF(N3="","",LEFT(I3,SEARCH(":",I3)-1)*1) -> 5 | V3: =IF(U3="","",MID(I3,SEARCH(":",I3)+1,100)*1) -> 2 | W3: =IF($O$2=O3,Q3,R3) -> 2 | X3: =IF($O$2=P3,Q3,R3) -> 1 | Y3: =IF($O$2=O3,S3,T3) -> 3 | Z3: =IF($O$2=P3,S3,T3) -> 1 | AA3: =IF($O$2=O3,U3,V3) -> 5 | AB3: =IF($O$2=P3,U3,V3) -> 2 | AC3: =IF(W3="","",IF(W3>0,"ok","")) -> ok | AD3: =IF(X3="","",IF(X3>0,"ok","")) -> ok | AE3: ok | AF3: ok | AG3: ok | AH3: ok | AI3: =IF(W3="",AI2,AI2+1) -> 1 | AJ3: =IF(W3="","",IF(W3>X3,"W",IF(W3=X3,"D",IF(W3<X3,"l","")))) -> W | AK3: =IF(Y3="","",IF(Y3>Z3,"W",IF(Y3=Z3,"D",IF(Y3<Z3,"l","")))) -> W | AL3: =IF(AA3="","",IF(AA3>AB3,"W",IF(AA3=AB3,"D",IF(AA3<AB3,"l","")))) -> W | AM3: =IF(AL3="","",IF((W3+X3)>0.5,"OK","")) -> OK | AN3: =IF(AM3="","",IF((W3+X3)>1,"OK","")) -> OK | AO3: =IF(AL3="","",IF((Y3+Z3)>0.5,"OK","")) -> OK | AP3: =IF(AL3="","",IF((Y3+Z3)>1,"OK","")) -> OK | AQ3: =IF(AL3="","",IF((AA3+AB3)>1,"OK","")) -> OK | AR3: =IF(AL3="","",IF((AA3+AB3)>2,"OK","")) -> OK | AS3: =IF(AL3="","",IF((AA3+AB3)>3,"OK","")) -> OK | AT3: =IF(AL3="","",IF(AND(AJ3="W",AK3="W"),"OK","")) -> OK | AU3: =IF(AL3="","",IF(AND(AJ3="D",AK3="D"),"OK","")) ->  | AV3: =IF(AL3="","",IF(AND(AJ3="L",AK3="L"),"OK","")) ->  | AW3: =COUNTIF($AJ:$AJ,AW2) -> 4 | AX3: =COUNTIF($AJ:$AJ,AX2) -> 1 | AY3: 0
A4: =A3+1 -> 588 | B4: =IF(C4="","",INDEX(downloadmatch!$A:$B,$A4,B$2)) -> 27.09.19 Bala Town - Aberystwyth | C4: =IF(C3="","",IF(INDEX(downloadmatch!$A:$B,$A4,C$2)=0,"",INDEX(downloadmatch!$A:$B,$A4,C$2))) -> W 2:0 (1:0) | E4: 27.09.19 | F4: =IF(E4="","",MID(B4,SEARCH(" ",B4)+1,100)) -> Bala Town - Aberystwyth | G4: =IF(F4="","",LEFT(C4,SEARCH(" ",C4)-1)) -> W | H4: =IF(G4="","",MID(C4,SEARCH(" ",C4)+1,100)) -> 2:0 (1:0) | I4: =IF(H4="","",IF(K4="",LEFT(H4,SEARCH(" ",H4)-1),K4)) -> 2:0 | J4: =IF(F4="","",SUBSTITUTE(SUBSTITUTE(MID(C4,SEARCH(" ",H4)+3,100),"(",""),")","")) -> 1:0 | M4: 2019 | N4: =IF(M4="","",IF(M4>=settodownload!$F$5,"OK","")) -> OK | O4: =IF(N4="","",LEFT(F4,SEARCH(" - ",F4)-1)) -> Bala Town | P4: =IF(O4="","",MID(F4,SEARCH(" - ",F4)+3,100)) -> Aberystwyth | Q4: 1 | R4: 0 | S4: =IF(R4="","",U4-Q4) -> 1 | T4: 0 | U4: =IF(N4="","",LEFT(I4,SEARCH(":",I4)-1)*1) -> 2 | V4: =IF(U4="","",MID(I4,SEARCH(":",I4)+1,100)*1) -> 0 | W4: =IF($O$2=O4,Q4,R4) -> 1 | X4: =IF($O$2=P4,Q4,R4) -> 0 | Y4: =IF($O$2=O4,S4,T4) -> 1 | Z4: =IF($O$2=P4,S4,T4) -> 0 | AA4: =IF($O$2=O4,U4,V4) -> 2 | AB4: =IF($O$2=P4,U4,V4) -> 0 | AC4: =IF(W4="","",IF(W4>0,"ok","")) -> ok | AE4: ok | AG4: ok | AI4: =IF(W4="",AI3,AI3+1) -> 2 | AJ4: =IF(W4="","",IF(W4>X4,"W",IF(W4=X4,"D",IF(W4<X4,"l","")))) -> W | AK4: =IF(Y4="","",IF(Y4>Z4,"W",IF(Y4=Z4,"D",IF(Y4<Z4,"l","")))) -> W | AL4: =IF(AA4="","",IF(AA4>AB4,"W",IF(AA4=AB4,"D",IF(AA4<AB4,"l","")))) -> W | AM4: =IF(AL4="","",IF((W4+X4)>0.5,"OK","")) -> OK | AN4: =IF(AM4="","",IF((W4+X4)>1,"OK","")) ->  | AO4: =IF(AL4="","",IF((Y4+Z4)>0.5,"OK","")) -> OK | AP4: =IF(AL4="","",IF((Y4+Z4)>1,"OK","")) ->  | AQ4: =IF(AL4="","",IF((AA4+AB4)>1,"OK","")) -> OK | AR4: =IF(AL4="","",IF((AA4+AB4)>2,"OK","")) ->  | AS4: =IF(AL4="","",IF((AA4+AB4)>3,"OK","")) ->  | AT4: =IF(AL4="","",IF(AND(AJ4="W",AK4="W"),"OK","")) -> OK | AU4: =IF(AL4="","",IF(AND(AJ4="D",AK4="D"),"OK","")) ->  | AV4: =IF(AL4="","",IF(AND(AJ4="L",AK4="L"),"OK","")) ->  | AW4: =AW3/$AI$99 ->  | AX4: =AX3/$AI$99 -> 
A5: =A4+1 -> 589 | B5: =IF(C5="","",INDEX(downloadmatch!$A:$B,$A5,B$2)) -> 17.11.18 Bala Town - Aberystwyth | C5: =IF(C4="","",IF(INDEX(downloadmatch!$A:$B,$A5,C$2)=0,"",INDEX(downloadmatch!$A:$B,$A5,C$2))) -> L 2:3 (1:0) | E5: 17.11.18 | F5: Bala Town - Aberystwyth | G5: L | H5: 2:3 (1:0) | I5: 2:3 | J5: 1:0 | M5: 2018 | N5: =IF(M5="","",IF(M5>=settodownload!$F$5,"OK","")) -> OK | O5: Bala Town | P5: Aberystwyth | Q5: 1 | R5: 0 | S5: 1 | T5: 3 | U5: 2 | V5: 3 | W5: 1 | X5: 0 | Y5: 1 | Z5: 3 | AA5: 2 | AB5: 3 | AC5: ok | AE5: ok | AF5: ok | AG5: ok | AH5: ok | AI5: 3 | AJ5: W | AK5: l | AL5: l | AM5: OK | AO5: OK | AP5: OK | AQ5: OK | AR5: OK | AS5: OK
A6: 590 | B6: =IF(C6="","",INDEX(downloadmatch!$A:$B,$A6,B$2)) -> 29.09.17 Bala Town - Aberystwyth | C6: =IF(C5="","",IF(INDEX(downloadmatch!$A:$B,$A6,C$2)=0,"",INDEX(downloadmatch!$A:$B,$A6,C$2))) -> D 1:1 (1:1) | E6: 29.09.17 | F6: Bala Town - Aberystwyth | G6: D | H6: 1:1 (1:1) | I6: 1:1 | J6: 1:1 | M6: 2017 | N6: =IF(M6="","",IF(M6>=settodownload!$F$5,"OK","")) -> OK | O6: Bala Town | P6: Aberystwyth | Q6: 1 | R6: 1 | S6: 0 | T6: 0 | U6: 1 | V6: 1 | W6: 1 | X6: 1 | Y6: 0 | Z6: 0 | AA6: 1 | AB6: 1 | AC6: ok | AD6: ok | AG6: ok | AH6: ok | AI6: 4 | AJ6: D | AK6: D | AL6: D | AM6: OK | AN6: OK | AQ6: OK | AU6: OK
A7: 591 | B7: =IF(C7="","",INDEX(downloadmatch!$A:$B,$A7,B$2)) -> 11.11.16 Bala Town - Aberystwyth | C7: =IF(C6="","",IF(INDEX(downloadmatch!$A:$B,$A7,C$2)=0,"",INDEX(downloadmatch!$A:$B,$A7,C$2))) -> W 4:0 (3:0) | E7: 11.11.16 | F7: Bala Town - Aberystwyth | G7: W | H7: 4:0 (3:0) | I7: 4:0 | J7: 3:0 | M7: 2016 | N7: =IF(M7="","",IF(M7>=settodownload!$F$5,"OK","")) -> OK | O7: Bala Town | P7: Aberystwyth | Q7: 3 | R7: 0 | S7: 1 | T7: 0 | U7: 4 | V7: 0 | W7: 3 | X7: 0 | Y7: 1 | Z7: 0 | AA7: 4 | AB7: 0 | AC7: ok | AE7: ok | AG7: ok | AI7: 5 | AJ7: W | AK7: W | AL7: W | AM7: OK | AN7: OK | AO7: OK | AQ7: OK | AR7: OK | AS7: OK | AT7: OK | AW7: =COUNTIF($AK:$AK,AW2) -> 3 | AX7: =COUNTIF($AK:$AK,AX2) -> 1 | AY7: 1
A8: 592 | B8: =IF(C8="","",INDEX(downloadmatch!$A:$B,$A8,B$2)) -> 06.10.15 Bala Town - Aberystwyth | C8: =IF(C7="","",IF(INDEX(downloadmatch!$A:$B,$A8,C$2)=0,"",INDEX(downloadmatch!$A:$B,$A8,C$2))) -> L 0:1 (0:0) | E8: 06.10.15 | F8: Bala Town - Aberystwyth | G8: L | H8: 0:1 (0:0) | I8: 0:1 | J8: 0:0 | M8: 2015 | N8: =IF(M8="","",IF(M8>=settodownload!$F$5,"OK","")) ->  | AI8: 5 | AW8: =AW7/$AI$99 ->  | AX8: =AX7/$AI$99 -> 
A9: 593 | B9: =IF(C9="","",INDEX(downloadmatch!$A:$B,$A9,B$2)) -> 27.02.15 Bala Town - Aberystwyth | C9: =IF(C8="","",IF(INDEX(downloadmatch!$A:$B,$A9,C$2)=0,"",INDEX(downloadmatch!$A:$B,$A9,C$2))) -> D 3:3 (2:1) | E9: 27.02.15 | F9: Bala Town - Aberystwyth | G9: D | H9: 3:3 (2:1) | I9: 3:3 | J9: 2:1 | M9: 2015 | N9: =IF(M9="","",IF(M9>=settodownload!$F$5,"OK","")) ->  | AI9: 5
A10: 594 | B10: =IF(C10="","",INDEX(downloadmatch!$A:$B,$A10,B$2)) -> 24.10.14 Bala Town - Aberystwyth | C10: =IF(C9="","",IF(INDEX(downloadmatch!$A:$B,$A10,C$2)=0,"",INDEX(downloadmatch!$A:$B,$A10,C$2))) -> W 4:0 (2:0) | E10: 24.10.14 | F10: Bala Town - Aberystwyth | G10: W | H10: 4:0 (2:0) | I10: 4:0 | J10: 2:0 | M10: 2014 | N10: =IF(M10="","",IF(M10>=settodownload!$F$5,"OK","")) ->  | AI10: 5
A11: 595 | B11: =IF(C11="","",INDEX(downloadmatch!$A:$B,$A11,B$2)) -> Team | C11: =IF(C10="","",IF(INDEX(downloadmatch!$A:$B,$A11,C$2)=0,"",INDEX(downloadmatch!$A:$B,$A11,C$2))) -> W | E11: =IFERROR(IF(B11="","",LEFT(B11,SEARCH(" ",B11)-1)),"") ->  | N11: =IF(M11="","",IF(M11>=settodownload!$F$5,"OK","")) ->  | AI11: 5 | AW11: =COUNTIF($AL:$AL,AW2) -> 3 | AX11: =COUNTIF($AL:$AL,AX2) -> 1 | AY11: 1
A12: 596 | B12: =IF(C12="","",INDEX(downloadmatch!$A:$B,$A12,B$2)) -> New Saints | C12: =IF(C11="","",IF(INDEX(downloadmatch!$A:$B,$A12,C$2)=0,"",INDEX(downloadmatch!$A:$B,$A12,C$2))) -> 9 | E12: =IFERROR(IF(B12="","",LEFT(B12,SEARCH(" ",B12)-1)),"") -> New | F12: Saints | N12: =IF(M12="","",IF(M12>=settodownload!$F$5,"OK","")) ->  | AW12: =AW11/$AI$99 ->  | AX12: =AX11/$AI$99 -> 
A13: 597 | B13: =IF(C13="","",INDEX(downloadmatch!$A:$B,$A13,B$2)) -> Bala Town | C13: =IF(C12="","",IF(INDEX(downloadmatch!$A:$B,$A13,C$2)=0,"",INDEX(downloadmatch!$A:$B,$A13,C$2))) -> 7 | E13: =IFERROR(IF(B13="","",LEFT(B13,SEARCH(" ",B13)-1)),"") -> Bala | F13: Town | N13: =IF(M13="","",IF(M13>=settodownload!$F$5,"OK","")) -> 
A14: 598 | B14: =IF(C14="","",INDEX(downloadmatch!$A:$B,$A14,B$2)) -> Connahs Quay | C14: =IF(C13="","",IF(INDEX(downloadmatch!$A:$B,$A14,C$2)=0,"",INDEX(downloadmatch!$A:$B,$A14,C$2))) -> 7 | E14: Connahs | F14: Quay | N14: =IF(M14="","",IF(M14>=settodownload!$F$5,"OK","")) -> 
A15: 599 | B15: =IF(C15="","",INDEX(downloadmatch!$A:$B,$A15,B$2)) -> Barry Town | C15: =IF(C14="","",IF(INDEX(downloadmatch!$A:$B,$A15,C$2)=0,"",INDEX(downloadmatch!$A:$B,$A15,C$2))) -> 5 | E15: Barry | F15: Town | N15: =IF(M15="","",IF(M15>=settodownload!$F$5,"OK","")) -> 
A16: 600 | B16: =IF(C16="","",INDEX(downloadmatch!$A:$B,$A16,B$2)) -> Penybont | C16: =IF(C15="","",IF(INDEX(downloadmatch!$A:$B,$A16,C$2)=0,"",INDEX(downloadmatch!$A:$B,$A16,C$2))) -> 4 | N16: =IF(M16="","",IF(M16>=settodownload!$F$5,"OK","")) -> 
A17: 601 | B17: =IF(C17="","",INDEX(downloadmatch!$A:$B,$A17,B$2)) -> Caernarfon | C17: =IF(C16="","",IF(INDEX(downloadmatch!$A:$B,$A17,C$2)=0,"",INDEX(downloadmatch!$A:$B,$A17,C$2))) -> 3 | N17: =IF(M17="","",IF(M17>=settodownload!$F$5,"OK","")) -> 
A18: 602 | B18: =IF(C18="","",INDEX(downloadmatch!$A:$B,$A18,B$2)) -> Aberystwyth | C18: =IF(C17="","",IF(INDEX(downloadmatch!$A:$B,$A18,C$2)=0,"",INDEX(downloadmatch!$A:$B,$A18,C$2))) -> 2 | N18: =IF(M18="","",IF(M18>=settodownload!$F$5,"OK","")) -> 
A19: 603 | B19: =IF(C19="","",INDEX(downloadmatch!$A:$B,$A19,B$2)) -> Haverfordwest | C19: =IF(C18="","",IF(INDEX(downloadmatch!$A:$B,$A19,C$2)=0,"",INDEX(downloadmatch!$A:$B,$A19,C$2))) -> 2 | N19: =IF(M19="","",IF(M19>=settodownload!$F$5,"OK","")) -> 
A20: 604 | B20: =IF(C20="","",INDEX(downloadmatch!$A:$B,$A20,B$2)) -> Newtown | C20: =IF(C19="","",IF(INDEX(downloadmatch!$A:$B,$A20,C$2)=0,"",INDEX(downloadmatch!$A:$B,$A20,C$2))) -> 2 | N20: =IF(M20="","",IF(M20>=settodownload!$F$5,"OK","")) ->  | S20: =IF(R20="","",U20-Q20) -> 
A21: 605 | B21: =IF(C21="","",INDEX(downloadmatch!$A:$B,$A21,B$2)) -> Cardiff Met | C21: =IF(C20="","",IF(INDEX(downloadmatch!$A:$B,$A21,C$2)=0,"",INDEX(downloadmatch!$A:$B,$A21,C$2))) -> 2 | E21: Cardiff | F21: Met | N21: =IF(M21="","",IF(M21>=settodownload!$F$5,"OK","")) -> 
A22: 606 | B22: =IF(C22="","",INDEX(downloadmatch!$A:$B,$A22,B$2)) -> Flint Town Utd | C22: =IF(C21="","",IF(INDEX(downloadmatch!$A:$B,$A22,C$2)=0,"",INDEX(downloadmatch!$A:$B,$A22,C$2))) -> 2 | E22: Flint | F22: Town Utd | N22: =IF(M22="","",IF(M22>=settodownload!$F$5,"OK","")) -> 
A23: 607 | B23: =IF(C23="","",INDEX(downloadmatch!$A:$B,$A23,B$2)) -> Cefn Druids | C23: =IF(C22="","",IF(INDEX(downloadmatch!$A:$B,$A23,C$2)=0,"",INDEX(downloadmatch!$A:$B,$A23,C$2))) -> 1 | E23: Cefn | F23: Druids | N23: =IF(M23="","",IF(M23>=settodownload!$F$5,"OK","")) -> 
A24: 608 | B24: =IF(C24="","",INDEX(downloadmatch!$A:$B,$A24,B$2)) ->  | C24: =IF(C23="","",IF(INDEX(downloadmatch!$A:$B,$A24,C$2)=0,"",INDEX(downloadmatch!$A:$B,$A24,C$2))) ->  | N24: =IF(M24="","",IF(M24>=settodownload!$F$5,"OK","")) -> 
A25: 609 | B25: =IF(C25="","",INDEX(downloadmatch!$A:$B,$A25,B$2)) ->  | C25: =IF(C24="","",IF(INDEX(downloadmatch!$A:$B,$A25,C$2)=0,"",INDEX(downloadmatch!$A:$B,$A25,C$2))) ->  | J25: =IF(F25="","",SUBSTITUTE(SUBSTITUTE(MID(C25,SEARCH(" ",H25)+3,100),"(",""),")","")) ->  | K25: =IFERROR(MID(J25,SEARCH("AET",J25)+4,100),"") ->  | L25: =IFERROR(LEFT(J25,SEARCH("AET",J25)-2),"") ->  | N25: =IF(M25="","",IF(M25>=settodownload!$F$5,"OK","")) -> 
A26: 610 | B26: =IF(C26="","",INDEX(downloadmatch!$A:$B,$A26,B$2)) ->  | C26: =IF(C25="","",IF(INDEX(downloadmatch!$A:$B,$A26,C$2)=0,"",INDEX(downloadmatch!$A:$B,$A26,C$2))) ->  | K26: =IFERROR(MID(J26,SEARCH("AET",J26)+4,100),"") ->  | L26: =IFERROR(LEFT(J26,SEARCH("AET",J26)-2),"") ->  | N26: =IF(M26="","",IF(M26>=settodownload!$F$5,"OK","")) -> 
A27: 611 | B27: =IF(C27="","",INDEX(downloadmatch!$A:$B,$A27,B$2)) ->  | C27: =IF(C26="","",IF(INDEX(downloadmatch!$A:$B,$A27,C$2)=0,"",INDEX(downloadmatch!$A:$B,$A27,C$2))) ->  | N27: =IF(M27="","",IF(M27>=settodownload!$F$5,"OK","")) -> 
A28: 612 | B28: =IF(C28="","",INDEX(downloadmatch!$A:$B,$A28,B$2)) ->  | C28: =IF(C27="","",IF(INDEX(downloadmatch!$A:$B,$A28,C$2)=0,"",INDEX(downloadmatch!$A:$B,$A28,C$2))) ->  | N28: =IF(M28="","",IF(M28>=settodownload!$F$5,"OK","")) -> 
A29: 613 | B29: =IF(C29="","",INDEX(downloadmatch!$A:$B,$A29,B$2)) ->  | C29: =IF(C28="","",IF(INDEX(downloadmatch!$A:$B,$A29,C$2)=0,"",INDEX(downloadmatch!$A:$B,$A29,C$2))) ->  | N29: =IF(M29="","",IF(M29>=settodownload!$F$5,"OK","")) -> 
A30: 614 | B30: =IF(C30="","",INDEX(downloadmatch!$A:$B,$A30,B$2)) ->  | C30: =IF(C29="","",IF(INDEX(downloadmatch!$A:$B,$A30,C$2)=0,"",INDEX(downloadmatch!$A:$B,$A30,C$2))) ->  | N30: =IF(M30="","",IF(M30>=settodownload!$F$5,"OK","")) -> 
A31: 615 | B31: =IF(C31="","",INDEX(downloadmatch!$A:$B,$A31,B$2)) ->  | C31: =IF(C30="","",IF(INDEX(downloadmatch!$A:$B,$A31,C$2)=0,"",INDEX(downloadmatch!$A:$B,$A31,C$2))) ->  | N31: =IF(M31="","",IF(M31>=settodownload!$F$5,"OK","")) -> 
A32: 616 | B32: =IF(C32="","",INDEX(downloadmatch!$A:$B,$A32,B$2)) ->  | C32: =IF(C31="","",IF(INDEX(downloadmatch!$A:$B,$A32,C$2)=0,"",INDEX(downloadmatch!$A:$B,$A32,C$2))) ->  | N32: =IF(M32="","",IF(M32>=settodownload!$F$5,"OK","")) -> 
A33: 617 | B33: =IF(C33="","",INDEX(downloadmatch!$A:$B,$A33,B$2)) ->  | C33: =IF(C32="","",IF(INDEX(downloadmatch!$A:$B,$A33,C$2)=0,"",INDEX(downloadmatch!$A:$B,$A33,C$2))) ->  | N33: =IF(M33="","",IF(M33>=settodownload!$F$5,"OK","")) -> 
A34: 618 | B34: =IF(C34="","",INDEX(downloadmatch!$A:$B,$A34,B$2)) ->  | C34: =IF(C33="","",IF(INDEX(downloadmatch!$A:$B,$A34,C$2)=0,"",INDEX(downloadmatch!$A:$B,$A34,C$2))) ->  | N34: =IF(M34="","",IF(M34>=settodownload!$F$5,"OK","")) -> 
A35: 619 | B35: =IF(C35="","",INDEX(downloadmatch!$A:$B,$A35,B$2)) ->  | C35: =IF(C34="","",IF(INDEX(downloadmatch!$A:$B,$A35,C$2)=0,"",INDEX(downloadmatch!$A:$B,$A35,C$2))) ->  | N35: =IF(M35="","",IF(M35>=settodownload!$F$5,"OK","")) -> 
A36: 620 | B36: =IF(C36="","",INDEX(downloadmatch!$A:$B,$A36,B$2)) ->  | C36: =IF(C35="","",IF(INDEX(downloadmatch!$A:$B,$A36,C$2)=0,"",INDEX(downloadmatch!$A:$B,$A36,C$2))) ->  | N36: =IF(M36="","",IF(M36>=settodownload!$F$5,"OK","")) ->  | S36: =IF(R36="","",U36-Q36) -> 
A37: 621 | B37: =IF(C37="","",INDEX(downloadmatch!$A:$B,$A37,B$2)) ->  | C37: =IF(C36="","",IF(INDEX(downloadmatch!$A:$B,$A37,C$2)=0,"",INDEX(downloadmatch!$A:$B,$A37,C$2))) ->  | N37: =IF(M37="","",IF(M37>=settodownload!$F$5,"OK","")) -> 
A38: 622 | B38: =IF(C38="","",INDEX(downloadmatch!$A:$B,$A38,B$2)) ->  | C38: =IF(C37="","",IF(INDEX(downloadmatch!$A:$B,$A38,C$2)=0,"",INDEX(downloadmatch!$A:$B,$A38,C$2))) ->  | N38: =IF(M38="","",IF(M38>=settodownload!$F$5,"OK","")) -> 
A39: 623 | B39: =IF(C39="","",INDEX(downloadmatch!$A:$B,$A39,B$2)) ->  | C39: =IF(C38="","",IF(INDEX(downloadmatch!$A:$B,$A39,C$2)=0,"",INDEX(downloadmatch!$A:$B,$A39,C$2))) ->  | N39: =IF(M39="","",IF(M39>=settodownload!$F$5,"OK","")) -> 
A40: 624 | B40: =IF(C40="","",INDEX(downloadmatch!$A:$B,$A40,B$2)) ->  | C40: =IF(C39="","",IF(INDEX(downloadmatch!$A:$B,$A40,C$2)=0,"",INDEX(downloadmatch!$A:$B,$A40,C$2))) ->  | N40: =IF(M40="","",IF(M40>=settodownload!$F$5,"OK","")) -> 
A41: 625 | B41: =IF(C41="","",INDEX(downloadmatch!$A:$B,$A41,B$2)) ->  | C41: =IF(C40="","",IF(INDEX(downloadmatch!$A:$B,$A41,C$2)=0,"",INDEX(downloadmatch!$A:$B,$A41,C$2))) ->  | N41: =IF(M41="","",IF(M41>=settodownload!$F$5,"OK","")) -> 
A42: 626 | B42: =IF(C42="","",INDEX(downloadmatch!$A:$B,$A42,B$2)) ->  | C42: =IF(C41="","",IF(INDEX(downloadmatch!$A:$B,$A42,C$2)=0,"",INDEX(downloadmatch!$A:$B,$A42,C$2))) ->  | N42: =IF(M42="","",IF(M42>=settodownload!$F$5,"OK","")) -> 
A43: 627 | B43: =IF(C43="","",INDEX(downloadmatch!$A:$B,$A43,B$2)) ->  | C43: =IF(C42="","",IF(INDEX(downloadmatch!$A:$B,$A43,C$2)=0,"",INDEX(downloadmatch!$A:$B,$A43,C$2))) ->  | N43: =IF(M43="","",IF(M43>=settodownload!$F$5,"OK","")) -> 
A44: 628 | B44: =IF(C44="","",INDEX(downloadmatch!$A:$B,$A44,B$2)) ->  | C44: =IF(C43="","",IF(INDEX(downloadmatch!$A:$B,$A44,C$2)=0,"",INDEX(downloadmatch!$A:$B,$A44,C$2))) ->  | N44: =IF(M44="","",IF(M44>=settodownload!$F$5,"OK","")) -> 
A45: 629 | B45: =IF(C45="","",INDEX(downloadmatch!$A:$B,$A45,B$2)) ->  | C45: =IF(C44="","",IF(INDEX(downloadmatch!$A:$B,$A45,C$2)=0,"",INDEX(downloadmatch!$A:$B,$A45,C$2))) ->  | N45: =IF(M45="","",IF(M45>=settodownload!$F$5,"OK","")) -> 
A46: 630 | B46: =IF(C46="","",INDEX(downloadmatch!$A:$B,$A46,B$2)) ->  | C46: =IF(C45="","",IF(INDEX(downloadmatch!$A:$B,$A46,C$2)=0,"",INDEX(downloadmatch!$A:$B,$A46,C$2))) ->  | N46: =IF(M46="","",IF(M46>=settodownload!$F$5,"OK","")) -> 
A47: 631 | B47: =IF(C47="","",INDEX(downloadmatch!$A:$B,$A47,B$2)) ->  | C47: =IF(C46="","",IF(INDEX(downloadmatch!$A:$B,$A47,C$2)=0,"",INDEX(downloadmatch!$A:$B,$A47,C$2))) ->  | N47: =IF(M47="","",IF(M47>=settodownload!$F$5,"OK","")) -> 
A48: 632 | B48: =IF(C48="","",INDEX(downloadmatch!$A:$B,$A48,B$2)) ->  | C48: =IF(C47="","",IF(INDEX(downloadmatch!$A:$B,$A48,C$2)=0,"",INDEX(downloadmatch!$A:$B,$A48,C$2))) ->  | N48: =IF(M48="","",IF(M48>=settodownload!$F$5,"OK","")) -> 
A49: 633 | B49: =IF(C49="","",INDEX(downloadmatch!$A:$B,$A49,B$2)) ->  | C49: =IF(C48="","",IF(INDEX(downloadmatch!$A:$B,$A49,C$2)=0,"",INDEX(downloadmatch!$A:$B,$A49,C$2))) ->  | N49: =IF(M49="","",IF(M49>=settodownload!$F$5,"OK","")) -> 
A50: 634 | B50: =IF(C50="","",INDEX(downloadmatch!$A:$B,$A50,B$2)) ->  | C50: =IF(C49="","",IF(INDEX(downloadmatch!$A:$B,$A50,C$2)=0,"",INDEX(downloadmatch!$A:$B,$A50,C$2))) ->  | N50: =IF(M50="","",IF(M50>=settodownload!$F$5,"OK","")) -> 
A51: 635 | B51: =IF(C51="","",INDEX(downloadmatch!$A:$B,$A51,B$2)) ->  | C51: =IF(C50="","",IF(INDEX(downloadmatch!$A:$B,$A51,C$2)=0,"",INDEX(downloadmatch!$A:$B,$A51,C$2))) ->  | N51: =IF(M51="","",IF(M51>=settodownload!$F$5,"OK","")) -> 
A52: 636 | B52: =IF(C52="","",INDEX(downloadmatch!$A:$B,$A52,B$2)) ->  | C52: =IF(C51="","",IF(INDEX(downloadmatch!$A:$B,$A52,C$2)=0,"",INDEX(downloadmatch!$A:$B,$A52,C$2))) ->  | N52: =IF(M52="","",IF(M52>=settodownload!$F$5,"OK","")) ->  | S52: =IF(R52="","",U52-Q52) -> 
A53: 637 | B53: =IF(C53="","",INDEX(downloadmatch!$A:$B,$A53,B$2)) ->  | C53: =IF(C52="","",IF(INDEX(downloadmatch!$A:$B,$A53,C$2)=0,"",INDEX(downloadmatch!$A:$B,$A53,C$2))) ->  | N53: =IF(M53="","",IF(M53>=settodownload!$F$5,"OK","")) -> 
A54: 638 | B54: =IF(C54="","",INDEX(downloadmatch!$A:$B,$A54,B$2)) ->  | C54: =IF(C53="","",IF(INDEX(downloadmatch!$A:$B,$A54,C$2)=0,"",INDEX(downloadmatch!$A:$B,$A54,C$2))) ->  | N54: =IF(M54="","",IF(M54>=settodownload!$F$5,"OK","")) -> 
A55: 639 | B55: =IF(C55="","",INDEX(downloadmatch!$A:$B,$A55,B$2)) ->  | C55: =IF(C54="","",IF(INDEX(downloadmatch!$A:$B,$A55,C$2)=0,"",INDEX(downloadmatch!$A:$B,$A55,C$2))) ->  | N55: =IF(M55="","",IF(M55>=settodownload!$F$5,"OK","")) -> 
A56: 640 | B56: =IF(C56="","",INDEX(downloadmatch!$A:$B,$A56,B$2)) ->  | C56: =IF(C55="","",IF(INDEX(downloadmatch!$A:$B,$A56,C$2)=0,"",INDEX(downloadmatch!$A:$B,$A56,C$2))) ->  | N56: =IF(M56="","",IF(M56>=settodownload!$F$5,"OK","")) -> 
A57: 641 | B57: =IF(C57="","",INDEX(downloadmatch!$A:$B,$A57,B$2)) ->  | C57: =IF(C56="","",IF(INDEX(downloadmatch!$A:$B,$A57,C$2)=0,"",INDEX(downloadmatch!$A:$B,$A57,C$2))) ->  | N57: =IF(M57="","",IF(M57>=settodownload!$F$5,"OK","")) -> 
A58: 642 | B58: =IF(C58="","",INDEX(downloadmatch!$A:$B,$A58,B$2)) ->  | C58: =IF(C57="","",IF(INDEX(downloadmatch!$A:$B,$A58,C$2)=0,"",INDEX(downloadmatch!$A:$B,$A58,C$2))) ->  | N58: =IF(M58="","",IF(M58>=settodownload!$F$5,"OK","")) -> 
A59: 643 | B59: =IF(C59="","",INDEX(downloadmatch!$A:$B,$A59,B$2)) ->  | C59: =IF(C58="","",IF(INDEX(downloadmatch!$A:$B,$A59,C$2)=0,"",INDEX(downloadmatch!$A:$B,$A59,C$2))) ->  | N59: =IF(M59="","",IF(M59>=settodownload!$F$5,"OK","")) ->  | AC59: =IF(W59="","",IF(W59>0,"ok","")) -> 
A60: 644 | B60: =IF(C60="","",INDEX(downloadmatch!$A:$B,$A60,B$2)) ->  | C60: =IF(C59="","",IF(INDEX(downloadmatch!$A:$B,$A60,C$2)=0,"",INDEX(downloadmatch!$A:$B,$A60,C$2))) ->  | N60: =IF(M60="","",IF(M60>=settodownload!$F$5,"OK","")) -> 
A61: 645 | B61: =IF(C61="","",INDEX(downloadmatch!$A:$B,$A61,B$2)) ->  | C61: =IF(C60="","",IF(INDEX(downloadmatch!$A:$B,$A61,C$2)=0,"",INDEX(downloadmatch!$A:$B,$A61,C$2))) ->  | N61: =IF(M61="","",IF(M61>=settodownload!$F$5,"OK","")) -> 
A62: 646 | B62: =IF(C62="","",INDEX(downloadmatch!$A:$B,$A62,B$2)) ->  | C62: =IF(C61="","",IF(INDEX(downloadmatch!$A:$B,$A62,C$2)=0,"",INDEX(downloadmatch!$A:$B,$A62,C$2))) ->  | N62: =IF(M62="","",IF(M62>=settodownload!$F$5,"OK","")) -> 
A63: 647 | B63: =IF(C63="","",INDEX(downloadmatch!$A:$B,$A63,B$2)) ->  | C63: =IF(C62="","",IF(INDEX(downloadmatch!$A:$B,$A63,C$2)=0,"",INDEX(downloadmatch!$A:$B,$A63,C$2))) ->  | N63: =IF(M63="","",IF(M63>=settodownload!$F$5,"OK","")) -> 
A64: 648 | B64: =IF(C64="","",INDEX(downloadmatch!$A:$B,$A64,B$2)) ->  | C64: =IF(C63="","",IF(INDEX(downloadmatch!$A:$B,$A64,C$2)=0,"",INDEX(downloadmatch!$A:$B,$A64,C$2))) ->  | N64: =IF(M64="","",IF(M64>=settodownload!$F$5,"OK","")) -> 
A65: 649 | B65: =IF(C65="","",INDEX(downloadmatch!$A:$B,$A65,B$2)) ->  | C65: =IF(C64="","",IF(INDEX(downloadmatch!$A:$B,$A65,C$2)=0,"",INDEX(downloadmatch!$A:$B,$A65,C$2))) ->  | N65: =IF(M65="","",IF(M65>=settodownload!$F$5,"OK","")) -> 
A66: 650 | B66: =IF(C66="","",INDEX(downloadmatch!$A:$B,$A66,B$2)) ->  | C66: =IF(C65="","",IF(INDEX(downloadmatch!$A:$B,$A66,C$2)=0,"",INDEX(downloadmatch!$A:$B,$A66,C$2))) ->  | N66: =IF(M66="","",IF(M66>=settodownload!$F$5,"OK","")) -> 
A67: 651 | B67: =IF(C67="","",INDEX(downloadmatch!$A:$B,$A67,B$2)) ->  | C67: =IF(C66="","",IF(INDEX(downloadmatch!$A:$B,$A67,C$2)=0,"",INDEX(downloadmatch!$A:$B,$A67,C$2))) ->  | M67: =IF(F67="","",fmt(E67,"YYYY")*1) ->  | N67: =IF(M67="","",IF(M67>=settodownload!$F$5,"OK","")) ->  | Q67: =IFERROR(IF(P67="","",LEFT(J67,SEARCH(":",J67)-1)*1),IF(L67="","",LEFT(L67,SEARCH(":",L67)-1)*1)) ->  | R67: =IFERROR(IF(Q67="","",MID(J67,SEARCH(":",J67)+1,100)*1),IF(L67="","",MID(L67,SEARCH(":",L67)+1,100)*1)) -> 
A68: 652 | B68: =IF(C68="","",INDEX(downloadmatch!$A:$B,$A68,B$2)) ->  | C68: =IF(C67="","",IF(INDEX(downloadmatch!$A:$B,$A68,C$2)=0,"",INDEX(downloadmatch!$A:$B,$A68,C$2))) ->  | I68: =IF(H68="","",IF(K68="",LEFT(H68,SEARCH(" ",H68)-1),K68)) ->  | J68: =IF(F68="","",SUBSTITUTE(SUBSTITUTE(MID(C68,SEARCH(" ",H68)+3,100),"(",""),")","")) ->  | N68: =IF(M68="","",IF(M68>=settodownload!$F$5,"OK","")) ->  | O68: =IF(N68="","",LEFT(F68,SEARCH(" - ",F68)-1)) ->  | P68: =IF(O68="","",MID(F68,SEARCH(" - ",F68)+3,100)) ->  | S68: =IF(R68="","",U68-Q68) ->  | U68: =IF(N68="","",LEFT(I68,SEARCH(":",I68)-1)*1) ->  | V68: =IF(U68="","",MID(I68,SEARCH(":",I68)+1,100)*1) ->  | W68: =IF($O$2=O68,Q68,R68) ->  | X68: =IF($O$2=P68,Q68,R68) ->  | Y68: =IF($O$2=O68,S68,T68) ->  | Z68: =IF($O$2=P68,S68,T68) ->  | AA68: =IF($O$2=O68,U68,V68) ->  | AB68: =IF($O$2=P68,U68,V68) ->  | AI68: =IF(W68="",AI67,AI67+1) ->  | AJ68: =IF(W68="","",IF(W68>X68,"W",IF(W68=X68,"D",IF(W68<X68,"l","")))) ->  | AK68: =IF(Y68="","",IF(Y68>Z68,"W",IF(Y68=Z68,"D",IF(Y68<Z68,"l","")))) ->  | AL68: =IF(AA68="","",IF(AA68>AB68,"W",IF(AA68=AB68,"D",IF(AA68<AB68,"l","")))) ->  | AM68: =IF(AL68="","",IF((W68+X68)>0.5,"OK","")) ->  | AN68: =IF(AM68="","",IF((W68+X68)>1,"OK","")) ->  | AO68: =IF(AL68="","",IF((Y68+Z68)>0.5,"OK","")) ->  | AP68: =IF(AL68="","",IF((Y68+Z68)>1,"OK","")) ->  | AQ68: =IF(AL68="","",IF((AA68+AB68)>1,"OK","")) ->  | AR68: =IF(AL68="","",IF((AA68+AB68)>2,"OK","")) ->  | AS68: =IF(AL68="","",IF((AA68+AB68)>3,"OK","")) ->  | AT68: =IF(AL68="","",IF(AND(AJ68="W",AK68="W"),"OK","")) ->  | AU68: =IF(AL68="","",IF(AND(AJ68="D",AK68="D"),"OK","")) ->  | AV68: =IF(AL68="","",IF(AND(AJ68="L",AK68="L"),"OK","")) -> 
A69: =A68+1 -> 653 | B69: =IF(C69="","",INDEX(downloadmatch!$A:$B,$A69,B$2)) ->  | C69: =IF(C68="","",IF(INDEX(downloadmatch!$A:$B,$A69,C$2)=0,"",INDEX(downloadmatch!$A:$B,$A69,C$2))) ->  | N69: =IF(M69="","",IF(M69>=settodownload!$F$5,"OK","")) -> 
A70: 654 | B70: =IF(C70="","",INDEX(downloadmatch!$A:$B,$A70,B$2)) ->  | C70: =IF(C69="","",IF(INDEX(downloadmatch!$A:$B,$A70,C$2)=0,"",INDEX(downloadmatch!$A:$B,$A70,C$2))) ->  | N70: =IF(M70="","",IF(M70>=settodownload!$F$5,"OK","")) -> 
A71: 655 | B71: =IF(C71="","",INDEX(downloadmatch!$A:$B,$A71,B$2)) ->  | C71: =IF(C70="","",IF(INDEX(downloadmatch!$A:$B,$A71,C$2)=0,"",INDEX(downloadmatch!$A:$B,$A71,C$2))) ->  | N71: =IF(M71="","",IF(M71>=settodownload!$F$5,"OK","")) -> 
A72: 656 | B72: =IF(C72="","",INDEX(downloadmatch!$A:$B,$A72,B$2)) ->  | C72: =IF(C71="","",IF(INDEX(downloadmatch!$A:$B,$A72,C$2)=0,"",INDEX(downloadmatch!$A:$B,$A72,C$2))) ->  | N72: =IF(M72="","",IF(M72>=settodownload!$F$5,"OK","")) -> 
A73: 657 | B73: =IF(C73="","",INDEX(downloadmatch!$A:$B,$A73,B$2)) ->  | C73: =IF(C72="","",IF(INDEX(downloadmatch!$A:$B,$A73,C$2)=0,"",INDEX(downloadmatch!$A:$B,$A73,C$2))) ->  | N73: =IF(M73="","",IF(M73>=settodownload!$F$5,"OK","")) -> 
A74: 658 | B74: =IF(C74="","",INDEX(downloadmatch!$A:$B,$A74,B$2)) ->  | C74: =IF(C73="","",IF(INDEX(downloadmatch!$A:$B,$A74,C$2)=0,"",INDEX(downloadmatch!$A:$B,$A74,C$2))) ->  | N74: =IF(M74="","",IF(M74>=settodownload!$F$5,"OK","")) -> 
A75: 659 | B75: =IF(C75="","",INDEX(downloadmatch!$A:$B,$A75,B$2)) ->  | C75: =IF(C74="","",IF(INDEX(downloadmatch!$A:$B,$A75,C$2)=0,"",INDEX(downloadmatch!$A:$B,$A75,C$2))) ->  | N75: =IF(M75="","",IF(M75>=settodownload!$F$5,"OK","")) -> 
A76: 660 | B76: =IF(C76="","",INDEX(downloadmatch!$A:$B,$A76,B$2)) ->  | C76: =IF(C75="","",IF(INDEX(downloadmatch!$A:$B,$A76,C$2)=0,"",INDEX(downloadmatch!$A:$B,$A76,C$2))) ->  | E76: =IFERROR(IF(B76="","",LEFT(B76,SEARCH(" ",B76)-1)),"") ->  | N76: =IF(M76="","",IF(M76>=settodownload!$F$5,"OK","")) -> 
A77: 661 | B77: =IF(C77="","",INDEX(downloadmatch!$A:$B,$A77,B$2)) ->  | C77: =IF(C76="","",IF(INDEX(downloadmatch!$A:$B,$A77,C$2)=0,"",INDEX(downloadmatch!$A:$B,$A77,C$2))) ->  | N77: =IF(M77="","",IF(M77>=settodownload!$F$5,"OK","")) -> 
A78: 662 | B78: =IF(C78="","",INDEX(downloadmatch!$A:$B,$A78,B$2)) ->  | C78: =IF(C77="","",IF(INDEX(downloadmatch!$A:$B,$A78,C$2)=0,"",INDEX(downloadmatch!$A:$B,$A78,C$2))) ->  | N78: =IF(M78="","",IF(M78>=settodownload!$F$5,"OK","")) -> 
A79: 663 | B79: =IF(C79="","",INDEX(downloadmatch!$A:$B,$A79,B$2)) ->  | C79: =IF(C78="","",IF(INDEX(downloadmatch!$A:$B,$A79,C$2)=0,"",INDEX(downloadmatch!$A:$B,$A79,C$2))) ->  | N79: =IF(M79="","",IF(M79>=settodownload!$F$5,"OK","")) -> 
A80: 664 | B80: =IF(C80="","",INDEX(downloadmatch!$A:$B,$A80,B$2)) ->  | C80: =IF(C79="","",IF(INDEX(downloadmatch!$A:$B,$A80,C$2)=0,"",INDEX(downloadmatch!$A:$B,$A80,C$2))) ->  | N80: =IF(M80="","",IF(M80>=settodownload!$F$5,"OK","")) -> 
A81: 665 | B81: =IF(C81="","",INDEX(downloadmatch!$A:$B,$A81,B$2)) ->  | C81: =IF(C80="","",IF(INDEX(downloadmatch!$A:$B,$A81,C$2)=0,"",INDEX(downloadmatch!$A:$B,$A81,C$2))) ->  | N81: =IF(M81="","",IF(M81>=settodownload!$F$5,"OK","")) -> 
A82: 666 | B82: =IF(C82="","",INDEX(downloadmatch!$A:$B,$A82,B$2)) ->  | C82: =IF(C81="","",IF(INDEX(downloadmatch!$A:$B,$A82,C$2)=0,"",INDEX(downloadmatch!$A:$B,$A82,C$2))) ->  | N82: =IF(M82="","",IF(M82>=settodownload!$F$5,"OK","")) -> 
A83: 667 | B83: =IF(C83="","",INDEX(downloadmatch!$A:$B,$A83,B$2)) ->  | C83: =IF(C82="","",IF(INDEX(downloadmatch!$A:$B,$A83,C$2)=0,"",INDEX(downloadmatch!$A:$B,$A83,C$2))) ->  | N83: =IF(M83="","",IF(M83>=settodownload!$F$5,"OK","")) -> 
A84: 668 | B84: =IF(C84="","",INDEX(downloadmatch!$A:$B,$A84,B$2)) ->  | C84: =IF(C83="","",IF(INDEX(downloadmatch!$A:$B,$A84,C$2)=0,"",INDEX(downloadmatch!$A:$B,$A84,C$2))) ->  | N84: =IF(M84="","",IF(M84>=settodownload!$F$5,"OK","")) ->  | S84: =IF(R84="","",U84-Q84) -> 
A85: 669 | B85: =IF(C85="","",INDEX(downloadmatch!$A:$B,$A85,B$2)) ->  | C85: =IF(C84="","",IF(INDEX(downloadmatch!$A:$B,$A85,C$2)=0,"",INDEX(downloadmatch!$A:$B,$A85,C$2))) ->  | N85: =IF(M85="","",IF(M85>=settodownload!$F$5,"OK","")) -> 
A86: 670 | B86: =IF(C86="","",INDEX(downloadmatch!$A:$B,$A86,B$2)) ->  | C86: =IF(C85="","",IF(INDEX(downloadmatch!$A:$B,$A86,C$2)=0,"",INDEX(downloadmatch!$A:$B,$A86,C$2))) ->  | N86: =IF(M86="","",IF(M86>=settodownload!$F$5,"OK","")) -> 
A87: 671 | B87: =IF(C87="","",INDEX(downloadmatch!$A:$B,$A87,B$2)) ->  | C87: =IF(C86="","",IF(INDEX(downloadmatch!$A:$B,$A87,C$2)=0,"",INDEX(downloadmatch!$A:$B,$A87,C$2))) ->  | N87: =IF(M87="","",IF(M87>=settodownload!$F$5,"OK","")) -> 
A88: 672 | B88: =IF(C88="","",INDEX(downloadmatch!$A:$B,$A88,B$2)) ->  | C88: =IF(C87="","",IF(INDEX(downloadmatch!$A:$B,$A88,C$2)=0,"",INDEX(downloadmatch!$A:$B,$A88,C$2))) ->  | N88: =IF(M88="","",IF(M88>=settodownload!$F$5,"OK","")) -> 
A89: 673 | B89: =IF(C89="","",INDEX(downloadmatch!$A:$B,$A89,B$2)) ->  | C89: =IF(C88="","",IF(INDEX(downloadmatch!$A:$B,$A89,C$2)=0,"",INDEX(downloadmatch!$A:$B,$A89,C$2))) ->  | N89: =IF(M89="","",IF(M89>=settodownload!$F$5,"OK","")) -> 
A90: 674 | B90: =IF(C90="","",INDEX(downloadmatch!$A:$B,$A90,B$2)) ->  | C90: =IF(C89="","",IF(INDEX(downloadmatch!$A:$B,$A90,C$2)=0,"",INDEX(downloadmatch!$A:$B,$A90,C$2))) ->  | K90: =IFERROR(MID(J90,SEARCH("AET",J90)+4,100),"") ->  | L90: =IFERROR(LEFT(J90,SEARCH("AET",J90)-2),"") ->  | N90: =IF(M90="","",IF(M90>=settodownload!$F$5,"OK","")) -> 
A91: 675 | B91: =IF(C91="","",INDEX(downloadmatch!$A:$B,$A91,B$2)) ->  | C91: =IF(C90="","",IF(INDEX(downloadmatch!$A:$B,$A91,C$2)=0,"",INDEX(downloadmatch!$A:$B,$A91,C$2))) ->  | N91: =IF(M91="","",IF(M91>=settodownload!$F$5,"OK","")) -> 
A92: 676 | B92: =IF(C92="","",INDEX(downloadmatch!$A:$B,$A92,B$2)) ->  | C92: =IF(C91="","",IF(INDEX(downloadmatch!$A:$B,$A92,C$2)=0,"",INDEX(downloadmatch!$A:$B,$A92,C$2))) ->  | N92: =IF(M92="","",IF(M92>=settodownload!$F$5,"OK","")) -> 
A93: 677 | B93: =IF(C93="","",INDEX(downloadmatch!$A:$B,$A93,B$2)) ->  | C93: =IF(C92="","",IF(INDEX(downloadmatch!$A:$B,$A93,C$2)=0,"",INDEX(downloadmatch!$A:$B,$A93,C$2))) ->  | N93: =IF(M93="","",IF(M93>=settodownload!$F$5,"OK","")) -> 
A94: 678 | B94: =IF(C94="","",INDEX(downloadmatch!$A:$B,$A94,B$2)) ->  | C94: =IF(C93="","",IF(INDEX(downloadmatch!$A:$B,$A94,C$2)=0,"",INDEX(downloadmatch!$A:$B,$A94,C$2))) ->  | N94: =IF(M94="","",IF(M94>=settodownload!$F$5,"OK","")) -> 
A95: 679 | B95: =IF(C95="","",INDEX(downloadmatch!$A:$B,$A95,B$2)) ->  | C95: =IF(C94="","",IF(INDEX(downloadmatch!$A:$B,$A95,C$2)=0,"",INDEX(downloadmatch!$A:$B,$A95,C$2))) ->  | N95: =IF(M95="","",IF(M95>=settodownload!$F$5,"OK","")) -> 
A96: 680 | B96: =IF(C96="","",INDEX(downloadmatch!$A:$B,$A96,B$2)) ->  | C96: =IF(C95="","",IF(INDEX(downloadmatch!$A:$B,$A96,C$2)=0,"",INDEX(downloadmatch!$A:$B,$A96,C$2))) ->  | N96: =IF(M96="","",IF(M96>=settodownload!$F$5,"OK","")) -> 
A97: 681 | B97: =IF(C97="","",INDEX(downloadmatch!$A:$B,$A97,B$2)) ->  | C97: =IF(C96="","",IF(INDEX(downloadmatch!$A:$B,$A97,C$2)=0,"",INDEX(downloadmatch!$A:$B,$A97,C$2))) ->  | N97: =IF(M97="","",IF(M97>=settodownload!$F$5,"OK","")) -> 
A98: 682 | B98: =IF(C98="","",INDEX(downloadmatch!$A:$B,$A98,B$2)) ->  | C98: =IF(C97="","",IF(INDEX(downloadmatch!$A:$B,$A98,C$2)=0,"",INDEX(downloadmatch!$A:$B,$A98,C$2))) ->  | N98: =IF(M98="","",IF(M98>=settodownload!$F$5,"OK","")) -> 
A99: 683 | B99: =IF(C99="","",INDEX(downloadmatch!$A:$B,$A99,B$2)) ->  | C99: =IF(C98="","",IF(INDEX(downloadmatch!$A:$B,$A99,C$2)=0,"",INDEX(downloadmatch!$A:$B,$A99,C$2))) ->  | N99: =IF(M99="","",IF(M99>=settodownload!$F$5,"OK","")) ->  | AI99: =IF(W99="",AI98,AI98+1) -> 
A100: 684 | B100: =IF(C100="","",INDEX(downloadmatch!$A:$B,$A100,B$2)) ->  | C100: =IF(C99="","",IF(INDEX(downloadmatch!$A:$B,$A100,C$2)=0,"",INDEX(downloadmatch!$A:$B,$A100,C$2))) ->  | E100: =IFERROR(IF(B100="","",LEFT(B100,SEARCH(" ",B100)-1)),"") ->  | N100: =IF(M100="","",IF(M100>=settodownload!$C$5,"OK","")) -> 

Sheet predict (hidden)
B2: qol vurma gucu | I2: 0.5 | J2: 1.5 | K2: 0.5 | L2: 1.5 | M2: 1.5 | N2: 2.5 | O2: 3.5
A3: t1 | B3: =HOME!AC2 -> 0.5 | C3: =HOME!AD2 -> 0.5 | D3: =HOME!AE2 -> 0.75 | E3: =HOME!AF2 -> 0.625 | F3: =HOME!AG2 -> 0.875 | G3: =HOME!AH2 -> 0.875 | I3: =HOME!AM2 -> 0.75 | J3: =HOME!AN2 -> 0.5 | K3: =HOME!AO2 -> 0.875 | L3: =HOME!AP2 -> 0.75 | M3: =HOME!AQ2 -> 1 | N3: =HOME!AR2 -> 0.625 | O3: =HOME!AS2 -> 0.5 | Q3: =HOME!AW4 -> 0.25 | R3: =HOME!AX4 -> 0.375 | S3: =HOME!AY4 -> 0.375 | U3: =HOME!AW8 -> 0.375 | V3: =HOME!AX8 -> 0.25 | W3: =HOME!AY8 -> 0.375 | Y3: =HOME!AW12 -> 0.25 | Z3: =HOME!AX12 -> 0.375 | AA3: =HOME!AY12 -> 0.375
A4: t2 | B4: =AWAY!AC2 -> 0.7 | C4: =AWAY!AD2 -> 0.5 | D4: =AWAY!AE2 -> 0.7 | E4: =AWAY!AF2 -> 0.4 | F4: =AWAY!AG2 -> 0.9 | G4: =AWAY!AH2 -> 0.7 | I4: =AWAY!AM2 -> 0.8 | J4: =AWAY!AN2 -> 0.6 | K4: =AWAY!AO2 -> 0.8 | L4: =AWAY!AP2 -> 0.3 | M4: =AWAY!AQ2 -> 0.9 | N4: =AWAY!AR2 -> 0.5 | O4: =AWAY!AS2 -> 0.3 | Q4: =AWAY!AW4 -> 0.5 | R4: =AWAY!AX4 -> 0.4 | S4: =AWAY!AY4 -> 0.1 | U4: =AWAY!AW8 -> 0.5 | V4: =AWAY!AX8 -> 0.4 | W4: =AWAY!AY8 -> 0.1 | Y4: =AWAY!AW12 -> 0.6 | Z4: =AWAY!AX12 -> 0.2 | AA4: =AWAY!AY12 -> 0.2
A5: t1 | B5: =HEAD1!AC2 -> 0.25 | C5: =HEAD1!AD2 -> 0.5 | D5: =HEAD1!AE2 -> 0.75 | E5: =HEAD1!AF2 -> 1 | F5: =HEAD1!AG2 -> 0.75 | G5: =HEAD1!AH2 -> 1 | I5: =HEAD1!AM2 -> 0.75 | J5: =HEAD1!AN2 -> 0.5 | K5: =HEAD1!AO2 -> 1 | L5: =HEAD1!AP2 -> 1 | M5: =HEAD1!AQ2 -> 1 | N5: =HEAD1!AR2 -> 1 | O5: =HEAD1!AS2 -> 0.75 | Q5: =HEAD1!AW4 -> 0.25 | R5: =HEAD1!AX4 -> 0.25 | S5: =HEAD1!AY4 -> 0.5 | U5: =HEAD1!AW8 -> 0 | V5: =HEAD1!AX8 -> 0.5 | W5: =HEAD1!AY8 -> 0.5 | Y5: =HEAD1!AW12 -> 0.25 | Z5: =HEAD1!AX12 -> 0 | AA5: =HEAD1!AY12 -> 0.75
A6: t2 | B6: =HEAD2!AC2 ->  | C6: =HEAD2!AD2 ->  | D6: =HEAD2!AE2 ->  | E6: =HEAD2!AF2 ->  | F6: =HEAD2!AG2 ->  | G6: =HEAD2!AH2 ->  | I6: =HEAD2!AM2 ->  | J6: =HEAD2!AN2 ->  | K6: =HEAD2!AO2 ->  | L6: =HEAD2!AP2 ->  | M6: =HEAD2!AQ2 ->  | N6: =HEAD2!AR2 ->  | O6: =HEAD2!AS2 -> 
B7: =D19 -> Aberystwyth | C7: =E19 -> Bala Town | D7: =B7 -> Aberystwyth | E7: =C7 -> Bala Town | F7: =D7 -> Aberystwyth | G7: =E7 -> Bala Town | Q7: =(Q3+S4+Q5)/3 -> 0.2 | R7: =(R3+R4+R5)/3 -> 0.3416666667 | S7: =(S3+Q4+S5)/3 -> 0.4583333333 | U7: =(U3+W4+U5)/3 -> 0.1583333333 | V7: =(V3+V4+V5)/3 -> 0.3833333333 | W7: =(W3+U4+W5)/3 -> 0.4583333333 | Y7: =(Y3+AA4+Y5)/3 -> 0.2333333333 | Z7: =(Z3+Z4+Z5)/3 -> 0.1916666667 | AA7: =(AA3+Y4+AA5)/3 -> 0.575
B8: =(B3+C4+B5)/3 -> 0.4166666667 | C8: =(C3+B4+C5)/3 -> 0.5666666667 | D8: =(D3+E4+D5)/3 -> 0.6333333333 | E8: =(E3+D4+E5)/3 -> 0.775 | F8: =(F3+G4+F5)/3 -> 0.775 | G8: =(G3+F4+G5)/3 -> 0.925 | I8: =(I3+I4+I5)/3 -> 0.7666666667 | J8: =(J3+J4+J5)/3 -> 0.5333333333 | K8: =(K3+K4+K5)/3 -> 0.8916666667 | L8: 0.6833333333 | M8: 0.9666666667 | N8: 0.7083333333 | O8: 0.5166666667 | Q8: W1 | R8: X | S8: W2 | U8: W1 | V8: X | W8: W2 | Y8: W1 | Z8: X | AA8: W2
B9: =B7 -> Aberystwyth | C9: =C7 -> Bala Town | D9: Aberystwyth | E9: Bala Town | F9: Aberystwyth | G9: Bala Town | R9: =HLOOKUP(LARGE(Q7:S7,1),Q7:S8,2,0) -> W2 | V9: =HLOOKUP(LARGE(U7:W7,1),U7:W8,2,0) -> W2 | Z9: =HLOOKUP(LARGE(Y7:AA7,1),Y7:AA8,2,0) -> W2
B10: =1-B3 -> 0.5 | C10: =1-C3 -> 0.5 | D10: 0.25 | E10: 0.375 | F10: 0.125 | G10: 0.125 | I10: =IF(AND(I3>70%,I4>70%),"0.5 O (HT)","-") -> 0.5 O (HT) | J10: =IF(AND(J3>60%,J4>60%),"1.5 O (HT)","-") -> - | K10: =IF(AND(K3>70%,K4>70%),"0.5 O (ST)","-") -> 0.5 O (ST) | L10: =IF(AND(L3>60%,L4>60%),"1.5 O (ST)","-") -> - | M10: =IF(AND(M3>60%,M4>60%),"1.5 O (FT)","-") -> 1.5 O (FT) | N10: =IF(AND(N3>65%,N4>65%),"2.5 O (FT)","-") -> - | O10: =IF(AND(O3>60%,O4>60%),"3.5 O (FT)","-") -> -
B11: =1-B4 -> 0.3 | C11: 0.5 | D11: 0.3 | E11: 0.6 | F11: 0.1 | G11: 0.3
B12: =1-B5 -> 0.75 | C12: 0.5 | D12: 0.25 | E12: 0 | F12: 0.25 | G12: 0
B13: =B7 -> Aberystwyth | C13: =C7 -> Bala Town | D13: Aberystwyth | E13: Bala Town | F13: Aberystwyth | G13: Bala Town
B14: =(B10+C11+B12)/3 -> 0.5833333333 | C14: =(C10+B11+C12)/3 -> 0.4333333333 | D14: =(D10+E11+D12)/3 -> 0.3666666667 | E14: =(E10+D11+E12)/3 -> 0.225 | F14: =(F10+G11+F12)/3 -> 0.225 | G14: =(G10+F11+G12)/3 -> 0.075
B15: =B7 -> Aberystwyth | C15: =C7 -> Bala Town | D15: Aberystwyth | E15: Bala Town | F15: Aberystwyth | G15: Bala Town | I15: =HLOOKUP(LARGE(B8:C8,1),B8:C9,2,0) -> Bala Town | K15: =HLOOKUP(LARGE(D8:E8,1),D8:E9,2,0) -> Bala Town | M15: =HLOOKUP(LARGE(F8:G8,1),F8:G9,2,0) -> Bala Town
I16: =HLOOKUP(LARGE(B14:C14,1),B14:C15,2,0) -> Aberystwyth | K16: =HLOOKUP(LARGE(D14:E14,1),D14:E15,2,0) -> Aberystwyth | M16: =HLOOKUP(LARGE(F14:G14,1),F14:G15,2,0) -> Aberystwyth
I17: =IF(I15=I16,"-",I15) -> Bala Town | K17: =IF(K15=K16,"-",K15) -> Bala Town | M17: =IF(M15=M16,"-",M15) -> Bala Town
A19: =settodownload!B3 -> 20-11-2020 | B19: =settodownload!C3 -> 23:45 | C19: =settodownload!D3 -> Wales Premier League | D19: =settodownload!E3 -> Aberystwyth | E19: =settodownload!F3 -> Bala Town | F19: =IFERROR(R9,"NB") -> W2 | G19: =IFERROR(V9,"NB") -> W2 | H19: =IFERROR(Z9,"NB") -> W2 | I19: =IFERROR(I10,"NB") -> 0.5 O (HT) | J19: =IFERROR(J10,"NB") -> - | K19: 0.5 O (ST) | L19: - | M19: 1.5 O (FT) | N19: - | O19: - | P19: =IFERROR(I17,"NB") -> Bala Town | Q19: =IFERROR(K17,"NB") -> Bala Town | R19: =IFERROR(M17,"NB") -> Bala Town

Sheet MAXODDS
A1: DATE | B1: TIME | C1: LEAGUE | D1: HOME | E1: AWAY | F1: ПРОГНОЗ | I1: HT | J1: HT | K1: ТБ. 0.5 | L1: ТБ. 1.5 | M1: ТБ. 1.5 | N1: ТБ. 2.5 | O1: ТБ. 3.5 | P1: GOAL 1 | Q1: GOAL 2 | R1: GOAL 3 | S1: RESULT | T1: ODDS 1 | U1: ODDS X | V1: ODDS 2
F2: HT | G2: ST | H2: FT | K2: ST | L2: ST | M2: FT | N2: FT | O2: FT
A3: 20-11-2020 | B3: 00:00:00 | C3: Spain Primera Division | D3: Osasuna | E3: Huesca | F3: X | G3: X | H3: W2 | I3: - | J3: - | K3: - | L3: - | M3: - | N3: - | O3: - | P3: Osasuna | Q3: Huesca | R3: Osasuna | S3: =IFERROR(IF(C3="","",IF(VLOOKUP(D3,site!$B:$D,3,0)="","-",VLOOKUP(D3,site!$B:$D,3,0))),IF(C3="","",IF(VLOOKUP(E3,site!$C:$D,2,0)="","-",VLOOKUP(E3,site!$C:$D,2,0)))) -> — — | T3: =IFERROR(IF($C3="","",IF(VLOOKUP($D3,site!$B:$F,4,0)="","-",VLOOKUP($D3,site!$B:$F,4,0))),IF($C3="","",IF(VLOOKUP($E3,site!$B:$F,3,0)="","-",VLOOKUP($E3,site!$B:$F,3,0)))) -> 2.39 | U3: =IFERROR(IF($C3="","",IF(VLOOKUP($D3,site!$B:$F,5,0)="","-",VLOOKUP($D3,site!$B:$F,5,0))),IF($C3="","",IF(VLOOKUP($E3,site!$B:$F,4,0)="","-",VLOOKUP($E3,site!$B:$F,4,0)))) -> 3.28 | V3: =IFERROR(IF($C3="","",IF(VLOOKUP($D3,site!$B:$G,6,0)="","-",VLOOKUP($D3,site!$B:$G,6,0))),IF($C3="","",IF(VLOOKUP($E3,site!$B:$G,5,0)="","-",VLOOKUP($E3,site!$B:$G,5,0)))) -> 3.28
A4: 20-11-2020 | B4: 00:00:00 | C4: France Ligue 1 | D4: Monaco | E4: PSG | F4: W2 | G4: W2 | H4: W2 | I4: 0.5 O (HT) | J4: - | K4: 0.5 O (ST) | L4: - | M4: 1.5 O (FT) | N4: - | O4: - | P4: PSG | Q4: PSG | R4: PSG | S4: =IFERROR(IF(C4="","",IF(VLOOKUP(D4,site!$B:$D,3,0)="","-",VLOOKUP(D4,site!$B:$D,3,0))),IF(C4="","",IF(VLOOKUP(E4,site!$C:$D,2,0)="","-",VLOOKUP(E4,site!$C:$D,2,0)))) -> — — | T4: =IFERROR(IF($C4="","",IF(VLOOKUP($D4,site!$B:$F,4,0)="","-",VLOOKUP($D4,site!$B:$F,4,0))),IF($C4="","",IF(VLOOKUP($E4,site!$B:$F,3,0)="","-",VLOOKUP($E4,site!$B:$F,3,0)))) -> 5.3 | U4: =IFERROR(IF($C4="","",IF(VLOOKUP($D4,site!$B:$F,5,0)="","-",VLOOKUP($D4,site!$B:$F,5,0))),IF($C4="","",IF(VLOOKUP($E4,site!$B:$F,4,0)="","-",VLOOKUP($E4,site!$B:$F,4,0)))) -> 5.2 | V4: =IFERROR(IF($C4="","",IF(VLOOKUP($D4,site!$B:$G,6,0)="","-",VLOOKUP($D4,site!$B:$G,6,0))),IF($C4="","",IF(VLOOKUP($E4,site!$B:$G,5,0)="","-",VLOOKUP($E4,site!$B:$G,5,0)))) -> 1.55
A5: 20-11-2020 | B5: 00:00:00 | C5: Spain Segunda Division | D5: Espanyol | E5: Girona | F5: W2 | G5: X | H5: W2 | I5: - | J5: - | K5: 0.5 O (ST) | L5: - | M5: 1.5 O (FT) | N5: - | O5: - | P5: Girona | Q5: Girona | R5: Girona | S5: =IFERROR(IF(C5="","",IF(VLOOKUP(D5,site!$B:$D,3,0)="","-",VLOOKUP(D5,site!$B:$D,3,0))),IF(C5="","",IF(VLOOKUP(E5,site!$C:$D,2,0)="","-",VLOOKUP(E5,site!$C:$D,2,0)))) -> — — | T5: =IFERROR(IF($C5="","",IF(VLOOKUP($D5,site!$B:$F,4,0)="","-",VLOOKUP($D5,site!$B:$F,4,0))),IF($C5="","",IF(VLOOKUP($E5,site!$B:$F,3,0)="","-",VLOOKUP($E5,site!$B:$F,3,0)))) -> 1.52 | U5: =IFERROR(IF($C5="","",IF(VLOOKUP($D5,site!$B:$F,5,0)="","-",VLOOKUP($D5,site!$B:$F,5,0))),IF($C5="","",IF(VLOOKUP($E5,site!$B:$F,4,0)="","-",VLOOKUP($E5,site!$B:$F,4,0)))) -> 3.88 | V5: =IFERROR(IF($C5="","",IF(VLOOKUP($D5,site!$B:$G,6,0)="","-",VLOOKUP($D5,site!$B:$G,6,0))),IF($C5="","",IF(VLOOKUP($E5,site!$B:$G,5,0)="","-",VLOOKUP($E5,site!$B:$G,5,0)))) -> 7.4
A6: 20-11-2020 | B6: 00:00:00 | C6: Italy Serie B | D6: Frosinone | E6: Cosenza | F6: W1 | G6: W2 | H6: X | I6: - | J6: - | K6: - | L6: - | M6: 1.5 O (FT) | N6: - | O6: - | P6: Frosinone | Q6: Cosenza | R6: Frosinone | S6: =IFERROR(IF(C6="","",IF(VLOOKUP(D6,site!$B:$D,3,0)="","-",VLOOKUP(D6,site!$B:$D,3,0))),IF(C6="","",IF(VLOOKUP(E6,site!$C:$D,2,0)="","-",VLOOKUP(E6,site!$C:$D,2,0)))) -> — — | T6: =IFERROR(IF($C6="","",IF(VLOOKUP($D6,site!$B:$F,4,0)="","-",VLOOKUP($D6,site!$B:$F,4,0))),IF($C6="","",IF(VLOOKUP($E6,site!$B:$F,3,0)="","-",VLOOKUP($E6,site!$B:$F,3,0)))) -> 1.81 | U6: =IFERROR(IF($C6="","",IF(VLOOKUP($D6,site!$B:$F,5,0)="","-",VLOOKUP($D6,site!$B:$F,5,0))),IF($C6="","",IF(VLOOKUP($E6,site!$B:$F,4,0)="","-",VLOOKUP($E6,site!$B:$F,4,0)))) -> 3.18 | V6: =IFERROR(IF($C6="","",IF(VLOOKUP($D6,site!$B:$G,6,0)="","-",VLOOKUP($D6,site!$B:$G,6,0))),IF($C6="","",IF(VLOOKUP($E6,site!$B:$G,5,0)="","-",VLOOKUP($E6,site!$B:$G,5,0)))) -> 5.55
A7: 20-11-2020 | B7: 00:00:00 | C7: France Division 1 Women | D7: PSG W | E7: Lyon W | F7: X | G7: X | H7: X | I7: - | J7: - | K7: 0.5 O (ST) | L7: 1.5 O (ST) | M7: 1.5 O (FT) | N7: 2.5 O (FT) | O7: - | P7: Lyon W | Q7: - | R7: - | S7: =IFERROR(IF(C7="","",IF(VLOOKUP(D7,site!$B:$D,3,0)="","-",VLOOKUP(D7,site!$B:$D,3,0))),IF(C7="","",IF(VLOOKUP(E7,site!$C:$D,2,0)="","-",VLOOKUP(E7,site!$C:$D,2,0)))) -> — — | T7: =IFERROR(IF($C7="","",IF(VLOOKUP($D7,site!$B:$F,4,0)="","-",VLOOKUP($D7,site!$B:$F,4,0))),IF($C7="","",IF(VLOOKUP($E7,site!$B:$F,3,0)="","-",VLOOKUP($E7,site!$B:$F,3,0)))) -> - | U7: =IFERROR(IF($C7="","",IF(VLOOKUP($D7,site!$B:$F,5,0)="","-",VLOOKUP($D7,site!$B:$F,5,0))),IF($C7="","",IF(VLOOKUP($E7,site!$B:$F,4,0)="","-",VLOOKUP($E7,site!$B:$F,4,0)))) -> - | V7: =IFERROR(IF($C7="","",IF(VLOOKUP($D7,site!$B:$G,6,0)="","-",VLOOKUP($D7,site!$B:$G,6,0))),IF($C7="","",IF(VLOOKUP($E7,site!$B:$G,5,0)="","-",VLOOKUP($E7,site!$B:$G,5,0)))) -> -
A8: 20-11-2020 | B8: 00:00:00 | C8: Netherlands Eerste Divisie | D8: Den Bosch | E8: Jong Ajax | F8: X | G8: W2 | H8: W2 | I8: - | J8: - | K8: 0.5 O (ST) | L8: - | M8: 1.5 O (FT) | N8: - | O8: - | P8: Den Bosch | Q8: Jong Ajax | R8: Jong Ajax | S8: =IFERROR(IF(C8="","",IF(VLOOKUP(D8,site!$B:$D,3,0)="","-",VLOOKUP(D8,site!$B:$D,3,0))),IF(C8="","",IF(VLOOKUP(E8,site!$C:$D,2,0)="","-",VLOOKUP(E8,site!$C:$D,2,0)))) -> — — | T8: =IFERROR(IF($C8="","",IF(VLOOKUP($D8,site!$B:$F,4,0)="","-",VLOOKUP($D8,site!$B:$F,4,0))),IF($C8="","",IF(VLOOKUP($E8,site!$B:$F,3,0)="","-",VLOOKUP($E8,site!$B:$F,3,0)))) -> 3.065 | U8: =IFERROR(IF($C8="","",IF(VLOOKUP($D8,site!$B:$F,5,0)="","-",VLOOKUP($D8,site!$B:$F,5,0))),IF($C8="","",IF(VLOOKUP($E8,site!$B:$F,4,0)="","-",VLOOKUP($E8,site!$B:$F,4,0)))) -> 4.04 | V8: =IFERROR(IF($C8="","",IF(VLOOKUP($D8,site!$B:$G,6,0)="","-",VLOOKUP($D8,site!$B:$G,6,0))),IF($C8="","",IF(VLOOKUP($E8,site!$B:$G,5,0)="","-",VLOOKUP($E8,site!$B:$G,5,0)))) -> 2.11
A9: 20-11-2020 | B9: 00:00:00 | C9: Netherlands Eerste Divisie | D9: Jong Utrecht | E9: Helmond | F9: X | G9: W1 | H9: W1 | I9: - | J9: - | K9: 0.5 O (ST) | L9: 1.5 O (ST) | M9: 1.5 O (FT) | N9: - | O9: - | P9: Helmond | Q9: Jong Utrecht | R9: Jong Utrecht | S9: =IFERROR(IF(C9="","",IF(VLOOKUP(D9,site!$B:$D,3,0)="","-",VLOOKUP(D9,site!$B:$D,3,0))),IF(C9="","",IF(VLOOKUP(E9,site!$C:$D,2,0)="","-",VLOOKUP(E9,site!$C:$D,2,0)))) -> — — | T9: =IFERROR(IF($C9="","",IF(VLOOKUP($D9,site!$B:$F,4,0)="","-",VLOOKUP($D9,site!$B:$F,4,0))),IF($C9="","",IF(VLOOKUP($E9,site!$B:$F,3,0)="","-",VLOOKUP($E9,site!$B:$F,3,0)))) -> 1.97 | U9: =IFERROR(IF($C9="","",IF(VLOOKUP($D9,site!$B:$F,5,0)="","-",VLOOKUP($D9,site!$B:$F,5,0))),IF($C9="","",IF(VLOOKUP($E9,site!$B:$F,4,0)="","-",VLOOKUP($E9,site!$B:$F,4,0)))) -> 3.8 | V9: =IFERROR(IF($C9="","",IF(VLOOKUP($D9,site!$B:$G,6,0)="","-",VLOOKUP($D9,site!$B:$G,6,0))),IF($C9="","",IF(VLOOKUP($E9,site!$B:$G,5,0)="","-",VLOOKUP($E9,site!$B:$G,5,0)))) -> 3.62
A10: 20-11-2020 | B10: 00:00:00 | C10: Netherlands Eerste Divisie | D10: Maastricht | E10: Jong PSV | F10: X | G10: X | H10: X | I10: - | J10: - | K10: 0.5 O (ST) | L10: - | M10: 1.5 O (FT) | N10: - | O10: - | P10: Jong PSV | Q10: Jong PSV | R10: Jong PSV | S10: =IFERROR(IF(C10="","",IF(VLOOKUP(D10,site!$B:$D,3,0)="","-",VLOOKUP(D10,site!$B:$D,3,0))),IF(C10="","",IF(VLOOKUP(E10,site!$C:$D,2,0)="","-",VLOOKUP(E10,site!$C:$D,2,0)))) -> — — | T10: =IFERROR(IF($C10="","",IF(VLOOKUP($D10,site!$B:$F,4,0)="","-",VLOOKUP($D10,site!$B:$F,4,0))),IF($C10="","",IF(VLOOKUP($E10,site!$B:$F,3,0)="","-",VLOOKUP($E10,site!$B:$F,3,0)))) -> 2.23 | U10: =IFERROR(IF($C10="","",IF(VLOOKUP($D10,site!$B:$F,5,0)="","-",VLOOKUP($D10,site!$B:$F,5,0))),IF($C10="","",IF(VLOOKUP($E10,site!$B:$F,4,0)="","-",VLOOKUP($E10,site!$B:$F,4,0)))) -> 3.94 | V10: =IFERROR(IF($C10="","",IF(VLOOKUP($D10,site!$B:$G,6,0)="","-",VLOOKUP($D10,site!$B:$G,6,0))),IF($C10="","",IF(VLOOKUP($E10,site!$B:$G,5,0)="","-",VLOOKUP($E10,site!$B:$G,5,0)))) -> 2.896
A11: 20-11-2020 | B11: 00:10:00 | C11: Argentina Copa Liga | D11: Arsenal S | E11: Santa Fe | F11: W1 | G11: W1 | H11: W1 | I11: - | J11: - | K11: - | L11: - | M11: 1.5 O (FT) | N11: - | O11: - | P11: Arsenal S | Q11: Santa Fe | R11: Arsenal S | S11: =IFERROR(IF(C11="","",IF(VLOOKUP(D11,site!$B:$D,3,0)="","-",VLOOKUP(D11,site!$B:$D,3,0))),IF(C11="","",IF(VLOOKUP(E11,site!$C:$D,2,0)="","-",VLOOKUP(E11,site!$C:$D,2,0)))) -> — — | T11: =IFERROR(IF($C11="","",IF(VLOOKUP($D11,site!$B:$F,4,0)="","-",VLOOKUP($D11,site!$B:$F,4,0))),IF($C11="","",IF(VLOOKUP($E11,site!$B:$F,3,0)="","-",VLOOKUP($E11,site!$B:$F,3,0)))) -> 2.44 | U11: =IFERROR(IF($C11="","",IF(VLOOKUP($D11,site!$B:$F,5,0)="","-",VLOOKUP($D11,site!$B:$F,5,0))),IF($C11="","",IF(VLOOKUP($E11,site!$B:$F,4,0)="","-",VLOOKUP($E11,site!$B:$F,4,0)))) -> 3.24 | V11: =IFERROR(IF($C11="","",IF(VLOOKUP($D11,site!$B:$G,6,0)="","-",VLOOKUP($D11,site!$B:$G,6,0))),IF($C11="","",IF(VLOOKUP($E11,site!$B:$G,5,0)="","-",VLOOKUP($E11,site!$B:$G,5,0)))) -> 3.04
A12: 20-11-2020 | B12: 01:00:00 | C12: Costa Rica Primera Division | D12: Limon | E12: Herediano | F12: W1 | G12: X | H12: W1 | I12: 0.5 O (HT) | J12: - | K12: - | L12: - | M12: - | N12: - | O12: - | P12: Limon | Q12: Herediano | R12: Limon | S12: =IFERROR(IF(C12="","",IF(VLOOKUP(D12,site!$B:$D,3,0)="","-",VLOOKUP(D12,site!$B:$D,3,0))),IF(C12="","",IF(VLOOKUP(E12,site!$C:$D,2,0)="","-",VLOOKUP(E12,site!$C:$D,2,0)))) -> — — | T12: =IFERROR(IF($C12="","",IF(VLOOKUP($D12,site!$B:$F,4,0)="","-",VLOOKUP($D12,site!$B:$F,4,0))),IF($C12="","",IF(VLOOKUP($E12,site!$B:$F,3,0)="","-",VLOOKUP($E12,site!$B:$F,3,0)))) -> 3.01 | U12: =IFERROR(IF($C12="","",IF(VLOOKUP($D12,site!$B:$F,5,0)="","-",VLOOKUP($D12,site!$B:$F,5,0))),IF($C12="","",IF(VLOOKUP($E12,site!$B:$F,4,0)="","-",VLOOKUP($E12,site!$B:$F,4,0)))) -> 3.32 | V12: =IFERROR(IF($C12="","",IF(VLOOKUP($D12,site!$B:$G,6,0)="","-",VLOOKUP($D12,site!$B:$G,6,0))),IF($C12="","",IF(VLOOKUP($E12,site!$B:$G,5,0)="","-",VLOOKUP($E12,site!$B:$G,5,0)))) -> 2.3
A13: 20-11-2020 | B13: 01:00:00 | C13: Venezuela Primera Division | D13: Aragua | E13: Metropolitanos | F13: X | G13: W1 | H13: W1 | I13: - | J13: - | K13: - | L13: - | M13: - | N13: - | O13: - | P13: Aragua | Q13: Metropolitanos | R13: Aragua | S13: =IFERROR(IF(C13="","",IF(VLOOKUP(D13,site!$B:$D,3,0)="","-",VLOOKUP(D13,site!$B:$D,3,0))),IF(C13="","",IF(VLOOKUP(E13,site!$C:$D,2,0)="","-",VLOOKUP(E13,site!$C:$D,2,0)))) -> — — | T13: =IFERROR(IF($C13="","",IF(VLOOKUP($D13,site!$B:$F,4,0)="","-",VLOOKUP($D13,site!$B:$F,4,0))),IF($C13="","",IF(VLOOKUP($E13,site!$B:$F,3,0)="","-",VLOOKUP($E13,site!$B:$F,3,0)))) -> 2.656 | U13: =IFERROR(IF($C13="","",IF(VLOOKUP($D13,site!$B:$F,5,0)="","-",VLOOKUP($D13,site!$B:$F,5,0))),IF($C13="","",IF(VLOOKUP($E13,site!$B:$F,4,0)="","-",VLOOKUP($E13,site!$B:$F,4,0)))) -> 3.16 | V13: =IFERROR(IF($C13="","",IF(VLOOKUP($D13,site!$B:$G,6,0)="","-",VLOOKUP($D13,site!$B:$G,6,0))),IF($C13="","",IF(VLOOKUP($E13,site!$B:$G,5,0)="","-",VLOOKUP($E13,site!$B:$G,5,0)))) -> 2.656
A14: 20-11-2020 | B14: 01:30:00 | C14: Chile Primera Division | D14: Colo-Colo | E14: Audax | F14: W1 | G14: W1 | H14: W1 | I14: - | J14: - | K14: - | L14: - | M14: - | N14: - | O14: - | P14: Colo-Colo | Q14: Colo-Colo | R14: Colo-Colo | S14: =IFERROR(IF(C14="","",IF(VLOOKUP(D14,site!$B:$D,3,0)="","-",VLOOKUP(D14,site!$B:$D,3,0))),IF(C14="","",IF(VLOOKUP(E14,site!$C:$D,2,0)="","-",VLOOKUP(E14,site!$C:$D,2,0)))) -> — — | T14: =IFERROR(IF($C14="","",IF(VLOOKUP($D14,site!$B:$F,4,0)="","-",VLOOKUP($D14,site!$B:$F,4,0))),IF($C14="","",IF(VLOOKUP($E14,site!$B:$F,3,0)="","-",VLOOKUP($E14,site!$B:$F,3,0)))) -> 1.93 | U14: =IFERROR(IF($C14="","",IF(VLOOKUP($D14,site!$B:$F,5,0)="","-",VLOOKUP($D14,site!$B:$F,5,0))),IF($C14="","",IF(VLOOKUP($E14,site!$B:$F,4,0)="","-",VLOOKUP($E14,site!$B:$F,4,0)))) -> 3.78 | V14: =IFERROR(IF($C14="","",IF(VLOOKUP($D14,site!$B:$G,6,0)="","-",VLOOKUP($D14,site!$B:$G,6,0))),IF($C14="","",IF(VLOOKUP($E14,site!$B:$G,5,0)="","-",VLOOKUP($E14,site!$B:$G,5,0)))) -> 3.78
A15: 20-11-2020 | B15: 01:45:00 | C15: Ecuador Primera Division | D15: Portoviejo | E15: Orense | F15: NB | G15: NB | H15: NB | I15: - | J15: - | K15: 0.5 O (ST) | L15: - | M15: 1.5 O (FT) | N15: - | O15: - | P15: NB | Q15: NB | R15: NB | S15: =IFERROR(IF(C15="","",IF(VLOOKUP(D15,site!$B:$D,3,0)="","-",VLOOKUP(D15,site!$B:$D,3,0))),IF(C15="","",IF(VLOOKUP(E15,site!$C:$D,2,0)="","-",VLOOKUP(E15,site!$C:$D,2,0)))) -> — — | T15: =IFERROR(IF($C15="","",IF(VLOOKUP($D15,site!$B:$F,4,0)="","-",VLOOKUP($D15,site!$B:$F,4,0))),IF($C15="","",IF(VLOOKUP($E15,site!$B:$F,3,0)="","-",VLOOKUP($E15,site!$B:$F,3,0)))) -> 2.288 | U15: =IFERROR(IF($C15="","",IF(VLOOKUP($D15,site!$B:$F,5,0)="","-",VLOOKUP($D15,site!$B:$F,5,0))),IF($C15="","",IF(VLOOKUP($E15,site!$B:$F,4,0)="","-",VLOOKUP($E15,site!$B:$F,4,0)))) -> 3.54 | V15: =IFERROR(IF($C15="","",IF(VLOOKUP($D15,site!$B:$G,6,0)="","-",VLOOKUP($D15,site!$B:$G,6,0))),IF($C15="","",IF(VLOOKUP($E15,site!$B:$G,5,0)="","-",VLOOKUP($E15,site!$B:$G,5,0)))) -> 2.85
A16: 20-11-2020 | B16: 02:00:00 | C16: Brazil - Serie A | D16: Vasco da Gama | E16: Fortaleza | F16: X | G16: W1 | H16: W1 | I16: - | J16: - | K16: - | L16: - | M16: - | N16: - | O16: - | P16: Fortaleza | Q16: Vasco da Gama | R16: Vasco da Gama | S16: =IFERROR(IF(C16="","",IF(VLOOKUP(D16,site!$B:$D,3,0)="","-",VLOOKUP(D16,site!$B:$D,3,0))),IF(C16="","",IF(VLOOKUP(E16,site!$C:$D,2,0)="","-",VLOOKUP(E16,site!$C:$D,2,0)))) -> — — | T16: =IFERROR(IF($C16="","",IF(VLOOKUP($D16,site!$B:$F,4,0)="","-",VLOOKUP($D16,site!$B:$F,4,0))),IF($C16="","",IF(VLOOKUP($E16,site!$B:$F,3,0)="","-",VLOOKUP($E16,site!$B:$F,3,0)))) -> 2.45 | U16: =IFERROR(IF($C16="","",IF(VLOOKUP($D16,site!$B:$F,5,0)="","-",VLOOKUP($D16,site!$B:$F,5,0))),IF($C16="","",IF(VLOOKUP($E16,site!$B:$F,4,0)="","-",VLOOKUP($E16,site!$B:$F,4,0)))) -> 3.1 | V16: =IFERROR(IF($C16="","",IF(VLOOKUP($D16,site!$B:$G,6,0)="","-",VLOOKUP($D16,site!$B:$G,6,0))),IF($C16="","",IF(VLOOKUP($E16,site!$B:$G,5,0)="","-",VLOOKUP($E16,site!$B:$G,5,0)))) -> 3.168
A17: 20-11-2020 | B17: 02:00:00 | C17: Uruguay Primera Division | D17: Cerro | E17: Rentistas | F17: W1 | G17: X | H17: W1 | I17: - | J17: - | K17: - | L17: - | M17: - | N17: - | O17: - | P17: Cerro | Q17: Rentistas | R17: Cerro | S17: =IFERROR(IF(C17="","",IF(VLOOKUP(D17,site!$B:$D,3,0)="","-",VLOOKUP(D17,site!$B:$D,3,0))),IF(C17="","",IF(VLOOKUP(E17,site!$C:$D,2,0)="","-",VLOOKUP(E17,site!$C:$D,2,0)))) -> — — | T17: =IFERROR(IF($C17="","",IF(VLOOKUP($D17,site!$B:$F,4,0)="","-",VLOOKUP($D17,site!$B:$F,4,0))),IF($C17="","",IF(VLOOKUP($E17,site!$B:$F,3,0)="","-",VLOOKUP($E17,site!$B:$F,3,0)))) -> - | U17: =IFERROR(IF($C17="","",IF(VLOOKUP($D17,site!$B:$F,5,0)="","-",VLOOKUP($D17,site!$B:$F,5,0))),IF($C17="","",IF(VLOOKUP($E17,site!$B:$F,4,0)="","-",VLOOKUP($E17,site!$B:$F,4,0)))) -> - | V17: =IFERROR(IF($C17="","",IF(VLOOKUP($D17,site!$B:$G,6,0)="","-",VLOOKUP($D17,site!$B:$G,6,0))),IF($C17="","",IF(VLOOKUP($E17,site!$B:$G,5,0)="","-",VLOOKUP($E17,site!$B:$G,5,0)))) -> -
A18: 20-11-2020 | B18: 03:00:00 | C18: Panama LPF | D18: Costa Del Este FC | E18: Alianza | F18: X | G18: X | H18: X | I18: - | J18: - | K18: - | L18: - | M18: - | N18: - | O18: - | P18: Alianza | Q18: Costa Del Este FC | R18: Costa Del Este FC | S18: =IFERROR(IF(C18="","",IF(VLOOKUP(D18,site!$B:$D,3,0)="","-",VLOOKUP(D18,site!$B:$D,3,0))),IF(C18="","",IF(VLOOKUP(E18,site!$C:$D,2,0)="","-",VLOOKUP(E18,site!$C:$D,2,0)))) -> — — | T18: =IFERROR(IF($C18="","",IF(VLOOKUP($D18,site!$B:$F,4,0)="","-",VLOOKUP($D18,site!$B:$F,4,0))),IF($C18="","",IF(VLOOKUP($E18,site!$B:$F,3,0)="","-",VLOOKUP($E18,site!$B:$F,3,0)))) -> - | U18: =IFERROR(IF($C18="","",IF(VLOOKUP($D18,site!$B:$F,5,0)="","-",VLOOKUP($D18,site!$B:$F,5,0))),IF($C18="","",IF(VLOOKUP($E18,site!$B:$F,4,0)="","-",VLOOKUP($E18,site!$B:$F,4,0)))) -> - | V18: =IFERROR(IF($C18="","",IF(VLOOKUP($D18,site!$B:$G,6,0)="","-",VLOOKUP($D18,site!$B:$G,6,0))),IF($C18="","",IF(VLOOKUP($E18,site!$B:$G,5,0)="","-",VLOOKUP($E18,site!$B:$G,5,0)))) -> -
A19: 20-11-2020 | B19: 04:00:00 | C19: Ecuador Primera Division | D19: Barcelona Guayaquil | E19: Cuenca | F19: W1 | G19: W1 | H19: W1 | I19: - | J19: - | K19: - | L19: - | M19: 1.5 O (FT) | N19: - | O19: - | P19: Barcelona Guayaquil | Q19: Barcelona Guayaquil | R19: Barcelona Guayaquil | S19: =IFERROR(IF(C19="","",IF(VLOOKUP(D19,site!$B:$D,3,0)="","-",VLOOKUP(D19,site!$B:$D,3,0))),IF(C19="","",IF(VLOOKUP(E19,site!$C:$D,2,0)="","-",VLOOKUP(E19,site!$C:$D,2,0)))) -> — — | T19: =IFERROR(IF($C19="","",IF(VLOOKUP($D19,site!$B:$F,4,0)="","-",VLOOKUP($D19,site!$B:$F,4,0))),IF($C19="","",IF(VLOOKUP($E19,site!$B:$F,3,0)="","-",VLOOKUP($E19,site!$B:$F,3,0)))) -> - | U19: =IFERROR(IF($C19="","",IF(VLOOKUP($D19,site!$B:$F,5,0)="","-",VLOOKUP($D19,site!$B:$F,5,0))),IF($C19="","",IF(VLOOKUP($E19,site!$B:$F,4,0)="","-",VLOOKUP($E19,site!$B:$F,4,0)))) -> - | V19: =IFERROR(IF($C19="","",IF(VLOOKUP($D19,site!$B:$G,6,0)="","-",VLOOKUP($D19,site!$B:$G,6,0))),IF($C19="","",IF(VLOOKUP($E19,site!$B:$G,5,0)="","-",VLOOKUP($E19,site!$B:$G,5,0)))) -> -
A20: 20-11-2020 | B20: 04:00:00 | C20: Venezuela Primera Division | D20: Tachira | E20: Monagas | F20: W2 | G20: X | H20: W1 | I20: - | J20: - | K20: - | L20: - | M20: - | N20: - | O20: - | P20: Monagas | Q20: Tachira | R20: Tachira | S20: =IFERROR(IF(C20="","",IF(VLOOKUP(D20,site!$B:$D,3,0)="","-",VLOOKUP(D20,site!$B:$D,3,0))),IF(C20="","",IF(VLOOKUP(E20,site!$C:$D,2,0)="","-",VLOOKUP(E20,site!$C:$D,2,0)))) -> — — | T20: =IFERROR(IF($C20="","",IF(VLOOKUP($D20,site!$B:$F,4,0)="","-",VLOOKUP($D20,site!$B:$F,4,0))),IF($C20="","",IF(VLOOKUP($E20,site!$B:$F,3,0)="","-",VLOOKUP($E20,site!$B:$F,3,0)))) -> - | U20: =IFERROR(IF($C20="","",IF(VLOOKUP($D20,site!$B:$F,5,0)="","-",VLOOKUP($D20,site!$B:$F,5,0))),IF($C20="","",IF(VLOOKUP($E20,site!$B:$F,4,0)="","-",VLOOKUP($E20,site!$B:$F,4,0)))) -> - | V20: =IFERROR(IF($C20="","",IF(VLOOKUP($D20,site!$B:$G,6,0)="","-",VLOOKUP($D20,site!$B:$G,6,0))),IF($C20="","",IF(VLOOKUP($E20,site!$B:$G,5,0)="","-",VLOOKUP($E20,site!$B:$G,5,0)))) -> -
A21: 20-11-2020 | B21: 04:15:00 | C21: Argentina Copa Liga | D21: Atletico Tucuman | E21: Racing | F21: W1 | G21: X | H21: W1 | I21: - | J21: - | K21: 0.5 O (ST) | L21: - | M21: 1.5 O (FT) | N21: - | O21: - | P21: Racing | Q21: Atletico Tucuman | R21: Racing | S21: =IFERROR(IF(C21="","",IF(VLOOKUP(D21,site!$B:$D,3,0)="","-",VLOOKUP(D21,site!$B:$D,3,0))),IF(C21="","",IF(VLOOKUP(E21,site!$C:$D,2,0)="","-",VLOOKUP(E21,site!$C:$D,2,0)))) -> — — | T21: =IFERROR(IF($C21="","",IF(VLOOKUP($D21,site!$B:$F,4,0)="","-",VLOOKUP($D21,site!$B:$F,4,0))),IF($C21="","",IF(VLOOKUP($E21,site!$B:$F,3,0)="","-",VLOOKUP($E21,site!$B:$F,3,0)))) -> 1.58 | U21: =IFERROR(IF($C21="","",IF(VLOOKUP($D21,site!$B:$F,5,0)="","-",VLOOKUP($D21,site!$B:$F,5,0))),IF($C21="","",IF(VLOOKUP($E21,site!$B:$F,4,0)="","-",VLOOKUP($E21,site!$B:$F,4,0)))) -> 4.2 | V21: =IFERROR(IF($C21="","",IF(VLOOKUP($D21,site!$B:$G,6,0)="","-",VLOOKUP($D21,site!$B:$G,6,0))),IF($C21="","",IF(VLOOKUP($E21,site!$B:$G,5,0)="","-",VLOOKUP($E21,site!$B:$G,5,0)))) -> 5.65
A22: 20-11-2020 | B22: 04:30:00 | C22: Chile Primera Division | D22: S. Wanderers | E22: Union Espanola | F22: X | G22: X | H22: W2 | I22: - | J22: - | K22: 0.5 O (ST) | L22: - | M22: 1.5 O (FT) | N22: - | O22: - | P22: Union Espanola | Q22: Union Espanola | R22: Union Espanola | S22: =IFERROR(IF(C22="","",IF(VLOOKUP(D22,site!$B:$D,3,0)="","-",VLOOKUP(D22,site!$B:$D,3,0))),IF(C22="","",IF(VLOOKUP(E22,site!$C:$D,2,0)="","-",VLOOKUP(E22,site!$C:$D,2,0)))) -> — — | T22: =IFERROR(IF($C22="","",IF(VLOOKUP($D22,site!$B:$F,4,0)="","-",VLOOKUP($D22,site!$B:$F,4,0))),IF($C22="","",IF(VLOOKUP($E22,site!$B:$F,3,0)="","-",VLOOKUP($E22,site!$B:$F,3,0)))) -> 3.144 | U22: =IFERROR(IF($C22="","",IF(VLOOKUP($D22,site!$B:$F,5,0)="","-",VLOOKUP($D22,site!$B:$F,5,0))),IF($C22="","",IF(VLOOKUP($E22,site!$B:$F,4,0)="","-",VLOOKUP($E22,site!$B:$F,4,0)))) -> 3.84 | V22: =IFERROR(IF($C22="","",IF(VLOOKUP($D22,site!$B:$G,6,0)="","-",VLOOKUP($D22,site!$B:$G,6,0))),IF($C22="","",IF(VLOOKUP($E22,site!$B:$G,5,0)="","-",VLOOKUP($E22,site!$B:$G,5,0)))) -> 2.12
A23: 20-11-2020 | B23: 05:00:00 | C23: Nicaragua Primera | D23: Esteli | E23: Managua FC | F23: X | G23: X | H23: W1 | I23: 0.5 O (HT) | J23: - | K23: 0.5 O (ST) | L23: - | M23: 1.5 O (FT) | N23: - | O23: - | P23: Esteli | Q23: Esteli | R23: Esteli | S23: =IFERROR(IF(C23="","",IF(VLOOKUP(D23,site!$B:$D,3,0)="","-",VLOOKUP(D23,site!$B:$D,3,0))),IF(C23="","",IF(VLOOKUP(E23,site!$C:$D,2,0)="","-",VLOOKUP(E23,site!$C:$D,2,0)))) -> — — | T23: =IFERROR(IF($C23="","",IF(VLOOKUP($D23,site!$B:$F,4,0)="","-",VLOOKUP($D23,site!$B:$F,4,0))),IF($C23="","",IF(VLOOKUP($E23,site!$B:$F,3,0)="","-",VLOOKUP($E23,site!$B:$F,3,0)))) -> - | U23: =IFERROR(IF($C23="","",IF(VLOOKUP($D23,site!$B:$F,5,0)="","-",VLOOKUP($D23,site!$B:$F,5,0))),IF($C23="","",IF(VLOOKUP($E23,site!$B:$F,4,0)="","-",VLOOKUP($E23,site!$B:$F,4,0)))) -> - | V23: =IFERROR(IF($C23="","",IF(VLOOKUP($D23,site!$B:$G,6,0)="","-",VLOOKUP($D23,site!$B:$G,6,0))),IF($C23="","",IF(VLOOKUP($E23,site!$B:$G,5,0)="","-",VLOOKUP($E23,site!$B:$G,5,0)))) -> -
A24: 20-11-2020 | B24: 05:00:00 | C24: Nicaragua Primera | D24: Walter Ferretti | E24: Chinandega FC | F24: W1 | G24: W1 | H24: W2 | I24: - | J24: - | K24: 0.5 O (ST) | L24: - | M24: 1.5 O (FT) | N24: - | O24: - | P24: Walter Ferretti | Q24: Walter Ferretti | R24: Walter Ferretti | S24: =IFERROR(IF(C24="","",IF(VLOOKUP(D24,site!$B:$D,3,0)="","-",VLOOKUP(D24,site!$B:$D,3,0))),IF(C24="","",IF(VLOOKUP(E24,site!$C:$D,2,0)="","-",VLOOKUP(E24,site!$C:$D,2,0)))) -> — — | T24: =IFERROR(IF($C24="","",IF(VLOOKUP($D24,site!$B:$F,4,0)="","-",VLOOKUP($D24,site!$B:$F,4,0))),IF($C24="","",IF(VLOOKUP($E24,site!$B:$F,3,0)="","-",VLOOKUP($E24,site!$B:$F,3,0)))) -> - | U24: =IFERROR(IF($C24="","",IF(VLOOKUP($D24,site!$B:$F,5,0)="","-",VLOOKUP($D24,site!$B:$F,5,0))),IF($C24="","",IF(VLOOKUP($E24,site!$B:$F,4,0)="","-",VLOOKUP($E24,site!$B:$F,4,0)))) -> - | V24: =IFERROR(IF($C24="","",IF(VLOOKUP($D24,site!$B:$G,6,0)="","-",VLOOKUP($D24,site!$B:$G,6,0))),IF($C24="","",IF(VLOOKUP($E24,site!$B:$G,5,0)="","-",VLOOKUP($E24,site!$B:$G,5,0)))) -> -
A25: 20-11-2020 | B25: 05:00:00 | C25: Nicaragua Primera | D25: Art Municipal Jalapa | E25: Real Madriz | F25: X | G25: X | H25: X | I25: - | J25: - | K25: 0.5 O (ST) | L25: - | M25: 1.5 O (FT) | N25: - | O25: - | P25: Art Municipal Jalapa | Q25: Art Municipal Jalapa | R25: Art Municipal Jalapa | S25: =IFERROR(IF(C25="","",IF(VLOOKUP(D25,site!$B:$D,3,0)="","-",VLOOKUP(D25,site!$B:$D,3,0))),IF(C25="","",IF(VLOOKUP(E25,site!$C:$D,2,0)="","-",VLOOKUP(E25,site!$C:$D,2,0)))) -> — — | T25: =IFERROR(IF($C25="","",IF(VLOOKUP($D25,site!$B:$F,4,0)="","-",VLOOKUP($D25,site!$B:$F,4,0))),IF($C25="","",IF(VLOOKUP($E25,site!$B:$F,3,0)="","-",VLOOKUP($E25,site!$B:$F,3,0)))) -> - | U25: =IFERROR(IF($C25="","",IF(VLOOKUP($D25,site!$B:$F,5,0)="","-",VLOOKUP($D25,site!$B:$F,5,0))),IF($C25="","",IF(VLOOKUP($E25,site!$B:$F,4,0)="","-",VLOOKUP($E25,site!$B:$F,4,0)))) -> - | V25: =IFERROR(IF($C25="","",IF(VLOOKUP($D25,site!$B:$G,6,0)="","-",VLOOKUP($D25,site!$B:$G,6,0))),IF($C25="","",IF(VLOOKUP($E25,site!$B:$G,5,0)="","-",VLOOKUP($E25,site!$B:$G,5,0)))) -> -
A26: 20-11-2020 | B26: 05:00:00 | C26: Nicaragua Primera | D26: Diriangen FC | E26: Ocotal | F26: X | G26: W1 | H26: W1 | I26: - | J26: - | K26: 0.5 O (ST) | L26: - | M26: - | N26: - | O26: - | P26: Diriangen FC | Q26: Diriangen FC | R26: Diriangen FC | S26: =IFERROR(IF(C26="","",IF(VLOOKUP(D26,site!$B:$D,3,0)="","-",VLOOKUP(D26,site!$B:$D,3,0))),IF(C26="","",IF(VLOOKUP(E26,site!$C:$D,2,0)="","-",VLOOKUP(E26,site!$C:$D,2,0)))) -> — — | T26: =IFERROR(IF($C26="","",IF(VLOOKUP($D26,site!$B:$F,4,0)="","-",VLOOKUP($D26,site!$B:$F,4,0))),IF($C26="","",IF(VLOOKUP($E26,site!$B:$F,3,0)="","-",VLOOKUP($E26,site!$B:$F,3,0)))) -> - | U26: =IFERROR(IF($C26="","",IF(VLOOKUP($D26,site!$B:$F,5,0)="","-",VLOOKUP($D26,site!$B:$F,5,0))),IF($C26="","",IF(VLOOKUP($E26,site!$B:$F,4,0)="","-",VLOOKUP($E26,site!$B:$F,4,0)))) -> - | V26: =IFERROR(IF($C26="","",IF(VLOOKUP($D26,site!$B:$G,6,0)="","-",VLOOKUP($D26,site!$B:$G,6,0))),IF($C26="","",IF(VLOOKUP($E26,site!$B:$G,5,0)="","-",VLOOKUP($E26,site!$B:$G,5,0)))) -> -
A27: 20-11-2020 | B27: 05:00:00 | C27: Nicaragua Primera | D27: CD Junior | E27: Juventus Managua | F27: NB | G27: NB | H27: NB | I27: - | J27: - | K27: 0.5 O (ST) | L27: - | M27: - | N27: - | O27: - | P27: NB | Q27: NB | R27: NB | S27: =IFERROR(IF(C27="","",IF(VLOOKUP(D27,site!$B:$D,3,0)="","-",VLOOKUP(D27,site!$B:$D,3,0))),IF(C27="","",IF(VLOOKUP(E27,site!$C:$D,2,0)="","-",VLOOKUP(E27,site!$C:$D,2,0)))) -> — — | T27: =IFERROR(IF($C27="","",IF(VLOOKUP($D27,site!$B:$F,4,0)="","-",VLOOKUP($D27,site!$B:$F,4,0))),IF($C27="","",IF(VLOOKUP($E27,site!$B:$F,3,0)="","-",VLOOKUP($E27,site!$B:$F,3,0)))) -> - | U27: =IFERROR(IF($C27="","",IF(VLOOKUP($D27,site!$B:$F,5,0)="","-",VLOOKUP($D27,site!$B:$F,5,0))),IF($C27="","",IF(VLOOKUP($E27,site!$B:$F,4,0)="","-",VLOOKUP($E27,site!$B:$F,4,0)))) -> - | V27: =IFERROR(IF($C27="","",IF(VLOOKUP($D27,site!$B:$G,6,0)="","-",VLOOKUP($D27,site!$B:$G,6,0))),IF($C27="","",IF(VLOOKUP($E27,site!$B:$G,5,0)="","-",VLOOKUP($E27,site!$B:$G,5,0)))) -> -
A28: 20-11-2020 | B28: 14:00:00 | C28: Ukraine U-21 League | D28: Shakhtar-D | E28: Oleksandriya-D | F28: W1 | G28: W2 | H28: W1 | I28: - | J28: - | K28: 0.5 O (ST) | L28: - | M28: 1.5 O (FT) | N28: - | O28: - | P28: Shakhtar-D | Q28: Oleksandriya-D | R28: Oleksandriya-D | S28: =IFERROR(IF(C28="","",IF(VLOOKUP(D28,site!$B:$D,3,0)="","-",VLOOKUP(D28,site!$B:$D,3,0))),IF(C28="","",IF(VLOOKUP(E28,site!$C:$D,2,0)="","-",VLOOKUP(E28,site!$C:$D,2,0)))) -> — — | T28: =IFERROR(IF($C28="","",IF(VLOOKUP($D28,site!$B:$F,4,0)="","-",VLOOKUP($D28,site!$B:$F,4,0))),IF($C28="","",IF(VLOOKUP($E28,site!$B:$F,3,0)="","-",VLOOKUP($E28,site!$B:$F,3,0)))) -> - | U28: =IFERROR(IF($C28="","",IF(VLOOKUP($D28,site!$B:$F,5,0)="","-",VLOOKUP($D28,site!$B:$F,5,0))),IF($C28="","",IF(VLOOKUP($E28,site!$B:$F,4,0)="","-",VLOOKUP($E28,site!$B:$F,4,0)))) -> - | V28: =IFERROR(IF($C28="","",IF(VLOOKUP($D28,site!$B:$G,6,0)="","-",VLOOKUP($D28,site!$B:$G,6,0))),IF($C28="","",IF(VLOOKUP($E28,site!$B:$G,5,0)="","-",VLOOKUP($E28,site!$B:$G,5,0)))) -> -
A29: 20-11-2020 | B29: 14:00:00 | C29: Ukraine U-21 League | D29: Olimpik Donetsk-D | E29: Zorya-D | F29: W2 | G29: W2 | H29: W2 | I29: 0.5 O (HT) | J29: - | K29: 0.5 O (ST) | L29: - | M29: 1.5 O (FT) | N29: - | O29: - | P29: Zorya-D | Q29: Zorya-D | R29: Zorya-D | S29: =IFERROR(IF(C29="","",IF(VLOOKUP(D29,site!$B:$D,3,0)="","-",VLOOKUP(D29,site!$B:$D,3,0))),IF(C29="","",IF(VLOOKUP(E29,site!$C:$D,2,0)="","-",VLOOKUP(E29,site!$C:$D,2,0)))) -> — — | T29: =IFERROR(IF($C29="","",IF(VLOOKUP($D29,site!$B:$F,4,0)="","-",VLOOKUP($D29,site!$B:$F,4,0))),IF($C29="","",IF(VLOOKUP($E29,site!$B:$F,3,0)="","-",VLOOKUP($E29,site!$B:$F,3,0)))) -> - | U29: =IFERROR(IF($C29="","",IF(VLOOKUP($D29,site!$B:$F,5,0)="","-",VLOOKUP($D29,site!$B:$F,5,0))),IF($C29="","",IF(VLOOKUP($E29,site!$B:$F,4,0)="","-",VLOOKUP($E29,site!$B:$F,4,0)))) -> - | V29: =IFERROR(IF($C29="","",IF(VLOOKUP($D29,site!$B:$G,6,0)="","-",VLOOKUP($D29,site!$B:$G,6,0))),IF($C29="","",IF(VLOOKUP($E29,site!$B:$G,5,0)="","-",VLOOKUP($E29,site!$B:$G,5,0)))) -> -
A30: 20-11-2020 | B30: 14:00:00 | C30: Uzbekistan Superleague | D30: Metallurg B | E30: Bunyodkor | F30: W2 | G30: W2 | H30: W2 | I30: - | J30: - | K30: - | L30: - | M30: 1.5 O (FT) | N30: - | O30: - | P30: Bunyodkor | Q30: Bunyodkor | R30: Bunyodkor | S30: =IFERROR(IF(C30="","",IF(VLOOKUP(D30,site!$B:$D,3,0)="","-",VLOOKUP(D30,site!$B:$D,3,0))),IF(C30="","",IF(VLOOKUP(E30,site!$C:$D,2,0)="","-",VLOOKUP(E30,site!$C:$D,2,0)))) -> — — | T30: =IFERROR(IF($C30="","",IF(VLOOKUP($D30,site!$B:$F,4,0)="","-",VLOOKUP($D30,site!$B:$F,4,0))),IF($C30="","",IF(VLOOKUP($E30,site!$B:$F,3,0)="","-",VLOOKUP($E30,site!$B:$F,3,0)))) -> 2.29 | U30: =IFERROR(IF($C30="","",IF(VLOOKUP($D30,site!$B:$F,5,0)="","-",VLOOKUP($D30,site!$B:$F,5,0))),IF($C30="","",IF(VLOOKUP($E30,site!$B:$F,4,0)="","-",VLOOKUP($E30,site!$B:$F,4,0)))) -> 3.22 | V30: =IFERROR(IF($C30="","",IF(VLOOKUP($D30,site!$B:$G,6,0)="","-",VLOOKUP($D30,site!$B:$G,6,0))),IF($C30="","",IF(VLOOKUP($E30,site!$B:$G,5,0)="","-",VLOOKUP($E30,site!$B:$G,5,0)))) -> 3.096
A31: 20-11-2020 | B31: 14:00:00 | C31: Uzbekistan Superleague | D31: Sogdiana | E31: FC Nasaf | F31: W2 | G31: W1 | H31: X | I31: - | J31: - | K31: - | L31: - | M31: - | N31: - | O31: - | P31: FC Nasaf | Q31: Sogdiana | R31: FC Nasaf | S31: =IFERROR(IF(C31="","",IF(VLOOKUP(D31,site!$B:$D,3,0)="","-",VLOOKUP(D31,site!$B:$D,3,0))),IF(C31="","",IF(VLOOKUP(E31,site!$C:$D,2,0)="","-",VLOOKUP(E31,site!$C:$D,2,0)))) -> — — | T31: =IFERROR(IF($C31="","",IF(VLOOKUP($D31,site!$B:$F,4,0)="","-",VLOOKUP($D31,site!$B:$F,4,0))),IF($C31="","",IF(VLOOKUP($E31,site!$B:$F,3,0)="","-",VLOOKUP($E31,site!$B:$F,3,0)))) -> 3.32 | U31: =IFERROR(IF($C31="","",IF(VLOOKUP($D31,site!$B:$F,5,0)="","-",VLOOKUP($D31,site!$B:$F,5,0))),IF($C31="","",IF(VLOOKUP($E31,site!$B:$F,4,0)="","-",VLOOKUP($E31,site!$B:$F,4,0)))) -> 3.22 | V31: =IFERROR(IF($C31="","",IF(VLOOKUP($D31,site!$B:$G,6,0)="","-",VLOOKUP($D31,site!$B:$G,6,0))),IF($C31="","",IF(VLOOKUP($E31,site!$B:$G,5,0)="","-",VLOOKUP($E31,site!$B:$G,5,0)))) -> 2.175
A32: 20-11-2020 | B32: 15:00:00 | C32: Russia - 1. Division | D32: Krasnodar- | E32: Shinnik Yaroslavl | F32: NB | G32: NB | H32: NB | I32: NB | J32: NB | K32: NB | L32: NB | M32: NB | N32: NB | O32: NB | P32: NB | Q32: NB | R32: NB | S32: =IFERROR(IF(C32="","",IF(VLOOKUP(D32,site!$B:$D,3,0)="","-",VLOOKUP(D32,site!$B:$D,3,0))),IF(C32="","",IF(VLOOKUP(E32,site!$C:$D,2,0)="","-",VLOOKUP(E32,site!$C:$D,2,0)))) -> — — | T32: =IFERROR(IF($C32="","",IF(VLOOKUP($D32,site!$B:$F,4,0)="","-",VLOOKUP($D32,site!$B:$F,4,0))),IF($C32="","",IF(VLOOKUP($E32,site!$B:$F,3,0)="","-",VLOOKUP($E32,site!$B:$F,3,0)))) ->  | U32: =IFERROR(IF($C32="","",IF(VLOOKUP($D32,site!$B:$F,5,0)="","-",VLOOKUP($D32,site!$B:$F,5,0))),IF($C32="","",IF(VLOOKUP($E32,site!$B:$F,4,0)="","-",VLOOKUP($E32,site!$B:$F,4,0)))) ->  | V32: =IFERROR(IF($C32="","",IF(VLOOKUP($D32,site!$B:$G,6,0)="","-",VLOOKUP($D32,site!$B:$G,6,0))),IF($C32="","",IF(VLOOKUP($E32,site!$B:$G,5,0)="","-",VLOOKUP($E32,site!$B:$G,5,0)))) -> 
A33: 20-11-2020 | B33: 15:00:00 | C33: Russia PFL South | D33: Inter Cherkessk | E33: Makhachkala | F33: W1 | G33: W1 | H33: W1 | I33: - | J33: - | K33: 0.5 O (ST) | L33: - | M33: 1.5 O (FT) | N33: - | O33: - | P33: Inter Cherkessk | Q33: Inter Cherkessk | R33: Inter Cherkessk | S33: =IFERROR(IF(C33="","",IF(VLOOKUP(D33,site!$B:$D,3,0)="","-",VLOOKUP(D33,site!$B:$D,3,0))),IF(C33="","",IF(VLOOKUP(E33,site!$C:$D,2,0)="","-",VLOOKUP(E33,site!$C:$D,2,0)))) -> — — | T33: =IFERROR(IF($C33="","",IF(VLOOKUP($D33,site!$B:$F,4,0)="","-",VLOOKUP($D33,site!$B:$F,4,0))),IF($C33="","",IF(VLOOKUP($E33,site!$B:$F,3,0)="","-",VLOOKUP($E33,site!$B:$F,3,0)))) -> - | U33: =IFERROR(IF($C33="","",IF(VLOOKUP($D33,site!$B:$F,5,0)="","-",VLOOKUP($D33,site!$B:$F,5,0))),IF($C33="","",IF(VLOOKUP($E33,site!$B:$F,4,0)="","-",VLOOKUP($E33,site!$B:$F,4,0)))) -> - | V33: =IFERROR(IF($C33="","",IF(VLOOKUP($D33,site!$B:$G,6,0)="","-",VLOOKUP($D33,site!$B:$G,6,0))),IF($C33="","",IF(VLOOKUP($E33,site!$B:$G,5,0)="","-",VLOOKUP($E33,site!$B:$G,5,0)))) -> -
A34: 20-11-2020 | B34: 15:00:00 | C34: Russia Youth teams | D34: Arsenal Youth | E34: Dinamo Moscow Youth | F34: X | G34: W1 | H34: W1 | I34: - | J34: - | K34: 0.5 O (ST) | L34: - | M34: 1.5 O (FT) | N34: - | O34: - | P34: Dinamo Moscow Youth | Q34: Arsenal Youth | R34: Arsenal Youth | S34: =IFERROR(IF(C34="","",IF(VLOOKUP(D34,site!$B:$D,3,0)="","-",VLOOKUP(D34,site!$B:$D,3,0))),IF(C34="","",IF(VLOOKUP(E34,site!$C:$D,2,0)="","-",VLOOKUP(E34,site!$C:$D,2,0)))) -> — — | T34: =IFERROR(IF($C34="","",IF(VLOOKUP($D34,site!$B:$F,4,0)="","-",VLOOKUP($D34,site!$B:$F,4,0))),IF($C34="","",IF(VLOOKUP($E34,site!$B:$F,3,0)="","-",VLOOKUP($E34,site!$B:$F,3,0)))) -> - | U34: =IFERROR(IF($C34="","",IF(VLOOKUP($D34,site!$B:$F,5,0)="","-",VLOOKUP($D34,site!$B:$F,5,0))),IF($C34="","",IF(VLOOKUP($E34,site!$B:$F,4,0)="","-",VLOOKUP($E34,site!$B:$F,4,0)))) -> - | V34: =IFERROR(IF($C34="","",IF(VLOOKUP($D34,site!$B:$G,6,0)="","-",VLOOKUP($D34,site!$B:$G,6,0))),IF($C34="","",IF(VLOOKUP($E34,site!$B:$G,5,0)="","-",VLOOKUP($E34,site!$B:$G,5,0)))) -> -
A35: 20-11-2020 | B35: 15:00:00 | C35: Latvia - Virsliga | D35: Jelgava | E35: Valmiera | F35: X | G35: W2 | H35: W2 | I35: - | J35: - | K35: 0.5 O (ST) | L35: - | M35: 1.5 O (FT) | N35: - | O35: - | P35: Valmiera | Q35: Valmiera | R35: Valmiera | S35: =IFERROR(IF(C35="","",IF(VLOOKUP(D35,site!$B:$D,3,0)="","-",VLOOKUP(D35,site!$B:$D,3,0))),IF(C35="","",IF(VLOOKUP(E35,site!$C:$D,2,0)="","-",VLOOKUP(E35,site!$C:$D,2,0)))) -> — — | T35: =IFERROR(IF($C35="","",IF(VLOOKUP($D35,site!$B:$F,4,0)="","-",VLOOKUP($D35,site!$B:$F,4,0))),IF($C35="","",IF(VLOOKUP($E35,site!$B:$F,3,0)="","-",VLOOKUP($E35,site!$B:$F,3,0)))) -> 3.36 | U35: =IFERROR(IF($C35="","",IF(VLOOKUP($D35,site!$B:$F,5,0)="","-",VLOOKUP($D35,site!$B:$F,5,0))),IF($C35="","",IF(VLOOKUP($E35,site!$B:$F,4,0)="","-",VLOOKUP($E35,site!$B:$F,4,0)))) -> 3.56 | V35: =IFERROR(IF($C35="","",IF(VLOOKUP($D35,site!$B:$G,6,0)="","-",VLOOKUP($D35,site!$B:$G,6,0))),IF($C35="","",IF(VLOOKUP($E35,site!$B:$G,5,0)="","-",VLOOKUP($E35,site!$B:$G,5,0)))) -> 2
A36: 20-11-2020 | B36: 15:00:00 | C36: Moldova - Divizia Nationala | D36: Dinamo Auto | E36: Floresti | F36: W1 | G36: X | H36: W1 | I36: 0.5 O (HT) | J36: - | K36: - | L36: - | M36: 1.5 O (FT) | N36: - | O36: - | P36: Dinamo Auto | Q36: Dinamo Auto | R36: Dinamo Auto | S36: =IFERROR(IF(C36="","",IF(VLOOKUP(D36,site!$B:$D,3,0)="","-",VLOOKUP(D36,site!$B:$D,3,0))),IF(C36="","",IF(VLOOKUP(E36,site!$C:$D,2,0)="","-",VLOOKUP(E36,site!$C:$D,2,0)))) -> — — | T36: =IFERROR(IF($C36="","",IF(VLOOKUP($D36,site!$B:$F,4,0)="","-",VLOOKUP($D36,site!$B:$F,4,0))),IF($C36="","",IF(VLOOKUP($E36,site!$B:$F,3,0)="","-",VLOOKUP($E36,site!$B:$F,3,0)))) -> - | U36: =IFERROR(IF($C36="","",IF(VLOOKUP($D36,site!$B:$F,5,0)="","-",VLOOKUP($D36,site!$B:$F,5,0))),IF($C36="","",IF(VLOOKUP($E36,site!$B:$F,4,0)="","-",VLOOKUP($E36,site!$B:$F,4,0)))) -> - | V36: =IFERROR(IF($C36="","",IF(VLOOKUP($D36,site!$B:$G,6,0)="","-",VLOOKUP($D36,site!$B:$G,6,0))),IF($C36="","",IF(VLOOKUP($E36,site!$B:$G,5,0)="","-",VLOOKUP($E36,site!$B:$G,5,0)))) -> -
A37: 20-11-2020 | B37: 15:00:00 | C37: Ukraine - Persha Liga | D37: Girnik | E37: Obolon-Brovar | F37: X | G37: W1 | H37: W2 | I37: - | J37: - | K37: 0.5 O (ST) | L37: - | M37: 1.5 O (FT) | N37: - | O37: - | P37: Obolon-Brovar | Q37: Girnik | R37: Obolon-Brovar | S37: =IFERROR(IF(C37="","",IF(VLOOKUP(D37,site!$B:$D,3,0)="","-",VLOOKUP(D37,site!$B:$D,3,0))),IF(C37="","",IF(VLOOKUP(E37,site!$C:$D,2,0)="","-",VLOOKUP(E37,site!$C:$D,2,0)))) -> — — | T37: =IFERROR(IF($C37="","",IF(VLOOKUP($D37,site!$B:$F,4,0)="","-",VLOOKUP($D37,site!$B:$F,4,0))),IF($C37="","",IF(VLOOKUP($E37,site!$B:$F,3,0)="","-",VLOOKUP($E37,site!$B:$F,3,0)))) -> 2.03 | U37: =IFERROR(IF($C37="","",IF(VLOOKUP($D37,site!$B:$F,5,0)="","-",VLOOKUP($D37,site!$B:$F,5,0))),IF($C37="","",IF(VLOOKUP($E37,site!$B:$F,4,0)="","-",VLOOKUP($E37,site!$B:$F,4,0)))) -> 3.15 | V37: =IFERROR(IF($C37="","",IF(VLOOKUP($D37,site!$B:$G,6,0)="","-",VLOOKUP($D37,site!$B:$G,6,0))),IF($C37="","",IF(VLOOKUP($E37,site!$B:$G,5,0)="","-",VLOOKUP($E37,site!$B:$G,5,0)))) -> 3.66
A38: 20-11-2020 | B38: 15:00:00 | C38: Ukraine - Persha Liga | D38: Agrobiznes | E38: Nyva Ternopil | F38: NB | G38: NB | H38: NB | I38: - | J38: - | K38: - | L38: - | M38: - | N38: - | O38: - | P38: NB | Q38: NB | R38: NB | S38: =IFERROR(IF(C38="","",IF(VLOOKUP(D38,site!$B:$D,3,0)="","-",VLOOKUP(D38,site!$B:$D,3,0))),IF(C38="","",IF(VLOOKUP(E38,site!$C:$D,2,0)="","-",VLOOKUP(E38,site!$C:$D,2,0)))) -> — — | T38: =IFERROR(IF($C38="","",IF(VLOOKUP($D38,site!$B:$F,4,0)="","-",VLOOKUP($D38,site!$B:$F,4,0))),IF($C38="","",IF(VLOOKUP($E38,site!$B:$F,3,0)="","-",VLOOKUP($E38,site!$B:$F,3,0)))) -> 1.57 | U38: =IFERROR(IF($C38="","",IF(VLOOKUP($D38,site!$B:$F,5,0)="","-",VLOOKUP($D38,site!$B:$F,5,0))),IF($C38="","",IF(VLOOKUP($E38,site!$B:$F,4,0)="","-",VLOOKUP($E38,site!$B:$F,4,0)))) -> 3.82 | V38: =IFERROR(IF($C38="","",IF(VLOOKUP($D38,site!$B:$G,6,0)="","-",VLOOKUP($D38,site!$B:$G,6,0))),IF($C38="","",IF(VLOOKUP($E38,site!$B:$G,5,0)="","-",VLOOKUP($E38,site!$B:$G,5,0)))) -> 5.4
A39: 20-11-2020 | B39: 15:00:00 | C39: Ukraine - Persha Liga | D39: A. Kramatorsk | E39: Veres Rivne | F39: W1 | G39: X | H39: W1 | I39: - | J39: - | K39: - | L39: - | M39: 1.5 O (FT) | N39: - | O39: - | P39: A. Kramatorsk | Q39: Veres Rivne | R39: A. Kramatorsk | S39: =IFERROR(IF(C39="","",IF(VLOOKUP(D39,site!$B:$D,3,0)="","-",VLOOKUP(D39,site!$B:$D,3,0))),IF(C39="","",IF(VLOOKUP(E39,site!$C:$D,2,0)="","-",VLOOKUP(E39,site!$C:$D,2,0)))) -> — — | T39: =IFERROR(IF($C39="","",IF(VLOOKUP($D39,site!$B:$F,4,0)="","-",VLOOKUP($D39,site!$B:$F,4,0))),IF($C39="","",IF(VLOOKUP($E39,site!$B:$F,3,0)="","-",VLOOKUP($E39,site!$B:$F,3,0)))) -> 5.5 | U39: =IFERROR(IF($C39="","",IF(VLOOKUP($D39,site!$B:$F,5,0)="","-",VLOOKUP($D39,site!$B:$F,5,0))),IF($C39="","",IF(VLOOKUP($E39,site!$B:$F,4,0)="","-",VLOOKUP($E39,site!$B:$F,4,0)))) -> 3.78 | V39: =IFERROR(IF($C39="","",IF(VLOOKUP($D39,site!$B:$G,6,0)="","-",VLOOKUP($D39,site!$B:$G,6,0))),IF($C39="","",IF(VLOOKUP($E39,site!$B:$G,5,0)="","-",VLOOKUP($E39,site!$B:$G,5,0)))) -> 1.568
A40: 20-11-2020 | B40: 15:00:00 | C40: Ukraine - Persha Liga | D40: Polissya | E40: Mykolaiv | F40: NB | G40: NB | H40: NB | I40: - | J40: - | K40: - | L40: - | M40: 1.5 O (FT) | N40: - | O40: - | P40: NB | Q40: NB | R40: NB | S40: =IFERROR(IF(C40="","",IF(VLOOKUP(D40,site!$B:$D,3,0)="","-",VLOOKUP(D40,site!$B:$D,3,0))),IF(C40="","",IF(VLOOKUP(E40,site!$C:$D,2,0)="","-",VLOOKUP(E40,site!$C:$D,2,0)))) -> — — | T40: =IFERROR(IF($C40="","",IF(VLOOKUP($D40,site!$B:$F,4,0)="","-",VLOOKUP($D40,site!$B:$F,4,0))),IF($C40="","",IF(VLOOKUP($E40,site!$B:$F,3,0)="","-",VLOOKUP($E40,site!$B:$F,3,0)))) -> 2.115 | U40: =IFERROR(IF($C40="","",IF(VLOOKUP($D40,site!$B:$F,5,0)="","-",VLOOKUP($D40,site!$B:$F,5,0))),IF($C40="","",IF(VLOOKUP($E40,site!$B:$F,4,0)="","-",VLOOKUP($E40,site!$B:$F,4,0)))) -> 3.184 | V40: =IFERROR(IF($C40="","",IF(VLOOKUP($D40,site!$B:$G,6,0)="","-",VLOOKUP($D40,site!$B:$G,6,0))),IF($C40="","",IF(VLOOKUP($E40,site!$B:$G,5,0)="","-",VLOOKUP($E40,site!$B:$G,5,0)))) -> 3.36
A41: 20-11-2020 | B41: 15:00:00 | C41: Ukraine - Persha Liga | D41: Krystal | E41: VPK-Agro | F41: NB | G41: NB | H41: NB | I41: - | J41: - | K41: 0.5 O (ST) | L41: - | M41: 1.5 O (FT) | N41: - | O41: - | P41: NB | Q41: NB | R41: NB | S41: =IFERROR(IF(C41="","",IF(VLOOKUP(D41,site!$B:$D,3,0)="","-",VLOOKUP(D41,site!$B:$D,3,0))),IF(C41="","",IF(VLOOKUP(E41,site!$C:$D,2,0)="","-",VLOOKUP(E41,site!$C:$D,2,0)))) -> — — | T41: =IFERROR(IF($C41="","",IF(VLOOKUP($D41,site!$B:$F,4,0)="","-",VLOOKUP($D41,site!$B:$F,4,0))),IF($C41="","",IF(VLOOKUP($E41,site!$B:$F,3,0)="","-",VLOOKUP($E41,site!$B:$F,3,0)))) -> 2.696 | U41: =IFERROR(IF($C41="","",IF(VLOOKUP($D41,site!$B:$F,5,0)="","-",VLOOKUP($D41,site!$B:$F,5,0))),IF($C41="","",IF(VLOOKUP($E41,site!$B:$F,4,0)="","-",VLOOKUP($E41,site!$B:$F,4,0)))) -> 3.06 | V41: =IFERROR(IF($C41="","",IF(VLOOKUP($D41,site!$B:$G,6,0)="","-",VLOOKUP($D41,site!$B:$G,6,0))),IF($C41="","",IF(VLOOKUP($E41,site!$B:$G,5,0)="","-",VLOOKUP($E41,site!$B:$G,5,0)))) -> 2.568
A42: 20-11-2020 | B42: 15:00:00 | C42: Ukraine U-21 League | D42: Ingulets-D | E42: Dinamo-D | F42: NB | G42: NB | H42: NB | I42: 0.5 O (HT) | J42: - | K42: 0.5 O (ST) | L42: 1.5 O (ST) | M42: 1.5 O (FT) | N42: - | O42: - | P42: NB | Q42: NB | R42: NB | S42: =IFERROR(IF(C42="","",IF(VLOOKUP(D42,site!$B:$D,3,0)="","-",VLOOKUP(D42,site!$B:$D,3,0))),IF(C42="","",IF(VLOOKUP(E42,site!$C:$D,2,0)="","-",VLOOKUP(E42,site!$C:$D,2,0)))) -> — — | T42: =IFERROR(IF($C42="","",IF(VLOOKUP($D42,site!$B:$F,4,0)="","-",VLOOKUP($D42,site!$B:$F,4,0))),IF($C42="","",IF(VLOOKUP($E42,site!$B:$F,3,0)="","-",VLOOKUP($E42,site!$B:$F,3,0)))) -> - | U42: =IFERROR(IF($C42="","",IF(VLOOKUP($D42,site!$B:$F,5,0)="","-",VLOOKUP($D42,site!$B:$F,5,0))),IF($C42="","",IF(VLOOKUP($E42,site!$B:$F,4,0)="","-",VLOOKUP($E42,site!$B:$F,4,0)))) -> - | V42: =IFERROR(IF($C42="","",IF(VLOOKUP($D42,site!$B:$G,6,0)="","-",VLOOKUP($D42,site!$B:$G,6,0))),IF($C42="","",IF(VLOOKUP($E42,site!$B:$G,5,0)="","-",VLOOKUP($E42,site!$B:$G,5,0)))) -> -
A43: 20-11-2020 | B43: 16:00:00 | C43: Germany Regionalliga West | D43: Schalke II | E43: Dortmund II | F43: X | G43: W2 | H43: W2 | I43: - | J43: - | K43: - | L43: - | M43: 1.5 O (FT) | N43: - | O43: - | P43: Dortmund II | Q43: Dortmund II | R43: Dortmund II | S43: =IFERROR(IF(C43="","",IF(VLOOKUP(D43,site!$B:$D,3,0)="","-",VLOOKUP(D43,site!$B:$D,3,0))),IF(C43="","",IF(VLOOKUP(E43,site!$C:$D,2,0)="","-",VLOOKUP(E43,site!$C:$D,2,0)))) -> — — | T43: =IFERROR(IF($C43="","",IF(VLOOKUP($D43,site!$B:$F,4,0)="","-",VLOOKUP($D43,site!$B:$F,4,0))),IF($C43="","",IF(VLOOKUP($E43,site!$B:$F,3,0)="","-",VLOOKUP($E43,site!$B:$F,3,0)))) -> - | U43: =IFERROR(IF($C43="","",IF(VLOOKUP($D43,site!$B:$F,5,0)="","-",VLOOKUP($D43,site!$B:$F,5,0))),IF($C43="","",IF(VLOOKUP($E43,site!$B:$F,4,0)="","-",VLOOKUP($E43,site!$B:$F,4,0)))) -> - | V43: =IFERROR(IF($C43="","",IF(VLOOKUP($D43,site!$B:$G,6,0)="","-",VLOOKUP($D43,site!$B:$G,6,0))),IF($C43="","",IF(VLOOKUP($E43,site!$B:$G,5,0)="","-",VLOOKUP($E43,site!$B:$G,5,0)))) -> -
A44: 20-11-2020 | B44: 16:00:00 | C44: Ukraine - Persha Liga | D44: Volyn | E44: Prykarpattya | F44: X | G44: W1 | H44: W1 | I44: - | J44: - | K44: - | L44: - | M44: - | N44: - | O44: - | P44: Prykarpattya | Q44: Volyn | R44: Volyn | S44: =IFERROR(IF(C44="","",IF(VLOOKUP(D44,site!$B:$D,3,0)="","-",VLOOKUP(D44,site!$B:$D,3,0))),IF(C44="","",IF(VLOOKUP(E44,site!$C:$D,2,0)="","-",VLOOKUP(E44,site!$C:$D,2,0)))) -> — — | T44: =IFERROR(IF($C44="","",IF(VLOOKUP($D44,site!$B:$F,4,0)="","-",VLOOKUP($D44,site!$B:$F,4,0))),IF($C44="","",IF(VLOOKUP($E44,site!$B:$F,3,0)="","-",VLOOKUP($E44,site!$B:$F,3,0)))) -> 1.496 | U44: =IFERROR(IF($C44="","",IF(VLOOKUP($D44,site!$B:$F,5,0)="","-",VLOOKUP($D44,site!$B:$F,5,0))),IF($C44="","",IF(VLOOKUP($E44,site!$B:$F,4,0)="","-",VLOOKUP($E44,site!$B:$F,4,0)))) -> 4.1 | V44: =IFERROR(IF($C44="","",IF(VLOOKUP($D44,site!$B:$G,6,0)="","-",VLOOKUP($D44,site!$B:$G,6,0))),IF($C44="","",IF(VLOOKUP($E44,site!$B:$G,5,0)="","-",VLOOKUP($E44,site!$B:$G,5,0)))) -> 5.75
A45: 20-11-2020 | B45: 16:00:00 | C45: Ukraine - Persha Liga | D45: Lypova Dolyna | E45: Chernomorets Odessa | F45: NB | G45: NB | H45: NB | I45: - | J45: - | K45: 0.5 O (ST) | L45: - | M45: 1.5 O (FT) | N45: - | O45: - | P45: NB | Q45: NB | R45: NB | S45: =IFERROR(IF(C45="","",IF(VLOOKUP(D45,site!$B:$D,3,0)="","-",VLOOKUP(D45,site!$B:$D,3,0))),IF(C45="","",IF(VLOOKUP(E45,site!$C:$D,2,0)="","-",VLOOKUP(E45,site!$C:$D,2,0)))) -> — — | T45: =IFERROR(IF($C45="","",IF(VLOOKUP($D45,site!$B:$F,4,0)="","-",VLOOKUP($D45,site!$B:$F,4,0))),IF($C45="","",IF(VLOOKUP($E45,site!$B:$F,3,0)="","-",VLOOKUP($E45,site!$B:$F,3,0)))) -> 3.62 | U45: =IFERROR(IF($C45="","",IF(VLOOKUP($D45,site!$B:$F,5,0)="","-",VLOOKUP($D45,site!$B:$F,5,0))),IF($C45="","",IF(VLOOKUP($E45,site!$B:$F,4,0)="","-",VLOOKUP($E45,site!$B:$F,4,0)))) -> 3.16 | V45: =IFERROR(IF($C45="","",IF(VLOOKUP($D45,site!$B:$G,6,0)="","-",VLOOKUP($D45,site!$B:$G,6,0))),IF($C45="","",IF(VLOOKUP($E45,site!$B:$G,5,0)="","-",VLOOKUP($E45,site!$B:$G,5,0)))) -> 2.03
A46: 20-11-2020 | B46: 16:00:00 | C46: Uzbekistan Superleague | D46: Navbahor | E46: Surkhon Termez | F46: X | G46: W1 | H46: W1 | I46: - | J46: - | K46: - | L46: - | M46: - | N46: - | O46: - | P46: Navbahor | Q46: Navbahor | R46: Navbahor | S46: =IFERROR(IF(C46="","",IF(VLOOKUP(D46,site!$B:$D,3,0)="","-",VLOOKUP(D46,site!$B:$D,3,0))),IF(C46="","",IF(VLOOKUP(E46,site!$C:$D,2,0)="","-",VLOOKUP(E46,site!$C:$D,2,0)))) -> — — | T46: =IFERROR(IF($C46="","",IF(VLOOKUP($D46,site!$B:$F,4,0)="","-",VLOOKUP($D46,site!$B:$F,4,0))),IF($C46="","",IF(VLOOKUP($E46,site!$B:$F,3,0)="","-",VLOOKUP($E46,site!$B:$F,3,0)))) -> - | U46: =IFERROR(IF($C46="","",IF(VLOOKUP($D46,site!$B:$F,5,0)="","-",VLOOKUP($D46,site!$B:$F,5,0))),IF($C46="","",IF(VLOOKUP($E46,site!$B:$F,4,0)="","-",VLOOKUP($E46,site!$B:$F,4,0)))) -> - | V46: =IFERROR(IF($C46="","",IF(VLOOKUP($D46,site!$B:$G,6,0)="","-",VLOOKUP($D46,site!$B:$G,6,0))),IF($C46="","",IF(VLOOKUP($E46,site!$B:$G,5,0)="","-",VLOOKUP($E46,site!$B:$G,5,0)))) -> -
A47: 20-11-2020 | B47: 16:00:00 | C47: Uzbekistan Superleague | D47: Pakhtakor | E47: FK Kokand | F47: W1 | G47: W1 | H47: W1 | I47: - | J47: - | K47: 0.5 O (ST) | L47: - | M47: 1.5 O (FT) | N47: - | O47: - | P47: Pakhtakor | Q47: Pakhtakor | R47: Pakhtakor | S47: =IFERROR(IF(C47="","",IF(VLOOKUP(D47,site!$B:$D,3,0)="","-",VLOOKUP(D47,site!$B:$D,3,0))),IF(C47="","",IF(VLOOKUP(E47,site!$C:$D,2,0)="","-",VLOOKUP(E47,site!$C:$D,2,0)))) -> — — | T47: =IFERROR(IF($C47="","",IF(VLOOKUP($D47,site!$B:$F,4,0)="","-",VLOOKUP($D47,site!$B:$F,4,0))),IF($C47="","",IF(VLOOKUP($E47,site!$B:$F,3,0)="","-",VLOOKUP($E47,site!$B:$F,3,0)))) -> 1.136 | U47: =IFERROR(IF($C47="","",IF(VLOOKUP($D47,site!$B:$F,5,0)="","-",VLOOKUP($D47,site!$B:$F,5,0))),IF($C47="","",IF(VLOOKUP($E47,site!$B:$F,4,0)="","-",VLOOKUP($E47,site!$B:$F,4,0)))) -> 8 | V47: =IFERROR(IF($C47="","",IF(VLOOKUP($D47,site!$B:$G,6,0)="","-",VLOOKUP($D47,site!$B:$G,6,0))),IF($C47="","",IF(VLOOKUP($E47,site!$B:$G,5,0)="","-",VLOOKUP($E47,site!$B:$G,5,0)))) -> 15
A48: 20-11-2020 | B48: 16:30:00 | C48: Czech Republic 1. Division | D48: Jihlava | E48: Blansko | F48: NB | G48: NB | H48: NB | I48: 0.5 O (HT) | J48: - | K48: 0.5 O (ST) | L48: - | M48: 1.5 O (FT) | N48: - | O48: - | P48: NB | Q48: NB | R48: NB | S48: =IFERROR(IF(C48="","",IF(VLOOKUP(D48,site!$B:$D,3,0)="","-",VLOOKUP(D48,site!$B:$D,3,0))),IF(C48="","",IF(VLOOKUP(E48,site!$C:$D,2,0)="","-",VLOOKUP(E48,site!$C:$D,2,0)))) -> — — | T48: =IFERROR(IF($C48="","",IF(VLOOKUP($D48,site!$B:$F,4,0)="","-",VLOOKUP($D48,site!$B:$F,4,0))),IF($C48="","",IF(VLOOKUP($E48,site!$B:$F,3,0)="","-",VLOOKUP($E48,site!$B:$F,3,0)))) -> 1.85 | U48: =IFERROR(IF($C48="","",IF(VLOOKUP($D48,site!$B:$F,5,0)="","-",VLOOKUP($D48,site!$B:$F,5,0))),IF($C48="","",IF(VLOOKUP($E48,site!$B:$F,4,0)="","-",VLOOKUP($E48,site!$B:$F,4,0)))) -> 3.58 | V48: =IFERROR(IF($C48="","",IF(VLOOKUP($D48,site!$B:$G,6,0)="","-",VLOOKUP($D48,site!$B:$G,6,0))),IF($C48="","",IF(VLOOKUP($E48,site!$B:$G,5,0)="","-",VLOOKUP($E48,site!$B:$G,5,0)))) -> 3.86
A49: 20-11-2020 | B49: 16:40:00 | C49: Iran Pro League | D49: Mes Rafsanjan | E49: Gohar Sirjan | F49: NB | G49: NB | H49: NB | I49: - | J49: - | K49: 0.5 O (ST) | L49: 1.5 O (ST) | M49: 1.5 O (FT) | N49: - | O49: - | P49: NB | Q49: NB | R49: NB | S49: =IFERROR(IF(C49="","",IF(VLOOKUP(D49,site!$B:$D,3,0)="","-",VLOOKUP(D49,site!$B:$D,3,0))),IF(C49="","",IF(VLOOKUP(E49,site!$C:$D,2,0)="","-",VLOOKUP(E49,site!$C:$D,2,0)))) -> — — | T49: =IFERROR(IF($C49="","",IF(VLOOKUP($D49,site!$B:$F,4,0)="","-",VLOOKUP($D49,site!$B:$F,4,0))),IF($C49="","",IF(VLOOKUP($E49,site!$B:$F,3,0)="","-",VLOOKUP($E49,site!$B:$F,3,0)))) -> 2.91 | U49: =IFERROR(IF($C49="","",IF(VLOOKUP($D49,site!$B:$F,5,0)="","-",VLOOKUP($D49,site!$B:$F,5,0))),IF($C49="","",IF(VLOOKUP($E49,site!$B:$F,4,0)="","-",VLOOKUP($E49,site!$B:$F,4,0)))) -> 2.875 | V49: =IFERROR(IF($C49="","",IF(VLOOKUP($D49,site!$B:$G,6,0)="","-",VLOOKUP($D49,site!$B:$G,6,0))),IF($C49="","",IF(VLOOKUP($E49,site!$B:$G,5,0)="","-",VLOOKUP($E49,site!$B:$G,5,0)))) -> 2.56
A50: 20-11-2020 | B50: 17:00:00 | C50: Russia Youth teams | D50: PFC Sochi Youth | E50: Akhmat Youth | F50: W1 | G50: X | H50: W1 | I50: 0.5 O (HT) | J50: - | K50: - | L50: - | M50: 1.5 O (FT) | N50: - | O50: - | P50: PFC Sochi Youth | Q50: Akhmat Youth | R50: PFC Sochi Youth | S50: =IFERROR(IF(C50="","",IF(VLOOKUP(D50,site!$B:$D,3,0)="","-",VLOOKUP(D50,site!$B:$D,3,0))),IF(C50="","",IF(VLOOKUP(E50,site!$C:$D,2,0)="","-",VLOOKUP(E50,site!$C:$D,2,0)))) -> — — | T50: =IFERROR(IF($C50="","",IF(VLOOKUP($D50,site!$B:$F,4,0)="","-",VLOOKUP($D50,site!$B:$F,4,0))),IF($C50="","",IF(VLOOKUP($E50,site!$B:$F,3,0)="","-",VLOOKUP($E50,site!$B:$F,3,0)))) -> - | U50: =IFERROR(IF($C50="","",IF(VLOOKUP($D50,site!$B:$F,5,0)="","-",VLOOKUP($D50,site!$B:$F,5,0))),IF($C50="","",IF(VLOOKUP($E50,site!$B:$F,4,0)="","-",VLOOKUP($E50,site!$B:$F,4,0)))) -> - | V50: =IFERROR(IF($C50="","",IF(VLOOKUP($D50,site!$B:$G,6,0)="","-",VLOOKUP($D50,site!$B:$G,6,0))),IF($C50="","",IF(VLOOKUP($E50,site!$B:$G,5,0)="","-",VLOOKUP($E50,site!$B:$G,5,0)))) -> -
A51: 20-11-2020 | B51: 17:00:00 | C51: Israel Liga Leumit | D51: Hapoel Kfar Shelem | E51: H. Petah Tikva | F51: NB | G51: NB | H51: NB | I51: - | J51: - | K51: - | L51: - | M51: 1.5 O (FT) | N51: - | O51: - | P51: NB | Q51: NB | R51: NB | S51: =IFERROR(IF(C51="","",IF(VLOOKUP(D51,site!$B:$D,3,0)="","-",VLOOKUP(D51,site!$B:$D,3,0))),IF(C51="","",IF(VLOOKUP(E51,site!$C:$D,2,0)="","-",VLOOKUP(E51,site!$C:$D,2,0)))) -> — — | T51: =IFERROR(IF($C51="","",IF(VLOOKUP($D51,site!$B:$F,4,0)="","-",VLOOKUP($D51,site!$B:$F,4,0))),IF($C51="","",IF(VLOOKUP($E51,site!$B:$F,3,0)="","-",VLOOKUP($E51,site!$B:$F,3,0)))) -> 2.79 | U51: =IFERROR(IF($C51="","",IF(VLOOKUP($D51,site!$B:$F,5,0)="","-",VLOOKUP($D51,site!$B:$F,5,0))),IF($C51="","",IF(VLOOKUP($E51,site!$B:$F,4,0)="","-",VLOOKUP($E51,site!$B:$F,4,0)))) -> 3.18 | V51: =IFERROR(IF($C51="","",IF(VLOOKUP($D51,site!$B:$G,6,0)="","-",VLOOKUP($D51,site!$B:$G,6,0))),IF($C51="","",IF(VLOOKUP($E51,site!$B:$G,5,0)="","-",VLOOKUP($E51,site!$B:$G,5,0)))) -> 2.45
A52: 20-11-2020 | B52: 17:00:00 | C52: Israel Liga Leumit | D52: Sektzia Nes Tziona | E52: Hapoel Um El Fahem | F52: NB | G52: NB | H52: NB | I52: - | J52: - | K52: - | L52: - | M52: - | N52: - | O52: - | P52: NB | Q52: NB | R52: NB | S52: =IFERROR(IF(C52="","",IF(VLOOKUP(D52,site!$B:$D,3,0)="","-",VLOOKUP(D52,site!$B:$D,3,0))),IF(C52="","",IF(VLOOKUP(E52,site!$C:$D,2,0)="","-",VLOOKUP(E52,site!$C:$D,2,0)))) -> — — | T52: =IFERROR(IF($C52="","",IF(VLOOKUP($D52,site!$B:$F,4,0)="","-",VLOOKUP($D52,site!$B:$F,4,0))),IF($C52="","",IF(VLOOKUP($E52,site!$B:$F,3,0)="","-",VLOOKUP($E52,site!$B:$F,3,0)))) -> 2.03 | U52: =IFERROR(IF($C52="","",IF(VLOOKUP($D52,site!$B:$F,5,0)="","-",VLOOKUP($D52,site!$B:$F,5,0))),IF($C52="","",IF(VLOOKUP($E52,site!$B:$F,4,0)="","-",VLOOKUP($E52,site!$B:$F,4,0)))) -> 3.34 | V52: =IFERROR(IF($C52="","",IF(VLOOKUP($D52,site!$B:$G,6,0)="","-",VLOOKUP($D52,site!$B:$G,6,0))),IF($C52="","",IF(VLOOKUP($E52,site!$B:$G,5,0)="","-",VLOOKUP($E52,site!$B:$G,5,0)))) -> 3.5
A53: 20-11-2020 | B53: 17:00:00 | C53: Israel Liga Leumit | D53: Hapoel Acre | E53: Nir Ramat Hasharon | F53: X | G53: X | H53: X | I53: - | J53: - | K53: - | L53: - | M53: - | N53: - | O53: - | P53: Hapoel Acre | Q53: Hapoel Acre | R53: - | S53: =IFERROR(IF(C53="","",IF(VLOOKUP(D53,site!$B:$D,3,0)="","-",VLOOKUP(D53,site!$B:$D,3,0))),IF(C53="","",IF(VLOOKUP(E53,site!$C:$D,2,0)="","-",VLOOKUP(E53,site!$C:$D,2,0)))) -> — — | T53: =IFERROR(IF($C53="","",IF(VLOOKUP($D53,site!$B:$F,4,0)="","-",VLOOKUP($D53,site!$B:$F,4,0))),IF($C53="","",IF(VLOOKUP($E53,site!$B:$F,3,0)="","-",VLOOKUP($E53,site!$B:$F,3,0)))) -> 2.44 | U53: =IFERROR(IF($C53="","",IF(VLOOKUP($D53,site!$B:$F,5,0)="","-",VLOOKUP($D53,site!$B:$F,5,0))),IF($C53="","",IF(VLOOKUP($E53,site!$B:$F,4,0)="","-",VLOOKUP($E53,site!$B:$F,4,0)))) -> 3.14 | V53: =IFERROR(IF($C53="","",IF(VLOOKUP($D53,site!$B:$G,6,0)="","-",VLOOKUP($D53,site!$B:$G,6,0))),IF($C53="","",IF(VLOOKUP($E53,site!$B:$G,5,0)="","-",VLOOKUP($E53,site!$B:$G,5,0)))) -> 2.83
A54: 20-11-2020 | B54: 17:00:00 | C54: Israel Liga Leumit | D54: Hapoel Iksal | E54: Hapoel Raanana | F54: NB | G54: NB | H54: NB | I54: - | J54: - | K54: 0.5 O (ST) | L54: - | M54: 1.5 O (FT) | N54: - | O54: - | P54: NB | Q54: NB | R54: NB | S54: =IFERROR(IF(C54="","",IF(VLOOKUP(D54,site!$B:$D,3,0)="","-",VLOOKUP(D54,site!$B:$D,3,0))),IF(C54="","",IF(VLOOKUP(E54,site!$C:$D,2,0)="","-",VLOOKUP(E54,site!$C:$D,2,0)))) -> — — | T54: =IFERROR(IF($C54="","",IF(VLOOKUP($D54,site!$B:$F,4,0)="","-",VLOOKUP($D54,site!$B:$F,4,0))),IF($C54="","",IF(VLOOKUP($E54,site!$B:$F,3,0)="","-",VLOOKUP($E54,site!$B:$F,3,0)))) -> 2.46 | U54: =IFERROR(IF($C54="","",IF(VLOOKUP($D54,site!$B:$F,5,0)="","-",VLOOKUP($D54,site!$B:$F,5,0))),IF($C54="","",IF(VLOOKUP($E54,site!$B:$F,4,0)="","-",VLOOKUP($E54,site!$B:$F,4,0)))) -> 3.2 | V54: =IFERROR(IF($C54="","",IF(VLOOKUP($D54,site!$B:$G,6,0)="","-",VLOOKUP($D54,site!$B:$G,6,0))),IF($C54="","",IF(VLOOKUP($E54,site!$B:$G,5,0)="","-",VLOOKUP($E54,site!$B:$G,5,0)))) -> 2.76
A55: 20-11-2020 | B55: 17:00:00 | C55: Israel Liga Leumit | D55: Ramat Gan Givatayim | E55: Beitar Tel Aviv | F55: X | G55: X | H55: W1 | I55: - | J55: - | K55: - | L55: - | M55: 1.5 O (FT) | N55: - | O55: - | P55: Beitar Tel Aviv | Q55: Ramat Gan Givatayim | R55: Ramat Gan Givatayim | S55: =IFERROR(IF(C55="","",IF(VLOOKUP(D55,site!$B:$D,3,0)="","-",VLOOKUP(D55,site!$B:$D,3,0))),IF(C55="","",IF(VLOOKUP(E55,site!$C:$D,2,0)="","-",VLOOKUP(E55,site!$C:$D,2,0)))) -> — — | T55: =IFERROR(IF($C55="","",IF(VLOOKUP($D55,site!$B:$F,4,0)="","-",VLOOKUP($D55,site!$B:$F,4,0))),IF($C55="","",IF(VLOOKUP($E55,site!$B:$F,3,0)="","-",VLOOKUP($E55,site!$B:$F,3,0)))) -> 1.76 | U55: =IFERROR(IF($C55="","",IF(VLOOKUP($D55,site!$B:$F,5,0)="","-",VLOOKUP($D55,site!$B:$F,5,0))),IF($C55="","",IF(VLOOKUP($E55,site!$B:$F,4,0)="","-",VLOOKUP($E55,site!$B:$F,4,0)))) -> 3.52 | V55: =IFERROR(IF($C55="","",IF(VLOOKUP($D55,site!$B:$G,6,0)="","-",VLOOKUP($D55,site!$B:$G,6,0))),IF($C55="","",IF(VLOOKUP($E55,site!$B:$G,5,0)="","-",VLOOKUP($E55,site!$B:$G,5,0)))) -> 4.42
A56: 20-11-2020 | B56: 17:00:00 | C56: Ukraine - Persha Liga | D56: Metalist | E56: Kremin | F56: X | G56: X | H56: W1 | I56: - | J56: - | K56: - | L56: - | M56: - | N56: - | O56: - | P56: Kremin | Q56: Kremin | R56: Kremin | S56: =IFERROR(IF(C56="","",IF(VLOOKUP(D56,site!$B:$D,3,0)="","-",VLOOKUP(D56,site!$B:$D,3,0))),IF(C56="","",IF(VLOOKUP(E56,site!$C:$D,2,0)="","-",VLOOKUP(E56,site!$C:$D,2,0)))) -> — — | T56: =IFERROR(IF($C56="","",IF(VLOOKUP($D56,site!$B:$F,4,0)="","-",VLOOKUP($D56,site!$B:$F,4,0))),IF($C56="","",IF(VLOOKUP($E56,site!$B:$F,3,0)="","-",VLOOKUP($E56,site!$B:$F,3,0)))) -> 1.808 | U56: =IFERROR(IF($C56="","",IF(VLOOKUP($D56,site!$B:$F,5,0)="","-",VLOOKUP($D56,site!$B:$F,5,0))),IF($C56="","",IF(VLOOKUP($E56,site!$B:$F,4,0)="","-",VLOOKUP($E56,site!$B:$F,4,0)))) -> 3.4 | V56: =IFERROR(IF($C56="","",IF(VLOOKUP($D56,site!$B:$G,6,0)="","-",VLOOKUP($D56,site!$B:$G,6,0))),IF($C56="","",IF(VLOOKUP($E56,site!$B:$G,5,0)="","-",VLOOKUP($E56,site!$B:$G,5,0)))) -> 4.18
A57: 20-11-2020 | B57: 17:05:00 | C57: Iran Pro League | D57: Machine Tabriz | E57: Zob Ahan | F57: W2 | G57: X | H57: W2 | I57: - | J57: - | K57: - | L57: - | M57: 1.5 O (FT) | N57: - | O57: - | P57: Zob Ahan | Q57: Machine Tabriz | R57: Zob Ahan | S57: =IFERROR(IF(C57="","",IF(VLOOKUP(D57,site!$B:$D,3,0)="","-",VLOOKUP(D57,site!$B:$D,3,0))),IF(C57="","",IF(VLOOKUP(E57,site!$C:$D,2,0)="","-",VLOOKUP(E57,site!$C:$D,2,0)))) -> — — | T57: =IFERROR(IF($C57="","",IF(VLOOKUP($D57,site!$B:$F,4,0)="","-",VLOOKUP($D57,site!$B:$F,4,0))),IF($C57="","",IF(VLOOKUP($E57,site!$B:$F,3,0)="","-",VLOOKUP($E57,site!$B:$F,3,0)))) -> 2.456 | U57: =IFERROR(IF($C57="","",IF(VLOOKUP($D57,site!$B:$F,5,0)="","-",VLOOKUP($D57,site!$B:$F,5,0))),IF($C57="","",IF(VLOOKUP($E57,site!$B:$F,4,0)="","-",VLOOKUP($E57,site!$B:$F,4,0)))) -> 2.91 | V57: =IFERROR(IF($C57="","",IF(VLOOKUP($D57,site!$B:$G,6,0)="","-",VLOOKUP($D57,site!$B:$G,6,0))),IF($C57="","",IF(VLOOKUP($E57,site!$B:$G,5,0)="","-",VLOOKUP($E57,site!$B:$G,5,0)))) -> 3.04
A58: 20-11-2020 | B58: 17:10:00 | C58: Iran Pro League | D58: Foolad | E58: Esteghlal | F58: X | G58: W2 | H58: X | I58: - | J58: - | K58: - | L58: - | M58: - | N58: - | O58: - | P58: - | Q58: Esteghlal | R58: Esteghlal | S58: =IFERROR(IF(C58="","",IF(VLOOKUP(D58,site!$B:$D,3,0)="","-",VLOOKUP(D58,site!$B:$D,3,0))),IF(C58="","",IF(VLOOKUP(E58,site!$C:$D,2,0)="","-",VLOOKUP(E58,site!$C:$D,2,0)))) -> — — | T58: =IFERROR(IF($C58="","",IF(VLOOKUP($D58,site!$B:$F,4,0)="","-",VLOOKUP($D58,site!$B:$F,4,0))),IF($C58="","",IF(VLOOKUP($E58,site!$B:$F,3,0)="","-",VLOOKUP($E58,site!$B:$F,3,0)))) -> 2.536 | U58: =IFERROR(IF($C58="","",IF(VLOOKUP($D58,site!$B:$F,5,0)="","-",VLOOKUP($D58,site!$B:$F,5,0))),IF($C58="","",IF(VLOOKUP($E58,site!$B:$F,4,0)="","-",VLOOKUP($E58,site!$B:$F,4,0)))) -> 2.936 | V58: =IFERROR(IF($C58="","",IF(VLOOKUP($D58,site!$B:$G,6,0)="","-",VLOOKUP($D58,site!$B:$G,6,0))),IF($C58="","",IF(VLOOKUP($E58,site!$B:$G,5,0)="","-",VLOOKUP($E58,site!$B:$G,5,0)))) -> 2.88
A59: 20-11-2020 | B59: 18:00:00 | C59: Moldova - Divizia Nationala | D59: Zimbru | E59: Dacia Buiucani | F59: X | G59: W2 | H59: W2 | I59: - | J59: - | K59: - | L59: - | M59: - | N59: - | O59: - | P59: Dacia Buiucani | Q59: Dacia Buiucani | R59: Dacia Buiucani | S59: =IFERROR(IF(C59="","",IF(VLOOKUP(D59,site!$B:$D,3,0)="","-",VLOOKUP(D59,site!$B:$D,3,0))),IF(C59="","",IF(VLOOKUP(E59,site!$C:$D,2,0)="","-",VLOOKUP(E59,site!$C:$D,2,0)))) -> — — | T59: =IFERROR(IF($C59="","",IF(VLOOKUP($D59,site!$B:$F,4,0)="","-",VLOOKUP($D59,site!$B:$F,4,0))),IF($C59="","",IF(VLOOKUP($E59,site!$B:$F,3,0)="","-",VLOOKUP($E59,site!$B:$F,3,0)))) -> - | U59: =IFERROR(IF($C59="","",IF(VLOOKUP($D59,site!$B:$F,5,0)="","-",VLOOKUP($D59,site!$B:$F,5,0))),IF($C59="","",IF(VLOOKUP($E59,site!$B:$F,4,0)="","-",VLOOKUP($E59,site!$B:$F,4,0)))) -> - | V59: =IFERROR(IF($C59="","",IF(VLOOKUP($D59,site!$B:$G,6,0)="","-",VLOOKUP($D59,site!$B:$G,6,0))),IF($C59="","",IF(VLOOKUP($E59,site!$B:$G,5,0)="","-",VLOOKUP($E59,site!$B:$G,5,0)))) -> -
A60: 20-11-2020 | B60: 18:00:00 | C60: U.A.E. Etisalat National League | D60: Al-Wasl | E60: AL Ain | F60: W2 | G60: W2 | H60: W2 | I60: 0.5 O (HT) | J60: - | K60: 0.5 O (ST) | L60: - | M60: 1.5 O (FT) | N60: - | O60: - | P60: AL Ain | Q60: AL Ain | R60: AL Ain | S60: =IFERROR(IF(C60="","",IF(VLOOKUP(D60,site!$B:$D,3,0)="","-",VLOOKUP(D60,site!$B:$D,3,0))),IF(C60="","",IF(VLOOKUP(E60,site!$C:$D,2,0)="","-",VLOOKUP(E60,site!$C:$D,2,0)))) -> — — | T60: =IFERROR(IF($C60="","",IF(VLOOKUP($D60,site!$B:$F,4,0)="","-",VLOOKUP($D60,site!$B:$F,4,0))),IF($C60="","",IF(VLOOKUP($E60,site!$B:$F,3,0)="","-",VLOOKUP($E60,site!$B:$F,3,0)))) -> 3.66 | U60: =IFERROR(IF($C60="","",IF(VLOOKUP($D60,site!$B:$F,5,0)="","-",VLOOKUP($D60,site!$B:$F,5,0))),IF($C60="","",IF(VLOOKUP($E60,site!$B:$F,4,0)="","-",VLOOKUP($E60,site!$B:$F,4,0)))) -> 3.74 | V60: =IFERROR(IF($C60="","",IF(VLOOKUP($D60,site!$B:$G,6,0)="","-",VLOOKUP($D60,site!$B:$G,6,0))),IF($C60="","",IF(VLOOKUP($E60,site!$B:$G,5,0)="","-",VLOOKUP($E60,site!$B:$G,5,0)))) -> 1.9
A61: 20-11-2020 | B61: 18:00:00 | C61: U.A.E. Etisalat National League | D61: Baniyas | E61: Kalba | F61: W2 | G61: W1 | H61: W1 | I61: - | J61: - | K61: 0.5 O (ST) | L61: - | M61: 1.5 O (FT) | N61: - | O61: - | P61: Kalba | Q61: Baniyas | R61: - | S61: =IFERROR(IF(C61="","",IF(VLOOKUP(D61,site!$B:$D,3,0)="","-",VLOOKUP(D61,site!$B:$D,3,0))),IF(C61="","",IF(VLOOKUP(E61,site!$C:$D,2,0)="","-",VLOOKUP(E61,site!$C:$D,2,0)))) -> — — | T61: =IFERROR(IF($C61="","",IF(VLOOKUP($D61,site!$B:$F,4,0)="","-",VLOOKUP($D61,site!$B:$F,4,0))),IF($C61="","",IF(VLOOKUP($E61,site!$B:$F,3,0)="","-",VLOOKUP($E61,site!$B:$F,3,0)))) -> 1.45 | U61: =IFERROR(IF($C61="","",IF(VLOOKUP($D61,site!$B:$F,5,0)="","-",VLOOKUP($D61,site!$B:$F,5,0))),IF($C61="","",IF(VLOOKUP($E61,site!$B:$F,4,0)="","-",VLOOKUP($E61,site!$B:$F,4,0)))) -> 4.6 | V61: =IFERROR(IF($C61="","",IF(VLOOKUP($D61,site!$B:$G,6,0)="","-",VLOOKUP($D61,site!$B:$G,6,0))),IF($C61="","",IF(VLOOKUP($E61,site!$B:$G,5,0)="","-",VLOOKUP($E61,site!$B:$G,5,0)))) -> 6.2
A62: 20-11-2020 | B62: 19:30:00 | C62: Romania Liga I | D62: CSMS Iasi | E62: Arges | F62: NB | G62: NB | H62: NB | I62: 0.5 O (HT) | J62: - | K62: 0.5 O (ST) | L62: - | M62: 1.5 O (FT) | N62: - | O62: - | P62: NB | Q62: NB | R62: NB | S62: =IFERROR(IF(C62="","",IF(VLOOKUP(D62,site!$B:$D,3,0)="","-",VLOOKUP(D62,site!$B:$D,3,0))),IF(C62="","",IF(VLOOKUP(E62,site!$C:$D,2,0)="","-",VLOOKUP(E62,site!$C:$D,2,0)))) -> — — | T62: =IFERROR(IF($C62="","",IF(VLOOKUP($D62,site!$B:$F,4,0)="","-",VLOOKUP($D62,site!$B:$F,4,0))),IF($C62="","",IF(VLOOKUP($E62,site!$B:$F,3,0)="","-",VLOOKUP($E62,site!$B:$F,3,0)))) -> 2.44 | U62: =IFERROR(IF($C62="","",IF(VLOOKUP($D62,site!$B:$F,5,0)="","-",VLOOKUP($D62,site!$B:$F,5,0))),IF($C62="","",IF(VLOOKUP($E62,site!$B:$F,4,0)="","-",VLOOKUP($E62,site!$B:$F,4,0)))) -> 3.24 | V62: =IFERROR(IF($C62="","",IF(VLOOKUP($D62,site!$B:$G,6,0)="","-",VLOOKUP($D62,site!$B:$G,6,0))),IF($C62="","",IF(VLOOKUP($E62,site!$B:$G,5,0)="","-",VLOOKUP($E62,site!$B:$G,5,0)))) -> 2.96
A63: 20-11-2020 | B63: 20:00:00 | C63: Croatia 1. Division | D63: Lok Zagreb | E63: Varazdin | F63: W1 | G63: W1 | H63: W1 | I63: 0.5 O (HT) | J63: - | K63: - | L63: - | M63: - | N63: - | O63: - | P63: Lok Zagreb | Q63: Lok Zagreb | R63: Lok Zagreb | S63: =IFERROR(IF(C63="","",IF(VLOOKUP(D63,site!$B:$D,3,0)="","-",VLOOKUP(D63,site!$B:$D,3,0))),IF(C63="","",IF(VLOOKUP(E63,site!$C:$D,2,0)="","-",VLOOKUP(E63,site!$C:$D,2,0)))) -> — — | T63: =IFERROR(IF($C63="","",IF(VLOOKUP($D63,site!$B:$F,4,0)="","-",VLOOKUP($D63,site!$B:$F,4,0))),IF($C63="","",IF(VLOOKUP($E63,site!$B:$F,3,0)="","-",VLOOKUP($E63,site!$B:$F,3,0)))) -> 1.784 | U63: =IFERROR(IF($C63="","",IF(VLOOKUP($D63,site!$B:$F,5,0)="","-",VLOOKUP($D63,site!$B:$F,5,0))),IF($C63="","",IF(VLOOKUP($E63,site!$B:$F,4,0)="","-",VLOOKUP($E63,site!$B:$F,4,0)))) -> 3.68 | V63: =IFERROR(IF($C63="","",IF(VLOOKUP($D63,site!$B:$G,6,0)="","-",VLOOKUP($D63,site!$B:$G,6,0))),IF($C63="","",IF(VLOOKUP($E63,site!$B:$G,5,0)="","-",VLOOKUP($E63,site!$B:$G,5,0)))) -> 4.26
A64: 20-11-2020 | B64: 20:00:00 | C64: Moldova - Divizia Nationala | D64: Dinamo Auto | E64: Dacia Buiucani | F64: X | G64: W1 | H64: W1 | I64: - | J64: - | K64: - | L64: - | M64: - | N64: - | O64: - | P64: Dacia Buiucani | Q64: Dinamo Auto | R64: Dinamo Auto | S64: =IFERROR(IF(C64="","",IF(VLOOKUP(D64,site!$B:$D,3,0)="","-",VLOOKUP(D64,site!$B:$D,3,0))),IF(C64="","",IF(VLOOKUP(E64,site!$C:$D,2,0)="","-",VLOOKUP(E64,site!$C:$D,2,0)))) -> — — | T64: =IFERROR(IF($C64="","",IF(VLOOKUP($D64,site!$B:$F,4,0)="","-",VLOOKUP($D64,site!$B:$F,4,0))),IF($C64="","",IF(VLOOKUP($E64,site!$B:$F,3,0)="","-",VLOOKUP($E64,site!$B:$F,3,0)))) -> - | U64: =IFERROR(IF($C64="","",IF(VLOOKUP($D64,site!$B:$F,5,0)="","-",VLOOKUP($D64,site!$B:$F,5,0))),IF($C64="","",IF(VLOOKUP($E64,site!$B:$F,4,0)="","-",VLOOKUP($E64,site!$B:$F,4,0)))) -> - | V64: =IFERROR(IF($C64="","",IF(VLOOKUP($D64,site!$B:$G,6,0)="","-",VLOOKUP($D64,site!$B:$G,6,0))),IF($C64="","",IF(VLOOKUP($E64,site!$B:$G,5,0)="","-",VLOOKUP($E64,site!$B:$G,5,0)))) -> -
A65: 20-11-2020 | B65: 20:00:00 | C65: Moldova - Divizia Nationala | D65: Zimbru | E65: Sfintul G | F65: W2 | G65: W2 | H65: W2 | I65: - | J65: - | K65: - | L65: - | M65: 1.5 O (FT) | N65: - | O65: - | P65: Sfintul G | Q65: Sfintul G | R65: Sfintul G | S65: =IFERROR(IF(C65="","",IF(VLOOKUP(D65,site!$B:$D,3,0)="","-",VLOOKUP(D65,site!$B:$D,3,0))),IF(C65="","",IF(VLOOKUP(E65,site!$C:$D,2,0)="","-",VLOOKUP(E65,site!$C:$D,2,0)))) -> — — | T65: =IFERROR(IF($C65="","",IF(VLOOKUP($D65,site!$B:$F,4,0)="","-",VLOOKUP($D65,site!$B:$F,4,0))),IF($C65="","",IF(VLOOKUP($E65,site!$B:$F,3,0)="","-",VLOOKUP($E65,site!$B:$F,3,0)))) -> - | U65: =IFERROR(IF($C65="","",IF(VLOOKUP($D65,site!$B:$F,5,0)="","-",VLOOKUP($D65,site!$B:$F,5,0))),IF($C65="","",IF(VLOOKUP($E65,site!$B:$F,4,0)="","-",VLOOKUP($E65,site!$B:$F,4,0)))) -> - | V65: =IFERROR(IF($C65="","",IF(VLOOKUP($D65,site!$B:$G,6,0)="","-",VLOOKUP($D65,site!$B:$G,6,0))),IF($C65="","",IF(VLOOKUP($E65,site!$B:$G,5,0)="","-",VLOOKUP($E65,site!$B:$G,5,0)))) -> -
A66: 20-11-2020 | B66: 20:00:00 | C66: Moldova - Divizia Nationala | D66: Floresti | E66: Petrocub | F66: W2 | G66: W2 | H66: W2 | I66: 0.5 O (HT) | J66: - | K66: - | L66: - | M66: - | N66: - | O66: - | P66: Petrocub | Q66: Petrocub | R66: Petrocub | S66: =IFERROR(IF(C66="","",IF(VLOOKUP(D66,site!$B:$D,3,0)="","-",VLOOKUP(D66,site!$B:$D,3,0))),IF(C66="","",IF(VLOOKUP(E66,site!$C:$D,2,0)="","-",VLOOKUP(E66,site!$C:$D,2,0)))) -> — — | T66: =IFERROR(IF($C66="","",IF(VLOOKUP($D66,site!$B:$F,4,0)="","-",VLOOKUP($D66,site!$B:$F,4,0))),IF($C66="","",IF(VLOOKUP($E66,site!$B:$F,3,0)="","-",VLOOKUP($E66,site!$B:$F,3,0)))) -> - | U66: =IFERROR(IF($C66="","",IF(VLOOKUP($D66,site!$B:$F,5,0)="","-",VLOOKUP($D66,site!$B:$F,5,0))),IF($C66="","",IF(VLOOKUP($E66,site!$B:$F,4,0)="","-",VLOOKUP($E66,site!$B:$F,4,0)))) -> - | V66: =IFERROR(IF($C66="","",IF(VLOOKUP($D66,site!$B:$G,6,0)="","-",VLOOKUP($D66,site!$B:$G,6,0))),IF($C66="","",IF(VLOOKUP($E66,site!$B:$G,5,0)="","-",VLOOKUP($E66,site!$B:$G,5,0)))) -> -
A67: 20-11-2020 | B67: 20:00:00 | C67: Moldova - Divizia Nationala | D67: Milsami | E67: Speranta | F67: X | G67: W1 | H67: W1 | I67: - | J67: - | K67: - | L67: - | M67: - | N67: - | O67: - | P67: Milsami | Q67: Milsami | R67: Milsami | S67: =IFERROR(IF(C67="","",IF(VLOOKUP(D67,site!$B:$D,3,0)="","-",VLOOKUP(D67,site!$B:$D,3,0))),IF(C67="","",IF(VLOOKUP(E67,site!$C:$D,2,0)="","-",VLOOKUP(E67,site!$C:$D,2,0)))) -> — — | T67: =IFERROR(IF($C67="","",IF(VLOOKUP($D67,site!$B:$F,4,0)="","-",VLOOKUP($D67,site!$B:$F,4,0))),IF($C67="","",IF(VLOOKUP($E67,site!$B:$F,3,0)="","-",VLOOKUP($E67,site!$B:$F,3,0)))) -> - | U67: =IFERROR(IF($C67="","",IF(VLOOKUP($D67,site!$B:$F,5,0)="","-",VLOOKUP($D67,site!$B:$F,5,0))),IF($C67="","",IF(VLOOKUP($E67,site!$B:$F,4,0)="","-",VLOOKUP($E67,site!$B:$F,4,0)))) -> - | V67: =IFERROR(IF($C67="","",IF(VLOOKUP($D67,site!$B:$G,6,0)="","-",VLOOKUP($D67,site!$B:$G,6,0))),IF($C67="","",IF(VLOOKUP($E67,site!$B:$G,5,0)="","-",VLOOKUP($E67,site!$B:$G,5,0)))) -> -
A68: 20-11-2020 | B68: 20:00:00 | C68: Serbia - Superliga | D68: Javor | E68: Spartak Subotica | F68: X | G68: W2 | H68: X | I68: - | J68: - | K68: 0.5 O (ST) | L68: - | M68: - | N68: - | O68: - | P68: Javor | Q68: Spartak Subotica | R68: Spartak Subotica | S68: =IFERROR(IF(C68="","",IF(VLOOKUP(D68,site!$B:$D,3,0)="","-",VLOOKUP(D68,site!$B:$D,3,0))),IF(C68="","",IF(VLOOKUP(E68,site!$C:$D,2,0)="","-",VLOOKUP(E68,site!$C:$D,2,0)))) -> — — | T68: =IFERROR(IF($C68="","",IF(VLOOKUP($D68,site!$B:$F,4,0)="","-",VLOOKUP($D68,site!$B:$F,4,0))),IF($C68="","",IF(VLOOKUP($E68,site!$B:$F,3,0)="","-",VLOOKUP($E68,site!$B:$F,3,0)))) -> 2.81 | U68: =IFERROR(IF($C68="","",IF(VLOOKUP($D68,site!$B:$F,5,0)="","-",VLOOKUP($D68,site!$B:$F,5,0))),IF($C68="","",IF(VLOOKUP($E68,site!$B:$F,4,0)="","-",VLOOKUP($E68,site!$B:$F,4,0)))) -> 3.3 | V68: =IFERROR(IF($C68="","",IF(VLOOKUP($D68,site!$B:$G,6,0)="","-",VLOOKUP($D68,site!$B:$G,6,0))),IF($C68="","",IF(VLOOKUP($E68,site!$B:$G,5,0)="","-",VLOOKUP($E68,site!$B:$G,5,0)))) -> 2.35
A69: 20-11-2020 | B69: 20:00:00 | C69: Serbia - Superliga | D69: Mladost L | E69: Cukaricki | F69: W2 | G69: W1 | H69: W2 | I69: - | J69: - | K69: 0.5 O (ST) | L69: - | M69: 1.5 O (FT) | N69: - | O69: - | P69: Cukaricki | Q69: Mladost L | R69: Cukaricki | S69: =IFERROR(IF(C69="","",IF(VLOOKUP(D69,site!$B:$D,3,0)="","-",VLOOKUP(D69,site!$B:$D,3,0))),IF(C69="","",IF(VLOOKUP(E69,site!$C:$D,2,0)="","-",VLOOKUP(E69,site!$C:$D,2,0)))) -> — — | T69: =IFERROR(IF($C69="","",IF(VLOOKUP($D69,site!$B:$F,4,0)="","-",VLOOKUP($D69,site!$B:$F,4,0))),IF($C69="","",IF(VLOOKUP($E69,site!$B:$F,3,0)="","-",VLOOKUP($E69,site!$B:$F,3,0)))) -> 2.625 | U69: =IFERROR(IF($C69="","",IF(VLOOKUP($D69,site!$B:$F,5,0)="","-",VLOOKUP($D69,site!$B:$F,5,0))),IF($C69="","",IF(VLOOKUP($E69,site!$B:$F,4,0)="","-",VLOOKUP($E69,site!$B:$F,4,0)))) -> 3.28 | V69: =IFERROR(IF($C69="","",IF(VLOOKUP($D69,site!$B:$G,6,0)="","-",VLOOKUP($D69,site!$B:$G,6,0))),IF($C69="","",IF(VLOOKUP($E69,site!$B:$G,5,0)="","-",VLOOKUP($E69,site!$B:$G,5,0)))) -> 2.49
A70: 20-11-2020 | B70: 20:00:00 | C70: Serbia - Superliga | D70: Radnik | E70: Macva | F70: X | G70: W1 | H70: W1 | I70: - | J70: - | K70: - | L70: - | M70: 1.5 O (FT) | N70: - | O70: - | P70: Radnik | Q70: Radnik | R70: Radnik | S70: =IFERROR(IF(C70="","",IF(VLOOKUP(D70,site!$B:$D,3,0)="","-",VLOOKUP(D70,site!$B:$D,3,0))),IF(C70="","",IF(VLOOKUP(E70,site!$C:$D,2,0)="","-",VLOOKUP(E70,site!$C:$D,2,0)))) -> — — | T70: =IFERROR(IF($C70="","",IF(VLOOKUP($D70,site!$B:$F,4,0)="","-",VLOOKUP($D70,site!$B:$F,4,0))),IF($C70="","",IF(VLOOKUP($E70,site!$B:$F,3,0)="","-",VLOOKUP($E70,site!$B:$F,3,0)))) -> 1.55 | U70: =IFERROR(IF($C70="","",IF(VLOOKUP($D70,site!$B:$F,5,0)="","-",VLOOKUP($D70,site!$B:$F,5,0))),IF($C70="","",IF(VLOOKUP($E70,site!$B:$F,4,0)="","-",VLOOKUP($E70,site!$B:$F,4,0)))) -> 4 | V70: =IFERROR(IF($C70="","",IF(VLOOKUP($D70,site!$B:$G,6,0)="","-",VLOOKUP($D70,site!$B:$G,6,0))),IF($C70="","",IF(VLOOKUP($E70,site!$B:$G,5,0)="","-",VLOOKUP($E70,site!$B:$G,5,0)))) -> 5.25
A71: 20-11-2020 | B71: 20:40:00 | C71: Poland I Liga | D71: Nieciecza | E71: Widzew Lodz | F71: NB | G71: NB | H71: NB | I71: - | J71: - | K71: - | L71: - | M71: 1.5 O (FT) | N71: - | O71: - | P71: NB | Q71: NB | R71: NB | S71: =IFERROR(IF(C71="","",IF(VLOOKUP(D71,site!$B:$D,3,0)="","-",VLOOKUP(D71,site!$B:$D,3,0))),IF(C71="","",IF(VLOOKUP(E71,site!$C:$D,2,0)="","-",VLOOKUP(E71,site!$C:$D,2,0)))) -> — — | T71: =IFERROR(IF($C71="","",IF(VLOOKUP($D71,site!$B:$F,4,0)="","-",VLOOKUP($D71,site!$B:$F,4,0))),IF($C71="","",IF(VLOOKUP($E71,site!$B:$F,3,0)="","-",VLOOKUP($E71,site!$B:$F,3,0)))) -> 2.025 | U71: =IFERROR(IF($C71="","",IF(VLOOKUP($D71,site!$B:$F,5,0)="","-",VLOOKUP($D71,site!$B:$F,5,0))),IF($C71="","",IF(VLOOKUP($E71,site!$B:$F,4,0)="","-",VLOOKUP($E71,site!$B:$F,4,0)))) -> 3.38 | V71: =IFERROR(IF($C71="","",IF(VLOOKUP($D71,site!$B:$G,6,0)="","-",VLOOKUP($D71,site!$B:$G,6,0))),IF($C71="","",IF(VLOOKUP($E71,site!$B:$G,5,0)="","-",VLOOKUP($E71,site!$B:$G,5,0)))) -> 3.72
A72: 20-11-2020 | B72: 21:00:00 | C72: Ukraine - Premier League | D72: Rukh Lviv | E72: FC Mariupol | F72: NB | G72: NB | H72: NB | I72: - | J72: - | K72: - | L72: - | M72: - | N72: - | O72: - | P72: NB | Q72: NB | R72: NB | S72: =IFERROR(IF(C72="","",IF(VLOOKUP(D72,site!$B:$D,3,0)="","-",VLOOKUP(D72,site!$B:$D,3,0))),IF(C72="","",IF(VLOOKUP(E72,site!$C:$D,2,0)="","-",VLOOKUP(E72,site!$C:$D,2,0)))) -> — — | T72: =IFERROR(IF($C72="","",IF(VLOOKUP($D72,site!$B:$F,4,0)="","-",VLOOKUP($D72,site!$B:$F,4,0))),IF($C72="","",IF(VLOOKUP($E72,site!$B:$F,3,0)="","-",VLOOKUP($E72,site!$B:$F,3,0)))) -> 2.82 | U72: =IFERROR(IF($C72="","",IF(VLOOKUP($D72,site!$B:$F,5,0)="","-",VLOOKUP($D72,site!$B:$F,5,0))),IF($C72="","",IF(VLOOKUP($E72,site!$B:$F,4,0)="","-",VLOOKUP($E72,site!$B:$F,4,0)))) -> 3.32 | V72: =IFERROR(IF($C72="","",IF(VLOOKUP($D72,site!$B:$G,6,0)="","-",VLOOKUP($D72,site!$B:$G,6,0))),IF($C72="","",IF(VLOOKUP($E72,site!$B:$G,5,0)="","-",VLOOKUP($E72,site!$B:$G,5,0)))) -> 2.48
A73: 20-11-2020 | B73: 21:00:00 | C73: Poland Ekstraklasa | D73: KS Lechia | E73: Slask Wroclaw | F73: W1 | G73: W1 | H73: W1 | I73: - | J73: - | K73: 0.5 O (ST) | L73: - | M73: - | N73: - | O73: - | P73: KS Lechia | Q73: KS Lechia | R73: KS Lechia | S73: =IFERROR(IF(C73="","",IF(VLOOKUP(D73,site!$B:$D,3,0)="","-",VLOOKUP(D73,site!$B:$D,3,0))),IF(C73="","",IF(VLOOKUP(E73,site!$C:$D,2,0)="","-",VLOOKUP(E73,site!$C:$D,2,0)))) -> — — | T73: =IFERROR(IF($C73="","",IF(VLOOKUP($D73,site!$B:$F,4,0)="","-",VLOOKUP($D73,site!$B:$F,4,0))),IF($C73="","",IF(VLOOKUP($E73,site!$B:$F,3,0)="","-",VLOOKUP($E73,site!$B:$F,3,0)))) -> 2.392 | U73: =IFERROR(IF($C73="","",IF(VLOOKUP($D73,site!$B:$F,5,0)="","-",VLOOKUP($D73,site!$B:$F,5,0))),IF($C73="","",IF(VLOOKUP($E73,site!$B:$F,4,0)="","-",VLOOKUP($E73,site!$B:$F,4,0)))) -> 3.58 | V73: =IFERROR(IF($C73="","",IF(VLOOKUP($D73,site!$B:$G,6,0)="","-",VLOOKUP($D73,site!$B:$G,6,0))),IF($C73="","",IF(VLOOKUP($E73,site!$B:$G,5,0)="","-",VLOOKUP($E73,site!$B:$G,5,0)))) -> 2.86
A74: 20-11-2020 | B74: 21:00:00 | C74: France National | D74: Lyon-Duchere | E74: Cholet | F74: X | G74: X | H74: W2 | I74: - | J74: - | K74: - | L74: - | M74: 1.5 O (FT) | N74: - | O74: - | P74: Cholet | Q74: Lyon-Duchere | R74: Lyon-Duchere | S74: =IFERROR(IF(C74="","",IF(VLOOKUP(D74,site!$B:$D,3,0)="","-",VLOOKUP(D74,site!$B:$D,3,0))),IF(C74="","",IF(VLOOKUP(E74,site!$C:$D,2,0)="","-",VLOOKUP(E74,site!$C:$D,2,0)))) -> — — | T74: =IFERROR(IF($C74="","",IF(VLOOKUP($D74,site!$B:$F,4,0)="","-",VLOOKUP($D74,site!$B:$F,4,0))),IF($C74="","",IF(VLOOKUP($E74,site!$B:$F,3,0)="","-",VLOOKUP($E74,site!$B:$F,3,0)))) -> 2.72 | U74: =IFERROR(IF($C74="","",IF(VLOOKUP($D74,site!$B:$F,5,0)="","-",VLOOKUP($D74,site!$B:$F,5,0))),IF($C74="","",IF(VLOOKUP($E74,site!$B:$F,4,0)="","-",VLOOKUP($E74,site!$B:$F,4,0)))) -> 3.18 | V74: =IFERROR(IF($C74="","",IF(VLOOKUP($D74,site!$B:$G,6,0)="","-",VLOOKUP($D74,site!$B:$G,6,0))),IF($C74="","",IF(VLOOKUP($E74,site!$B:$G,5,0)="","-",VLOOKUP($E74,site!$B:$G,5,0)))) -> 2.54
A75: 20-11-2020 | B75: 21:00:00 | C75: France National | D75: Laval | E75: Boulogne | F75: X | G75: X | H75: X | I75: - | J75: - | K75: - | L75: - | M75: - | N75: - | O75: - | P75: Boulogne | Q75: Laval | R75: Boulogne | S75: =IFERROR(IF(C75="","",IF(VLOOKUP(D75,site!$B:$D,3,0)="","-",VLOOKUP(D75,site!$B:$D,3,0))),IF(C75="","",IF(VLOOKUP(E75,site!$C:$D,2,0)="","-",VLOOKUP(E75,site!$C:$D,2,0)))) -> — — | T75: =IFERROR(IF($C75="","",IF(VLOOKUP($D75,site!$B:$F,4,0)="","-",VLOOKUP($D75,site!$B:$F,4,0))),IF($C75="","",IF(VLOOKUP($E75,site!$B:$F,3,0)="","-",VLOOKUP($E75,site!$B:$F,3,0)))) -> 2.22 | U75: =IFERROR(IF($C75="","",IF(VLOOKUP($D75,site!$B:$F,5,0)="","-",VLOOKUP($D75,site!$B:$F,5,0))),IF($C75="","",IF(VLOOKUP($E75,site!$B:$F,4,0)="","-",VLOOKUP($E75,site!$B:$F,4,0)))) -> 3 | V75: =IFERROR(IF($C75="","",IF(VLOOKUP($D75,site!$B:$G,6,0)="","-",VLOOKUP($D75,site!$B:$G,6,0))),IF($C75="","",IF(VLOOKUP($E75,site!$B:$G,5,0)="","-",VLOOKUP($E75,site!$B:$G,5,0)))) -> 3.08
A76: 20-11-2020 | B76: 21:00:00 | C76: France National | D76: Sete | E76: Red Star | F76: NB | G76: NB | H76: NB | I76: - | J76: - | K76: 0.5 O (ST) | L76: - | M76: - | N76: - | O76: - | P76: NB | Q76: NB | R76: NB | S76: =IFERROR(IF(C76="","",IF(VLOOKUP(D76,site!$B:$D,3,0)="","-",VLOOKUP(D76,site!$B:$D,3,0))),IF(C76="","",IF(VLOOKUP(E76,site!$C:$D,2,0)="","-",VLOOKUP(E76,site!$C:$D,2,0)))) -> — — | T76: =IFERROR(IF($C76="","",IF(VLOOKUP($D76,site!$B:$F,4,0)="","-",VLOOKUP($D76,site!$B:$F,4,0))),IF($C76="","",IF(VLOOKUP($E76,site!$B:$F,3,0)="","-",VLOOKUP($E76,site!$B:$F,3,0)))) -> 2.68 | U76: =IFERROR(IF($C76="","",IF(VLOOKUP($D76,site!$B:$F,5,0)="","-",VLOOKUP($D76,site!$B:$F,5,0))),IF($C76="","",IF(VLOOKUP($E76,site!$B:$F,4,0)="","-",VLOOKUP($E76,site!$B:$F,4,0)))) -> 3.2 | V76: =IFERROR(IF($C76="","",IF(VLOOKUP($D76,site!$B:$G,6,0)="","-",VLOOKUP($D76,site!$B:$G,6,0))),IF($C76="","",IF(VLOOKUP($E76,site!$B:$G,5,0)="","-",VLOOKUP($E76,site!$B:$G,5,0)))) -> 2.56
A77: 20-11-2020 | B77: 21:00:00 | C77: France National | D77: Annecy | E77: Villefranche | F77: NB | G77: NB | H77: NB | I77: - | J77: - | K77: - | L77: - | M77: - | N77: - | O77: - | P77: NB | Q77: NB | R77: NB | S77: =IFERROR(IF(C77="","",IF(VLOOKUP(D77,site!$B:$D,3,0)="","-",VLOOKUP(D77,site!$B:$D,3,0))),IF(C77="","",IF(VLOOKUP(E77,site!$C:$D,2,0)="","-",VLOOKUP(E77,site!$C:$D,2,0)))) -> — — | T77: =IFERROR(IF($C77="","",IF(VLOOKUP($D77,site!$B:$F,4,0)="","-",VLOOKUP($D77,site!$B:$F,4,0))),IF($C77="","",IF(VLOOKUP($E77,site!$B:$F,3,0)="","-",VLOOKUP($E77,site!$B:$F,3,0)))) -> 2.42 | U77: =IFERROR(IF($C77="","",IF(VLOOKUP($D77,site!$B:$F,5,0)="","-",VLOOKUP($D77,site!$B:$F,5,0))),IF($C77="","",IF(VLOOKUP($E77,site!$B:$F,4,0)="","-",VLOOKUP($E77,site!$B:$F,4,0)))) -> 3.15 | V77: =IFERROR(IF($C77="","",IF(VLOOKUP($D77,site!$B:$G,6,0)="","-",VLOOKUP($D77,site!$B:$G,6,0))),IF($C77="","",IF(VLOOKUP($E77,site!$B:$G,5,0)="","-",VLOOKUP($E77,site!$B:$G,5,0)))) -> 2.92
A78: 20-11-2020 | B78: 21:00:00 | C78: France National | D78: Quevilly Rouen | E78: Bourg Peronnas | F78: W1 | G78: W1 | H78: W1 | I78: - | J78: - | K78: - | L78: - | M78: - | N78: - | O78: - | P78: Bourg Peronnas | Q78: Quevilly Rouen | R78: Quevilly Rouen | S78: =IFERROR(IF(C78="","",IF(VLOOKUP(D78,site!$B:$D,3,0)="","-",VLOOKUP(D78,site!$B:$D,3,0))),IF(C78="","",IF(VLOOKUP(E78,site!$C:$D,2,0)="","-",VLOOKUP(E78,site!$C:$D,2,0)))) -> — — | T78: =IFERROR(IF($C78="","",IF(VLOOKUP($D78,site!$B:$F,4,0)="","-",VLOOKUP($D78,site!$B:$F,4,0))),IF($C78="","",IF(VLOOKUP($E78,site!$B:$F,3,0)="","-",VLOOKUP($E78,site!$B:$F,3,0)))) -> 2.41 | U78: =IFERROR(IF($C78="","",IF(VLOOKUP($D78,site!$B:$F,5,0)="","-",VLOOKUP($D78,site!$B:$F,5,0))),IF($C78="","",IF(VLOOKUP($E78,site!$B:$F,4,0)="","-",VLOOKUP($E78,site!$B:$F,4,0)))) -> 3.15 | V78: =IFERROR(IF($C78="","",IF(VLOOKUP($D78,site!$B:$G,6,0)="","-",VLOOKUP($D78,site!$B:$G,6,0))),IF($C78="","",IF(VLOOKUP($E78,site!$B:$G,5,0)="","-",VLOOKUP($E78,site!$B:$G,5,0)))) -> 2.93
A79: 20-11-2020 | B79: 21:00:00 | C79: Austria - ADEG Erste Liga | D79: BW Linz | E79: Horn | F79: W1 | G79: W2 | H79: W1 | I79: - | J79: - | K79: - | L79: - | M79: 1.5 O (FT) | N79: - | O79: - | P79: BW Linz | Q79: Horn | R79: BW Linz | S79: =IFERROR(IF(C79="","",IF(VLOOKUP(D79,site!$B:$D,3,0)="","-",VLOOKUP(D79,site!$B:$D,3,0))),IF(C79="","",IF(VLOOKUP(E79,site!$C:$D,2,0)="","-",VLOOKUP(E79,site!$C:$D,2,0)))) -> — — | T79: =IFERROR(IF($C79="","",IF(VLOOKUP($D79,site!$B:$F,4,0)="","-",VLOOKUP($D79,site!$B:$F,4,0))),IF($C79="","",IF(VLOOKUP($E79,site!$B:$F,3,0)="","-",VLOOKUP($E79,site!$B:$F,3,0)))) -> 1.72 | U79: =IFERROR(IF($C79="","",IF(VLOOKUP($D79,site!$B:$F,5,0)="","-",VLOOKUP($D79,site!$B:$F,5,0))),IF($C79="","",IF(VLOOKUP($E79,site!$B:$F,4,0)="","-",VLOOKUP($E79,site!$B:$F,4,0)))) -> 4.14 | V79: =IFERROR(IF($C79="","",IF(VLOOKUP($D79,site!$B:$G,6,0)="","-",VLOOKUP($D79,site!$B:$G,6,0))),IF($C79="","",IF(VLOOKUP($E79,site!$B:$G,5,0)="","-",VLOOKUP($E79,site!$B:$G,5,0)))) -> 4.28
A80: 20-11-2020 | B80: 21:00:00 | C80: Denmark 1. Division | D80: Viborg | E80: Hobro | F80: W2 | G80: X | H80: W1 | I80: 0.5 O (HT) | J80: - | K80: 0.5 O (ST) | L80: - | M80: 1.5 O (FT) | N80: - | O80: - | P80: Hobro | Q80: Viborg | R80: Viborg | S80: =IFERROR(IF(C80="","",IF(VLOOKUP(D80,site!$B:$D,3,0)="","-",VLOOKUP(D80,site!$B:$D,3,0))),IF(C80="","",IF(VLOOKUP(E80,site!$C:$D,2,0)="","-",VLOOKUP(E80,site!$C:$D,2,0)))) -> — — | T80: =IFERROR(IF($C80="","",IF(VLOOKUP($D80,site!$B:$F,4,0)="","-",VLOOKUP($D80,site!$B:$F,4,0))),IF($C80="","",IF(VLOOKUP($E80,site!$B:$F,3,0)="","-",VLOOKUP($E80,site!$B:$F,3,0)))) -> 1.66 | U80: =IFERROR(IF($C80="","",IF(VLOOKUP($D80,site!$B:$F,5,0)="","-",VLOOKUP($D80,site!$B:$F,5,0))),IF($C80="","",IF(VLOOKUP($E80,site!$B:$F,4,0)="","-",VLOOKUP($E80,site!$B:$F,4,0)))) -> 4.24 | V80: =IFERROR(IF($C80="","",IF(VLOOKUP($D80,site!$B:$G,6,0)="","-",VLOOKUP($D80,site!$B:$G,6,0))),IF($C80="","",IF(VLOOKUP($E80,site!$B:$G,5,0)="","-",VLOOKUP($E80,site!$B:$G,5,0)))) -> 4.6
A81: 20-11-2020 | B81: 21:00:00 | C81: Germany Regionalliga North | D81: Weiche | E81: St. Pauli II | F81: X | G81: W1 | H81: W1 | I81: - | J81: - | K81: 0.5 O (ST) | L81: - | M81: 1.5 O (FT) | N81: - | O81: - | P81: Weiche | Q81: Weiche | R81: Weiche | S81: =IFERROR(IF(C81="","",IF(VLOOKUP(D81,site!$B:$D,3,0)="","-",VLOOKUP(D81,site!$B:$D,3,0))),IF(C81="","",IF(VLOOKUP(E81,site!$C:$D,2,0)="","-",VLOOKUP(E81,site!$C:$D,2,0)))) -> — — | T81: =IFERROR(IF($C81="","",IF(VLOOKUP($D81,site!$B:$F,4,0)="","-",VLOOKUP($D81,site!$B:$F,4,0))),IF($C81="","",IF(VLOOKUP($E81,site!$B:$F,3,0)="","-",VLOOKUP($E81,site!$B:$F,3,0)))) -> - | U81: =IFERROR(IF($C81="","",IF(VLOOKUP($D81,site!$B:$F,5,0)="","-",VLOOKUP($D81,site!$B:$F,5,0))),IF($C81="","",IF(VLOOKUP($E81,site!$B:$F,4,0)="","-",VLOOKUP($E81,site!$B:$F,4,0)))) -> - | V81: =IFERROR(IF($C81="","",IF(VLOOKUP($D81,site!$B:$G,6,0)="","-",VLOOKUP($D81,site!$B:$G,6,0))),IF($C81="","",IF(VLOOKUP($E81,site!$B:$G,5,0)="","-",VLOOKUP($E81,site!$B:$G,5,0)))) -> -
A82: 20-11-2020 | B82: 21:00:00 | C82: U.A.E. Etisalat National League | D82: Sharjah | E82: Al-Nasr Dubai | F82: X | G82: X | H82: W1 | I82: - | J82: - | K82: 0.5 O (ST) | L82: - | M82: 1.5 O (FT) | N82: 2.5 O (FT) | O82: - | P82: Al-Nasr Dubai | Q82: Al-Nasr Dubai | R82: Al-Nasr Dubai | S82: =IFERROR(IF(C82="","",IF(VLOOKUP(D82,site!$B:$D,3,0)="","-",VLOOKUP(D82,site!$B:$D,3,0))),IF(C82="","",IF(VLOOKUP(E82,site!$C:$D,2,0)="","-",VLOOKUP(E82,site!$C:$D,2,0)))) -> — — | T82: =IFERROR(IF($C82="","",IF(VLOOKUP($D82,site!$B:$F,4,0)="","-",VLOOKUP($D82,site!$B:$F,4,0))),IF($C82="","",IF(VLOOKUP($E82,site!$B:$F,3,0)="","-",VLOOKUP($E82,site!$B:$F,3,0)))) -> 2.02 | U82: =IFERROR(IF($C82="","",IF(VLOOKUP($D82,site!$B:$F,5,0)="","-",VLOOKUP($D82,site!$B:$F,5,0))),IF($C82="","",IF(VLOOKUP($E82,site!$B:$F,4,0)="","-",VLOOKUP($E82,site!$B:$F,4,0)))) -> 3.6 | V82: =IFERROR(IF($C82="","",IF(VLOOKUP($D82,site!$B:$G,6,0)="","-",VLOOKUP($D82,site!$B:$G,6,0))),IF($C82="","",IF(VLOOKUP($E82,site!$B:$G,5,0)="","-",VLOOKUP($E82,site!$B:$G,5,0)))) -> 2.975
A83: 20-11-2020 | B83: 21:00:00 | C83: U.A.E. Etisalat National League | D83: Fujairah | E83: Hatta | F83: W2 | G83: X | H83: W2 | I83: 0.5 O (HT) | J83: - | K83: 0.5 O (ST) | L83: - | M83: 1.5 O (FT) | N83: - | O83: - | P83: Hatta | Q83: - | R83: Hatta | S83: =IFERROR(IF(C83="","",IF(VLOOKUP(D83,site!$B:$D,3,0)="","-",VLOOKUP(D83,site!$B:$D,3,0))),IF(C83="","",IF(VLOOKUP(E83,site!$C:$D,2,0)="","-",VLOOKUP(E83,site!$C:$D,2,0)))) -> — — | T83: =IFERROR(IF($C83="","",IF(VLOOKUP($D83,site!$B:$F,4,0)="","-",VLOOKUP($D83,site!$B:$F,4,0))),IF($C83="","",IF(VLOOKUP($E83,site!$B:$F,3,0)="","-",VLOOKUP($E83,site!$B:$F,3,0)))) -> 2.22 | U83: =IFERROR(IF($C83="","",IF(VLOOKUP($D83,site!$B:$F,5,0)="","-",VLOOKUP($D83,site!$B:$F,5,0))),IF($C83="","",IF(VLOOKUP($E83,site!$B:$F,4,0)="","-",VLOOKUP($E83,site!$B:$F,4,0)))) -> 3.54 | V83: =IFERROR(IF($C83="","",IF(VLOOKUP($D83,site!$B:$G,6,0)="","-",VLOOKUP($D83,site!$B:$G,6,0))),IF($C83="","",IF(VLOOKUP($E83,site!$B:$G,5,0)="","-",VLOOKUP($E83,site!$B:$G,5,0)))) -> 2.984
